{"text_format":"1","workbook":"xlsx","n_sheets":5,"sheets":["General Information","Statistics","Code","General Statistics","Graph"],"not_rendered":{"charts":2,"images":2,"macros":0,"external_links":1,"defined_names":13,"comments":0,"pivot_tables":0},"unopened":[],"bounds":{"document_bytes":16777216,"sheet_cells":100000,"rows_first":2000,"rows_last":500,"rows_between":2000,"halvings":0,"cell_chars":16384,"cell_head_chars":4096},"cells_cut":0,"cells_raw":0,"read":"whole","date_system":"1900"}

{"sheet":"General Information","index":0,"n_rows":21585,"n_cols":18,"rows_kept":21585,"cut":false,"hidden":false,"merged":[[1,1,1,12],[2,1,2,12],[4,1,4,12],[3,1,3,12]]}
[]
[null,"William V. S. Tubman University"]
[null,"General List of Students Registered"]
[null,"Second Semester 2010/2011 Academic Year"]
[]
[]
[]
[null,"#","ID #","First Name","Middle initial","Last Name","Sex","College","County of Origin","Year","Semester","Status","Contact #","WAEC Certification","Sr. High Diploma","Transcript","Health Certificate","Remmendation Letters"]
[null,1218,"TU-00792","A Bobby","S.","Tuwilay","Male","College of Agriculture and Food Sciences","River Gee","2011/2012","First Semester","Liberian Student",6480898]
[null,1273,"TU-00745","A Domiquel",null,"Gbayon","Male","College of Agriculture and Food Sciences","Grand Gedeh","2011/2012","First Semester","Liberian Student",880423338]
[null,6,"TU-00458","A.Silkerjea",null,"Nugba","Male","College of Technology","Maryland","2010/2011","First Semester","Liberian Student",6447306]
[null,31,"TU-00033","Aaron","N.","Collins","Male","College of Management","River Gee","2009/2010","First Semester","Liberian Student",6732505]
[null,211,"TU-00033","Aaron","N.","Collins","Male","College of Management","River Gee","2009/2010","Second Semester","Liberian Student",6340945]
[null,1,"TU-00033","Aaron","N.","Collins","Male","College of Management","River Gee","2010/2011","First Semester","Liberian Student",6732505]
[null,436,"TU-00033","Aaron","N.","Collins","Male","College of Management","River Gee","2010/2011","Second Semester","Liberian Student",880422755]
[null,1257,"TU-00716","Aaron","J.","Wion","Male","College of Agriculture and Food Sciences","Grand Gedeh","2011/2012","First Semester","Liberian Student",6270994]
[null,null,"TU-00033","Aaron","N.","Collins","Male","College of Management",null,"2011/2012","First Semester","Liberian Student",880422753]
[null,null,"TU-00702","Abe","S.","Moore","Male","College of Education","Maryland","2011/2012","First Semester","Liberian Student",6636164]
[null,47,"TU-00021","Abednego","J.","Harris","Male","College of Agriculture and Food Sciences","Maryland","2010/2011","Second Semester","Liberian Student",6882547]
[null,468,"TU-00027","Abednego","W.","Tealeh","Male","College of Agriculture and Food Sciences","Maryland","2010/2011","Second Semester","Liberian Student",6740099]
[null,7,"TU-00027","Abednego","W.","Tealeh","Male","College of Agriculture and Food Sciences","Maryland","2009/2010","Second Semester","Liberian Student",6740099]
[null,56,"TU-00058","Abednego",null,"Tweh","Male","College of Health Sciences","Maryland","2009/2010","First Semester","Liberian Student",6429531]
[null,19,"TU-00021","Abednego","J.","Harris","Male","College of Agriculture and Food Sciences","Maryland","2009/2010","First Semester","Liberian Student",6882547]
[null,25,"TU-00027","Abednego","W.","Tealeh","Male","College of Agriculture and Food Sciences","River Gee","2009/2010","First Semester","Liberian Student",6740099]
[null,138,"TU-00058","Abednego",null,"Tweh","Male","College of Health Sciences","Maryland","2009/2010","Second Semester","Liberian Student",6429531]
[null,245,"TU-00058","Abednego",null,"Tweh","Male","College of Health Sciences","Maryland","2010/2011","First Semester","Liberian Student",880606155]
[null,104,"TU-00027","Abednego","W.","Tealeh","Male","College of Agriculture and Food Sciences","Maryland","2010/2011","First Semester","Liberian Student",6740099]
[null,117,"TU-00121","Abednego","J.","Harris","Male","College of Agriculture and Food Sciences","Maryland","2009/2010","First Semester","Liberian Student",6882574]
[null,229,"TU-00021","Abednego","J.","Harris","Male","College of Agriculture and Food Sciences","Maryland","2009/2010","Second Semester","Liberian Student",6568870]
[null,384,"TU-00021","Abednego","J.","Harris","Male","College of Agriculture and Food Sciences","Maryland","2010/2011","First Semester","Liberian Student",6882547]
[null,342,"TU-00058","Abednego",null,"Tweh","Male","College of Health Sciences","Maryland","2010/2011","Second Semester","Liberian Student"]
[null,1011,"TU-00058","Abednego",null,"Tweh","Male","College of Health Sciences","Maryland","2011/2012","First Semester","Liberian Student",880606155]
[null,1136,"TU-00027","Abednego","W.","Tealeh","Male","College of Agriculture and Food Sciences",null,"2011/2012","First Semester","Liberian Student",6740099]
[null,1167,"TU-00021","Abednego","J.","Harris","Male","College of Agriculture and Food Sciences",null,"2011/2012","First Semester","Liberian Student",76485035]
[null,1202,"TU-00608","Abednego","M.","Sieh","Male","College of Agriculture and Food Sciences","Grand Kru","2011/2012","First Semester","Liberian Student",6629724]
[null,224,"TU-00297","Aben","T.","Tweh","Male","College of Technology","River Gee","2009/2010","First Semester","Liberian Student",6340914]
[null,2,"TU-00297","Aben","T.","Tweh","Male","College of Management","River Gee","2010/2011","First Semester","Liberian Student",6340914]
[null,460,"TU-00297","Aben","T.","Tweh","Male","College of Management","River Gee","2010/2011","Second Semester","Liberian Student"]
[null,217,"TU-00297","Aben ","T.","Tweh","Male","College of Management","River Gee","2009/2010","Second Semester","Liberian Student",6340914]
[null,71,"TU-00589","Abert","B.","Weah","Male","College of Agriculture and Food Sciences","Maryland","2010/2011","Second Semester","Liberian Student",6112724]
[null,23,"TU-00128","Abraham","O.","Solomon","Male","College of Agriculture and Food Sciences","Maryland","2010/2011","Second Semester","Liberian Student",6696589]
[null,86,"TU-00521","Abraham",null,"Wutue","Male","College of Agriculture and Food Sciences","Maryland","2010/2011","Second Semester","Liberian Student",6602891]
[null,87,"TU-00089","Abraham","H.","Doe","Male","College of Health Sciences","Maryland","2009/2010","First Semester","Liberian Student",667086]
[null,184,"TU-00189","Abraham","K.","Brown","Male","College of Technology","Maryland","2009/2010","First Semester","Liberian Student",6767998]
[null,18,"TU-00020","Abraham","D.","Blanyon","Male","College of Agriculture and Food Sciences","Grand Kru","2009/2010","First Semester","Liberian Student",6690129]
[null,198,"TU-00204","Abraham",null,"Bah","Male","College of Technology","Maryland","2009/2010","First Semester","Liberian Student",6418762]
[null,208,"TU-00214","Abraham","T.","Bartuah,sr.","Male","College of Health Sciences","Nimba","2009/2010","First Semester","Liberian Student",77938965]
[null,4,"TU-00089","Abraham","H.","Doe","Male","College of Health Sciences","Maryland","2009/2010","Second Semester","Liberian Student",6670586]
[null,6,"TU-00204","Abraham",null,"Bah","Male","College of Technology","Maryland","2009/2010","Second Semester","Liberian Student",6418762]
[null,81,"TU-00189","Abraham","K.","Brown","Male","College of Technology","Maryland","2009/2010","Second Semester","Liberian Student",6767998]
[null,89,"TU-00214","Abraham","T.","Bartuah","Male","College of Health Sciences","Nimba","2009/2010","Second Semester","Liberian Student",6907003]
[null,17,"TU-00204","Abraham",null,"Bah","Male","College of Technology","Maryland","2010/2011","First Semester","Liberian Student",6418762]
[null,20,"TU-00417","Abraham","F.","Winneh","Male","College of Technology","Maryland","2010/2011","First Semester","Liberian Student",6837696]
[null,87,"TU-00471","Abraham","L.","Kamara","Male","College of Technology","Lofa","2010/2011","First Semester","Liberian Student",6400357]
[null,106,"TU-00189","Abraham","K.","Brown","Male","College of Technology","Maryland","2010/2011","First Semester","Liberian Student",6769798]
[null,111,"TU-00512","Abraham","S.","Jeh","Male","College of Education","Grand Kru","2010/2011","First Semester","Liberian Student",694228]
[null,246,"TU-00214","Abraham","T.","Bartuah,Sr.","Male","College of Health Sciences","Nimba","2010/2011","First Semester","Liberian Student",77938965]
[null,247,"TU-00089","Abraham","H.","Doe","Male","College of Health Sciences","Nimba","2010/2011","First Semester","Liberian Student",6670586]
[null,112,"TU-00128","Abraham","O.","Solomon","Male","College of Agriculture and Food Sciences","Maryland","2009/2010","Second Semester","Liberian Student",6695689]
[null,124,"TU-00128","Abraham","O.","Solomon","Male","College of Agriculture and Food Sciences","Maryland","2009/2010","First Semester","Liberian Student",6696589]
[null,200,"TU-00020","Abraham","D.","Blanyon","Male","College of Agriculture and Food Sciences","Maryland","2009/2010","Second Semester","Liberian Student",4913015]
[null,385,"TU-00128","Abraham","O.","Solomon","Male","College of Agriculture and Food Sciences","Maryland","2010/2011","First Semester","Liberian Student",6696589]
[null,386,"TU-00521","Abraham",null,"Wutue,Jr.","Male","College of Agriculture and Food Sciences","Maryland","2010/2011","First Semester","Liberian Student",6133074]
[null,111,"TU-00512","Abraham","S.","Jeh","Male","College of Education","Grand Kru","2010/2011","Second Semester","Liberian Student",6942228]
[null,176,"TU-00204","Abraham",null,"Bah","Male","College of Technology","Maryland","2010/2011","Second Semester","Liberian Student",6418762]
[null,179,"TU-00471","Abraham","L.","Kamara","Male","College of Technology","Lofa","2010/2011","Second Semester","Liberian Student",6400357]
[null,220,"TU-00189","Abraham","K.","Brown","Male","College of Technology","Maryland","2010/2011","Second Semester","Liberian Student"]
[null,305,"TU-00089","Abraham","H.","Doe","Male","College of Health Sciences","Maryland","2010/2011","Second Semester","Liberian Student",6670586]
[null,809,"TU-00214","Abraham","T.","Bartuah","Male","College of Health Sciences","Maryland","2011/2012","First Semester","Liberian Student",6767585]
[null,1201,"TU-00128","Abraham","O.","Solomon","Male","College of Agriculture and Food Sciences",null,"2011/2012","First Semester","Liberian Student",6696589]
[null,1265,"TU-00741","Abraham","D.","Seton","Male","College of Agriculture and Food Sciences","Maryland","2011/2012","First Semester","Liberian Student",6650856]
[null,null,"TU-00512","Abraham","S.","Jeh","Male","College of Education","Grand Kru","2011/2012","First Semester","liberian Student",6942228]
[null,null,"TU-00512","Abraham","S.","Jeh","Male","College of Education","Grand Kru","2011/2012","First Semester","liberian Student",6942228]
[null,null,"TU-00189","Abraham","K.","Brown","Male","College of Technology","Maryland","2011/2012","First Semester","Liberian Student",6767998]
[null,null,"TU-00204","Abraham","","Bah","Male","College of Technology","Maryland","2011/2012","First Semester","Liberian Student",6418762]
[null,null,"TU-00471","Abraham","L.","Kamara","Male","College of Technology","Bong","2011/2012","First Semester","Liberian Student",6400357]
[null,null,"TU-00866","Abraham","B.","Bamoh","Male","College of Technology","Grand Kru","2011/2012","First Semester","Liberian Student",6282744]
[null,1279,"TU-00735","Adam","G.","Moore","Male","College of Agriculture and Food Sciences","Maryland","2011/2012","First Semester","Liberian Student",6741118]
[null,251,"TU-00356","Addy","S.","Julue","Female","College of Management","Maryland","2009/2010","First Semester","Liberian Student",6941157]
[null,159,"TU-00356","Addy","S.","Julue","Female","College of Management","Maryland","2009/2010","Second Semester","Liberian Student",6941157]
[null,3,"TU-00365","Addy","S.","Julue","Female","College of Management","Maryland","2010/2011","First Semester","Liberian Student",6941157]
[null,433,"TU-00356","Addy","S.","Julue","Female","College of Management","River Gee","2010/2011","Second Semester","Liberian Student",6941157]
[null,null,"TU-00356","Addy","S.","Julue","Female","College of Management","Maryland","2011/2012","First Semester","Liberian Student",6941157]
[null,248,"TU-00547","Ade","M.","Cooper","Female","College of Health Sciences","Maryland","2010/2011","First Semester","Liberian Student",6739679]
[null,248,"TU-00547","Ade","M.","Cooper","Female","College of Health Sciences","Maryland","2010/2011","Second Semester","Liberian Student",880713785]
[null,1064,"TU-00547","Ade","M.","Cooper","Female","College of Health Sciences",null,"2011/2012","First Semester","Liberian Student",776659895]
[null,34,"TU-00036","Adolphus",null,"Jargeyea","Male","College of Management","Sinoe","2009/2010","First Semester","Liberian Student",6620288]
[null,150,"TU-00036","Adolphus","J.","George","Male","College of Management","Sinoe","2009/2010","Second Semester","Liberian Student",6620288]
[null,4,"TU-00036","Adolphus","J.","George","Male","College of Management","Sinoe","2010/2011","First Semester","Liberian Student",6620288]
[null,249,"TU-00323","Adolphus","H.","Wilson","Male","College of Health Sciences","Maryland","2010/2011","First Semester","Liberian Student",6685541]
[null,349,"TU-00036","Adolphus","J.","George","Male","College of Management","Sinoe","2010/2011","Second Semester","Liberian Student"]
[null,900,"TU-00323","Adolphus","H.","Wilson","Male","College of Health Sciences",null,"2011/2012","First Semester","Liberian Student"]
[null,null,"TU-00036","Adolphus","J.","George Sr","Male","College of Management","Sinoe","2011/2012","First Semester","Liberian Student"]
[null,null,"TU-00778","Adolphus","D.","Toe","Male","College of Management",null,"2011/2012","First Semester","Liberian Student",6536335]
[null,282,"TU-00388","Adoni","V.","Mulbah","Male","College of Technology","Lofa","2009/2010","First Semester","Liberian Student",6838585]
[null,252,"TU-00388","Adoni","V.","Mulbah","Male","College of Technology","Lofa","2009/2010","Second Semester","Liberian Student",6838585]
[null,164,"TU-00388","Adoni","V.","Mulbah","Male","College of Technology","Maryland","2010/2011","First Semester","Liberian Student"]
[null,null,"TU-00388","Adoni","V.","Mulbah","Male","College of Technology","Lofa","2011/2012","First Semester","Liberian Student",6838585]
[null,1234,"TU-00","Agatha","K.","Williams","Male","College of Agriculture and Food Sciences","Maryland","2011/2012","First Semester","Liberian Student",6340990]
[null,277,"TU-00383","Agnes",null,"Greene","Female","College of Management","Maryland","2009/2010","First Semester","Liberian Student",672209]
[null,167,"TU-00383","Agnes",null,"Greene","Female","College of Health Sciences","Maryland","2009/2010","Second Semester","Liberian Student",6672209]
[null,5,"TU-00383","Agnes","B.","Greene","Female","College of Management","Maryland","2010/2011","First Semester","Liberian Student",6972209]
[null,419,"TU-00383","Agnes","B.","Greene","Female","College of Management","Maryland","2010/2011","Second Semester","Liberian Student",6972709]
[null,null,"TU-00383","Agnes","B.","Greene","Female","College of Management","Maryland","2011/2012","First Semester","Liberian Student",6972209]
[null,137,"TU-00051","Aizeyosabor",null,"Iguodala","Male","College of Technology","Non-Liberian","2009/2010","Second Semester","Foreign Student"]
[null,219,"TU-00051","Aizeyosabor",null,"Iguodala","Male","College of Technology","Non-Liberian","2010/2011","Second Semester","Foreign Student"]
[null,58,"TU-00252","Alahaji","M.","Kromah","Male","College of Agriculture and Food Sciences","Lofa","2010/2011","Second Semester","Liberian Student",6767590]
[null,387,"TU-00252","Alahaji","M.","Kromah","Male","College of Agriculture and Food Sciences","Lofa","2010/2011","First Semester","Liberian Student",6767590]
[null,1158,"TU-00252","Alahaji","M.","Kromah","Male","College of Agriculture and Food Sciences",null,"2011/2012","First Semester","Liberian Student",6767590]
[null,93,"TU-00095","Alandrew","Q.","Dweh","Male","College of Health Sciences","Grand Kru","2009/2010","First Semester","Liberian Student",6367849]
[null,154,"TU-00095","Alandrew","Q.","Dweh","Male","College of Health Sciences","Grand Kru","2009/2010","Second Semester","Liberian Student",6367849]
[null,1129,"TU-00589","Albert","B.","Weah","Male","College of Agriculture and Food Sciences","Maryland","2011/2012","First Semester","Liberian Student",6112724]
[null,1207,"TU-00544","Aldophus","J.","Nagbe","Male","College of Agriculture and Food Sciences",null,"2011/2012","First Semester","Liberian Student",6340995]
[null,1103,"TU-00683","Aletha","D.","Nimely","Male","College of Health Sciences","Grand Kru","2011/2012","First Semester","Liberian Student",6491584]
[null,1243,"Tu-00660","Alex","C.","Dossen","Male","College of Agriculture and Food Sciences","Maryland","2011/2012","First Semester","Liberian Student",6894168]
[null,2,"TU-00476","Alexander",null,"Gibson","Male","College of Agriculture and Food Sciences","River Gee","2010/2011","Second Semester","Liberian Student",880634558]
[null,63,"TU-00265","Alexander",null,"Merriam","Male","College of Agriculture and Food Sciences","Maryland","2010/2011","Second Semester","Liberian Student",6471736]
[null,80,"TU-00082","Alexander",null,"Leinkpor","Male","College of Health Sciences","Bong","2009/2010","First Semester","Liberian Student",6908441]
[null,245,"TU-00350","Alexander","O.","Freeman","Male","College of Technology","Maryland","2009/2010","First Semester","Liberian Student"]
[null,166,"TU-00350","Alexander","O.","Freeman","Male","College of Technology","Maryland","2010/2011","First Semester","Liberian Student",6619095]
[null,388,"TU-00476","Alexander",null,"Gibson","Male","College of Agriculture and Food Sciences","Maryland","2010/2011","First Semester","Liberian Student",649962]
[null,389,"TU-00265","Alexander",null,"Merriam","Male","College of Agriculture and Food Sciences","Maryland","2010/2011","First Semester","Liberian Student",6445574]
[null,201,"TU-00350","Alexander","O.","Freeman","Male","College of Technology","Maryland","2010/2011","Second Semester","Liberian Student",6619095]
[null,1193,"TU-00265","Alexander",null,"Marriam","Male","College of Agriculture and Food Sciences","Maryland","2011/2012","First Semester","Liberian Student",6491736]
[null,1205,"TU-00476","Alexander","T.","Gibson","Male","College of Agriculture and Food Sciences","Maryland","2011/2012","First Semester","Liberian Student",880634558]
[null,35,"TU-00090","Alfred","F.","Ogunti","Male","College of Agriculture and Food Sciences","Maryland","2010/2011","Second Semester","Liberian Student",6105049]
[null,88,"TU-00090","Alfred","F.","Ogunti","Male","College of Health Sciences","Maryland","2009/2010","First Semester","Liberian Student",6689442]
[null,7,"TU-00238","Alfred","W.","Sloh","Male","College of Management","Maryland","2010/2011","First Semester","Liberian Student",6625234]
[null,390,"TU-00090","Alfred","F.","Ogunti","Male","College of Agriculture and Food Sciences","Maryland","2010/2011","First Semester","Liberian Student",6105049]
[null,95,"TU-00584","Alfred","K.","Weah","Male","College of Education","Maryland","2010/2011","Second Semester","Liberian Student",6912091]
[null,394,"TU-00238","Alfred","W.","Sloh","Male","College of Management","Maryland","2010/2011","Second Semester","Liberian Student",6625234]
[null,1150,"TU-00090","Alfred","F.","Ogunti","Male","College of Agriculture and Food Sciences","Maryland","2011/2012","First Semester","Liberian Student",6105049]
[null,null,"TU-00238","Alfred","W.","Sloh","Male","College of Management","Maryland","2011/2012","First Semester","Liberian Student"]
[null,null,"TU-00636","Alfred","K.","Weah","Male","College of Education","Maryland","2011/2012","First Semester","Liberian Student"]
[null,null,"TU-00677","Alfred","K.","Tabla","Male","College of Education","Maryland","2011/2012","First Semester","Liberian Student",880438219]
[null,112,"TU-00477","Alice","N.","Wesley","Female","College of Education","Maryland","2010/2011","First Semester","Liberian Student",6405156]
[null,null,"TU-00477","Alice","N.","Wesley","Female","College of Education","Maryland","2011/2012","First Semester","Liberian Student",6405156]
[null,87,"TU-00477","Alice ","N.","Wesley","Female","College of Education","Maryland","2010/2011","Second Semester","Liberian Student",6405150]
[null,81,"TU-00083","Aloysius","J.","Nyancie","Male","College of Health Sciences","Maryland","2009/2010","First Semester","Liberian Student",77280608]
[null,38,"TU-00083","Aloysius","J.","Nyancie","Male","College of Health Sciences","Maryland","2009/2010","Second Semester","Liberian Student",77280608]
[null,250,"TU-00083","Aloysius","J.","Nyencis","Male","College of Health Sciences","Maryland","2010/2011","First Semester","Liberian Student",6735091]
[null,301,"TU-00083","Aloysius","J.","Nyencie","Male","College of Health Sciences","Maryland","2010/2011","Second Semester","Liberian Student",6730591]
[null,1065,"TU-00083","Aloysius","J.","Nyancie","Male","College of Health Sciences","Maryland","2011/2012","First Semester","Liberian Student",6730591]
[null,1220,"TU-00746","Aloysius","P.","Kumeh","Male","College of Agriculture and Food Sciences","Grand Kru","2011/2012","First Semester","Liberian Student",880766632]
[null,null,"TU-00802","Aloysius","H.","Nyema","Male","College of Education","Maryland","2011/2012","First Semester","Liberian Student"]
[null,null,"TU-00801","Alphonsius","B.","Telleh","Male","College of Education","Maryland","2011/2012","First Semester","Liberian Student",6369598]
[null,113,"TU-00525","Alphonso","W.","Wright","Male","College of Education","Maryland","2010/2011","First Semester","Liberian Student",6450896]
[null,null,"TU-00525","Alphonso","W.","Wright","Male","College of Education","Maryland","2011/2012","First Semester","Liberian Student",6450896]
[null,105,"TU-00525","Alphonsuo","W.","Wright","Male","College of Education","Maryland","2010/2011","Second Semester","Liberian Student",6450896]
[null,5,"TU-00235","Alphonsus","T.","Sackor","Male","College of Agriculture and Food Sciences","Grand Kru","2010/2011","Second Semester","Liberian Student",6324474]
[null,391,"TU-00235","Alphonsus","T.","Sackor","Male","College of Agriculture and Food Sciences","Maryland","2010/2011","First Semester","Liberian Student",6344474]
[null,1181,"TU-00235","Alphonsus","T.","Sackor","Male","College of Agriculture and Food Sciences","Grand Kru","2011/2012","First Semester","Liberian Student",6324474]
[null,null,"TU-00801","Alphonsus","B.","Telleh","Male","College of Education","River Gee","2011/2012","First Semester","Liberian Student",6369598]
[null,8,"TU-00472","Alvin","B.","Kesseh","Male","College of Management","Maryland","2010/2011","First Semester","Liberian Student",6669147]
[null,251,"TU-00132","Alvin","O.","Joboe","Male","College of Health Sciences","Maryland","2010/2011","First Semester","Liberian Student",6603283]
[null,310,"TU-00467","Alvin","O.","Joboe","Male","College of Health Sciences","Maryland","2010/2011","Second Semester","Liberian Student",66886337]
[null,362,"TU-00472","Alvin","B.","Kesseh","Male","College of Management","Maryland","2010/2011","Second Semester","Liberian Student",6669147]
[null,1008,"TU-00467","Alvin","O.","Joboe","Male","College of Health Sciences","Maryland","2011/2012","First Semester","Liberian Student",6686337]
[null,null,"TU-00472","Alvin","B.","Kesseh","Male","College of Management","Maryland","2011/2012","First Semester","Liberian Student"]
[null,174,"TU-00179","Amadu","K.","Mallam","Male","College of Health Sciences","Maryland","2009/2010","First Semester","Liberian Student",6562091]
[null,489,"TU-00469","Ambrose",null,"Nollen","Male","College of Education","Grand Kru","2010/2011","First Semester","Liberian Student",6678174]
[null,97,"TU-00469","Ambrose","S.","Nollen","Male","College of Education","Maryland","2010/2011","Second Semester","Liberian Student",6678174]
[null,null,"TU-00469","Ambrose","S.","Nollen","Male","College of Education","Maryland","2011/2012","First Semester","Liberian Student",66781274]
[null,45,"TU-00364","Amos","D.","Kuoh","Male","College of Agriculture and Food Sciences","Maryland","2010/2011","Second Semester","Liberian Student"]
[null,74,"TU-00581","Amos","P.","Wesseh","Male","College of Agriculture and Food Sciences","Maryland","2010/2011","Second Semester","Liberian Student",6519973]
[null,121,"TU-00125","Amos","K.","Bah","Male","College of Technology","Nimba","2009/2010","First Semester","Liberian Student",6855340]
[null,36,"TU-00125","Amos","K.","Bahn","Male","College of Technology","Nimba","2009/2010","Second Semester","Liberian Student",6835340]
[null,167,"TU-00125","Amos","K.","Bahn","Male","College of Technology","Nimba","2010/2011","First Semester","Liberian Student",6855340]
[null,168,"TU-00464","Amos","A.","Karwell","Male","College of Technology","Maryland","2010/2011","First Semester","Liberian Student",6712922]
[null,75,"TU-00364","Amos","D.","Kuoh","Male","College of Agriculture and Food Sciences","Maryland","2009/2010","Second Semester","Liberian Student",6404690]
[null,258,"TU-00364","Amos","D.","Kouh","Male","College of Agriculture and Food Sciences","Maryland","2009/2010","First Semester","Liberian Student",6404690]
[null,392,"TU-00364","Amos","D.","Kouh","Male","College of Agriculture and Food Sciences","Maryland","2010/2011","First Semester","Liberian Student",6404690]
[null,161,"TU-00125","Amos","K.","Bahn","Male","College of Technology","Nimba","2010/2011","Second Semester","Liberian Student",6558340]
[null,182,"TU-00464","Amos","A.","Karwell","Male","College of Technology","Grand Kru","2010/2011","Second Semester","Liberian Student",6712922]
[null,1146,"TU-00634","Amos","P.","Wesseh","Male","College of Agriculture and Food Sciences","Maryland","2011/2012","First Semester","Liberian Student",6519973]
[null,null,"TU-00125","Amos","K.","Bahn","Male","College of Technology","Nimba","2011/2012","First Semester","Liberian Student",6855340]
[null,null,"TU-00464","Amos","A.","Karwell","Male","College of Technology","Grand Kru","2011/2012","First Semester","Liberian Student",6712922]
[null,null,"TU-00646","Amos","H.","Dossen","Male","College of Technology","Maryland","2011/2012","First Semester","Liberian Student",6317857]
[null,114,"TU-00423","Andrew",null,"Chea","Male","College of Education","Maryland","2010/2011","First Semester","Liberian Student",6270838]
[null,252,"TU-00327","Andrew","F.","Wallace","Male","College of Health Sciences","Maryland","2010/2011","First Semester","Liberian Student",6894400]
[null,132,"TU-00233","Andrew",null,"Chea","Male","College of Education","Maryland","2010/2011","Second Semester","Liberian Student",6270838]
[null,328,"TU-00327","Andrew","F.","Wallace","Male","College of Health Sciences","Maryland","2010/2011","Second Semester","Liberian Student",6795747]
[null,1058,"TU-00327","Andrew","F.","Wallace","Male","College of Health Sciences","Maryland","2011/2012","First Semester","Liberian Student",6795747]
[null,1221,"TU-00648","Andrew","N.","Dweh","Male","College of Agriculture and Food Sciences","Maryland","2011/2012","First Semester","Liberian Student",6835366]
[null,null,"TU-00233","Andrew","","Chea","Male","College of Education","Maryland","2011/2012","First Semester","Liberian Student",6270838]
[null,128,"TU-00132","Angeline","T.","Musu","Female","College of Health Sciences","Maryland","2009/2010","First Semester","Liberian Student",6603283]
[null,488,"TU-00132","Angeline","T.","Musu","Male","College of Health Sciences","Maryland","2010/2011","First Semester","Liberian Student",6603283]
[null,242,"TU-00132","Angeline","T.","Musu","Female","College of Health Sciences","Maryland","2010/2011","Second Semester","Liberian Student",6603228]
[null,1052,"TU-00132","Angeline","T.","Musu","Male","College of Health Sciences","Maryland","2011/2012","First Semester","Liberian Student",6603283]
[null,1076,"TU-00132","Angeline","T.","Musu","Female","College of Health Sciences",null,"2010/2011","First Semester","Liberian Student",6603283]
[null,null,"Tu-00844","Angie",null,"Gibson","Female","College of Management","Maryland","2011/2012","First Semester","Liberian Student",6640319]
[null,null,"TU-00598","Anicetus","N.","Broh","Male","College of Technology","Grand Kru","2011/2012","First Semester","Liberian Students"]
[null,43,"TU-00045","Anita","N.","Harmon","Female","College of Health Sciences","Maryland","2009/2010","First Semester","Liberian Student",6499992]
[null,165,"TU-00045","Anita","N.","Harmon","Female","College of Health Sciences","Maryland","2009/2010","Second Semester","Liberian Student",6748352]
[null,253,"TU-00045","Anita","N.","Harmon","Female","College of Health Sciences","Maryland","2010/2011","First Semester","Liberian Student",6499992]
[null,251,"TU-00045","Anita","N.","Harmon","Female","College of Health Sciences","Maryland","2010/2011","Second Semester","Liberian Student",6499992]
[null,1049,"TU-00045","Anita","N.","Harmon","Female","College of Health Sciences","Maryland","2011/2012","First Semester","Liberian Student",6499992]
[null,9,"TU-00398","Annie","G.","Morgan","Female","College of Management","Maryland","2010/2011","First Semester","Liberian Student",6080218]
[null,115,"TU-00478","Annie","T.","Sleweon","Female","College of Education","Maryland","2010/2011","First Semester","Liberian Student",6676868]
[null,123,"TU-00470","Annie","T.","Sleweon","Female","College of Education","Sinoe","2010/2011","Second Semester","Liberian Student",6676868]
[null,437,"TU-00584","Annie","G.","Morgan","Female","College of Management","Maryland","2010/2011","Second Semester","Liberian Student",6080218]
[null,null,"TU-00584","Annie","G.","Morgan","Female","College of Management","Maryland","2011/2012","First Semester","Liberian Student",6080218]
[null,null,"TU-00478","Annie","T.","Sleweon","Female","College of Education","Sinoe","2011/2012","First Semester","Liberian Student",6676868]
[null,79,"TU-00099","Anthony","W.","Neufville","Male","College of Agriculture and Food Sciences","Maryland","2010/2011","Second Semester","Liberian Student",6562304]
[null,148,"TU-00152","Anthony","G.","Elliot","Male","College of Management","Maryland","2009/2010","First Semester","Liberian Student",6601752]
[null,262,"TU-00368","Anthony","N.","Cooper","Male","College of Management","Maryland","2009/2010","First Semester","Liberian Student",6602188]
[null,179,"TU-00368","Anthony","N.","Cooper","Male","College of Management","Maryland","2009/2010","Second Semester","Liberian Student",6497771]
[null,232,"TU-00152","Anthony","G.","Elliott","Male","College of Management","Maryland","2009/2010","Second Semester","Liberian Student",6601752]
[null,10,"TU-00368","Anthony","N.","Cooper","Male","College of Management","Maryland","2010/2011","First Semester","Liberian Student"]
[null,11,"TU-00152","Anthony","G.","Elliott","Male","College of Management","Maryland","2010/2011","First Semester","Liberian Student",6601752]
[null,12,"TU-00450","Anthony","F.","Doe,Jr.","Male","College of Management","Maryland","2010/2011","First Semester","Liberian Student",76601991]
[null,255,"TU-00558","Anthony","D.","Gedee","Male","College of Health Sciences","Maryland","2010/2011","First Semester","Liberian Student",880631335]
[null,97,"TU-00099","Anthony","W.","Neufville","Male","College of Agriculture and Food Sciences","Maryland","2009/2010","First Semester","Liberian Student",6562301]
[null,121,"TU-00099","Anthony","W.","Nuefville","Male","College of Agriculture and Food Sciences","Maryland","2009/2010","Second Semester","Liberian Student",6562304]
[null,393,"TU-00099","Anthony","W.","Neufville","Male","College of Agriculture and Food Sciences","Maryland","2010/2011","First Semester","Liberian Student",6562304]
[null,344,"TU-00152","Anthony","G.","Elliott","Male","College of Management","Maryland","2010/2011","Second Semester","Liberian Student",6601752]
[null,355,"TU-00368","Anthony","N.","Cooper","Male","College of Management","Maryland","2010/2011","Second Semester","Liberian Student",6602188]
[null,1261,"TU-00687","Anthony","N.","Allison","Male","College of Agriculture and Food Sciences","Maryland","2011/2012","First Semester","Liberian Student",6818680]
[null,null,"TU-00368","Anthony","N.","Cooper","Male","College of Management","Maryland","2011/2012","First Semester","Liberian Student",6602188]
[null,null,"TU-00152","Anthony","G.","Elliott","Male","College of Management","Maryland","2011/2012","First Semester","Liberian Student",6601752]
[null,160,"TU-00165","Anton","G.","Badawi","Male","College of Technology","Maryland","2009/2010","First Semester","Liberian Student",4723207]
[null,199,"TU-00165","Anton","G.","Badawi","Male","College of Technology","Maryland","2009/2010","Second Semester","Liberian Student",4723207]
[null,169,"TU-00165","Anton","G.","Badawi","Male","College of Technology","Maryland","2010/2011","First Semester","Liberian Student",6620198]
[null,149,"TU-00165","Anton","G.","Badawi","Male","College of Technology","Maryland","2010/2011","Second Semester","Liberian Student",6620198]
[null,null,"TU-00165","Anton","G.","Badawi","Male","College of Technology","Maryland","2011/2012","First Semester","Liberian Student",4723207]
[null,1163,"TU-00609","Archie",null,"Brooks","Male","College of Agriculture and Food Sciences","Maryland","2011/2012","First Semester","Liberian Student",6288723]
[null,1236,"TU-00786","Archie","T.","Nah","Male","College of Agriculture and Food Sciences","Maryland","2011/2012","First Semester","Liberian Student",6894674]
[null,77,"TU-00270","Arthur","J.","Hinneh","Male","College of Agriculture and Food Sciences","Maryland","2010/2011","Second Semester","Liberian Student",6430050]
[null,116,"TU-00531","Arthur","T.","Douglas","Male","College of Education","Maryland","2010/2011","First Semester","Liberian Student",6949627]
[null,394,"TU-00270","Arthur","J.","Hinneh","Male","College of Agriculture and Food Sciences","Maryland","2010/2011","First Semester","Liberian Student",6916325]
[null,99,"TU-00531","Arthur","T.","Douglas, Jr.","Male","College of Education","Maryland","2010/2011","Second Semester","Liberian Student",6949627]
[null,1142,"TU-00270","Arthur","J.","Hinneh","Male","College of Agriculture and Food Sciences","Maryland","2011/2012","First Semester","Liberian Student",6430050]
[null,null,"TU-00531","Arthur","T.Y.","Douglas","Male","College of Education","Maryland","2011/2012","First Semester","Liberian Student",6949627]
[null,64,"TU-00367","Aston","S.","Choloply","Male","College of Agriculture and Food Sciences","River Gee","2010/2011","Second Semester","Liberian Student",6739947]
[null,132,"TU-00367","Aston","S.","Choloply","Male","College of Agriculture and Food Sciences","River Gee","2009/2010","Second Semester","Liberian Student",6739947]
[null,395,"TU-00367","Aston","S.","Choloply","Male","College of Agriculture and Food Sciences","River Gee","2010/2011","First Semester","Liberian Student",6739947]
[null,1161,"TU-00367","Aston","S.","Choloply","Male","College of Agriculture and Food Sciences","River Gee","2011/2012","First Semester","Liberian Student",6739947]
[null,404,"TU-00450","Athony","T.","Doe","Male","College of Management","Maryland","2010/2011","Second Semester","Liberian Student",6815370]
[null,67,"TU-00069","Audrey","M.","Cole","Female","College of Health Sciences","Maryland","2009/2010","First Semester","Liberian Student",6417666]
[null,40,"TU-00069","Audrey","M.","Cole","Female","College of Health Sciences","Maryland","2009/2010","Second Semester","Liberian Student",6417666]
[null,256,"TU-00069","Audrey","M.","Cole","Female","College of Health Sciences","Maryland","2010/2011","First Semester","Liberian Student",6417666]
[null,276,"TU-00069","Audrey","M.","Cole","Female","College of Health Sciences","Maryland","2010/2011","Second Semester","Liberian Student"]
[null,457,"TU-00069","Audrey","M.","Cole","Female","College of Health Sciences","Maryland","2011/2012","First Semester","Liberian Student",6417666]
[null,213,"TU-00219","Augustina","M.","Jaboe","Female","College of Technology","Grand Kru","2009/2010","First Semester","Liberian Student",6660290]
[null,100,"TU-00219","Augustina","M.","Joboe","Female","College of Technology","Grand Kru","2009/2010","Second Semester","Liberian Student",6602001]
[null,171,"TU-00219","Augustina","M.","Joboe","Female","College of Technology","Maryland","2010/2011","First Semester","Liberian Student",6647584]
[null,170,"TU-00219","Augustina","M.","Joboe","Female","College of Technology","Maryland","2010/2011","Second Semester","Liberian Student",6644584]
[null,null,"TU-00219","Augustina","M.","Jaboe","Female","College of Technology","Grand Kru","2011/2012","First Semester","Liberian Student",6660290]
[null,99,"TU00101","Augustine","H.","Krah","Male","College of Education","Maryland","2009/2010","First Semester","Liberian Student",6988030]
[null,133,"TU-00137","Augustine","S.","Saydeh","Male","College of Management","River Gee","2009/2010","First Semester","Liberian Student",6947468]
[null,33,"TU-00425","Augustine","T.","Toe","Male","College of Agriculture and Food Sciences","Maryland","2010/2011","Second Semester","Liberian Student",77170329]
[null,54,"TU-00353","Augustine","B.","Hinneh","Male","College of Agriculture and Food Sciences","Maryland","2010/2011","Second Semester","Liberian Student",6292271]
[null,238,"TU-00343","Augustine","D.","Doblah","Male","College of Education","Maryland","2009/2010","First Semester","Liberian Student",6662290]
[null,133,"TU-00101","Augustine",null,"Krah","Male","College of Education","Grand Kru","2009/2010","Second Semester","Liberian Student",6988030]
[null,155,"TU-00137","Augustine","S.","Saydeh","Male","College of Management","River Gee","2009/2010","Second Semester","Liberian Student",6947468]
[null,188,"TU-00343","Augustine","D.","Doblah","Male","College of Education","Maryland","2009/2010","Second Semester","Liberian Student",6871303]
[null,13,"TU-00137","Augustine","S.","Saydeh","Male","College of Management","River Gee","2010/2011","First Semester","Liberian Student",6947468]
[null,117,"TU-00343","Augustine","D.","Doblah","Male","College of Education","Maryland","2010/2011","First Semester","Liberian Student"]
[null,257,"TU-00318","Augustine","T.","Torpoh","Male","College of Health Sciences","Maryland","2010/2011","First Semester","Liberian Student",6602014]
[null,118,"TU-00210","Augustine","D.","Wallace","Male","College of Agriculture and Food Sciences","Maryland","2009/2010","Second Semester","Liberian Student",6894400]
[null,183,"TU-00353","Augustine","B.","Hinneh","Male","College of Agriculture and Food Sciences","Maryland","2009/2010","Second Semester","Liberian Student"]
[null,204,"TU-00210","Augustine","C.","Wallace","Male","College of Agriculture and Food Sciences","Maryland","2009/2010","First Semester","Liberian Student",6894400]
[null,248,"TU-00353","Augustine","B.","Hinneh","Male","College of Agriculture and Food Sciences","Grand Kru","2009/2010","First Semester","Liberian Student"]
[null,396,"TU-00353","Augustine","B.","Hinneh","Male","College of Agriculture and Food Sciences","Maryland","2010/2011","First Semester","Liberian Student",629271]
[null,397,"TU-00425","Augustine","T.","Toe","Male","College of Agriculture and Food Sciences","Maryland","2010/2011","First Semester","Liberian Student",6740217]
[null,140,"TU-00343","Augustine","D.","Doblah","Male","College of Education","Maryland","2010/2011","Second Semester","Liberian Student"]
[null,400,"TU-00137","Augustine","S.","Saydeh","Male","College of Management","River Gee","2010/2011","Second Semester","Liberian Student"]
[null,505,"TU-00318","Augustine","T.","Torpoh","Male","College of Health Sciences","Grand Kru","2011/2012","First Semester","Liberian Student",6602014]
[null,1174,"TU-00353","Augustine","B.","Hinneh","Male","College of Agriculture and Food Sciences","Maryland","2011/2012","First Semester","Liberian Student",880423583]
[null,1190,"TU-00425","Augustine","T.","Toe","Male","College of Agriculture and Food Sciences","Maryland","2011/2012","First Semester","Liberian Student",6749171]
[null,1258,"TU-00818","Augustine","D.","Blamoh","Male","College of Agriculture and Food Sciences","Grand Kru","2011/2012","First Semester","Liberian Student",880497624]
[null,null,"TU-00137","Augustine","S.","Saydeh","Male","College of Management","River Gee","2011/2012","First Semester","Liberian Student",6947468]
[null,null,"TU-00752","Augustine","M.","Wlalee","Male","College of Management","Maryland","2011/2012","First Semester","Liberian Student",6312078]
[null,null,765,"Augustine","D.","Wiah","Female","College of Management","River Gee","2011/2012","First Semester","Liberian Student",6601224]
[null,null,"TU-00343","Augustine","D.","Doblah","Male","College of Education","Maryland","2011/2012","First Semester","Liberian Student",6662290]
[null,null,"TU-00703","Augustine","W.","Weah","Male","College of Education","Grand Kru","2011/2012","First Semester","Liberian Student",880625385]
[null,null,"TU-00773","Augustine","Y.","Nevis","Male","College of Technology","Maryland","2011/2012","First Semester","Liberian Student",880631355]
[null,null,742,"Austine","S.","Jurry","Female","College of Management","Maryland","2011/2012","First Semester","Liberian Student",880490707]
[null,14,"TU-00439","Ayawovie","N.","Neufville","Female","College of Management","Maryland","2010/2011","First Semester","Liberian Student",6294893]
[null,426,"TU-00439","Ayawovie","N.","Neufville","Female","College of Management","Maryland","2010/2011","Second Semester","Liberian Student",6294893]
[null,null,"TU-00439","Ayawovie","N.","Neufville",null,"College of Management","Maryland","2011/2012","First Semester","Liberian Student",6294893]
[null,180,"TU-00185","Ayee","J.","Hoffman","Female","College of Management","Maryland","2009/2010","First Semester","Liberian Student",6489038]
[null,224,"TU-00185","Ayee","J.","Hoffman","Female","College of Management","Maryland","2009/2010","Second Semester","Liberian Student"]
[null,495,"TU-00185","Ayee",null,"Hoffman","Female","College of Management","Maryland","2010/2011","First Semester","Liberian Student"]
[null,410,"TU-00185","Ayee","J.","Harmon","Female","College of Management","Maryland","2010/2011","Second Semester","Liberian Student",6489028]
[null,null,"TU-00185","Ayee","J.","Hoffman","Female","College of Management","Maryland","2011/2012","First Semester","Liberian Student",6489038]
[null,493,"TU-00051","Aziegbosa",null,"Igougbosa","Male","College of Technology","Non-Liberian","2010/2011","First Semester","Liberian Student"]
[null,1100,"TU-00769","Baindu",null,"Fahnbullah","Female","College of Health Sciences","Grand Cape Mount","2011/2012","First Semester","Liberian Student"]
[null,47,"TU-00049","Barbara","L.","Cooper","Female","College of Health Sciences","Maryland","2009/2010","First Semester","Liberian Student",6458731]
[null,243,"TU-00049","Barbara","L.","Cooper","Female","College of Health Sciences","Maryland","2009/2010","Second Semester","Liberian Student",6458731]
[null,258,"TU-00049","Barbara","L.","Cooper","Female","College of Health Sciences","Maryland","2010/2011","First Semester","Liberian Student",6458731]
[null,254,"TU-00049","Barbara","L.","Cooper","Female","College of Health Sciences","Grand Bassa","2010/2011","Second Semester","Liberian Student",6655738]
[null,1004,"TU-00049","Barbara","L.","Cooper","Female","College of Health Sciences","Grand Bassa","2011/2012","First Semester","Liberian Student"]
[null,null,"TU-00800","Bardio",null,"Bleecon","Male","College of Education",null,"2010/2011","First Semester","Liberian Student",6272048]
[null,150,"TU-00154","Beatrice","D.","Wesley","Female","College of Management","Maryland","2009/2010","First Semester","Liberian Student",6543156]
[null,254,"TU-00359","Beatrice","J,","Dweh","Female","College of Health Sciences","Maryland","2009/2010","First Semester","Liberian Student",6671154]
[null,64,"TU-00154","Beatrice","D.","Wesley","Female","College of Management","Maryland","2009/2010","Second Semester","Liberian Student",6177459]
[null,162,"TU-00359","Beatrice","J.","Dweh","Female","College of Health Sciences","Maryland","2009/2010","Second Semester","Liberian Student",6671154]
[null,15,"TU-00154","Beatrice","D.","Wesley","Female","College of Management","Maryland","2010/2011","First Semester","Liberian Student",6472459]
[null,259,"TU-00359","Beatrice","J.","Dweh","Female","College of Health Sciences","Maryland","2010/2011","First Semester","Liberian Student",6671134]
[null,235,"TU-00359","Beatrice","J.","Dweh","Female","College of Health Sciences","River Gee","2010/2011","Second Semester","Liberian Student"]
[null,409,"TU-00154","Beatrice","D.","Wesley","Female","College of Management","Maryland","2010/2011","Second Semester","Liberian Student",6474559]
[null,706,"TU-00359","Beatrice","J.","Dweh","Female","College of Health Sciences","River Gee","2011/2012","First Semester","Liberian Student",6671134]
[null,1097,"TU-00809","Beatrice",null,"Gibson","Female","College of Health Sciences","Maryland","2011/2012","First Semester","Liberian Student",880437853]
[null,1251,"TU-00724","Beatrice","D.","Nemah","Female","College of Agriculture and Food Sciences",null,"2011/2012","First Semester","Liberian Student",880605225]
[null,null,"TU-00154","Beatrice","D.","Wesley","Female","College of Management","Maryland","2011/2012","First Semester","Liberian Student",6543156]
[null,null,"TU-00669","Beforeline","B.","Tuwilay","Female","College of Management","River Gee","2011/2012","First Semester","Liberian Student",6458927]
[null,187,"TU-00192","Bellor",null,"Twegby","Male","College of Management","Grand Kru","2009/2010","First Semester","Liberian Student",6371137]
[null,223,"TU-00192","Bellor",null,"Twegby","Female","College of Management","Maryland","2009/2010","Second Semester","Liberian Student",6371137]
[null,16,"TU-00192","Bellor",null,"Twegby","Female","College of Management","Maryland","2010/2011","First Semester","Liberian Student",6371137]
[null,428,"TU-00192","Bellor",null,"Twegby","Female","College of Management","Maryland","2010/2011","Second Semester","Liberian Student",6371137]
[null,null,"TU-00192","Bellor","O.","Twegby","Female","College of Management","Maryland","2011/2012","First Semester","Liberian Student",6371137]
[null,38,"TU-00245","Ben","D.","Tabla","Male","College of Agriculture and Food Sciences","Maryland","2010/2011","Second Semester","Liberian Student",6602937]
[null,211,"TU-00217","Ben","K.","Collins","Male","College of Management","Grand Gedeh","2009/2010","First Semester","Liberian Student",6620337]
[null,103,"TU-00217","Ben","K.","Collins","Male","College of Management","Grand Gedeh","2009/2010","Second Semester","Liberian Student",620337]
[null,18,"TU-00217","Ben","K.","Collins","Male","College of Management","Grand Gedeh","2010/2011","First Semester","Liberian Student",6929274]
[null,260,"TU-00245","Ben","D.","Tabla","Male","College of Health Sciences","Maryland","2010/2011","First Semester","Liberian Student",6686337]
[null,351,"TU-00217","Ben","K.","Collins","Male","College of Management","Grand Gedeh","2010/2011","Second Semester","Liberian Student",6622037]
[null,1098,"TU-00764","Ben","K.","Lartey","Male","College of Health Sciences","Margibi","2011/2012","First Semester","Liberian Student"]
[null,1211,"TU-00245","Ben","D.","Tabla","Male","College of Agriculture and Food Sciences","Maryland","2011/2012","First Semester","Liberian Student",6602937]
[null,null,"TU-00217","Ben","K.","Collins","Male","College of Management","Grand Gedeh","2011/2012","First Semester","Liberian Student",6620337]
[null,1092,"TU-00759","Benedict","F.","Huskin","Male","College of Health Sciences","Grand Kru","2011/2012","First Semester","Foreign Student",6568118]
[null,null,"TU-00681","Benedict","N.","Lawson","Male","College of Technology","Maryland","2011/2012","First Semester","Liberian Student",880634619]
[null,19,"TU-00541","Benetta","F.","Sebo","Female","College of Management","Grand Kru","2010/2011","First Semester","Liberian Student",6958345]
[null,432,"TU-00541","Benetta","F.","Sebo","Female","College of Management","Grand Kru","2010/2011","Second Semester","Liberian Student",69458345]
[null,null,"TU-00824","Benetta","M.","Weefur","Female","College of Management","Grand Kru","2011/2012","First Semester","Liberian Student",880631022]
[null,172,"TU-00557","Benitol","N.","Howe","Female","College of Technology","Maryland","2010/2011","First Semester","Liberian Student",6686298]
[null,null,"TU-00557","Benitol","N.","Howe","Female","College of Technology","Maryland","2011/2012","First Semester","Liberian Student",6686298]
[null,467,"TU-00121","Benjamin",null,"Clark","Male","College of Agriculture and Food Sciences","Maryland","2010/2011","Second Semester","Liberian Student",6206072]
[null,398,"TU-00121","Benjamin","M.","Claek","Male","College of Agriculture and Food Sciences","Maryland","2010/2011","First Semester","Liberian Student",6206072]
[null,217,"TU-00557","Benotol","N.","Howe","Female","College of Technology","Maryland","2010/2011","Second Semester","Liberian Student",6686298]
[null,261,"TU-00493","Bernice",null,"Morias","Female","College of Health Sciences","Maryland","2010/2011","First Semester","Liberian Student",6123135]
[null,262,"TU-00475","Bernice","T.","Slobert","Female","College of Health Sciences","Maryland","2010/2011","First Semester","Liberian Student",6797584]
[null,278,"TU-00475","Bernice","T.","Slobert","Female","College of Health Sciences","Maryland","2010/2011","Second Semester","Liberian Student"]
[null,452,"TU-00493","Bernice",null,"Morias","Female","College of Health Sciences","Maryland","2010/2011","Second Semester","Liberian Student",6123135]
[null,607,"TU-00493","Bernice","M.","Marias","Female","College of Health Sciences","Maryland","2011/2012","First Semester","Liberian Student",6123135]
[null,1037,"TU-00475","Bernice","T.","Slobert","Female","College of Health Sciences","Maryland","2011/2012","First Semester","Liberian Student",6139137]
[null,263,"TU-00485","Betty","H.","Williams","Female","College of Health Sciences","Maryland","2010/2011","First Semester","Liberian Student",6496942]
[null,264,"TU-00296","Betty",null,"Saylee","Female","College of Health Sciences","Maryland","2010/2011","First Semester","Liberian Student",6782205]
[null,246,"TU-00485","Betty","H.","Williams","Female","College of Health Sciences","Maryland","2010/2011","Second Semester","Liberian Student",6209721]
[null,450,"TU-00496","Betty",null,"Saydee","Female","College of Health Sciences","River Gee","2010/2011","Second Semester","Liberian Student",6782205]
[null,506,"TU-00296","Betty",null,"Saylee","Female","College of Health Sciences","Maryland","2011/2012","First Semester","Liberian Student",6782205]
[null,1002,"TU-00485","Betty","H.","Williams","Female","College of Health Sciences","Maryland","2011/2012","First Semester","Liberian Student",6209721]
[null,30,"TU-00004","Blanyon","G.","Martin","Male","College of Health Sciences","Maryland","2009/2010","Second Semester","Liberian Student",6780851]
[null,155,"TU-00160","Bolton",null,"Dennis","Male","College of Management","Maryland","2009/2010","First Semester","Liberian Student",6747426]
[null,22,"TU-00160","Bolton",null,"Dennis,Sr.","Male","College of Management","Maryland","2009/2010","Second Semester","Liberian Student",6747426]
[null,21,"TU-00160","Bolton",null,"Dennis","Male","College of Management","Maryland","2010/2011","First Semester","Liberian Student",6747426]
[null,345,"TU-00160","Bolton",null,"Dennis","Male","College of Management","Maryland","2010/2011","Second Semester","Liberian Student",6747426]
[null,null,"TU-00160","Bolton","","Dennis","Male","College of Management","Maryland","2011/2012","First Semester","Liberian Student",6747426]
[null,null,"TU-00593","Boniface","K.","Weah","Male","College of Technology","Maryland","2011/2012","First Semester","Liberian Student"]
[null,1254,"TU-00816","Brigitte",null,"Doe","Male","College of Agriculture and Food Sciences","River Gee","2011/2012","First Semester","Liberian Student",6883431]
[null,174,"TU-00500","Brisco","P.","Quayee","Male","College of Technology","Maryland","2010/2011","First Semester","Liberian Student",6441630]
[null,null,"TU-00500","Brisco","P.","Quayee","Male","College of Technology","Maryland","2011/2012","First Semester","Liberian Student",6441630]
[null,16,"TU-00035","Brooks","W.","Wallace","Male","College of Agriculture and Food Sciences","Maryland","2010/2011","Second Semester","Liberian Student",77949203]
[null,399,"TU-00035","Brooks","W.","Wallace","Male","College of Agriculture and Food Sciences","Maryland","2010/2011","First Semester","Liberian Student",6340945]
[null,1180,"TU-00035","Brooks","W.","Wallace","Male","College of Agriculture and Food Sciences","Maryland","2011/2012","First Semester","Liberian Student",6340945]
[null,1246,"TU-00654","Brown","K.","Dennis","Male","College of Agriculture and Food Sciences","Maryland","2011/2012","First Semester","Liberian Student",76384418]
[null,905,"TU-00484","C. Simon","S.","Bobor Jr","Male","College of Health Sciences","Lofa","2011/2012","First Semester","Liberian Student",6899771]
[null,265,"TU-00537","Cafu","K.","Kossigba","Male","College of Health Sciences","River Gee","2010/2011","First Semester","Liberian Student",6142951]
[null,297,"TU-00537","Cafu","K.","Kossigba","Male","College of Health Sciences","River Gee","2010/2011","Second Semester","Liberian Student",6142951]
[null,1057,"TU-00537","Cafu","K.","Kossigba","Male","College of Health Sciences","River Gee","2011/2012","First Semester","Liberian Student",6142951]
[null,266,"TU-00400","Carlis","T.","Zawolo","Female","College of Health Sciences","Lofa","2010/2011","First Semester","Liberian Student",88083120]
[null,98,"TU-00100","Caroline",null,"Moulton","Female","College of Health Sciences","Maryland","2009/2010","First Semester","Liberian Student",6370962]
[null,231,"TU-00336","Caroline","A.","Neufville","Female","College of Health Sciences","Maryland","2009/2010","First Semester","Liberian Student",6513875]
[null,88,"TU-00100","Caroline",null,"Moulton","Female","College of Health Sciences","Maryland","2009/2010","Second Semester","Liberian Student",6370962]
[null,267,"TU-00336","Caroline","A.","Neufville","Female","College of Health Sciences","Bomi","2010/2011","First Semester","Liberian Student",6513875]
[null,268,"TU-00100","Caroline",null,"Moulton","Female","College of Health Sciences","Maryland","2010/2011","First Semester","Liberian Student",6208935]
[null,236,"TU-00336","Caroline","A.","Neufville","Female","College of Health Sciences","Bomi","2010/2011","Second Semester","Liberian Student",6513875]
[null,241,"TU-00100","Caroline",null,"Moulton","Female","College of Health Sciences","Maryland","2010/2011","Second Semester","Liberian Student",880713810]
[null,422,"TU-00308","Caroline","B.","Tialy","Female","College of Management","Grand Kru","2010/2011","Second Semester","Liberian Student",6292292]
[null,801,"TU-00100","Caroline",null,"Moulton","Female","College of Health Sciences","Maryland","2011/2012","First Semester","Liberian Student",880713810]
[null,1114,"TU-00774","Caroline","A.","Doe","Female","College of Health Sciences","Maryland","2011/2012","First Semester","Liberian Student",6879260]
[null,null,"TU-00308","Caroline","B.","Taidy","Female","College of Management","Grand Kru","2011/2012","First Semester","Liberian Student"]
[null,136,"TU-00366","Caroline ","N.","Neufville","Female","College of Health Sciences","Bomi","2009/2010","Second Semester","Liberian Student",6513875]
[null,22,"TU-00308","Caroline ","B.","Tiady","Female","College of Management","Grand Kru","2010/2011","First Semester","Liberian Student",6292295]
[null,null,"TU-00706","Carolyn","T.","Senyon","Female","College of Education","Sinoe","2011/2012","First Semester","Liberian Student",6920689]
[null,456,"TU-00568","Cassius","B.","Cooper","Male","College of Management","Margibi","2010/2011","Second Semester","Liberian Student"]
[null,85,"TU-00536","Castro","J.","Wragiri","Male","College of Agriculture and Food Sciences","Sinoe","2010/2011","Second Semester","Liberian Student",6993766]
[null,400,"TU-00536","Castro","J.","Wragiri","Male","College of Agriculture and Food Sciences","Sinoe","2010/2011","First Semester","Liberian Student"]
[null,1145,"TU-00536","Castro","J.","Wraggiri","Male","College of Agriculture and Food Sciences","Sinoe","2011/2012","First Semester","Liberian Student",6345019]
[null,269,"TU-00538","Catherine","W.","Toe","Female","College of Health Sciences","Maryland","2010/2011","First Semester","Liberian Student",6587793]
[null,270,"TU-00322","Catherine","K.","Seshie","Female","College of Health Sciences","Maryland","2010/2011","First Semester","Liberian Student",6557874]
[null,257,"TU-00538","Catherine","W.","Toe","Female","College of Health Sciences","Grand Kru","2010/2011","Second Semester","Liberian Student",6029888]
[null,500,"TU-00322","Catherine","K.","Seshie","Female","College of Health Sciences","Nimba","2011/2012","First Semester","Liberian Student",6601924]
[null,1074,"TU-00538","Catherine","W.","Toe","Female","College of Health Sciences","Grand Kru","2011/2012","First Semester","Liberian Student",880631937]
[null,603,"TU-00543","Cecelia","Y.","Griffiths","Female","College of Health Sciences","Maryland","2011/2012","First Semester","Liberian Student",6661049]
[null,271,"TU-00543","Cecelia","Y.","Griffiths","Male","College of Health Sciences","Maryland","2010/2011","First Semester","Liberian Student",6602937]
[null,277,"TU-00543","Cecelia","Y.","Griffiths","Female","College of Health Sciences","Maryland","2010/2011","Second Semester","Liberian Student",6661049]
[null,null,636,"Cecelia","N.","Wisner","Female","College of Management","Maryland","2011/2012","First Semester","Liberian Student"]
[null,null,"TU-00649","Chanie","D.","Gray","Male","College of Education","Grand Kru","2011/2012","First Semester","Liberian Student"]
[null,804,"TU-00519","Charles","N.","Goah","Male","College of Health Sciences","Margibi","2011/2012","First Semester","Liberian Student",6291121]
[null,82,"TU-00015","Charles","B.","Miller","Male","College of Agriculture and Food Sciences","Maryland","2010/2011","Second Semester","Liberian Student",6581856]
[null,23,"TU-00561","Charles","S.","Chie","Male","College of Management","Grand Kru","2010/2011","First Semester","Liberian Student",6884550]
[null,24,"TU-00470","Charles","N.","Mah","Male","College of Management","Maryland","2010/2011","First Semester","Liberian Student",6123139]
[null,118,"TU-00409","Charles","N.","Nyanator","Male","College of Education","Grand Kru","2010/2011","First Semester","Liberian Student",76241996]
[null,175,"TU-00328","Charles","F.","Davies","Male","College of Technology","Maryland","2010/2011","First Semester","Liberian Student",6602127]
[null,272,"TU-00568","Charles","N.","Kortimai","Male","College of Health Sciences","Lofa","2010/2011","First Semester","Liberian Student",6541734]
[null,273,"TU-00519","Charles","N.","Goah","Male","College of Health Sciences","Maryland","2010/2011","First Semester","Liberian Student",6291121]
[null,108,"TU-00409","Charles","N.","Nyanator","Male","College of Education","Grand Kru","2010/2011","Second Semester","Liberian Student",76241996]
[null,146,"TU-00328","Charles","F.","Davies","Male","College of Technology","Maryland","2010/2011","Second Semester","Liberian Student",6602127]
[null,304,"TU-00519","Charles","N.","Goah","Male","College of Health Sciences","Maryland","2010/2011","Second Semester","Liberian Student",6291121]
[null,367,"TU-00561","Charles","S.","Chie","Male","College of Management","Grand Kru","2010/2011","Second Semester","Liberian Student",6884550]
[null,385,"TU-00470","Charles","N.","Mah","Male","College of Management","Maryland","2010/2011","Second Semester","Liberian Student",6123139]
[null,null,"TU-00470","Charles","N.","Mah","Male","College of Management","Grand Kru","2011/2012","First Semester","Liberian Student",6747523]
[null,null,"TU-00409","Charles","N.","Nyanator","Male","College of Education","Grand Kru","2011/2012","First Semester","Liberian Student",76241996]
[null,null,"TU-00328","Charles","F.","David","Male","College of Technology","Maryland","2011/2012","First Semester","Liberian Student",6602127]
[null,null,"TU-00445","Charlotte","K","Morrison","Female","College of Management","Lofa","2011/2012","First Semester","Liberian Student",6217990]
[null,239,"TU-00124","Charlesetta","W.","Dorboh","Female","College of Management","Grand Kru","2009/2010","Second Semester","Liberian Student",6515412]
[null,25,"TU-00124","Charlesetta","W.","Dobboh","Female","College of Management","Maryland","2010/2011","First Semester","Liberian Student",6371061]
[null,431,"TU-00124","Charlesetta","W.","Dobboh","Female","College of Management","Maryland","2010/2011","Second Semester","Liberian Student",6371061]
[null,120,"TU-00124","Charlestta","W.","Dobboh","Female","College of Management","Grand Kru","2009/2010","First Semester","Liberian Student",6515412]
[null,26,"TU-00445","Charlotte","K.","Morrison","Female","College of Management","Lofa","2010/2011","First Semester","Liberian Student",6217990]
[null,1101,"TU-00793","Chris","L.","Gborlie","Male","College of Health Sciences","Margibi","2011/2012","First Semester","Liberian Student",880606573]
[null,401,"TU-00482","Chris","Q.","Massaquoi","Male","College of Agriculture and Food Sciences","Maryland","2010/2011","First Semester","Liberian Student",6870128]
[null,1228,"TU-00766","Chris","C.","Tarquio","Male","College of Agriculture and Food Sciences","River Gee","2011/2012","First Semester","Liberian Student",6835660]
[null,null,"TU-00751","Christian",null,"Tamba","Male","College of Education","Lofa","2011/2012","First Semester","Liberian Student",880723321]
[null,83,"TU-00085","Christaina","J.","Toe","Female","College of Health Sciences","River Gee","2009/2010","First Semester","Liberian Student",6676836]
[null,59,"TU-00061","Christian","M.","Young","Male","College of Health Sciences","Maryland","2009/2010","First Semester","Liberian Student",6340945]
[null,95,"TU-00097","Christian","T.","Dobboh","Female","College of Health Sciences","Grand Kru","2009/2010","First Semester","Liberian Student",6942106]
[null,7,"TU-00324","Christian","N.","Natt","Male","College of Agriculture and Food Sciences","Maryland","2010/2011","Second Semester","Liberian Student",6870128]
[null,68,"TU-00406","Christian","G.","Mulbah","Male","College of Agriculture and Food Sciences","Lofa","2010/2011","Second Semester","Liberian Student",6445574]
[null,193,"TU-00097","Christian","T.","Dorbor","Male","College of Health Sciences","Maryland","2009/2010","Second Semester","Liberian Student"]
[null,209,"TU-00061","Christian","M.","Young","Male","College of Health Sciences","Maryland","2009/2010","Second Semester","Liberian Student"]
[null,119,"TU-00424","Christian","D.","Wreh","Male","College of Education","Maryland","2010/2011","First Semester","Liberian Student",77783498]
[null,274,"TU-00079","Christian","T.","Dobboh","Male","College of Health Sciences","Maryland","2010/2011","First Semester","Liberian Student",880635035]
[null,275,"TU-00061","Christian","M.","Young","Male","College of Health Sciences","Maryland","2010/2011","First Semester","Liberian Student",6217889]
[null,402,"TU-00324","Christian","N.","Natt","Male","College of Agriculture and Food Sciences","Maryland","2010/2011","First Semester","Liberian Student",6445574]
[null,403,"TU-00406","Christian","G.","Mulbah","Male","College of Agriculture and Food Sciences","Lofa","2010/2011","First Semester","Liberian Student",6430050]
[null,98,"TU-00424","Christian","D.","Wreh","Male","College of Education","Grand Kru","2010/2011","Second Semester","Liberian Student",77783498]
[null,295,"TU-00097","Christian","T.","Dobboh","Male","College of Health Sciences","Maryland","2010/2011","Second Semester","Liberian Student"]
[null,315,"TU-00061","Christian","M.","Young","Male","College of Health Sciences","River Gee","2010/2011","Second Semester","Liberian Student",6217989]
[null,1005,"TU-00061","Christian","M.","Young","Male","College of Health Sciences","River Gee","2011/2012","First Semester","Liberian Student",6217989]
[null,1025,"TU-00097","Christian","T.","Dobboh","Male","College of Health Sciences","Maryland","2011/2012","First Semester","Liberian Student",880632985]
[null,1162,"TU-00406","Christian","G.","Mulbah","Male","College of Agriculture and Food Sciences","Lofa","2011/2012","First Semester","Liberian Student",6445574]
[null,1168,"TU-00324","Christian","N.","Natt","Male","College of Agriculture and Food Sciences","Maryland","2011/2012","First Semester","Liberian Student",6870128]
[null,null,"TU-00424","Christian","D.","Wreh","Male","College of Education","Grand Kru","2011/2012","First Semester","Liberian Student",77783498]
[null,92,"TU-00085","Christiana","J.","Toe","Female","College of Health Sciences","Maryland","2009/2010","Second Semester","Liberian Student",6676836]
[null,276,"TU-00058","Christiana","J.","Toe","Female","College of Health Sciences","Maryland","2010/2011","First Semester","Liberian Student",667836]
[null,243,"TU-00085","Christiana","J.","Toe","Female","College of Health Sciences","River Gee","2010/2011","Second Semester","Liberian Student",6676836]
[null,605,"TU-00085","Christiana","T.","Toe","Female","College of Health Sciences","River Gee","2011/2012","First Semester","Liberian Student",6676836]
[null,277,"TU-00271","Christopher","N.","Blay","Male","College of Health Sciences","Grand Gedeh","2010/2011","First Semester","Liberian Student",6601924]
[null,291,"TU-00271","Christopher","N.","Blay","Male","College of Health Sciences","Grand Gedeh","2010/2011","Second Semester","Liberian Student",6618785]
[null,1070,"TU-00271","Christopher","N.","Blay","Male","College of Health Sciences","Grand Gedeh","2011/2012","First Semester","Liberian Student",6618785]
[null,null,"TU-00701","Christopher","D.","Woart","Male","College of Education","Maryland","2011/2012","First Semester","Liberian Student",6294398]
[null,120,"TU-00310","Cisco","S.","Williams","Male","College of Education","Maryland","2010/2011","First Semester","Liberian Student",6661009]
[null,115,"TU-00310","Cisco","S.","Williams","Male","College of Education","Maryland","2010/2011","Second Semester","Liberian Student",6661009]
[null,null,"TU-00310","Cisco","S.","Williams","Male","College of Education","Maryland","2011/2012","First Semester","Liberian Student",6661009]
[null,110,"TU-00114","Clement","S.","Godfrey","Male","College of Technology","Grand Kru","2009/2010","First Semester","Liberian Student",6278943]
[null,1096,"TU-00661","Clement",null,"Toh","Male","College of Health Sciences","Maryland","2011/2012","First Semester","Liberian Student",880438209]
[null,59,"TU-00127","Columbus","U.","Iyke","Male","College of Management","Non-Liberian","2009/2010","Second Semester","Foreign Student",6647923]
[null,278,"TU-00451","Comfort","D.","Dweh","Female","College of Health Sciences","Maryland","2010/2011","First Semester","Liberian Student",637871]
[null,245,"TU-00451","Comfort","D.","Dweh","Female","College of Health Sciences","Maryland","2010/2011","Second Semester","Liberian Student",6455476]
[null,700,"TU-00451","Comfort","D.","Dweh","Female","College of Health Sciences","Maryland","2011/2012","First Semester","Liberian Student",880714370]
[null,177,"TU-00182","Cora","K.","Doryen","Female","College of Management","Sinoe","2009/2010","First Semester","Liberian Student",6557874]
[null,142,"TU-00182","Cora","K.","Doryen","Female","College of Management","Sinoe","2009/2010","Second Semester","Liberian Student",6557874]
[null,27,"TU-00182","Cora","K.","Doryen","Female","College of Management","Sinoe","2010/2011","First Semester","Liberian Student",6557874]
[null,444,"TU-00182","Cora","K.","Doryen","Female","College of Management","Sinoe","2010/2011","Second Semester","Liberian Student"]
[null,null,"TU-00182","Cora","K.","Doryen","Female","College of Management","Sinoe","2011/2012","First Semester","Liberian Student",6557874]
[null,75,"TU-00077","Cynthia","J.","Howe","Female","College of Health Sciences","Maryland","2009/2010","First Semester","Liberian Student",6294853]
[null,117,"TU-00077","Cynthia","J.","Howe","Female","College of Health Sciences","Maryland","2009/2010","Second Semester","Liberian Student",6294853]
[null,279,"TU-00077","Cynthia","J.","Howe","Female","College of Health Sciences","Maryland","2010/2011","First Semester","Liberian Student",6294853]
[null,44,"TU-00197","Cyrus","W.","Williams, Jr.","Male","College of Agriculture and Food Sciences","Maryland","2010/2011","Second Semester","Liberian Student",6730546]
[null,266,"TU-00372","Cyrus","B.","Sneh","Male","College of Management","River Gee","2009/2010","First Semester","Liberian Student",6552505]
[null,156,"TU-00372","Cyrus","S.","Sneh","Male","College of Health Sciences","River Gee","2009/2010","Second Semester","Liberian Student",6552505]
[null,280,"TU-00372","Cyrus","B.","Sneh","Male","College of Health Sciences","River Gee","2010/2011","First Semester","Liberian Student",65525055]
[null,86,"TU-00197","Cyrus","W.","Williams","Male","College of Agriculture and Food Sciences","River Gee","2009/2010","Second Semester","Liberian Student",6730546]
[null,192,"TU-00197","Cyrus","W.","Williams,jr.","Male","College of Agriculture and Food Sciences","River Gee","2009/2010","First Semester","Liberian Student",6730546]
[null,404,"TU-00197","Cyrus","W.","Williams,Jr.","Male","College of Agriculture and Food Sciences","Maryland","2010/2011","First Semester","Liberian Student",6730546]
[null,325,"TU-00372","Cyrus","B.","Sneh","Male","College of Health Sciences","Maryland","2010/2011","Second Semester","Liberian Student",6552505]
[null,508,"TU-00372","Cyrus","B.","Sneh","Male","College of Health Sciences","River Gee","2011/2012","First Semester","Liberian Student",6552505]
[null,1189,"TU-00197","Cyrus","W.","Williams  Jr","Male","College of Agriculture and Food Sciences","Maryland","2011/2012","First Semester","Liberian Student",6728332]
[null,1210,"TU-00026","D","K.","Wilson","Male","College of Agriculture and Food Sciences","River Gee","2011/2012","First Semester","Liberian Student",776617421]
[null,1204,"TU-00144","D.","R.","Flomo","Male","College of Agriculture and Food Sciences","Lofa","2011/2012","First Semester","Liberian Student",6460659]
[null,483,"TU-00026","D.Karpeh",null,"Wilson","Male","College of Agriculture and Food Sciences","River Gee","2010/2011","First Semester","Liberian Student",6928564]
[null,281,"TU-00517","D.Preston","B.","Geah","Male","College of Health Sciences","Maryland","2010/2011","First Semester","Liberian Student",6935434]
[null,283,"TU-00389","Dabawloh","F. A.","Bartue, Sr.","Male","College of Management","Maryland","2009/2010","First Semester","Liberian Student",6602995]
[null,213,"TU-00389","Dabawloh","F.","Bartue,Sr.","Male","College of Management","Maryland","2009/2010","Second Semester","Liberian Student",6601696]
[null,28,"TU-00389","Dabawloh","F.","Bartue,Sr.","Male","College of Management","Grand Kru","2010/2011","First Semester","Liberian Student"]
[null,408,"TU-00389","Dabawloh",null,"Bartue","Male","College of Management","Maryland","2010/2011","Second Semester","Liberian Student",66602995]
[null,1079,"TU-","Dada","D.","Nelson","Male","College of Health Sciences","Grand Bassa","2011/2012","First Semester","Liberian Student",6712005]
[null,1124,"TU-00653","Daisy","G.","Boatue","Female","College of Health Sciences","Maryland","2011/2012","First Semester","Liberian Student",6965310]
[null,2,"TU-00002","Daniel","N.","Swen Jr.","Male","College of Technology","River Gee","2009/2010","First Semester","Liberian Student",6351608]
[null,18,"TU-00257","Daniel",null,"Wesseh","Male","College of Agriculture and Food Sciences","River Gee","2010/2011","Second Semester","Liberian Student",6272108]
[null,30,"TU-00526","Daniel",null,"Wutue","Male","College of Agriculture and Food Sciences","Maryland","2010/2011","Second Semester","Liberian Student",6208351]
[null,2,2,"Daniel","N.","Swen,Jr.","Male","College of Technology","River Gee","2009/2010","Second Semester","Liberian Student",6351608]
[null,121,"TU-00246","Daniel","K.","Hukpati,II","Male","College of Education","Montserrado","2010/2011","First Semester","Liberian Student",6202638]
[null,405,"TU-00526","Daniel",null,"Wutue","Male","College of Agriculture and Food Sciences","Maryland","2010/2011","First Semester","Liberian Student",6208351]
[null,406,"TU-00257","Daniel",null,"Weeseh","Male","College of Agriculture and Food Sciences","Grand Kru","2010/2011","First Semester","Liberian Student",6272108]
[null,113,"TU-00246","Daniel","K.","Hukpati, II","Male","College of Education","Montserrado","2010/2011","Second Semester","Liberian Student",6202638]
[null,191,"TU-00002","Daniel","N.","Swen","Male","College of Technology","Grand Kru","2010/2011","Second Semester","Liberian Student",7737714]
[null,1169,"TU-00257","Daniel",null,"Wesseh","Male","College of Agriculture and Food Sciences","Maryland","2011/2012","First Semester","Liberian Student",6272108]
[null,1255,"TU-00820","Daniel","T.","Wilson","Male","College of Agriculture and Food Sciences","Maryland","2011/2012","First Semester","Liberian Student"]
[null,null,"TU-00605","Daniel","W.","Hinneh","Male","College of Education","Maryland","2011/2012","First Semester","Liberian Student"]
[null,null,"TU-00","Daniel","N.","Doe","Male","College of Education","Maryland","2011/2012","First Semester","Liberian Student",6295775]
[null,null,"TU-00002","Daniel","N.","Swen Jr.","Male","College of Technology","River Gee","2011/2012","First Semester","Liberian Student",6351608]
[null,48,"TU-00050","Dargbeh",null,"Swen","Male","College of Health Sciences","Sinoe","2009/2010","First Semester","Liberian Student",6601696]
[null,210,"TU-00050","Dargbeh",null,"Swen","Male","College of Health Sciences","Sinoe","2009/2010","Second Semester","Liberian Student",6616423]
[null,321,"TU-00050","Dargbeh",null,"Swen","Male","College of Health Sciences","Maryland","2010/2011","Second Semester","Liberian Student",6601696]
[null,455,"TU-00050","Dargbeh",null,"Swen","Male","College of Health Sciences","Grand Kru","2011/2012","First Semester","Liberian Student",6601696]
[null,176,"TU-00315","Darlington","T.","Waeh","Male","College of Technology","Maryland","2010/2011","First Semester","Liberian Student",6601962]
[null,212,"TU-00315","Darlington","J.","Weah","Male","College of Technology","River Gee","2010/2011","Second Semester","Liberian Student",6601962]
[null,null,"TU-00315","Darlington","T.","Weah","Male","College of Technology","Maryland","2011/2012","First Semester","Liberian Student",6601962]
[null,35,"TU-00037","Darryl","F.","Thomas","Male","College of Management","Montserrado","2009/2010","First Semester","Liberian Student",6747388]
[null,157,"TU-00037","Darryl","F.","Thomas","Male","College of Management","Montserrado","2009/2010","Second Semester","Liberian Student",6602088]
[null,29,"TU-00037","Darryl","F.","Thomas","Male","College of Management","Montserrado","2010/2011","First Semester","Liberian Student",6747388]
[null,358,"TU-00037","Darryl","F.","Thomas","Male","College of Management","Montserrado","2010/2011","Second Semester","Liberian Student",6518200]
[null,null,"TU-00037","Darryl","F.","Thomas","Male","College of Management","Montserrado","2011/2012","First Semester","Liberian Student",6747388]
[null,92,"TU-00094","David","D.","Dweh","Male","College of Health Sciences","River Gee","2009/2010","First Semester","Liberian Student",6661600]
[null,27,"TU-00094","David","D.","Dweh","Male","College of Health Sciences","River Gee","2009/2010","Second Semester","Liberian Student",6661600]
[null,122,"TU-00316","David","D.","Nyepen,II","Male","College of Education","River Gee","2010/2011","First Semester","Liberian Student",6601699]
[null,123,"TU-00407","David","K.","Odarbeh","Male","College of Education","Grand Kru","2010/2011","First Semester","Liberian Student",76403524]
[null,94,"TU-00316","David","D.","Nyepen, II","Male","College of Education","Maryland","2010/2011","Second Semester","Liberian Student",6601699]
[null,102,"TU-00407","David","K.","Odarbeh","Male","College of Education","Grand Kru","2010/2011","Second Semester","Liberian Student",76403524]
[null,202,"TU-00486","David","R.","Bedell","Male","College of Technology","Maryland","2010/2011","Second Semester","Liberian Student",6472821]
[null,null,"TU-00316","David","D.","Nyenpen,II","Male","College of Education","Grand Kru","2011/2012","First Semester","Liberian Student",6601699]
[null,null,"TU-00407","David","K.","Odarbeh","Male","College of Education","Grand Kru","2011/2012","First Semester","Liberian Stuednt",66403524]
[null,null,"TU-00864","David","H.","Erskine","Male","College of Education","Maryland","2011/2012","First Semester","Liberian Student",6916711]
[null,null,"TU-00486","David","R.","Bedell","Male","College of Technology","Maryland","2011/2012","First Semester","Liberian Student",6472821]
[null,null,"TU-00642","Deaquan","N.","George","Male","College of Management",null,"2011/2012","First Semester","Liberian Student"]
[null,282,"TU-00261","Deborah","M.","Nyemah","Female","College of Health Sciences","Maryland","2010/2011","First Semester","Liberian Student",6121473]
[null,8,"TU-00008","Decontee","J.","Darbeh","Female","College of Health Sciences","Maryland","2009/2010","First Semester","Liberian Student",6584841]
[null,91,"TU-00093","Decontee","M.","Kumah","Female","College of Health Sciences","Maryland","2009/2010","First Semester","Liberian Student",6716271]
[null,232,"TU-00337","Decontee","O.","Reed","Male","College of Management","Maryland","2009/2010","First Semester","Liberian Student",6821042]
[null,37,"TU-00093","Decontee","M.","Kumah","Female","College of Health Sciences","Maryland","2009/2010","Second Semester","Liberian Student",6716271]
[null,106,"TU-00337","Decontee","O.","Reed","Male","College of Management","Maryland","2009/2010","Second Semester","Liberian Student",6821042]
[null,240,"TU-00008","Decontee","J.","Dargbeh","Female","College of Health Sciences","Maryland","2009/2010","Second Semester","Liberian Student",6584841]
[null,30,"TU-00337","Decontee","O.","Reed","Male","College of Management","Maryland","2010/2011","First Semester","Liberian Student",6821042]
[null,283,"TU-00008","Decontee","J.","Darbeh","Female","College of Health Sciences","Maryland","2010/2011","First Semester","Liberian Student",6121544]
[null,284,"TU-00093","Decontee","M.","Kumah","Female","College of Health Sciences","Maryland","2010/2011","First Semester","Liberian Student",880541304]
[null,285,"TU-00548","Decontee","M.","Hardy","Female","College of Health Sciences","Maryland","2010/2011","First Semester","Liberian Student",6779597]
[null,229,"TU-00093","Decontee","M.","Kumah","Female","College of Health Sciences","Maryland","2010/2011","Second Semester","Liberian Student",880541304]
[null,260,"TU-00548","Decontee","M.","Hardy","Female","College of Health Sciences","Maryland","2010/2011","Second Semester","Liberian Student",6496942]
[null,282,"TU-00008","Decontee","J.","Darbeh","Female","College of Health Sciences","Maryland","2010/2011","Second Semester","Liberian Student",6549749]
[null,1016,"TU-00008","Decontee","J.","Darbeh","Female","College of Health Sciences",null,"2011/2012","First Semester","Liberian Student",6121544]
[null,1031,"TU-00093","Decontee","M.","Kumah","Female","College of Health Sciences",null,"2011/2012","First Semester","Liberian Student",880541304]
[null,79,"TU-00081","Dedesco","D.","Gweh","Male","College of Health Sciences","Bong","2009/2010","First Semester","Liberian Student",6402278]
[null,46,"TU-00081","Dedesco","D.","Gweh","Male","College of Health Sciences","Maryland","2009/2010","Second Semester","Liberian Student",6402278]
[null,286,"TU-00081","Dedesco","D.","Gweh","Male","College of Health Sciences","Nimba","2010/2011","First Semester","Liberian Student",6402278]
[null,448,"TU-00081","Dedesco","D.","Gweh","Male","College of Health Sciences","Nimba","2010/2011","Second Semester","Liberian Student",6402278]
[null,909,"TU-00081","Dedesco","D.","Gweh","Male","College of Health Sciences",null,"2011/2012","First Semester","Liberian Student",6402278]
[null,608,"TU-00548","Dehcontee","M.","Hardy","Female","College of Health Sciences",null,"2011/2012","First Semester","Liberian Student",6496942]
[null,214,"TU-00205","Delando",null,"Davis","Male","College of Technology","River Gee","2010/2011","Second Semester","Liberian Student"]
[null,168,"TU-00205","Delano",null,"Davies","Male","College of Technology","River Gee","2009/2010","Second Semester","Liberian Student",6568899]
[null,177,"TU-00205","Delano","G.","Davis","Male","College of Technology","River Gee","2010/2011","First Semester","Liberian Student"]
[null,199,"TU-00205","Deleno",null,"Davis","Male","College of Technology","River Gee","2009/2010","First Semester","Liberian Student",6568899]
[null,20,"TU-00314","Dennis","M.","Woods","Male","College of Agriculture and Food Sciences","Maryland","2010/2011","Second Semester","Liberian Student",622066]
[null,407,"TU-00314","Dennis","M.","Woods","Male","College of Agriculture and Food Sciences","Maryland","2010/2011","First Semester","Liberian Student",6222066]
[null,370,"TU-00569","Dennis","G.","Weah","Male","College of Management","Maryland","2010/2011","Second Semester","Liberian Student",6495253]
[null,1187,"TU-00361","Dennis","P.","Dennis","Male","College of Agriculture and Food Sciences",null,"2011/2012","First Semester","Liberian Student",880632694]
[null,1199,"TU-00314","Dennis","M.","Woods","Male","College of Agriculture and Food Sciences",null,"2011/2012","First Semester","Liberian Student",6222066]
[null,null,"TU-00569","Dennis","G.","Weah","Male","College of Management",null,"2011/2012","First Semester","Liberian Student"]
[null,null,"TU-00569","Dennis","G.","Weah","Male","College of Management","Maryland","2011/2012","First Semester","Liberian Student",6495253]
[null,31,"TU-00255","Diana","S.","Butty","Female","College of Management","Maryland","2010/2011","First Semester","Liberian Student",6577632]
[null,418,"TU-00255","Diana","S.","Butty","Female","College of Management","River Gee","2010/2011","Second Semester","Liberian Student",6572623]
[null,null,"TU-00255","Diana","S.","Butty","Female","College of Management",null,"2011/2012","First Semester","Liberian Student"]
[null,24,"TU-00026","Dickens","K.","Wilson,jr.","Male","College of Agriculture and Food Sciences","River Gee","2009/2010","First Semester","Liberian Student",6940911]
[null,42,"TU-00026","Dickson","K.","Wilson","Male","College of Agriculture and Food Sciences","River Gee","2010/2011","Second Semester","Liberian Student",76174121]
[null,null,"TU-00794","Dio","G.","Morgan","Male","College of Education","Maryland","2011/2012","First Semester","Liberian Student",776154769]
[null,125,"TU-00129","Dioh",null,"Jacquet","Male","College of Management","Nimba","2009/2010","First Semester","Liberian Student",6678814]
[null,40,"TU-00042","Diomande",null,"Gnan","Male","College of Health Sciences","Non-Liberian","2009/2010","First Semester","Foreign Student",6273397]
[null,null,"TU-00747","Dionysius","T.","Weah","Male","College of Education","Maryland","2011/2012","First Semester","Liberian Student",6332900]
[null,284,"TU-00390","Dokie","K.","Wah","Male","College of Management","Maryland","2009/2010","First Semester","Liberian Student",6277872]
[null,176,"TU-00390","Dokie","K.","Wah","Male","College of Education","Maryland","2009/2010","Second Semester","Liberian Student",6920571]
[null,124,"TU-00390","Dokie","K.","Wah","Male","College of Education","Maryland","2010/2011","First Semester","Liberian Student",880607310]
[null,134,"TU-00390","Dokie","K.","Wah","Male","College of Education","Maryland","2010/2011","Second Semester","Liberian Student",880607310]
[null,null,"TU-00390","Dokie","K.","Wah","Male","College of Education","Maryland","2011/2012","First Semester","Liberian Student",6277872]
[null,125,"TU-00501","Dominic","H.","Dennis","Male","College of Education","Maryland","2010/2011","First Semester","Liberian Student",6456209]
[null,1087,"TU-00838","Dora",null,"Johnson","Female","College of Health Sciences","Maryland","2011/2012","First Semester","Liberian Student",880712401]
[null,126,"TU-00504","Douna","H.","Harris","Female","College of Education","Maryland","2010/2011","First Semester","Liberian Student",6207031]
[null,89,"TU-00504","Douna","H.","Harris","Female","College of Education","Maryland","2010/2011","Second Semester","Liberian Student",6202031]
[null,276,"TU-00382","Doveflee",null,"Kollie","Male","College of Technology","Lofa","2009/2010","First Semester","Liberian Student",6319364]
[null,215,"TU-00382","Doveflee",null,"Kollie","Male","College of Technology","Lofa","2009/2010","Second Semester","Liberian Student",6319364]
[null,178,"TU-00382","Doveflee","E.","Kollie","Male","College of Technology","Lofa","2010/2011","First Semester","Liberian Student",6757696]
[null,223,"TU-00382","Doveflee","E.","Kollie","Male","College of Technology","Lofa","2010/2011","Second Semester","Liberian Student",6319364]
[null,null,"TU-00382","Doveflee","","Kollie","Male","College of Technology","Lofa","2011/2012","First Semester","Liberian Student",6319364]
[null,null,"TU-00836","Dugbeh","K.","Tuillah","Male","College of Education","River Gee","2011/2012","First Semester","Liberian Student",6842816]
[null,181,"TU-00186","Duwor","D.","Corvah","Male","College of Technology","Lofa","2009/2010","First Semester","Liberian Student",7769406]
[null,131,"TU-00186","Duwor","D.","Corvah","Male","College of Technology","Lofa","2009/2010","Second Semester","Liberian Student",6679466]
[null,179,"TU-00186","Duwor","D.","Corvah","Male","College of Technology","Nimba","2010/2011","First Semester","Liberian Student",6679466]
[null,210,"TU-00186","Duwor","D.","Corvah","Male","College of Technology","Lofa","2010/2011","Second Semester","Liberian Student",6679466]
[null,null,"TU-00186","Duwor","D.","Corvah","Male","College of Technology","Lofa","2010/2011","First Semester","Liberian Student",7769406]
[null,27,"TU-00513","Dwelity","N.","Dweh, Jr.","Male","College of Agriculture and Food Sciences","Maryland","2010/2011","Second Semester","Liberian Student",6972211]
[null,408,"TU-00513","Dwelity","N.","Dweh,Jr.","Male","College of Agriculture and Food Sciences","Maryland","2010/2011","First Semester","Liberian Student",6972211]
[null,1133,"TU-00513","Dwelity","N.","Dweh Jr","Male","College of Agriculture and Food Sciences",null,"2011/2012","First Semester","Liberian Student",6972211]
[null,null,"TU-00865","Eddie","F.","Barmor","Male","College of Technology",null,"2011/2012","First Semester","Liberian Student",880330206]
[null,22,"TU-00024","Edma","B.","Dugbe","Female","College of Agriculture and Food Sciences","Maryland","2009/2010","First Semester","Liberian Student",632296]
[null,287,"TU-00024","Edma","B.","Dugbe","Female","College of Health Sciences","Maryland","2010/2011","First Semester","Liberian Student",6713078]
[null,241,"TU-00024","Edma","B.","Dugbe","Female","College of Agriculture and Food Sciences","Maryland","2009/2010","Second Semester","Liberian Student",6632296]
[null,238,"TU-00024","Edma","B.","Dugbe","Female","College of Health Sciences","Grand Kru","2010/2011","Second Semester","Liberian Student",6713018]
[null,127,"TU-00515","Edward","N.","Landford","Male","College of Education","Maryland","2010/2011","First Semester","Liberian Student",6893898]
[null,128,"TU-00299","Edward","M.","Blackmon","Male","College of Education","Maryland","2010/2011","First Semester","Liberian Student",6566125]
[null,118,"TU-00299","Edward","M.","Blackmon","Male","College of Education","Maryland","2010/2011","Second Semester","Liberian Student",6566125]
[null,null,"TU-00299","Edward","M.","Blackmon","Male","College of Education","Maryland","2011/2012","First Semester","Liberian Student",6566125]
[null,null,"TU-00515","Edward","N.","Landford","Male","College of Education","Maryland","2011/2012","First Semester","Liberian Student",6893898]
[null,1277,"TU-00686","Edwin","K.","Christian","Male","College of Agriculture and Food Sciences","Gbarpolu","2011/2012","First Semester","Liberian Student",6496436]
[null,null,"TU-00708","Edwin","G.","Kiazolu","Male","College of Education","Grand Cape Mount","2011/2012","First Semester","Liberian Student",6254452]
[null,null,"TU-00868","Edwin","G.","Banks","Male","College of Technology","Grand Bassa","2011/2012","First Semester","Liberian Student",6683053]
[null,76,"TU-00078","Edwina","B.","Clark","Female","College of Health Sciences","Maryland","2009/2010","First Semester","Liberian Student",6956331]
[null,142,"TU-00146","Edwina","T.","Gedeh","Female","College of Technology","Maryland","2009/2010","First Semester","Liberian Student",6292040]
[null,91,"TU-00078","Edwina","B.","Clark","Female","College of Health Sciences","Maryland","2009/2010","Second Semester","Liberian Student",6956331]
[null,219,"TU-00146","Edwina","T.","Clark","Female","College of Technology","Maryland","2009/2010","Second Semester","Liberian Student",6292040]
[null,180,"TU-00146","Edwina","T.","Gadeh","Female","College of Technology","Maryland","2010/2011","First Semester","Liberian Student",6687925]
[null,288,"TU-00078","Edwina","B.","Clark","Female","College of Health Sciences","Maryland","2010/2011","First Semester","Liberian Student",6956331]
[null,174,"TU-00146","Edwina","T.","Gadeh","Female","College of Technology","Maryland","2010/2011","Second Semester","Liberian Student",880713803]
[null,262,"TU-00078","Edwina","B.","Clark","Female","College of Health Sciences","Maryland","2010/2011","Second Semester","Liberian Student",6956331]
[null,1042,"TU-00078","Edwina","B.","Clarke","Female","College of Health Sciences",null,"2011/2012","First Semester","Liberian Student",6956331]
[null,null,"TU-00146","Edwina","T.","Gedeh","Female","College of Technology","Maryland","2011/2012","First Semester","Liberian Student",6292040]
[null,null,"TU-00853","Elaine","Z.","Brooks","Female","College of Management","Montserrado","2011/2012","First Semester","Liberian Student",6634139]
[null,165,"TU-00170","Elijah","G.","Johnny","Male","College of Technology","Maryland","2009/2010","First Semester","Liberian Student",6740405]
[null,10,"TU-00479","Elijah",null,"Dweh","Male","College of Agriculture and Food Sciences","River Gee","2010/2011","Second Semester","Liberian Student",6601290]
[null,206,"TU-00170","Elijah","G.","Johnny","Male","College of Technology","Maryland","2009/2010","Second Semester","Liberian Student"]
[null,181,"TU-00170","Elijah","G.","Johnny","Male","College of Technology","River Cess","2010/2011","First Semester","Liberian Student",6740405]
[null,409,"TU-00479","Elijah",null,"Dweh","Male","College of Agriculture and Food Sciences","Maryland","2010/2011","First Semester","Liberian Student"]
[null,441,"TU-00170","Elijah","G.","Johnny","Male","College of Technology","River Cess","2010/2011","Second Semester","Liberian Student"]
[null,1184,"TU-00479","Elijah",null,"Dweh","Male","College of Agriculture and Food Sciences",null,"2011/2012","First Semester","Liberian Student",6601290]
[null,1222,"TU-00652","Elijah","S.","Miller","Male","College of Agriculture and Food Sciences","Nimba","2011/2012","First Semester","Liberian Student",6105060]
[null,null,"TU-00756","Elijah","N.","Toe","Male","College of Management","Grand Kru","2011/2012","First Semester","Liberian Student",880606133]
[null,null,"TU-00170","Elijah","G.","Johnny","Male","College of Technology","Maryland","2011/2012","First Semester","Liberian Student",6740405]
[null,56,"TU-00546","Eliza","J.","Collins","Female","College of Agriculture and Food Sciences","Maryland","2010/2011","Second Semester","Liberian Student",880634990]
[null,410,"TU-00546","Eliza","J.","Collins","Female","College of Agriculture and Food Sciences","Maryland","2010/2011","First Semester","Liberian Student",880634990]
[null,1140,"TU-00546","Eliza","J.","Collins","Female","College of Agriculture and Food Sciences",null,"2011/2012","First Semester","Liberian Student",880634990]
[null,1088,"TU-00772","Elizabeth","K.","Wreh","Female","College of Health Sciences","Maryland","2011/2012","First Semester","Liberian Student"]
[null,null,"TU-00754","Elizabeth","W.","Howe","Female","College of Management","Maryland","2011/2012","First Semester","Liberian Student",880739482]
[null,234,"TU-00570","Ellen","B.","Howe","Female","College of Health Sciences","Maryland","2010/2011","Second Semester","Liberian Student",6623790]
[null,194,"TU-00199","Elton","S.","Dickson","Male","College of Management","Grand Kru","2009/2010","First Semester","Liberian Student",6602043]
[null,8,"TU-00199","Elton","S.","Swen","Male","College of Management","River Gee","2009/2010","Second Semester","Liberian Student",6602043]
[null,32,"TU-00199","Elton","S.","Dickson","Male","College of Management","Grand Kru","2010/2011","First Semester","Liberian Student",6602043]
[null,354,"TU-00199","Elton","S.","Dickson","Male","College of Management","River Gee","2010/2011","Second Semester","Liberian Student",6602043]
[null,null,"TU-00199","Elton","S.","Dickson","Male","College of Management",null,"2011/2012","First Semester","Liberian Student",6602043]
[null,null,"TU-00199","Elton","S.","Dickson","Male","College of Management","Grand Kru","2011/2012","First Semester","Liberian Student",6602043]
[null,168,"TU-00173","Eltrick","T.","Jackson","Male","College of Technology","Montserrado","2009/2010","First Semester","Liberian Student",6599984]
[null,197,"TU-00173","Eltrick","T.","Jackson","Male","College of Technology","Maryland","2009/2010","Second Semester","Liberian Student"]
[null,182,"TU-00173","Eltrick","T.","Jackson","Male","College of Technology","Maryland","2010/2011","First Semester","Liberian Student",6592338]
[null,148,"TU-00175","Eltrick","T.","Jackson","Male","College of Technology","Maryland","2010/2011","Second Semester","Liberian Student",5583640]
[null,null,"TU-00173","Eltrick","T.","Jackson","Male","College of Technology","Montserrado","2011/2012","First Semester","Liberian Student",6599984]
[null,33,"TU-00452","Emily","J.","Brooks","Female","College of Management","Maryland","2010/2011","First Semester","Liberian Student",6273265]
[null,5,"TU-00005","Emmanuel",null,"Hanson","Male","College of Agriculture and Food Sciences","Maryland","2009/2010","First Semester","Liberian Student",6985693]
[null,39,"TU-00041","Emmanuel","Y.","Dobbeh","Male","College of Health Sciences","Grand Kru","2009/2010","First Semester","Liberian Student",6402113]
[null,53,"TU-00055","Emmanuel","D.","Geegba","Male","College of Health Sciences","Maryland","2009/2010","First Semester","Liberian Student"]
[null,55,"TU-00057","Emmanuel","B.","Jayfin","Male","College of Health Sciences","Maryland","2009/2010","First Semester","Liberian Student",6969412]
[null,114,"TU-00118","Emmanuel","W.","Turo","Male","College of Management","Nimba","2009/2010","First Semester","Liberian Student",6260291]
[null,130,"TU-00134","Emmanuel","M.","Toe","Male","College of Technology","Maryland","2009/2010","First Semester","Liberian Student",6748395]
[null,200,"TU-00206","Emmanuel",null,"Nollen","Male","College of Management","River Gee","2009/2010","First Semester","Liberian Student",6748317]
[null,201,"TU-00207","Emmanuel","S.","Nyepah","Male","College of Technology","River Gee","2009/2010","First Semester","Liberian Student",6403522]
[null,243,"TU-00348","Emmanuel",null,"Wilson","Male","College of Management","Maryland","2009/2010","First Semester","Liberian Student"]
[null,15,"TU-00348","Emmanuel",null,"Wilson","Male","College of Management","Maryland","2009/2010","Second Semester","Liberian Student",6941427]
[null,65,"TU-00005","Emmanuel","O.","Hanson","Male","College of Agriculture and Food Sciences","Maryland","2010/2011","Second Semester","Liberian Student",6985693]
[null,65,"TU-00118","Emmanuel","W.","Turo","Male","College of Management","Margibi","2009/2010","Second Semester","Liberian Student",6260291]
[null,93,"TU-00206","Emmanuel",null,"Nollen","Male","College of Management","River Gee","2009/2010","Second Semester","Liberian Student",6748317]
[null,119,"TU-00207","Emmanuel","S.","Nyepah","Male","College of Technology","River Gee","2009/2010","Second Semester","Liberian Student",6403522]
[null,233,"TU-00134","Emmanuel","M.","Toe","Male","College of Technology","Maryland","2009/2010","Second Semester","Liberian Student",6748395]
[null,238,"TU-00057","Emmanuel","B.","Jayfin","Male","College of Health Sciences","Maryland","2009/2010","Second Semester","Liberian Student",6969412]
[null,34,"TU-00368","Emmanuel",null,"Nollen","Male","College of Management","River Gee","2010/2011","First Semester","Liberian Student",6748317]
[null,35,"TU-00348","Emmanuel",null,"Wilson","Male","College of Management","Maryland","2010/2011","First Semester","Liberian Student",46144281]
[null,36,"TU-00118","Emmanuel","W.","Turo","Male","College of Management","Nimba","2010/2011","First Semester","Liberian Student",6260291]
[null,67,"TU-00005","Emmanuel","O.","Hanson","Male","College of Agriculture and Food Sciences","Maryland","2009/2010","Second Semester","Liberian Student",6985613]
[null,129,"TU-00473","Emmanuel","B.","Chea","Male","College of Education","River Cess","2010/2011","First Semester","Liberian Student",6138962]
[null,130,"TU-00570","Emmanuel","M.","Toe","Male","College of Education","Maryland","2010/2011","First Semester","Liberian Student"]
[null,183,"TU-00207","Emmanuel","S.","Nyepah","Male","College of Technology","Nimba","2010/2011","First Semester","Liberian Student",6403522]
[null,184,"TU-00397","Emmanuel",null,"Kiawu","Male","College of Technology","Grand Cape Mount","2010/2011","First Semester","Liberian Student",6936552]
[null,185,"TU-00015","Emmanuel","Y.","Dioh","Male","College of Technology","Maryland","2010/2011","First Semester","Liberian Student",6515850]
[null,289,"TU-00057","Emmanuel","B.","Jayfin","Male","College of Health Sciences","Maryland","2010/2011","First Semester","Liberian Student",6290709]
[null,290,"TU-00041","Emmanuel","Y.","Dobboh","Male","College of Health Sciences","Maryland","2010/2011","First Semester","Liberian Student",6402113]
[null,291,"TU-00262","Emmanuel","Y.","Prowd","Male","College of Health Sciences","Maryland","2010/2011","First Semester","Liberian Student",6678186]
[null,411,"TU-00005","Emmanuel","O.","Hanson","Male","College of Agriculture and Food Sciences","Maryland","2010/2011","First Semester","Liberian Student",6985693]
[null,412,"TU-00298","Emmanuel","S.","Freeman","Male","College of Agriculture and Food Sciences","Maryland","2010/2011","First Semester","Liberian Student",66448786]
[null,91,"TU-00134","Emmanuel","M.","Toe","Male","College of Education","Maryland","2010/2011","Second Semester","Liberian Student"]
[null,138,"TU-00473","Emmanuel","B.","Chea","Male","College of Education","River Cess","2010/2011","Second Semester","Liberian Student",6138962]
[null,155,"TU-00015","Emmanuel","Y.","Dioh","Male","College of Technology","Maryland","2010/2011","Second Semester","Liberian Student",6515850]
[null,181,"TU-00207","Emmanuel","S.","Nyepah","Male","College of Technology","River Gee","2010/2011","Second Semester","Liberian Student",6403522]
[null,224,"TU-00581","Emmanuel",null,"Kaiwu","Male","College of Technology","Grand Cape Mount","2010/2011","Second Semester","Liberian Student",6936552]
[null,289,"TU-00041","Emmanuel","J.","Dobboh","Male","College of Health Sciences","Maryland","2010/2011","Second Semester","Liberian Student",6402113]
[null,293,"TU-00057","Emmanuel","B.","Jayfin","Male","College of Health Sciences","Maryland","2010/2011","Second Semester","Liberian Student",6290709]
[null,335,"TU-00262","Emmanuel","Y.","Dobboh","Male","College of Health Sciences","Maryland","2010/2011","Second Semester","Liberian Student",6678186]
[null,352,"TU-00348","Emmanuel",null,"Wilson","Male","College of Management","Maryland","2010/2011","Second Semester","Liberian Student",880423730]
[null,373,"TU-00206","Emmanuel",null,"Nollen","Male","College of Management","Maryland","2010/2011","Second Semester","Liberian Student",6748317]
[null,1000,"TU-00057","Emmanuel","B.","Jayfin","Male","College of Health Sciences",null,"2011/2012","First Semester","Liberian Student"]
[null,1021,"TU-00041","Emmanuel","Y.","Dobboh","Male","College of Health Sciences",null,"2011/2012","First Semester","Liberian Student",6402113]
[null,1208,"TU-00298","Emmanuel","S.","Freeman","Male","College of Agriculture and Food Sciences",null,"2011/2012","First Semester","Liberian Student",6648786]
[null,1233,"TU-00812","Emmanuel","N.","Nyanfor","Male","College of Agriculture and Food Sciences","Grand Kru","2011/2012","First Semester","Liberian Student",6923422]
[null,1241,"TU-00667","Emmanuel","C.","Collins","Male","College of Agriculture and Food Sciences",null,"2011/2012","First Semester","Liberian Student",6601934]
[null,1262,"TU-00738","Emmanuel","G.","Constance","Male","College of Agriculture and Food Sciences",null,"2011/2012","First Semester","Liberian Student",6686445]
[null,null,"TU-00348","Emmanuel","","Wilson","Male","College of Management","Maryland","2011/2012","First Semester","Liberian Student"]
[null,null,"TU-00473","Emmanuel","B.","Chea","Male","College of Education","River Cess","2011/2012","First Semester","Liberian Student",6138962]
[null,null,"TU-00134","Emmanuel","M.","Toe","Male","College of Education","Maryland","2011/2012","First Semester","Liberian Student",6748395]
[null,null,"TU-00757","Emmanuel",null,"Jlakron","Male","College of Education","Grand Kru","2011/2012","First Semester","Liberian Student",880993971]
[null,null,"TU-00015","Emmanuel","Y.","Dioh","Male","College of Technology","Maryland","2012/2013","First Semester","Liberian Student",6515850]
[null,null,"TU-00207","Emmanuel","S.","Nyepah","Male","College of Technology","River Gee","2011/2012","First Semester","Liberian Student",6403522]
[null,null,"TU-00581","Emmanuel","","Kiawu","Male","College of Technology","Grand Cape Mount","2011/2012","First Semester","Liberian Student"]
[null,null,"TU-","Emmanuel","S.","Noubo","Male","College of Technology","Grand Kru","2011/2012","First Semester","Liberian Student",880706763]
[null,3,"TU-00298","Emmanuel ","S.","Freeman","Male","College of Agriculture and Food Sciences","Maryland","2010/2011","Second Semester","Liberian Student",6648786]
[null,90,"TU-00092","Emmanueline","T.","Goe","Female","College of Health Sciences","Maryland","2009/2010","First Semester","Liberian Student",6448972]
[null,79,"TU-00092","Emmanueline","T.","Goe","Female","College of Health Sciences","Maryland","2009/2010","Second Semester","Liberian Student",6448972]
[null,292,"TU-00092","Emmanueline","T.","Goe","Female","College of Health Sciences","Maryland","2010/2011","First Semester","Liberian Student",6448972]
[null,264,"TU-00092","Emmanueline","T.","Goe","Female","College of Health Sciences","Maryland","2010/2011","Second Semester","Liberian Student",6448972]
[null,903,"TU-00092","Emmanueline","T.","Goe","Female","College of Health Sciences",null,"2011/2012","First Semester","Liberian Student",6448972]
[null,147,"TU-00187","Empriam","H.","Wilson","Male","College of Technology","Maryland","2010/2011","Second Semester","Liberian Student",6533606]
[null,182,"TU-00187","Ephriam","H.","Wilson","Male","College of Technology","Grand Kru","2009/2010","First Semester","Liberian Student",6533606]
[null,130,"TU-00187","Ephriam","H.","Wilson","Male","College of Technology","Maryland","2009/2010","Second Semester","Liberian Student",6533606]
[null,186,"TU-00187","Ephriam","H.","Wilson","Male","College of Technology","Grand Kru","2010/2011","First Semester","Liberian Student"]
[null,null,"TU-00187","Ephriam","H.","Wilson","Male","College of Technology","Grand Kru","2011/2012","First Semester","Liberian Student",6533606]
[null,1,"TU-00332","Eric",null,"Geffie","Male","College of Agriculture and Food Sciences","Maryland","2010/2011","First Semester","Liberian Student",6406364]
[null,107,"TU-00332","Eric",null,"Geffie","Male","College of Agriculture and Food Sciences","Maryland","2009/2010","Second Semester","Liberian Student",6406364]
[null,227,"TU-00332","Eric",null,"Geffie","Male","College of Agriculture and Food Sciences","Maryland","2009/2010","First Semester","Liberian Student",6406364]
[null,413,"TU-00332","Eric",null,"Geffie","Male","College of Agriculture and Food Sciences","Maryland","2010/2011","First Semester","Liberian Student",6406364]
[null,1237,"TU-00849","Eric","D.","Folee","Male","College of Agriculture and Food Sciences","Maryland","2011/2012","First Semester","Liberian Student",76719349]
[null,1250,"TU-00743","Eric","G.","Weah","Male","College of Agriculture and Food Sciences","Maryland","2011/2012","First Semester","Liberian Student",6207990]
[null,null,"TU-00695","Eric","S.","Bryant","Male","College of Technology","Maryland","2011/2012","First Semester","Liberian Student",6208237]
[null,170,"TU-00175","Ernest","K.","Seton","Male","College of Technology","Maryland","2009/2010","First Semester","Liberian Student",6741296]
[null,66,"TU-00352","Ernest","N.","Toe","Male","College of Agriculture and Food Sciences","Maryland","2010/2011","Second Semester","Liberian Student",6369813]
[null,205,"TU-00175","Ernest","K.","Seton","Male","College of Technology","Maryland","2009/2010","Second Semester","Liberian Student",6741296]
[null,187,"TU-00175","Ernest","K.","Seton","Male","College of Technology","Maryland","2010/2011","First Semester","Liberian Student",6741296]
[null,181,"TU-00352","Ernest","N.","Toe","Male","College of Agriculture and Food Sciences","Maryland","2009/2010","Second Semester","Liberian Student"]
[null,247,"TU-00352","Ernest","N.","Toe","Male","College of Agriculture and Food Sciences","Maryland","2009/2010","First Semester","Liberian Student"]
[null,414,"TU-00352","Ernest","N.","Toe","Male","College of Agriculture and Food Sciences","Maryland","2010/2011","First Semester","Liberian Student",6369813]
[null,175,"TU-00175","Ernest","K.","Seton","Male","College of Technology","Maryland","2010/2011","Second Semester","Liberian Student",6741296]
[null,1195,"TU-00352","Ernest","N.","Toe","Male","College of Agriculture and Food Sciences","Maryland","2011/2012","First Semester","Liberian Student",6369813]
[null,null,"TU-00175","Ernest","K.","Seton","Male","College of Technology","Maryland","2011/2012","First Semester","Liberian Student",6741296]
[null,null,"TU-00","Ernest","D.","Dardieh","Male","College of Technology","Maryland","2011/2012","First Semester","Liberian Student",6568648]
[null,1134,"TU-00352","Ernset","N.","Toe","Male","College of Agriculture and Food Sciences",null,"2011/2012","First Semester","Liberian Student",6369813]
[null,60,"TU-00062","Esther","C.","Secere","Female","College of Health Sciences","Grand Kru","2009/2010","First Semester","Liberian Student",6542467]
[null,242,"TU-00347","Esther","S.","Kafai","Female","College of Management","Lofa","2009/2010","First Semester","Liberian Student"]
[null,41,"TU-00062","Esther","C.","Scere","Female","College of Health Sciences","Grand Kru","2009/2010","Second Semester","Liberian Student",6920576]
[null,293,"TU-00062","Esther","C.","Scere","Female","College of Health Sciences","Maryland","2010/2011","First Semester","Liberian Student",69920576]
[null,256,"TU-00062","Esther","C.","Scere","Female","College of Health Sciences","Grand Kru","2010/2011","Second Semester","Liberian Student",880733335]
[null,702,"TU-00062","Esther","C.","Scere","Female","College of Health Sciences",null,"2011/2012","First Semester","Liberian Student",88073335]
[null,37,"TU-00429","Eugene","A.","Samalee","Male","College of Management","Maryland","2010/2011","First Semester","Liberian Student",6778386]
[null,379,"TU-00429","Eugene","A.","Samalee","Male","College of Management","Maryland","2010/2011","Second Semester","Liberian Student",6778386]
[null,1071,"TU-00606","Eugene","D.","Glomah","Male","College of Health Sciences",null,"2011/2012","First Semester","Liberian Student",6494312]
[null,null,"TU-00429","Eugene","A.","Samalee","Male","College of Management",null,"2011/2012","First Semester","Liberian Student",6778386]
[null,294,"TU-00320","Eunice","D.","Tugbe","Female","College of Health Sciences","Maryland","2010/2011","First Semester","Liberian Student",6870023]
[null,265,"TU-00320","Eunice","D.","Tugbe","Female","College of Health Sciences","Grand Kru","2010/2011","Second Semester","Liberian Student",6870023]
[null,458,"TU-00320","Eunice","D.","Tugbe","Female","College of Health Sciences",null,"2011/2012","First Semester","Liberian Student",6870023]
[null,1110,"TU-00658","Eunice","Y.","Nyemah","Female","College of Health Sciences",null,"2011/2012","First Semester","Liberian Student",6702369]
[null,1153,"TU-00607","Euphemia","K.","Jallah","Female","College of Agriculture and Food Sciences",null,"2011/2012","First Semester","Liberian Student",6132243]
[null,178,"TU-00183","Eva","S.","Howe","Female","College of Management","Maryland","2009/2010","First Semester","Liberian Student",6533595]
[null,82,"TU-00183","Eva","S.","Howe","Male","College of Management","Maryland","2009/2010","Second Semester","Liberian Student",6533595]
[null,38,"TU-00185","Eva","S.","Howe","Female","College of Management","Maryland","2010/2011","First Semester","Liberian Student",6533595]
[null,412,"TU-00183","Eva","S.","Howe","Female","College of Management","Maryland","2010/2011","Second Semester","Liberian Student",880631383]
[null,null,"TU-00183","Eva","S.","Howe","Female","College of Management",null,"2011/2012","First Semester","Liberian Student",880884642]
[null,131,"TU-00540","Evelyn",null,"Wah","Female","College of Education","Maryland","2010/2011","First Semester","Liberian Student",6604812]
[null,126,"TU-00540","Evelyn","D.","Wah","Female","College of Education","Maryland","2010/2011","Second Semester","Liberian Student",6604812]
[null,161,"TU-00166","Ezekieh","M.","Sampson","Male","College of Technology","Maryland","2009/2010","First Semester","Liberian Student",6601763]
[null,195,"TU-00201","Ezekieh","S.","Scere","Male","College of Management","Grand Kru","2009/2010","First Semester","Liberian Student",6291158]
[null,252,"TU-00357","Ezekieh","J.","Wakarwee","Male","College of Agriculture and Food Sciences","Maryland","2009/2010","First Semester","Liberian Student"]
[null,9,"TU-00201","Ezekiel","S.","Scere","Male","College of Management","Maryland","2009/2010","Second Semester","Liberian Student",6291158]
[null,178,"TU-00166","Ezekiel","M.","Sampson","Male","College of Technology","Maryland","2009/2010","Second Semester","Liberian Student",6648993]
[null,188,"TU-00166","Ezekiel","M.","Sampson","Male","College of Technology","Maryland","2010/2011","First Semester","Liberian Student",6601763]
[null,189,"TU-00201","Ezekiel","S.","Scere","Male","College of Technology","Maryland","2010/2011","First Semester","Liberian Student",6123134]
[null,295,"TU-00437","Ezekiel","J.","Mallay","Male","College of Health Sciences","Lofa","2010/2011","First Semester","Liberian Student",6557921]
[null,161,"TU-00357","Ezekiel","J.","Wakarwee","Male","College of Agriculture and Food Sciences","Maryland","2009/2010","Second Semester","Liberian Student"]
[null,160,"TU-00166","Ezekiel","M.","Sampson","Male","College of Technology","Maryland","2010/2011","Second Semester","Liberian Student",6601763]
[null,203,"TU-00201","Ezekiel","S.","Scere","Male","College of Technology","Maryland","2010/2011","Second Semester","Liberian Student",6123134]
[null,313,"TU-00439","Ezekiel","T.","Mallay","Male","College of Health Sciences","Lofa","2010/2011","Second Semester","Liberian Student",6557921]
[null,364,"TU-00567","Ezekiel","J.","Jah","Male","College of Management","Sinoe","2010/2011","Second Semester","Liberian Student"]
[null,802,"TU-00437","Ezekiel","J.","Mauay","Male","College of Health Sciences",null,"2011/2012","First Semester","Liberian Student",6557921]
[null,1116,"TU-00803","Ezekiel",null,"Allison","Male","College of Health Sciences",null,"2011/2012","First Semester","Liberian Student",6831286]
[null,null,"TU-00632","Ezekiel","","Jah","Male","College of Management","Sinoe","2011/2012","First Semester","Liberian Student"]
[null,null,"TU-00787","Ezekiel","H.","Nyemah","Male","College of Education",null,"2011/2012","First Semester","Liberian Student",880634947]
[null,null,"TU-00668","Ezekiel","H.","Merriam","Male","College of Education",null,"2011/2012","First Semester","Liberian Student",7706797424]
[null,null,"TU-00201","Ezekiel","S.","Scere","Male","College of Technology","Grand Kru","2011/2012","First Semester","Liberian Student",6291158]
[null,null,"TU-00357","Ezekiel","J.","Wakarwee","Male","College of Technology","Maryland","2011/2012","First Semester","Liberian Student"]
[null,183,"TU-00357","Ezekilel","K.","Wakarwee","Male","College of Technology","Maryland","2010/2011","Second Semester","Liberian Student",880541333]
[null,null,"TU-00389","F A","D.","Bartue","Male","College of Management",null,"2011/2012","First Semester","Liberian Student",6602995]
[null,39,"TU-00551","Fatorma",null,"Braima","Male","College of Management","Lofa","2010/2011","First Semester","Liberian Student",6908018]
[null,1125,"TU-00698","Felecia","G.","Boe","Male","College of Health Sciences",null,"2011/2012","First Semester","Liberian Student",6457651]
[null,52,"TU-00054","Florence","J.","Blamo","Female","College of Health Sciences","Sinoe","2009/2010","First Semester","Liberian Student",6510611]
[null,221,"TU-00054","Florence","J.","Blamo","Female","College of Health Sciences","Sinoe","2009/2010","Second Semester","Liberian Student",6510611]
[null,296,"TU-00054","Florence","J.","Blamo","Female","College of Health Sciences","Sinoe","2010/2011","First Semester","Liberian Student",6510611]
[null,227,"TU-00054","Florence","J.","Blamoh","Female","College of Health Sciences","Sinoe","2010/2011","Second Semester","Liberian Student",6510611]
[null,1045,"TU-00054","Florence","J.","Blamo","Female","College of Health Sciences",null,"2011/2012","First Semester","Liberian Student",6510611]
[null,1105,"TU-00685","Folley","D.","Nyemah","Male","College of Health Sciences",null,"2011/2012","First Semester","Liberian Student",880714374]
[null,109,"TU-00113","Fonati","E.","Gbarbo","Male","College of Technology","Maryland","2009/2010","First Semester","Liberian Student",6285887]
[null,249,"TU-00113","Fonati","E.","Garbo","Male","College of Technology","Maryland","2009/2010","Second Semester","Liberian Student",6132457]
[null,190,"TU-00113","Fonati","E.","Gbarbo","Male","College of Technology","Maryland","2010/2011","First Semester","Liberian Student",6285887]
[null,215,"TU-00113","Fonati","E.","Gbargo","Male","College of Technology","Grand Kru","2010/2011","Second Semester","Liberian Student",6285889]
[null,null,"TU-00113","Fonati","E.","Gbarbo","Male","College of Technology","Maryland","2011/2012","First Semester","Liberian Student",6285887]
[null,84,"TU-00086","Foriest","S.","Toe","Male","College of Health Sciences","Maryland","2009/2010","First Semester","Liberian Student",6403233]
[null,149,"TU-00086","Foriest","S.","Toe","Male","College of Health Sciences","Maryland","2009/2010","Second Semester","Liberian Student",6403233]
[null,299,"TU-00086","Foriest","S.","Toe","Male","College of Health Sciences","Maryland","2010/2011","First Semester","Liberian Student",6403233]
[null,283,"TU-00086","Foriest",null,"Toe","Male","College of Health Sciences","Maryland","2010/2011","Second Semester","Liberian Student",6403233]
[null,1019,"TU-00086","Foriest","S.","Toe","Male","College of Health Sciences",null,"2011/2012","First Semester","Liberian Student",6403233]
[null,267,"TU-00494","Frances","M.","Carter","Female","College of Health Sciences","Grand Kru","2010/2011","Second Semester","Liberian Student",6719589]
[null,154,"TU-00159","Francillia","N.","Hodge","Female","College of Management","Maryland","2009/2010","First Semester","Liberian Student",6201560]
[null,227,"TU-00159","Francillia","N.","Hodge","Female","College of Management","Maryland","2009/2010","Second Semester","Liberian Student",6201560]
[null,40,"TU-00159","Francillia","N.","Hodge","Female","College of Management","Maryland","2010/2011","First Semester","Liberian Student",6686436]
[null,425,"TU-00159","Francillia","N.","Hodge","Female","College of Management","Maryland","2010/2011","Second Semester","Liberian Student",880634641]
[null,null,"TU-00159","Francillia","N.","Hodge","Female","College of Management","Maryland","2011/2012","First Semester","Liberian Student",6201560]
[null,226,"TU-00331","Francis","K.","Nagbe","Male","College of Health Sciences","Grand Kru","2009/2010","First Semester","Liberian Student",77271626]
[null,458,"TU-00309","Francis","K.","Wallace","Male","College of Agriculture and Food Sciences","Maryland","2010/2011","Second Semester","Liberian Student"]
[null,73,"TU-00221","Francis","K.","Wesseh","Male","College of Education","Grand Kru","2009/2010","Second Semester","Liberian Student",6871273]
[null,143,"TU-00331","Francis","K.","Nagbe","Female","College of Health Sciences","Grand Kru","2009/2010","Second Semester","Liberian Student",7271626]
[null,132,"TU-00221","Francis","K.","Wesseh","Male","College of Education","Maryland","2010/2011","First Semester","Liberian Student",6871273]
[null,300,"TU-00331","Francis","K.","Nagbe","Male","College of Health Sciences","Grand Kru","2010/2011","First Semester","Liberian Student",880630584]
[null,301,"TU-00494","Francis","M.","Carter","Female","College of Health Sciences","Maryland","2010/2011","First Semester","Liberian Student",6779589]
[null,415,"TU-00309","Francis","G.","Wallace","Male","College of Agriculture and Food Sciences","Maryland","2010/2011","First Semester","Liberian Student",6525620]
[null,139,"TU-00221","Francis","K.","Wesseh","Male","College of Education","Grand Kru","2010/2011","Second Semester","Liberian Student",6871273]
[null,1080,"TU-00730","Francis","W.","Geplay","Male","College of Health Sciences","River Gee","2011/2012","First Semester","Liberian Student",6953820]
[null,null,"TU-00221","Francis","K.","Wesseh","Female","College of Education","River Gee","2011/2012","First Semester","Liberian Student",6871273]
[null,141,"TU-00145","Francisca","K.","Wolo","Female","College of Management","Grand Kru","2009/2010","First Semester","Liberian Student",6892842]
[null,215,"TU-00221","Francisca","K.","Wesseh","Female","College of Education","River Gee","2009/2010","First Semester","Liberian Student",6871273]
[null,245,"TU-00145","Francisca","K.","Wolo","Female","College of Management","Grand Kru","2009/2010","Second Semester","Liberian Student",6892842]
[null,41,"TU-00145","Francisca","K.","Wolo","Female","College of Management","Grand Kru","2010/2011","First Semester","Liberian Student",6892842]
[null,430,"TU-00145","Francisca","K.","Wolo","Female","College of Management","Grand Kru","2010/2011","Second Semester","Liberian Student",6892842]
[null,1235,"TU-00709","Frank","W.","Smith","Male","College of Agriculture and Food Sciences","Maryland","2011/2012","First Semester","Liberian Student",6536757]
[null,269,"TU-00375","Franklin","G.","Nyemah","Male","College of Health Sciences","Maryland","2009/2010","First Semester","Liberian Student",6949370]
[null,180,"TU-00375","Franklin","G.","Nyema","Male","College of Health Sciences","Maryland","2009/2010","Second Semester","Liberian Student",6949370]
[null,302,"TU-00375","Franklin","G.","Nyemah","Male","College of Health Sciences","Maryland","2010/2011","First Semester","Liberian Student",6943090]
[null,317,"TU-00375","Franklin","G.","Nyemah","Male","College of Health Sciences","Maryland","2010/2011","Second Semester","Liberian Student",6949320]
[null,1010,"TU-00375","Franklin","G.","Nyema","Male","College of Health Sciences",null,"2011/2012","First Semester","Liberian Student",6949320]
[null,191,"TU-00498","Fred","B.","Ankrah","Male","College of Technology","Maryland","2010/2011","First Semester","Liberian Student",6566119]
[null,192,"TU-00498","Fred","B.","Ankrah","Male","College of Technology","Maryland","2010/2011","Second Semester","Liberian Student",6566119]
[null,null,"TU-00498","Fred","B.","Ankrah","Male","College of Technology","Maryland","2011/2012","First Semester","Liberian Student",6566119]
[null,183,"TU-00188","Frederick","T.","Bortuh","Male","College of Management","Grand Kru","2009/2010","First Semester","Liberian Student",6279517]
[null,220,"TU-00226","Frederick","T.","Prowd","Male","College of Management","Maryland","2009/2010","First Semester","Liberian Student",6536297]
[null,1062,"TU-00491","Frederick","D.","weay","Male","College of Health Sciences",null,"2011/2012","First Semester","Liberian Student",6837967]
[null,null,"TU-00188","Frederick","T.","Bortuh","Male","College of Management",null,"2011/2012","First Semester","Liberian Student",6279517]
[null,303,"TU-00491","Fredrick","D.","Weay","Male","College of Health Sciences","Sinoe","2010/2011","First Semester","Liberian Student",7628577]
[null,320,"TU-00491","Fredrick","D.","Weay","Male","College of Health Sciences","Maryland","2010/2011","Second Semester","Liberian Student",6837967]
[null,1123,"TU-00659","Freejoy","D.","Appleton","Female","College of Health Sciences",null,"2011/2012","First Semester","Liberian Student",6531143]
[null,133,"TU-00410","Freeman",null,"Bartoe","Male","College of Education","Maryland","2010/2011","First Semester","Liberian Student"]
[null,133,"TU-00410","Freeman",null,"Bartoe","Male","College of Education","Maryland","2010/2011","Second Semester","Liberian Student",880607612]
[null,null,"TU-00410","Freeman","","Bartoe","Male","College of Education","Maryland","2011/2012","First Semester","Liberian Student",880607617]
[null,null,"TU-00450","Friday","A.","Doe","Male","College of Management",null,"2011/2012","First Semester","Liberian Student"]
[null,235,"TU-00184","Gabreil",null,"Tarpeh","Male","College of Management","Maryland","2009/2010","Second Semester","Liberian Student",6732499]
[null,70,"TU-00072","Gabriel","S.","Wesseh","Male","College of Health Sciences","River Gee","2009/2010","First Semester","Liberian Student",6685979]
[null,179,"TU-00184","Gabriel",null,"Tarpeh","Male","College of Management","Maryland","2009/2010","First Semester","Liberian Student",6732499]
[null,278,"TU-00384","Gabriel","S.","Geffie","Male","College of Management","Maryland","2009/2010","First Semester","Liberian Student",6740202]
[null,125,"TU-00072","Gabriel","S.","Wesseh","Male","College of Health Sciences","River Gee","2009/2010","Second Semester","Liberian Student",6110216]
[null,184,"TU-00384","Gabriel","S.","Geffie","Male","College of Management","Maryland","2009/2010","Second Semester","Liberian Student",6740202]
[null,42,"TU-00184","Gabriel",null,"Tarpeh","Male","College of Management","Maryland","2010/2011","First Semester","Liberian Student",6732499]
[null,43,"TU-00384","Gabriel","S.","Geffie","Male","College of Management","Maryland","2010/2011","First Semester","Liberian Student",6285323]
[null,44,"TU-00395","Gabriel","V.","Cooper","Male","College of Management","Maryland","2010/2011","First Semester","Liberian Student",6885887]
[null,192,"TU-00554","Gabriel","B.","Allison","Male","College of Technology","Maryland","2010/2011","First Semester","Liberian Student",6477783]
[null,304,"TU-00072","Gabriel","S.","Wesseh","Male","College of Health Sciences","Maryland","2010/2011","First Semester","Liberian Student",6110216]
[null,200,"TU-00554","Gabriel","B.","Allison","Male","College of Technology","Maryland","2010/2011","Second Semester","Liberian Student",6477783]
[null,338,"TU-00072","Gabriel","S.","Wesseh","Male","College of Health Sciences","Maryland","2010/2011","Second Semester","Liberian Student",6110216]
[null,356,"TU-00384","Gabriel","S.","Geffie","Male","College of Management","Maryland","2010/2011","Second Semester","Liberian Student",77011414]
[null,366,"TU-00395","Gabriel","V.","Cooper","Male","College of Management","Grand Kru","2010/2011","Second Semester","Liberian Student",6856877]
[null,371,"TU-00184","Gabriel",null,"Tarpeh","Male","College of Management","Maryland","2010/2011","Second Semester","Liberian Student",6732499]
[null,1043,"TU-00072","Gabriel","S.","Wesseh","Male","College of Health Sciences",null,"2011/2012","First Semester","Liberian Student",6110276]
[null,1107,"TU-00681","Gabriel","S.","Railey","Male","College of Health Sciences",null,"2011/2012","First Semester","Liberian Student",6715757]
[null,null,"TU-00184","Gabriel","","Tarpeh","Male","College of Management","Maryland","2011/2012","First Semester","Liberian Student",6732499]
[null,null,"TU-00384","Gabriel","S.","Geffie","Male","College of Management","Maryland","2011/2012","First Semester","Liberian Student",6740202]
[null,null,"TU-00395","Gabriel","V.","Cooper","Male","College of Management","Maryland","2011/2012","First Semester","Liberian Student",688587]
[null,null,"TU-00791","Gabriel","C.","Jobo Jr","Male","College of Education","Maryland","2011/2012","First Semester","Liberian Student",777810476]
[null,null,"TU-00554","Gabriel","B.","Allison","Male","College of Technology","Maryland","2011/2012","First Semester","Liberian Student",6477783]
[null,305,"TU-00562","Gabrietta","P.","Madison","Female","College of Health Sciences","Maryland","2010/2011","First Semester","Liberian Student",6801383]
[null,281,"TU-00562","Gabrietta","P.","Madison","Female","College of Health Sciences","Maryland","2010/2011","Second Semester","Liberian Student",6801383]
[null,1035,"TU-00562","Gabrietta","P.","Madison","Female","College of Health Sciences","Maryland","2011/2012","First Semester","Liberian Student",6801383]
[null,1240,"TU-00810","Garrison",null,"Quiah","Male","College of Agriculture and Food Sciences","Grand Gedeh","2011/2012","First Semester","Liberian Student",880633233]
[null,70,"TU-00029","Gbueh","J.","Wilson","Male","College of Education","Maryland","2009/2010","Second Semester","Liberian Student",6666622]
[null,134,"TU-00029","Gbueh","J.","Wilson","Male","College of Education","Maryland","2010/2011","First Semester","Liberian Student",6666622]
[null,null,"TU-00029","Gbueh","J.","Wilson","Male","College of Education","Maryland","2011/2012","First Semester","Liberian Student",6666622]
[null,233,"TU-00586","Gbuoh",null,"Freeman","Female","College of Health Sciences","Maryland","2010/2011","Second Semester","Liberian Student",6739922]
[null,709,"TU-00586","Gbuoh",null,"Freeman","Male","College of Health Sciences",null,"2011/2012","First Semester","Liberian Student",6739932]
[null,257,"TU-00363","Genevieve",null,"Young","Female","College of Health Sciences","Maryland","2009/2010","First Semester","Liberian Student",6748352]
[null,166,"TU-00363","Genevieve",null,"Young","Female","College of Health Sciences","Maryland","2009/2010","Second Semester","Liberian Student"]
[null,306,"TU-00363","Genevieve",null,"Young","Female","College of Health Sciences","Maryland","2010/2011","First Semester","Liberian Student",880606772]
[null,250,"TU-00363","Genevieve",null,"Young","Female","College of Health Sciences","Maryland","2010/2011","Second Semester","Liberian Student",880606772]
[null,1032,"TU-00363","Genevieve",null,"Young","Female","College of Health Sciences",null,"2011/2012","First Semester","Liberian Student",880606772]
[null,73,"TU-00075","George","N.","Geddeh","Male","College of Health Sciences","Maryland","2009/2010","First Semester","Liberian Student",6472217]
[null,137,"TU-00141","George","T.","Wesseh","Male","College of Management","Grand Kru","2009/2010","First Semester","Liberian Student",6601632]
[null,138,"TU-00142","George","V.","Bonar,jr.","Male","College of Technology","Maryland","2009/2010","First Semester","Liberian Student",6887223]
[null,230,"TU-00335","George",null,"ALU","Male","College of Management","Maryland","2009/2010","First Semester","Liberian Student",6482414]
[null,263,"TU-00369","George","T.","Wlateh","Male","College of Health Sciences","Grand Kru","2009/2010","First Semester","Liberian Student",6741237]
[null,105,"Tu-00369","George","T.","Wlateh","Male","College of Health Sciences","Grand Kru","2009/2010","Second Semester","Liberian Student",6741237]
[null,196,"TU-00075","George","N.","Geddeh","Male","College of Health Sciences","Maryland","2009/2010","Second Semester","Liberian Student",6472217]
[null,237,"TU-00142","George","V.","Bonar,Jr.","Male","College of Technology","Maryland","2009/2010","Second Semester","Liberian Student",6887223]
[null,45,"TU-00335","George","J.","Alu","Male","College of Management","Maryland","2010/2011","First Semester","Liberian Student",880606944]
[null,46,"TU-00147","George","T.","Wesseh","Male","College of Management","Maryland","2010/2011","First Semester","Liberian Student",6546547]
[null,135,"TU-00413","George","M.","Nyemah","Male","College of Education","Maryland","2010/2011","First Semester","Liberian Student",6532807]
[null,193,"TU-00142","George","V.","Bonar,Jr.","Male","College of Technology","Grand Bassa","2010/2011","First Semester","Liberian Student",6887223]
[null,194,"TU-00239","George","D.","Smith","Male","College of Technology","Maryland","2010/2011","First Semester","Liberian Student",6694703]
[null,195,"TU-00329","George","M.","Nyanfor","Male","College of Technology","Maryland","2010/2011","First Semester","Liberian Student",6602120]
[null,307,"TU-00075","George","N.","Geddeh","Male","College of Health Sciences","Maryland","2010/2011","First Semester","Liberian Student",6472217]
[null,308,"TU-00369","George","T.","Walteh","Male","College of Health Sciences","Grand Kru","2010/2011","First Semester","Liberian Student",6741237]
[null,309,"TU-00508","George","K.","Williams","Male","College of Health Sciences","Maryland","2010/2011","First Semester","Liberian Student",6636422]
[null,416,"TU-00563","George","N.","Dunbar","Male","College of Agriculture and Food Sciences","Margibi","2010/2011","First Semester","Liberian Student",6526240]
[null,129,"TU-00413","George","M.","Nyemah","Male","College of Education","Maryland","2010/2011","Second Semester","Liberian Student",6532807]
[null,153,"TU-00289","George","D.","Smith","Male","College of Technology","Maryland","2010/2011","Second Semester","Liberian Student",6694739]
[null,156,"TU-00329","George","M.","Nyanfor","Male","College of Technology","Maryland","2010/2011","Second Semester","Liberian Student",660981]
[null,162,"TU-00142","George","V.","Bonar,Jr.","Male","College of Technology","Grand Bassa","2010/2011","Second Semester","Liberian Student",6887223]
[null,221,"TU-00566","George",null,"Freeman","Male","College of Technology","River Gee","2010/2011","Second Semester","Liberian Student"]
[null,316,"TU-00369","George","T.","Wlateh","Male","College of Health Sciences","Maryland","2010/2011","Second Semester","Liberian Student",6741237]
[null,451,"TU-00508","George","K.","Williams","Male","College of Health Sciences","Maryland","2010/2011","Second Semester","Liberian Student",6636423]
[null,378,"TU-00141","George","T.","Wesseh","Male","College of Management","Maryland","2010/2011","Second Semester","Liberian Student",456547]
[null,453,"TU-00585","George",null,"Mcgill","Male","College of Management","Montserrado","2010/2011","Second Semester","Liberian Student"]
[null,1003,"TU-00369","George","T.","Wlateh","Male","College of Health Sciences","Maryland","2011/2012","First Semester","Liberian Student",6741237]
[null,1115,"TU-00664","George","B.","Davies","Male","College of Health Sciences",null,"2011/2012","First Semester","Liberian Student",880630582]
[null,1266,"TU-00641","George","D.","Kerlay","Male","College of Agriculture and Food Sciences",null,"2011/2012","First Semester","Liberian Student",6929363]
[null,1269,"TU-00666","George","M.","Brooks","Male","College of Agriculture and Food Sciences",null,"2011/2012","First Semester","Liberian Student",6568851]
[null,null,"TU-00141","George","T.","Wesseh","Male","College of Management",null,"2011/2012","First Semester","Liberian Student",6456547]
[null,null,"TU-00585","George","","Mcgill","Male","College of Management","Montserrado","2011/2012","First Semester","Liberian Student"]
[null,null,"TU-00413","George","M.","Nyema","Male","College of Education","Maryland","2011/2012","First Semester","Liberian Student",6532807]
[null,null,"TU-00825","George","E.","Wilson","Male","College of Education",null,"2011/2012","First Semester","Foreign Student",880634103]
[null,null,"TU-00142","George","V.","Bonar,jr.","Male","College of Technology","Maryland","2011/2012","First Semester","Liberian Student",6887223]
[null,null,"TU-00239","George","D.","Smith","Male","College of Technology","Maryland","2011/2012","First Semester","Liberian Student",6694703]
[null,null,"TU-00329","George","M.","Nyanfor","Male","College of Technology","Maryland","2011/2012","First Semester","Liberian Student",6602120]
[null,null,"TU-00808","George","N.","Dennis","Male","College of Technology",null,"2011/2012","First Semester","Liberian Student",6626696]
[null,185,"TU-00190","Godfred","N.","Dossen","Male","College of Health Sciences","Maryland","2009/2010","First Semester","Liberian Student",6648993]
[null,310,"TU-00190","Godfred","N.","Dossen","Male","College of Health Sciences","Maryland","2010/2011","First Semester","Liberian Student",6489893]
[null,285,"TU-00190","Godfred","N.","Dossen","Male","College of Health Sciences","Maryland","2010/2011","Second Semester","Liberian Student",6648993]
[null,1026,"TU-00190","Godfred","N.","Dossen","Male","College of Health Sciences",null,"2011/2012","First Semester","Liberian Student",6648993]
[null,170,"TU-00190","Godfrey","N.","Dossen","Male","College of Health Sciences","Maryland","2009/2010","Second Semester","Liberian Student",6601763]
[null,1126,"TU-00861","Goerge",null,"Sumo","Male","College of Health Sciences","Lofa","2011/2012","First Semester","Liberian Student",6457215]
[null,32,"TU-00034","Grace",null,"Williams","Female","College of Management","Maryland","2009/2010","First Semester","Liberian Student",6215872]
[null,56,"TU-00034","Grace","M.","Williams","Female","College of Management","Maryland","2009/2010","Second Semester","Liberian Student",6291139]
[null,48,"TU-00453","Grace","T.","Dioh","Female","College of Agriculture and Food Sciences","Maryland","2010/2011","Second Semester","Liberian Student",6406380]
[null,47,"TU-00034","Grace","M.","Williams","Female","College of Management","Maryland","2010/2011","First Semester","Liberian Student",6291139]
[null,417,"TU-00453","Grace","T.","Dioh","Female","College of Agriculture and Food Sciences","Maryland","2010/2011","First Semester","Liberian Student",6406380]
[null,414,"TU-00034","Grace","M.","Williams","Female","College of Management","Maryland","2010/2011","Second Semester","Liberian Student",6291139]
[null,1173,"TU-00453","Grace","T.","Dioh","Female","College of Agriculture and Food Sciences",null,"2011/2012","First Semester","Liberian Student",6406380]
[null,null,"TU-00034","Grace","","Williams","Female","College of Management","Maryland","2011/2012","First Semester","Liberian Student",6215872]
[null,null,"TU-00613","Gray","G.","Collins","Male","College of Education","","2011/2012","First Semester","Liberian Student"]
[null,285,"TU-00391","Gregory","M.","Diabe","Male","College of Management","Maryland","2009/2010","First Semester","Liberian Student",6494272]
[null,98,"TU-00391","Gregory","M.","Diabe","Male","College of Management","Maryland","2009/2010","Second Semester","Liberian Student",6112766]
[null,48,"TU-00391","Gregory","M.","Diabe","Male","College of Management","Maryland","2010/2011","First Semester","Liberian Student",88088960]
[null,218,"TU-00590","Gregory","M.","Mieh","Male","College of Technology","Grand Kru","2010/2011","Second Semester","Liberian Student",6821733]
[null,398,"TU-00391","Gregory","M.","Diabe","Male","College of Management","Maryland","2010/2011","Second Semester","Liberian Student",6112766]
[null,42,"TU-00052","Gwesee","J.","Gwiah","Male","College of Health Sciences","Maryland","2009/2010","Second Semester","Liberian Student",6685685]
[null,311,"TU-00052","Gwesee","J.","Gwiah","Male","College of Health Sciences","Maryland","2010/2011","First Semester","Liberian Student",6742494]
[null,312,"TU-00052","Gwesee","J.","Gwiah","Male","College of Health Sciences","Maryland","2010/2011","Second Semester","Liberian Student",6742494]
[null,1006,"TU-00052","Gwesee","J.","Gwiah","Male","College of Health Sciences",null,"2011/2012","First Semester","Liberian Student",6742494]
[null,50,"TU-00052","Gwiah","J.","Gwesee","Male","College of Health Sciences","Maryland","2009/2010","First Semester","Liberian Student",6685865]
[null,null,651,"Hamsan","A.","Brown","Male","College of Management","Maryland","2011/2012","First Semester","Liberian Student",880714289]
[null,1231,"TU-00713","Handson",null,"Doe","Male","College of Agriculture and Food Sciences",null,"2011/2012","First Semester","Liberian Student",6869124]
[null,312,"TU-00263","Harris","D.","Sawieh","Male","College of Health Sciences","Maryland","2010/2011","First Semester","Liberian Student",6698024]
[null,1020,"TU-00263","Harris","D.","Sawieh","Male","College of Health Sciences",null,"2011/2012","First Semester","Liberian Student",6698024]
[null,267,"TU-00373","Harrison","T.","Chie","Male","College of Management","Maryland","2009/2010","First Semester","Liberian Student",6473602]
[null,12,"TU-00373","Harrison","T.","Chie","Male","College of Management","Maryland","2009/2010","Second Semester","Liberian Student",6473602]
[null,73,"TU-00582","Harrison","H.","Toe","Male","College of Agriculture and Food Sciences","Maryland","2010/2011","Second Semester","Liberian Student",6927226]
[null,49,"TU-00373","Harrison","T.","Chie","Male","College of Management","Maryland","2010/2011","First Semester","Liberian Student",6473602]
[null,196,"TU-00416","Harrison","E.","Lott","Male","College of Technology","Maryland","2010/2011","First Semester","Liberian Student",6494473]
[null,194,"TU-00416","Harrison","E.","Lott","Male","College of Technology","Maryland","2010/2011","Second Semester","Liberian Student",6240561]
[null,339,"TU-00263","Harrison","D.","Sawieh","Male","College of Health Sciences","Maryland","2010/2011","Second Semester","Liberian Student",6698024]
[null,353,"TU-00373","Harrison","T.","Chie","Male","College of Management","Maryland","2010/2011","Second Semester","Liberian Student",6473602]
[null,1141,"TU-00635","Harrison","H.","Toe","Male","College of Agriculture and Food Sciences",null,"2011/2012","First Semester","Liberian Student",6927226]
[null,null,"TU-00373","Harrison","T.","Chie","Male","College of Management","Maryland","2011/2012","First Semester","Liberian Student",6473602]
[null,null,"TU-00416","Harrison","E.","Lott","Male","College of Technology","Maryland","2011/2012","First Semester","Liberian Student",6494473]
[null,26,"TU-00028","Helen",null,"Donyen","Female","College of Health Sciences","River Gee","2009/2010","First Semester","Liberian Student",6901141]
[null,50,"TU-00447","Helen","H.","Klede","Female","College of Management","Maryland","2010/2011","First Semester","Liberian Student",6407411]
[null,226,"TU-00028","Helen",null,"Donyen","Female","College of Agriculture and Food Sciences","River Gee","2009/2010","Second Semester","Liberian Student",6901141]
[null,418,"TU-00028","Helen",null,"Doryen","Female","College of Agriculture and Food Sciences","River Gee","2010/2011","First Semester","Liberian Student",6901691]
[null,427,"TU-00447","Helen","H.","Klede","Female","College of Management","Maryland","2010/2011","Second Semester","Liberian Student",6407411]
[null,null,"TU-00447","Helen","H.","Klede","Female","College of Management","Maryland","2011/2012","First Semester","Liberian Student",6407411]
[null,45,"TU-00047","Helena","C.","Wakarwee","Female","College of Health Sciences","Maryland","2009/2010","First Semester","Liberian Student",6436101]
[null,47,"TU-00047","Helena","C.","Wakarwee","Female","College of Health Sciences","Maryland","2009/2010","Second Semester","Liberian Student",6436101]
[null,313,"TU-00047","Helena","C.","Wakarwee","Female","College of Health Sciences","Maryland","2010/2011","First Semester","Liberian Student",6436101]
[null,268,"TU-00047","Helena","C.","Wakerwee","Female","College of Health Sciences","Maryland","2010/2011","Second Semester","Liberian Student",6436101]
[null,1017,"TU-00047","Helena","C.","Wakarwee","Female","College of Health Sciences",null,"2011/2012","First Semester","Liberian Student",6436101]
[null,1082,"TU-00823","Helena","D.","Williams","Female","College of Health Sciences","Maryland","2011/2012","First Semester","Liberian Student",6140055]
[null,null,"TU-00789","Helena","S.","Doe","Female","College of Education","Maryland","2011/2012","First Semester","Liberian Student",6596778]
[null,51,"TU-00068","Hemry","S.","Howe","Male","College of Management","Maryland","2010/2011","First Semester","Liberian Student",6283103]
[null,52,"TU-00225","Hemry","P.","Thompson","Male","College of Management","Maryland","2010/2011","First Semester","Liberian Student",6661030]
[null,44,"TU-00046","Henrietta","H.","Merrian","Female","College of Health Sciences","Maryland","2009/2010","First Semester","Liberian Student",6326137]
[null,44,"TU-00046","Henrietta","H.","Merrian","Female","College of Health Sciences","Maryland","2009/2010","Second Semester","Liberian Student",6326137]
[null,314,"TU-00046","Henrietta","H.","Merriam","Female","College of Health Sciences","Maryland","2010/2011","First Semester","Liberian Student",6326137]
[null,315,"TU-00571","Henrietta","D.","Gibson","Female","College of Health Sciences","Maryland","2010/2011","First Semester","Liberian Student",6472321]
[null,237,"TU-00046","Henrietta","H.","Merriam","Female","College of Health Sciences","Maryland","2010/2011","Second Semester","Liberian Student",6326137]
[null,1048,"Tu-00046","Henrietta","H.","Merriam","Female","College of Health Sciences",null,"2011/2012","First Semester","Liberian Student",6326137]
[null,66,"TU-00068","Henry","S.","Howe","Male","College of Management","Maryland","2009/2010","First Semester","Liberian Student",6823103]
[null,158,"TU-00163","Henry","B.","Karyon","Male","College of Technology","Lofa","2009/2010","First Semester","Liberian Student",6602908]
[null,219,"TU-00225","Henry","N.","Thompson","Male","College of Management","Maryland","2009/2010","First Semester","Liberian Student",6661030]
[null,16,"TU-00163","Henry","B.","Koryor","Male","College of Technology","Lofa","2009/2010","Second Semester","Liberian Student",6602908]
[null,58,"TU-00068","Henry","S.","Howe","Male","College of Management","Maryland","2009/2010","Second Semester","Liberian Student",6823103]
[null,52,"TU-00105","Henry","G.","Wesee,Jr.","Male","College of Agriculture and Food Sciences","Maryland","2010/2011","Second Semester","Liberian Student",6112942]
[null,78,"TU-00225","Henry","P.","Thompson","Male","College of Management","Maryland","2009/2010","Second Semester","Liberian Student",6661030]
[null,197,"TU-00516","Henry","G.","Hodge","Male","College of Technology","Maryland","2010/2011","First Semester","Liberian Student",6568163]
[null,419,"TU-00105","Henry","G.","Wesee,Jr.","Male","College of Agriculture and Food Sciences","Maryland","2010/2011","First Semester","Liberian Student",6112942]
[null,145,"TU-00516","Henry","G.","Hodeg","Male","College of Technology","Maryland","2010/2011","Second Semester","Liberian Student",6568163]
[null,165,"TU-00163","Henry","B.","Koryon","Male","College of Technology","Nimba","2010/2011","Second Semester","Liberian Student",6602908]
[null,360,"TU-00588","Henry",null,"Cole, Jr.","Male","College of Management","Maryland","2010/2011","Second Semester","Liberian Student",6958314]
[null,397,"TU-00592","Henry","H.","Wilson","Male","College of Management","Maryland","2010/2011","Second Semester","Liberian Student",6476657]
[null,407,"TU-00225","Henry","N.","Thompson","Male","College of Management","Maryland","2010/2011","Second Semester","Liberian Student",6661030]
[null,1177,"TU-00105","Henry","G.","Wesee Jr","Male","College of Agriculture and Food Sciences",null,"2011/2012","First Semester","Liberian Student",6112942]
[null,1267,"TU-00733","Henry","P.","Toe","Male","College of Agriculture and Food Sciences","Maryland","2011/2012","First Semester","Liberian Student",880887658]
[null,null,"TU-00588","Henry",null,"Cole Jr","Male","College of Management","Maryland","2011/2012","First Semester","Liberian Student",6958314]
[null,null,"TU-00068","Henry","S.","Howe","Male","College of Management","Maryland","2011/2012","First Semester","Liberian Student",6823103]
[null,null,"TU-00225","Henry","N.","Thompson","Male","College of Management","Maryland","2011/2012","First Semester","Liberian Student",6661030]
[null,null,744,"Henry",null,"Karim","Male","College of Management","Maryland","2011/2012","First Semester","Liberian Student",2316340241]
[null,null,"TU-00163","Henry","B.","Karyon","Male","College of Technology","Lofa","2011/2012","First Semester","Liberian Student",6602908]
[null,null,"TU-00516","Henry","G.","Hodge","Male","College of Technology","Maryland","2011/2012","First Semester","Liberian Student",6568163]
[null,55,"TU-00564","Hilary","K.","Toe, Jr.","Male","College of Agriculture and Food Sciences","Maryland","2010/2011","Second Semester","Liberian Student",6541004]
[null,53,"TU-00111","Hilary","F.","Collins","Male","College of Management","Grand Gedeh","2010/2011","First Semester","Liberian Student",6620005]
[null,420,"TU-00564","Hilary","K.","Toe,Jr.","Male","College of Agriculture and Food Sciences","Maryland","2010/2011","First Semester","Liberian Student",6541004]
[null,1196,"TU-00564","Hilary","K.","Toe Jr","Male","College of Agriculture and Food Sciences",null,"2011/2012","First Semester","Liberian Student",880630271]
[null,54,"TU-00539","Himmie","H.","Bodio","Male","College of Management","Maryland","2010/2011","First Semester","Liberian Student",6444607]
[null,392,"TU-00539","Himmie","H.","Bodio","Male","College of Management","Maryland","2010/2011","Second Semester","Liberian Student"]
[null,null,"TU-00539","Himmie","H.","Badio",null,"College of Management",null,"2011/2012","First Semester","Liberian Student",880633384]
[null,62,"TU-00064","Hnede","M.","Kondy","Female","College of Health Sciences","Maryland","2009/2010","First Semester","Liberian Student",6642081]
[null,232,"TU-00064","Hnede","M.","Kondy","Female","College of Health Sciences","Maryland","2010/2011","Second Semester","Liberian Student"]
[null,1001,"TU-00064","Hnede","M.","Kondy","Female","College of Health Sciences",null,"2011/2012","First Semester","Liberian Student",880607621]
[null,222,"TU-00064","Hnedy","M.","Kondy","Female","College of Health Sciences","Maryland","2009/2010","Second Semester","Liberian Student",6642081]
[null,118,"TU-00122","Hneglee","C","Harmon","Male","College of Management","Maryland","2009/2010","First Semester","Liberian Student",6479551]
[null,24,"TU-00122","Hneglee",null,"Harmon","Male","College of Management","Maryland","2009/2010","Second Semester","Liberian Student",6479551]
[null,55,"TU-00122","Hneglee",null,"Harmon","Male","College of Management","Maryland","2010/2011","First Semester","Liberian Student",6479551]
[null,395,"TU-00122","Hneglee",null,"Harmon","Male","College of Management","Maryland","2010/2011","Second Semester","Liberian Student",6479551]
[null,null,"TU-00122","Hne-Glee",null,"Harmon","Male","College of Management",null,"2011/2012","First Semester","Liberian Student"]
[null,191,"TU-00196","Hodo","K.","Clark","Male","College of Management","Maryland","2009/2010","First Semester","Liberian Student",6616423]
[null,208,"TU-00196","Hodo ","H.","Clark","Male","College of Management","Maryland","2009/2010","Second Semester","Liberian Student",6696623]
[null,100,"TU-00503","Hweye","K.","Wilson","Male","College of Education","Maryland","2010/2011","Second Semester","Liberian Student",6898560]
[null,286,"TU-00392","Idouwu","C.","Adebayo","Female","College of Management","Non-Liberian","2009/2010","First Semester","Foreign Student",62756447]
[null,49,"TU-00051","Iguodala",null,"Alzeyogabor","Male","College of Technology","Non-Liberian","2009/2010","First Semester","Foreign Student",6105068]
[null,null,"TU-00051","Iguodala","","Alzeyogabor","Male","College of Technology","Non-Liberian","2011/2012","First Semester","Foreign Student",6105068]
[null,340,"TU-00542","Imentealea","T.","Grimes","Male","College of Health Sciences","Maryland","2010/2011","Second Semester","Liberian Student",6801339]
[null,316,"TU-00542","Imenteelea","T.","Grimes","Male","College of Health Sciences","Maryland","2010/2011","First Semester","Liberian Student",6801393]
[null,317,"TU-00520","Isaac","T.","Smith","Male","College of Health Sciences","Maryland","2010/2011","First Semester","Liberian Student",880605601]
[null,341,"TU-00520","Isaac","G.","Smith","Male","College of Health Sciences","Maryland","2010/2011","Second Semester","Liberian Student"]
[null,1229,"TU-00784","Isaac","P.","Swen","Male","College of Agriculture and Food Sciences","Grand Kru","2011/2012","First Semester","Liberian Student",6923340]
[null,1245,"TU-00637","Isaac","T.","Cooper","Male","College of Agriculture and Food Sciences","Maryland","2011/2012","First Semester","Liberian Student",6618353]
[null,1260,"TU-00797","Isaac","N.","Dioh","Male","College of Agriculture and Food Sciences","Maryland","2011/2012","First Semester","Liberian Student",77119026]
[null,1223,"TU-00727","Isaiah","K.","Brown","Male","College of Agriculture and Food Sciences","Maryland","2011/2012","First Semester","Liberian Student",6212886]
[null,239,"TU-00344","Ishmael","T.","Brown","Male","College of Technology","River Gee","2009/2010","First Semester","Liberian Student",6686361]
[null,114,"TU-00344","Ishmael","T.","Brown","Male","College of Technology","River Gee","2009/2010","Second Semester","Liberian Student",6686361]
[null,198,"TU-00344","Ishmael","T.","Brown","Male","College of Technology","Maryland","2010/2011","First Semester","Liberian Student"]
[null,163,"TU-00344","Ishmael","T.","Brown","Male","College of Technology","Maryland","2010/2011","Second Semester","Liberian Student"]
[null,null,"TU-00344","Ishmael","T.","Brown","Male","College of Technology","River Gee","2011/2012","First Semester","Liberian Student",6686361]
[null,237,"TU-00342","Iverson","N.","Williams","Male","College of Management","Grand Kru","2009/2010","First Semester","Liberian Student",6929203]
[null,189,"TU-00342","Iverson","N.","Williams","Male","College of Management","Maryland","2009/2010","Second Semester","Liberian Student"]
[null,56,"TU-00342","Iverson","N.","Wiliams","Male","College of Management","Maryland","2010/2011","First Semester","Liberian Student",880605559]
[null,123,"TU-00127","Iyke","U.","Columbus","Male","College of Management","Non-Liberian","2009/2010","First Semester","Foreign Student",6647923]
[null,57,"TU-00127","Iyke","U.","columbus","Male","College of Management","Non-Liberian","2010/2011","First Semester","Liberian Student",6647923]
[null,357,"TU-00127","Iyke",null,"Columbus","Male","College of Management","Non-Liberian","2010/2011","Second Semester","Foreign Student"]
[null,58,"TU-00397","Izetta","M.","Nah","Female","College of Management","Grand Kru","2010/2011","First Semester","Liberian Student",6688063]
[null,424,"TU-00397","Izetta","M.","Nah","Female","College of Management","Maryland","2010/2011","Second Semester","Liberian Student",6688063]
[null,null,"TU-00675","J","S.","Nyemah","Male","College of Education","Grand Kru","2011/2012","First Semester","Liberian Student",880605587]
[null,null,"TU-00674","J","P.","Juday","Male","College of Education",null,"2011/2012","First Semester","Liberian Student",6637513]
[null,null,"TU-00258","J.","Mikel","Koti","Male","College of Technology","Maryland","2011/2012","First Semester","Liberian Student",6654980]
[null,null,"TU-00549","J. Loranzo","H.","Hinneh","Male","College of Technology","Maryland","2010/2011","First Semester","Liberian Student",6499180]
[null,199,"TU-00002","J.Daniel",null,"Swen","Male","College of Technology","Grand Gedeh","2010/2011","First Semester","Liberian Student",6351608]
[null,200,"TU-00357","J.Ezekiel","K.","Wakarwee","Male","College of Technology","Maryland","2010/2011","First Semester","Liberian Student",880541333]
[null,201,"TU-00566","J.Jonathan",null,"Kerkulah","Male","College of Technology","Maryland","2010/2011","First Semester","Liberian Student",6206840]
[null,null,"TU-00566","J.Jonathan","","Kerkulah,Jr.","Male","College of Technology","Bong","2011/2012","First Semester","Liberian Student",6206840]
[null,null,"TU-00566","J.Jonathan","","Kerkulah,Jr.","Male","College of Technology","Bong","2011/2012","First Semester","Liberian Student",6206840]
[null,202,"TU-00549","J.Loranzo","H.","Hinneh","Male","College of Technology","Maryland","2010/2011","First Semester","Liberian Student",6499180]
[null,59,"TU-00532","Jackson","W.","Williams, Jr.","Male","College of Agriculture and Food Sciences","Maryland","2010/2011","Second Semester","Liberian Student",5556051]
[null,421,"TU-00007","Jackson",null,"Kabee","Male","College of Agriculture and Food Sciences","Maryland","2010/2011","First Semester","Liberian Student",6123087]
[null,422,"TU-00532","Jackson","W.","Williams","Male","College of Agriculture and Food Sciences","Maryland","2010/2011","First Semester","Liberian Student",6556051]
[null,1113,"TU-00726","Jackson",null,"Brooks","Male","College of Health Sciences","Maryland","2011/2012","First Semester","Liberian Student",6615286]
[null,1138,"TU-00532","Jackson","W.","Willaims Jr","Male","College of Agriculture and Food Sciences",null,"2011/2012","First Semester","Liberian Student",5556051]
[null,164,"TU-00169","Jacob","M.","Paye","Male","College of Technology","Bong","2009/2010","First Semester","Liberian Student",6686352]
[null,24,"TU-00529","Jacob","N.","Allison","Male","College of Agriculture and Food Sciences","Maryland","2010/2011","Second Semester","Liberian Student",880914343]
[null,59,"TU-00234","Jacob","S.","Tweh","Male","College of Management","Maryland","2010/2011","First Semester","Liberian Student",6926927]
[null,423,"TU-00527","Jacob","N.","Allison","Male","College of Agriculture and Food Sciences","Maryland","2010/2011","First Semester","Liberian Student",6525091]
[null,142,"TU-00545","Jacob","O.","Hinneh","Male","College of Education","Maryland","2010/2011","Second Semester","Liberian Student",6696643]
[null,348,"TU-00234","Jacob","S.","Tweh, Jr.","Male","College of Management","Maryland","2010/2011","Second Semester","Liberian Student",6926927]
[null,1171,"TU-00527","Jacob","M.","Allison","Male","College of Agriculture and Food Sciences",null,"2011/2012","First Semester","Liberian Student",880714343]
[null,null,"TU-00545","Jacob","O.","Hinneh","Male","College of Education","Maryland","2011/2012","First Semester","Liberian Student",6696640]
[null,null,"TU-00679","Jacob","H.","Davies","Male","College of Education","Maryland","2011/2012","First Semester","Liberian Student",880606145]
[null,1224,"TU-00855","Jacqueline",null,"Tenneh","Female","College of Agriculture and Food Sciences","River Gee","2011/2012","First Semester","Liberian Student",6986491]
[null,60,"TU-00129","Jacquet",null,"Dion","Male","College of Management","Nimba","2010/2011","First Semester","Liberian Student",6678814]
[null,36,"TU-00038","Jakar",null,"Goe","Female","College of Health Sciences","Maryland","2009/2010","First Semester","Liberian Student",77057194]
[null,318,"TU-00038","Jakar",null,"Goe","Female","College of Health Sciences","Maryland","2010/2011","First Semester","Liberian Student",6105040]
[null,280,"TU-00038","Jakar",null,"Goe","Female","College of Health Sciences","Maryland","2010/2011","Second Semester","Liberian Student",6105040]
[null,902,"TU-00038","Jakar",null,"Goe","Female","College of Health Sciences",null,"2011/2012","First Semester","Liberian Student",6105040]
[null,163,"TU-00038","Jaker",null,"Goe","Female","College of Health Sciences","Maryland","2009/2010","Second Semester","Liberian Student"]
[null,6,"TU-00006","James","N.","Allison","Male","College of Education","Maryland","2009/2010","First Semester","Liberian Student",4936083]
[null,27,"TU-00029","James","B.","Wilson","Male","College of Education","Maryland","2009/2010","First Semester","Liberian Student",6666622]
[null,129,"TU-00133","James",null,"Gobobai","Male","College of Health Sciences","Maryland","2009/2010","First Semester","Liberian Student",6415688]
[null,203,"TU-00209","James","G.","Russell","Male","College of Health Sciences","Maryland","2009/2010","First Semester","Liberian Student",679638]
[null,29,"TU-00006","James","N.","Allison","Male","College of Education","Maryland","2009/2010","Second Semester","Liberian Student",6973659]
[null,90,"TU-00133","James",null,"Gotobai","Male","College of Management","Margibi","2009/2010","Second Semester","Liberian Student",6754286]
[null,61,"TU-00133","James",null,"Gotobai","Male","College of Management","Margibi","2010/2011","First Semester","Liberian Student",641568]
[null,62,"TU-00468","James","B.","Wahblo","Male","College of Management","Grand Gedeh","2010/2011","First Semester","Liberian Student"]
[null,136,"TU-00006","James","N.","Allison","Male","College of Education","Maryland","2010/2011","First Semester","Liberian Student",6801302]
[null,203,"TU-00510","James","T.","Manston","Male","College of Technology","Maryland","2010/2011","First Semester","Liberian Student",6163162]
[null,319,"TU-00556","James","Y.","Harmon","Male","College of Health Sciences","Maryland","2010/2011","First Semester","Liberian Student",6649621]
[null,92,"TU-00029","James","G.","Wilson","Male","College of Education","Maryland","2010/2011","Second Semester","Liberian Student",6666622]
[null,141,"TU-00006","James","N.","Allison","Male","College of Education","Maryland","2010/2011","Second Semester","Liberian Student",6801302]
[null,187,"TU-00510","James","T.","Manston","Male","College of Technology","Maryland","2010/2011","Second Semester","Liberian Student",6318002]
[null,463,"TU-00556","James","Y.","Harmon","Male","College of Health Sciences","Maryland","2010/2011","Second Semester","Liberian Student",6649621]
[null,384,"TU-00468","James","B.","Wahblo","Male","College of Management","Montserrado","2010/2011","Second Semester","Liberian Student",6932987]
[null,401,"TU-00133","James",null,"Gotobai","Male","College of Management","Margibi","2010/2011","Second Semester","Liberian Student"]
[null,1036,"TU-00556","James","Y.","Harman","Male","College of Health Sciences",null,"2011/2012","First Semester","Liberian Student",6649621]
[null,null,"TU-00468","James","B.","Wahblo","Male","College of Management",null,"2011/2012","First Semester","Liberian Student",6920959]
[null,null,"TU-00133","James","","Gobobai","Male","College of Management","Maryland","2011/2012","First Semester","Liberian Student",6415688]
[null,null,"TU-00720","James","H.","Wheedor","Male","College of Management","Margibi","2011/2012","First Semester","Liberian Student",771770395]
[null,null,"TU-00712","James","M.","Collins","Male","College of Management",null,"2011/2012","First Semester","Liberian Student",66504459]
[null,null,"TU-00006","James","N.","Allison","Male","College of Education","Maryland","2011/2012","First Semester","Liberian Student",4936083]
[null,null,"TU-00710","James","A.","Sonpon","Male","College of Education","Grand Kru","2011/2012","First Semester","Liberian Student",77857940]
[null,null,"TU-00","James","M.","Hney","Male","College of Education","Grand Kru","2011/2012","First Semester","Liberian Student",77366141]
[null,null,"TU-00510","James","T.","Manston","Male","College of Technology","Maryland","2011/2012","First Semester","Liberian Student",6613161]
[null,74,"TU-00076","Janet","B.","Doryen","Female","College of Health Sciences","Grand Kru","2009/2010","First Semester","Liberian Student",6663869]
[null,97,"TU-00076","Janet","J.","Doryen","Female","College of Health Sciences","Grand Kru","2009/2010","Second Semester","Liberian Student",6663869]
[null,320,"TU-00434","Janet","K.","Seatine","Female","College of Health Sciences","Maryland","2010/2011","First Semester","Liberian Student",6941160]
[null,228,"TU-00434","Janet","K.","Seatine","Female","College of Health Sciences","Nimba","2010/2011","Second Semester","Liberian Student",6941160]
[null,263,"TU-00076","Janet","B.","Doryen","Female","College of Health Sciences","Maryland","2010/2011","Second Semester","Liberian Student"]
[null,509,"TU-00434","Janet","K.","Seatine","Female","College of Health Sciences",null,"2011/2012","First Semester","Liberian Student",6941160]
[null,708,"TU-00076","Janet","B.","Doryen","Female","College of Health Sciences",null,"2011/2012","First Semester","Liberian Student",6663869]
[null,null,"TU-00830","Janice","W.","George","Male","College of Education","Maryland","2011/2012","First Semester","Liberian Student",880327045]
[null,321,"TU-00161","Janna","H.","Nyemah","Female","College of Health Sciences","Maryland","2010/2011","First Semester","Liberian Student",6740232]
[null,246,"TU-00351","Jarka","M.","Morris","Male","College of Health Sciences","Grand Kru","2009/2010","First Semester","Liberian Student",6192835]
[null,175,"TU-00351","Jarka","M.","Morris","Male","College of Health Sciences","Grand Kru","2009/2010","Second Semester","Liberian Student",6460659]
[null,322,"TU-00351","Jarka","M.","Morris","Male","College of Health Sciences","Grand Kru","2010/2011","First Semester","Liberian Student",6160054]
[null,1259,"TU-00839","Jarpee","M.","Tweh","Male","College of Agriculture and Food Sciences","River Gee","2011/2012","First Semester","Liberian Student",880422765]
[null,1226,"TU-00785","Jasper",null,"Adonkor","Male","College of Agriculture and Food Sciences","Maryland","2011/2012","First Semester","Liberian Student",6941708]
[null,273,"TU-00379","Jeaty",null,"Williams","Female","College of Health Sciences","Maryland","2009/2010","First Semester","Liberian Student",6273390]
[null,135,"TU-00379","Jeaty",null,"Williams","Female","College of Health Sciences","Maryland","2009/2010","Second Semester","Liberian Student",6273390]
[null,323,"TU-00379","Jeaty",null,"Williams","Female","College of Health Sciences","Maryland","2010/2011","First Semester","Liberian Student",6723390]
[null,269,"TU-00379","Jeaty",null,"Williams","Female","College of Health Sciences","Maryland","2010/2011","Second Semester","Liberian Student",6273390]
[null,1033,"TU-00379","Jeaty",null,"Williams","Female","College of Health Sciences","Maryland","2011/2012","First Semester","Liberian Student",6273390]
[null,63,"TU-00460","Jefferson","S.","Goul","Male","College of Management","Maryland","2010/2011","First Semester","Liberian Student",6926072]
[null,1249,"TU-00721","Jefferson","T.","Howard","Male","College of Agriculture and Food Sciences","Maryland","2011/2012","First Semester","Liberian Student",6493406]
[null,273,"TU-00575","Jenifer","H.","Seton","Female","College of Health Sciences","Maryland","2010/2011","Second Semester","Liberian Student",6797584]
[null,null,"TU-00811","Jenkins","N.","Hare","Male","College of Technology","Maryland","2011/2012","First Semester","Liberian Student",6404515]
[null,324,"TU-00488","Jennifer","H.","Seton","Female","College of Health Sciences","Maryland","2010/2011","First Semester","Liberian Student",6837967]
[null,701,"TU-00575","Jennifer","H.","Seton","Female","College of Health Sciences",null,"2011/2012","First Semester","Liberian Student",880792411]
[null,64,"TU-00432","Jereline","Y.","Mark","Female","College of Management","Bomi","2010/2011","First Semester","Liberian Student",6243328]
[null,413,"TU-00432","Jereline","Y.","Mark","Female","College of Management","Grand Cape Mount","2010/2011","Second Semester","Liberian Student",6243328]
[null,null,"TU-00432","Jereline","Y.","Mark","Female","College of Management","Margibi","2011/2012","First Semester","Liberian Student",6243328]
[null,51,"TU-00053","Jeremiah","T.","sayon","Male","College of Health Sciences","River Gee","2009/2010","First Semester","Liberian Student",6603137]
[null,23,"TU-00025","Jeremiah","J.","Howe","Male","College of Agriculture and Food Sciences","Maryland","2009/2010","First Semester","Liberian Student",6439182]
[null,43,"TU-00053","Jeremiah","T.","Sayon","Male","College of Health Sciences","Grand Kru","2009/2010","Second Semester","Liberian Student",6603137]
[null,46,"TU-00025","Jeremiah","J.","Howe","Male","College of Agriculture and Food Sciences","Maryland","2010/2011","Second Semester","Liberian Student",6439188]
[null,137,"TU-00421","Jeremiah","T.","Hinneh","Male","College of Education","Maryland","2010/2011","First Semester","Liberian Student",6608518]
[null,204,"TU-00550","Jeremiah","P.","Quire","Male","College of Technology","Maryland","2010/2011","First Semester","Liberian Student",76019763]
[null,325,"TU-00053","Jeremiah","T.","Sayon","Male","College of Health Sciences","Maryland","2010/2011","First Semester","Liberian Student",880607492]
[null,71,"TU-00025","Jeremiah","J.","Howe","Male","College of Agriculture and Food Sciences","Maryland","2009/2010","Second Semester","Liberian Student",6439188]
[null,424,"TU-00025","Jeremiah",null,"Howe","Male","College of Agriculture and Food Sciences","Maryland","2010/2011","First Semester","Liberian Student",6439188]
[null,101,"TU-00421","Jeremiah","T.","Hinneh","Male","College of Education","Maryland","2010/2011","Second Semester","Liberian Student",6608518]
[null,195,"TU-00550","Jeremiah","P.","Quire","Male","College of Technology","Maryland","2010/2011","Second Semester","Liberian Student",6779643]
[null,323,"TU-00053","Jeremiah","T.","Sayon","Male","College of Health Sciences","Maryland","2010/2011","Second Semester","Liberian Student",880607492]
[null,1046,"TU-00053","Jeremiah","T.","Sayon","Male","College of Health Sciences",null,"2011/2012","First Semester","Liberian Student",880607492]
[null,1148,"TU-00025","Jeremiah","J.","Howe","Male","College of Agriculture and Food Sciences",null,"2011/2012","First Semester","Liberian Student",6439188]
[null,null,"TU-00550","Jeremiah","P.","Quire","Male","College of Technology","Maryland","2011/2012","First Semester","Liberian Student",76019763]
[null,166,"TU-00171","Jerome","M.","Williams","Male","College of Health Sciences","Maryland","2009/2010","First Semester","Liberian Student",6969641]
[null,244,"TU-00349","Jerome","N.","Wlalee","Male","College of Management","Maryland","2009/2010","First Semester","Liberian Student",692994]
[null,9,"TU-00567","Jerome","T.","Bestman","Male","College of Agriculture and Food Sciences","Sinoe","2010/2011","Second Semester","Liberian Student",6916325]
[null,75,"TU-00349","Jerome","N.","Wlalee","Male","College of Agriculture and Food Sciences","Maryland","2010/2011","Second Semester","Liberian Student",6926994]
[null,65,"TU-00431","Jerome","W.","Boye","Male","College of Management","Maryland","2010/2011","First Semester","Liberian Student",6345020]
[null,425,"TU-00567","Jerome","T.","Bestman","Male","College of Agriculture and Food Sciences","Maryland","2010/2011","First Semester","Liberian Student",6785895]
[null,381,"TU-00431","Jerome","W.","Boye","Male","College of Management","Maryland","2010/2011","Second Semester","Liberian Student",6345020]
[null,1072,"TU-00171","Jerome","M.","Willaims","Male","College of Health Sciences","Maryland","2011/2012","First Semester","Liberian Student",6969641]
[null,1197,"TU-0039","Jerome","N.","Wealee Sr","Male","College of Agriculture and Food Sciences",null,"2011/2012","First Semester","Liberian Student",6926994]
[null,1206,"TU-00567","Jerome","T.","Bestman","Male","College of Agriculture and Food Sciences",null,"2011/2012","First Semester","Liberian Student",6916325]
[null,null,"TU-00431","Jerome","W.","Boye","Male","College of Management","Maryland","2011/2012","First Semester","Liberian Student",6345020]
[null,326,"TU-00402","Jerry","M.","Hinneh","Male","College of Health Sciences","Maryland","2010/2011","First Semester","Liberian Student",6294359]
[null,449,"TU-00402","Jerry","M.","Hinneh","Male","College of Health Sciences","River Gee","2010/2011","Second Semester","Liberian Student"]
[null,1281,"TU-00402","Jerry","M.","Hinneh","Male","College of Health Sciences",null,"2011/2012","First Semester","Liberian Student",880499915]
[null,1095,"TU-00699","Jestina","D.","Wesseh","Female","College of Health Sciences",null,"2011/2012","First Semester","Liberian Student",6739731]
[null,205,"TU-00422","Jethro","N.","Tuakilii","Male","College of Technology","Bong","2010/2011","First Semester","Liberian Student",6544355]
[null,190,"TU-00422","Jethro","N.","Tuakilii","Male","College of Technology","Bong","2010/2011","Second Semester","Liberian Student",6236706]
[null,null,"TU-00422","Jethro","N.","Tuakilii","Male","College of Technology","Bong","2011/2012","First Semester","Liberian Student",6236706]
[null,66,"TU-00260","Joan","G.","Pearson","Female","College of Management","Maryland","2010/2011","First Semester","Liberian Student",6490044]
[null,327,"TU-00518","Joan","N.","Harris","Female","College of Health Sciences","Grand Kru","2010/2011","First Semester","Liberian Student",6883036]
[null,230,"TU-00518","Joan","N.","Harris","Female","College of Health Sciences","Grand Kru","2010/2011","Second Semester","Liberian Student",76102865]
[null,1066,"TU-00518","Joan","N.","Harris","Female","College of Health Sciences",null,"2011/2012","First Semester","Liberian Student",880437213]
[null,231,"TU-00462","Joana","J.","Saletti","Female","College of Health Sciences","Grand Kru","2010/2011","Second Semester","Liberian Student",6544474]
[null,703,"TU-00462","Joana","J.","Soletti","Female","College of Health Sciences",null,"2011/2012","First Semester","Liberian Student",6544474]
[null,156,"TU-00161","Joanna","H.","Nyemah","Female","College of Health Sciences","Maryland","2009/2010","First Semester","Liberian Student",6740223]
[null,328,"TU-00462","Joanna","J.","Saletti","Female","College of Health Sciences","Grand Kru","2010/2011","First Semester","Liberian Student",6544474]
[null,329,"TU-00465","Joanna","K.","Wesseh","Female","College of Health Sciences","Maryland","2010/2011","First Semester","Liberian Student",6801310]
[null,258,"TU-00161","Joanna","H.","Nyemah","Female","College of Health Sciences","Maryland","2010/2011","Second Semester","Liberian Student",6740223]
[null,271,"TU-00465","Joanna","K.","Wesseh","Female","College of Health Sciences","Maryland","2010/2011","Second Semester","Liberian Student",880423764]
[null,1012,"TU-00161","Joanna","H.","Nyemah","Female","College of Health Sciences",null,"2011/2012","First Semester","Liberian Student",6740223]
[null,233,"TU-00338","Joe","N.","Payne","Male","College of Health Sciences","Maryland","2009/2010","First Semester","Liberian Student",6499851]
[null,53,"TU-00074","Joe","P.","Davies","Male","College of Health Sciences","Grand Kru","2009/2010","Second Semester","Liberian Student",6491227]
[null,87,"TU-00338","Joe","N.","Payne","Male","College of Health Sciences","Maryland","2009/2010","Second Semester","Liberian Student",6419851]
[null,80,"TU-00507","Joe","G.","Thompson","Male","College of Agriculture and Food Sciences","Maryland","2010/2011","Second Semester","Liberian Student",880605535]
[null,330,"TU-00074","Joe","P.","Davies","Male","College of Health Sciences","Maryland","2010/2011","First Semester","Liberian Student",6491227]
[null,331,"TU-00338","Joe","N.","Payne","Male","College of Health Sciences","Maryland","2010/2011","First Semester","Liberian Student",64199851]
[null,426,"TU-00507","Joe","G.","Thompson","Male","College of Agriculture and Food Sciences","Maryland","2010/2011","First Semester","Liberian Student",880605533]
[null,309,"TU-00338","Joe","N.","Payne","Male","College of Health Sciences","Montserrado","2010/2011","Second Semester","Liberian Student",6499851]
[null,331,"TU-00074","Joe","P.","Davies","Male","College of Health Sciences","Maryland","2010/2011","Second Semester","Liberian Student",6491227]
[null,1054,"TU-00338","Joe","N.","Payne","Male","College of Health Sciences",null,"2011/2012","First Semester","Liberian Student",6499851]
[null,72,"TU-00074","Joe ","P.","Davies","Male","College of Health Sciences","River Gee","2009/2010","First Semester","Liberian Student",691227]
[null,507,"TU-00074","Joe ","P.","Davies Jr","Male","College of Health Sciences",null,"2011/2012","First Semester","Liberian Student",6491227]
[null,332,"TU-00442","Joetta","S.","Toomey","Female","College of Health Sciences","Maryland","2010/2011","First Semester","Liberian Student",6341063]
[null,244,"TU-00442","Joetta","S.","Toomey","Female","College of Health Sciences","Maryland","2010/2011","Second Semester","Liberian Student",6341063]
[null,196,"TU-00202","John",null,"Sackey","Male","College of Technology","Grand Kru","2009/2010","First Semester","Liberian Student",6842523]
[null,139,"TU-00202","John",null,"Sackley","Male","College of Technology","Grand Kru","2009/2010","Second Semester","Liberian Student",6842523]
[null,206,"TU-00497","John","K.","Constance","Male","College of Technology","Maryland","2010/2011","First Semester","Liberian Student",6748274]
[null,207,"TU-00490","John","W.","Worjlor","Male","College of Technology","Maryland","2010/2011","First Semester","Liberian Student",880634244]
[null,208,"TU-00411","John","A.","Morris","Male","College of Technology","Maryland","2010/2011","First Semester","Liberian Student",6816312]
[null,115,"TU-00119","John","A.","Williams","Male","College of Agriculture and Food Sciences","Montserrado","2009/2010","First Semester","Liberian Student",4957700]
[null,151,"TU-00497","John","K.","Constancew","Male","College of Technology","Maryland","2010/2011","Second Semester","Liberian Student",6748274]
[null,177,"TU-00411","John","A.","Morris","Male","College of Technology","Montserrado","2010/2011","Second Semester","Liberian Student",6816312]
[null,205,"TU-00490","John","W.","Worjlo","Male","College of Technology","Grand Kru","2010/2011","Second Semester","Liberian Student",880634244]
[null,527,"TU-00457","John","F.","Nyafore","Male","College of Agriculture and Food Sciences","Maryland","2010/2011","First Semester","Liberian Student",880607470]
[null,1083,"TU-00806","John","S.","Neuville","Male","College of Health Sciences",null,"2011/2012","First Semester","Liberian Student",880898952]
[null,1278,"TU-00718","John","K.","Genekah","Male","College of Agriculture and Food Sciences","Maryland","2011/2012","First Semester","Liberian Student",6637373]
[null,null,"TU-00411","John","A.M","Moris","Male","College of Technology","Maryland","2011/2012","First Semester","Liberian Student",6816312]
[null,null,"TU-00497","John","K.","Constance","Male","College of Technology","Maryland","2011/2012","First Semester","Liberian Student",6748274]
[null,null,"TU-00639","John",null,"Kollie","Male","College of Technology","Lofa","2011/2012","First Semester","Liberian Student",6352381]
[null,191,"TU-00119","John ","A.","Williams","Male","College of Technology","Maryland","2009/2010","Second Semester","Liberian Student"]
[null,209,"TU-00119","John ","A.","Williams","Male","College of Technology","Maryland","2010/2011","First Semester","Liberian Student"]
[null,138,"TU-00489","Johnny","S.","Morias","Male","College of Education","Maryland","2010/2011","First Semester","Liberian Student",6893331]
[null,454,"TU-00489","Johnny","S.","Morias","Male","College of Education","Maryland","2010/2011","Second Semester","Liberian Student"]
[null,1268,"TU-00705","Johnny","T.","Nebo","Male","College of Agriculture and Food Sciences","Grand Kru","2011/2012","First Semester","Liberian Student",6112955]
[null,null,"TU-00489","Johnny","S.","Morais","Male","College of Education","Maryland","2011/2012","First Semester","Liberian Student",6893331]
[null,122,"TU-00126","Jonah","W.","Segbeh","Male","College of Management","Grand Kru","2009/2010","First Semester","Liberian Student",6953046]
[null,67,"TU-00126","Jonah","W.","Sagbe","Male","College of Management","Maryland","2010/2011","First Semester","Liberian Student",6953046]
[null,96,"TU-00161","Jonanna","H.","Nyema","Female","College of Health Sciences","Maryland","2009/2010","Second Semester","Liberian Student",6740223]
[null,113,"TU-00117","Jonathan","F.","Kaydee","Male","College of Technology","Grand Gedeh","2009/2010","First Semester","Liberian Student",6582620]
[null,157,"TU-00162","Jonathan","K.","Dorbor","Male","College of Technology","Lofa","2009/2010","First Semester","Liberian Student",367860]
[null,171,"TU-00176","Jonathan","H.","Harmon","Male","College of Technology","Maryland","2009/2010","First Semester","Liberian Student",694154]
[null,188,"TU-00193","Jonathan",null,"Barchue","Male","College of Management","Maryland","2009/2010","First Semester","Liberian Student",6215888]
[null,240,"TU-00345","Jonathan","L.","Sackie","Male","College of Technology","Bomi","2009/2010","First Semester","Liberian Student",6566809]
[null,83,"TU-00193","Jonathan",null,"Barchue","Male","College of Management","Maryland","2009/2010","Second Semester","Liberian Student",6215888]
[null,210,"TU-00176","Jonathan","S.","Harmon","Male","College of Technology","Lofa","2010/2011","First Semester","Liberian Student",6694150]
[null,211,"TU-00345","Jonathan","L.","Sackie","Male","College of Technology","Grand Bassa","2010/2011","First Semester","Liberian Student",6566809]
[null,1203,"TU-00193","Jonathan",null,"Barchue","Male","College of Agriculture and Food Sciences",null,"2011/2012","First Semester","Liberian Student",88063305]
[null,null,"TU-00117","Jonathan","F.","Kaydee","Male","College of Technology","Grand Gedeh","2011/2012","First Semester","Liberian Student",6582620]
[null,null,"TU-00176","Jonathan","H.","Harmon","Male","College of Technology","Maryland","2011/2012","First Semester","Liberian Student",694154]
[null,null,"TU-00345","Jonathan","L.","Sackie","Male","College of Technology","Bomi","2011/2012","First Semester","Liberian Student",6566809]
[null,50,"TU-00193","Jonathan ",null,"Barchue","Male","College of Agriculture and Food Sciences","Maryland","2010/2011","Second Semester","Liberian Student",6208304]
[null,158,"TU-00345","Jonathan ","L.","Sackie","Male","College of Technology","Bomi","2009/2010","Second Semester","Liberian Student",6566809]
[null,204,"TU-00176","Jonathan ","H.","Harmon","Male","College of Technology","Maryland","2009/2010","Second Semester","Liberian Student",6694154]
[null,212,"TU-00117","Jonathan ","F.","Kaydee","Male","College of Technology","Grand Gedeh","2009/2010","Second Semester","Liberian Student",6732505]
[null,212,"TU-00117","Jonathan ","F.","Kaydee","Male","College of Technology","Maryland","2010/2011","First Semester","Liberian Student"]
[null,157,"TU-00176","Jonathan ","S.","Harmon","Male","College of Technology","Maryland","2010/2011","Second Semester","Liberian Student",6941454]
[null,164,"TU-00117","Jonathan ","T.","Kaydee","Male","College of Technology","Maryland","2010/2011","Second Semester","Liberian Student",6404555]
[null,208,"TU-00566","Jonathan ","J.","Kerkulah, II","Male","College of Technology","Margibi","2010/2011","Second Semester","Liberian Student",6206840]
[null,209,"TU-00345","Jonathan ","L.","Sackie","Male","College of Technology","Grand Bassa","2010/2011","Second Semester","Liberian Student",6566809]
[null,494,"TU-00193","Jonathan ",null,"Barchue","Male","College of Agriculture and Food Sciences","Maryland","2010/2011","First Semester","Liberian Student"]
[null,null,779,"Jones","H.","Sayee","Male","College of Management","Sinoe","2011/2012","First Semester","Liberian Student",6340936]
[null,205,"TU-00211","Jordan","V.","Jannell","Male","College of Technology","Grand Cape Mount","2009/2010","First Semester","Liberian Student",6987956]
[null,110,"TU-00211","Jordan","V.","Jannell","Male","College of Technology","Grand Cape Mount","2009/2010","Second Semester","Liberian Student",698956]
[null,36,"TU-00224","Jordan","O.","Dweh","Male","College of Agriculture and Food Sciences","River Gee","2010/2011","Second Semester","Liberian Student",6601287]
[null,213,"TU-00211","Jordan","V.","Jannell","Male","College of Technology","Maryland","2010/2011","First Semester","Liberian Student"]
[null,115,"TU-00224","Jordan","O.","Dweh","Male","College of Agriculture and Food Sciences","River Gee","2009/2010","Second Semester","Liberian Student",6601287]
[null,218,"TU-00224","Jordan","O.","Dweh","Male","College of Agriculture and Food Sciences","River Gee","2009/2010","First Semester","Liberian Student",6601287]
[null,428,"TU-00224","Jordan","O.","Dweh","Male","College of Agriculture and Food Sciences","Maryland","2010/2011","First Semester","Liberian Student",6601287]
[null,158,"TU-00211","Jordan","V.","Jannell","Male","College of Technology","Maryland","2010/2011","Second Semester","Liberian Student",6982956]
[null,1192,"TU-00224","Jordan","O.","Dweh","Male","College of Agriculture and Food Sciences",null,"2011/2012","First Semester","Liberian Student",6601287]
[null,null,"TU-00211","Jordan","V.","Jannell","Male","College of Technology","Grand Cape Mount","2011/2012","First Semester","Liberian Student",6987956]
[null,46,"TU-00048","Joseph","W.","Baker","Male","College of Health Sciences","River Gee","2009/2010","First Semester","Liberian Student",6601326]
[null,71,"TU-00073","Joseph","D.","Quayee","Male","College of Health Sciences","River Gee","2009/2010","First Semester","Liberian Student",6733463]
[null,105,"TU-00108","Joseph","T.","Clark,sr.","Male","College of Management","Maryland","2009/2010","First Semester","Liberian Student",6497775]
[null,175,"TU-00180","Joseph","S.","Nimley","Male","College of Technology","Grand Kru","2009/2010","First Semester","Liberian Student",667888]
[null,176,"TU-00181","Joseph","J.","Quayee","Male","College of Technology","River Gee","2009/2010","First Semester","Liberian Student",6748602]
[null,279,"TU-00385","Joseph","G.","Nyemah","Male","College of Management","Maryland","2009/2010","First Semester","Liberian Student",6949811]
[null,26,"TU-00108","Joseph","T.","Clark,Sr.","Male","College of Management","Maryland","2009/2010","Second Semester","Liberian Student",6497775]
[null,45,"TU-00048","Joseph","W.","Baker","Male","College of Health Sciences","River Gee","2009/2010","Second Semester","Liberian Student",66601326]
[null,61,"TU-00073","Joseph","D.","Quayee","Male","College of Health Sciences","River Gee","2009/2010","Second Semester","Liberian Student",6733463]
[null,74,"TU-00181","Joseph","J.","Quayee","Male","College of Technology","Maryland","2009/2010","Second Semester","Liberian Student",6748602]
[null,76,"Tu-00180","Joseph","N.","Nimley","Male","College of Technology","Grand Kru","2009/2010","Second Semester","Liberian Student",6671188]
[null,202,"TU-00385","Joseph","G.","Nyema","Male","College of Management","Maryland","2009/2010","Second Semester","Liberian Student",6949811]
[null,68,"TU-00385","Joseph","G.","Nyema","Male","College of Management","Maryland","2010/2011","First Semester","Liberian Student",6949811]
[null,214,"TU-00181","Joseph","J.","Quayee","Male","College of Technology","Maryland","2010/2011","First Semester","Liberian Student",6748605]
[null,215,"TU-00180","Joseph","N.","Nimley","Male","College of Technology","Maryland","2010/2011","First Semester","Liberian Student",6671188]
[null,333,"TU-00073","Joseph","D.","Quayee","Male","College of Health Sciences","River Gee","2010/2011","First Semester","Liberian Student",67334]
[null,334,"TU-00048","Joseph","W.","Baker","Male","College of Health Sciences","River Gee","2010/2011","First Semester","Liberian Student",6601326]
[null,336,"TU-00463","Joseph",null,"Daye","Male","College of Health Sciences","Maryland","2010/2011","First Semester","Liberian Student",6501595]
[null,213,"TU-00180","Joseph","N.","Nimeley,Jr.","Male","College of Technology","Grand Kru","2010/2011","Second Semester","Liberian Student",6671188]
[null,446,"TU-00181","Joseph","J.","Quayee","Male","College of Technology","Maryland","2010/2011","Second Semester","Liberian Student",6748602]
[null,324,"TU-00073","Joseph","D.","Quayee","Male","College of Health Sciences","Maryland","2010/2011","Second Semester","Liberian Student",6733463]
[null,327,"TU-00463","Joseph",null,"Daye","Male","College of Health Sciences","Maryland","2010/2011","Second Semester","Liberian Student",6501595]
[null,329,"TU-00048","Joseph","W.","Baker","Male","College of Health Sciences","Maryland","2010/2011","Second Semester","Liberian Student"]
[null,346,"TU-00385","Joseph","G.","Nyemah","Male","College of Management","Maryland","2010/2011","Second Semester","Liberian Student"]
[null,504,"TU-00463","Joseph",null,"Daye","Male","College of Health Sciences","Grand Bassa","2011/2012","First Semester","Liberian Student",6501595]
[null,602,"TU-00073","Joseph","D.","Quayee","Male","College of Health Sciences","River Gee","2011/2012","First Semester","Liberian Student",733463]
[null,1047,"TU-00048","Joseph","W.","Baker","Male","College of Health Sciences","River Gee","2011/2012","First Semester","Liberian Student"]
[null,null,"TU-00385","Joseph","G.","Nyema","Male","College of Management","Maryland","2011/2012","First Semester","Liberian Student",6949811]
[null,null,"TU-00385","Joseph","G.","Nyemah","Male","College of Management","Maryland","2011/2012","First Semester","Liberian Student",6949811]
[null,null,null,"Joseph","K.","Nugba","Male","College of Management","Maryland","2011/2012","First Semester","Liberian Student",6464927]
[null,null,"TU-00626","Joseph","","Kay","Male","College of Education","River Gee","2011/2012","First Semester","Liberian Student"]
[null,null,"TU-00725","Joseph","S.","Allison","Male","College of Education","Maryland","2011/2012","First Semester","Liberian Student",6336985]
[null,null,"TU-00180","Joseph","S.","Nimley","Male","College of Technology","Grand Kru","2011/2012","First Semester","Liberian Student",667888]
[null,76,"TU-00218","Josephine","Y.","Brewer","Female","College of Agriculture and Food Sciences","Maryland","2010/2011","Second Semester","Liberian Student",880609749]
[null,69,"TU-00533","Josephine","S.","Nimene","Female","College of Management","Grand Kru","2010/2011","First Semester","Liberian Student",6568227]
[null,101,"TU-00218","Josephine","Y.","Brewer","Female","College of Agriculture and Food Sciences","Maryland","2009/2010","Second Semester","Liberian Student",6519243]
[null,212,"TU-00218","Josephine","Y.","Brewer","Female","College of Agriculture and Food Sciences","Maryland","2009/2010","First Semester","Liberian Student",6519043]
[null,429,"TU-00218","Josephine","Y.","Brewer","Female","College of Agriculture and Food Sciences","Maryland","2010/2011","First Semester","Liberian Student",880609749]
[null,415,"TU-00533","Josephine","S.","Nimene","Female","College of Management","Grand Kru","2010/2011","Second Semester","Liberian Student",6568227]
[null,1081,"TU-00707","Josephine","S.","Kamanu","Female","College of Health Sciences","Lofa","2011/2012","First Semester","Liberian Student",6145073]
[null,1170,"TU-00218","Josephine","Y.","Brewer","Female","College of Agriculture and Food Sciences","Maryland","2011/2012","First Semester","Liberian Student",880633327]
[null,null,"TU-00848","Josephine","G.","Newton","Female","College of Management","Maryland","2011/2012","First Semester","Liberian Student",6958618]
[null,null,776,"Josephine","Y.","Allison","Female","College of Management","Maryland","2011/2012","First Semester","Liberian Student",6462735]
[null,102,"TU-00104","Josiah","W.","Nimeley","Male","College of Health Sciences","River Gee","2009/2010","First Semester","Liberian Student",6673826]
[null,337,"TU-00104","Josiah","W.","Nimley","Male","College of Health Sciences","Maryland","2010/2011","First Semester","Liberian Student",6673826]
[null,330,"TU-00104","Josiah","W.","Nimley","Male","College of Health Sciences","Maryland","2010/2011","Second Semester","Liberian Student",6673826]
[null,604,"TU-00104","Josiah","W.","Nimely","Male","College of Health Sciences",null,"2011/2012","First Semester","Liberian Student",6673826]
[null,1112,"TU-00692","Josiah","B.","Wilson","Male","College of Health Sciences","Maryland","2011/2012","First Semester","Liberian Student",6577343]
[null,null,"TU-00737","Josiah","C.","Davis","Male","College of Education","Sinoe","2011/2012","First Semester","Liberian Student",880630503]
[null,190,"TU-00104","Josiah ","W.","Nimley","Male","College of Health Sciences","River Gee","2009/2010","Second Semester","Liberian Student"]
[null,53,"TU-00544","Jouah","A.","Nagbe","Male","College of Agriculture and Food Sciences","Grand Kru","2010/2011","Second Semester","Liberian Student",6340995]
[null,430,"TU-00544","Jouah",null,"Nagbe","Male","College of Agriculture and Food Sciences","Maryland","2010/2011","First Semester","Liberian Student",6340995]
[null,70,"TU-00528","Julia","J.","Natt","Female","College of Management","Maryland","2010/2011","First Semester","Liberian Student"]
[null,429,"TU-00528","Julia","J.","Natt","Female","College of Management","Grand Kru","2010/2011","Second Semester","Liberian Student"]
[null,null,"TU-00528","Julia","J.","Natt","Female","College of Management","Maryland","2011/2012","First Semester","Liberian Student"]
[null,272,"TU-00378","Julian","W.","Morais","Female","College of Education","Maryland","2009/2010","First Semester","Liberian Student",6638531]
[null,83,"TU-00483","Julian","K.","Kekula","Male","College of Agriculture and Food Sciences","Grand Cape Mount","2010/2011","Second Semester","Liberian Student"]
[null,140,"TU-00378","Julian","W.","Morias","Female","College of Education","Maryland","2009/2010","Second Semester","Liberian Student",66638531]
[null,140,"TU-00378","Julian","W.","Morias","Female","College of Education","Maryland","2010/2011","First Semester","Liberian Student",6329865]
[null,431,"TU-00483","Julian","K.","Kekula","Male","College of Agriculture and Food Sciences","Bong","2010/2011","First Semester","Liberian Student",6950084]
[null,88,"TU-00378","Julian","W.","Morias","Female","College of Education","Maryland","2010/2011","Second Semester","Liberian Student",6329865]
[null,1209,"TU-00483","Julian","K.","Kekula","Male","College of Agriculture and Food Sciences",null,"2011/2012","First Semester","Liberian Student",6950084]
[null,null,"TU-00378","Julian","W.","Morais","Female","College of Education","Maryland","2011/2012","First Semester","Liberian Student",6638531]
[null,139,"TU-00459","Julius","N.","Mathews","Male","College of Education","Maryland","2010/2011","First Semester","Liberian Student",6797827]
[null,114,"TU-00459","Julius","N.","Mathews","Male","College of Education","Grand Kru","2010/2011","Second Semester","Liberian Student",6883898]
[null,null,"TU-00459","Julius","N.","Mathews","Male","College of Education","Grand Kru","2011/2012","First Semester","Liberian Student",6907827]
[null,7,"TU-00007","Kabee",null,"Jackson","Male","College of Agriculture and Food Sciences","Maryland","2009/2010","First Semester","Liberian Student",6340999]
[null,49,"TU-00007","Kabee",null,"Jackson","Male","College of Agriculture and Food Sciences","Maryland","2010/2011","Second Semester","Liberian Student"]
[null,62,"TU-00007","Kabee",null,"Jackson","Male","College of Agriculture and Food Sciences","Maryland","2009/2010","Second Semester","Liberian Student",6123087]
[null,1176,null,"Kabee",null,"Jackson",null,"College of Agriculture and Food Sciences","Margibi","2011/2012","First Semester","Liberian Student",6123087]
[null,null,"TU-00831","Kaliatu","E.","George","Female","College of Education","Non-Liberian","2011/2012","First Semester","Liberian Student",880804574]
[null,338,"TU-00523","Kamuka","K.","Judukon","Male","College of Health Sciences","Maryland","2010/2011","First Semester","Liberian Student",6715605]
[null,307,"TU-00523","Kamuka","K.","Judukon","Male","College of Health Sciences","Grand Kru","2010/2011","Second Semester","Liberian Student"]
[null,1007,"TU-00523","Kamuka","K.","Judukon","Male","College of Health Sciences",null,"2011/2012","First Semester","Liberian Student",6175605]
[null,17,"TU-00019","Karanzo",null,"Kama","Male","College of Education","Maryland","2009/2010","First Semester","Liberian Student",684297]
[null,68,"TU-00026","Karpeh","D.","Wilson","Male","College of Agriculture and Food Sciences","River Gee","2009/2010","Second Semester","Liberian Student",6940911]
[null,71,"TU-00522","Karpla","D.","Karney","Male","College of Management","Bomi","2010/2011","First Semester","Liberian Student",6901681]
[null,455,"TU-00522","Karpla","D.","Karney","Male","College of Management","Bong","2010/2011","Second Semester","Liberian Student"]
[null,null,"TU-00522","Karpla","D.","Kaeney","Male","College of Management","Bomi","2011/2012","First Semester","Liberian Student",6901681]
[null,336,"TU-00414","Kay","S.","Smith","Male","College of Health Sciences","Grand Kru","2010/2011","Second Semester","Liberian Student",6481098]
[null,1038,"TU-00414","Kay","S.","Smith",null,"College of Health Sciences",null,"2011/2012","First Semester","Liberian Student",6481096]
[null,106,"TU-00109","Kemah",null,"Akio","Female","College of Technology","Lofa","2009/2010","First Semester","Liberian Student",6418624]
[null,124,"TU-00109","Kemah",null,"Akoi","Male","College of Technology","Lofa","2009/2010","Second Semester","Liberian Student",6418624]
[null,216,"TU-00109","Kemah",null,"Akoi","Male","College of Technology","Bomi","2010/2011","First Semester","Liberian Student",6418624]
[null,453,"TU-00109","Kemah",null,"Akoi","Male","College of Technology","Lofa","2010/2011","Second Semester","Liberian Student"]
[null,null,"TU-00109","Kemah","","Akio","Male","College of Technology","Lofa","2011/2012","First Semester","Liberian Student",6418624]
[null,112,"TU-00116","Kezelee","T.","Karcee","Male","College of Technology","Maryland","2009/2010","First Semester","Liberian Student",659609]
[null,195,"TU-00116","Kezelee","T.","Kercee","Male","College of Technology","Maryland","2009/2010","Second Semester","Liberian Student"]
[null,217,"TU-00116","Kezelee","T.","Karcee","Male","College of Technology","Maryland","2010/2011","First Semester","Liberian Student",6682060]
[null,204,"TU-00116","Kezelee","T.","Karecee","Male","College of Technology","Maryland","2010/2011","Second Semester","Liberian Student",6682060]
[null,null,"TU-00116","Kezelee","T.","Karcee","Male","College of Technology","Maryland","2011/2012","First Semester","Liberian Student",659609]
[null,61,"TU-00576","Kierous","O.","Kipi","Male","College of Agriculture and Food Sciences","Maryland","2010/2011","Second Semester","Liberian Student",6601919]
[null,432,"TU-00574","Kierous","O.","Kipi","Male","College of Agriculture and Food Sciences","Grand Kru","2010/2011","First Semester","Liberian Student",6601919]
[null,null,"TU-00623","Kim","D.","Saylee","Male","College of Management","Sinoe","2011/2012","First Semester","Liberian Student",880754022]
[null,null,"TU-00236","Kla - Dio","","Allison,Jr.","Male","College of Education","Maryland","2011/2012","First Semester","Liberian Student",6402501]
[null,141,"TU-00236","Kla-Dio",null,"Allison","Male","College of Education","Maryland","2010/2011","First Semester","Liberian Student",6402501]
[null,121,"TU-00236","Kla-Dio",null,"Allison","Male","College of Education","Maryland","2010/2011","Second Semester","Liberian Student"]
[null,142,"TU-00503","Kla-Hweye",null,"Wilson","Male","College of Education","Maryland","2010/2011","First Semester","Liberian Student",6898560]
[null,null,"TU-00503","Kla-Hweye","","Wilson","Male","College of Education","Maryland","2011/2012","First Semester","Liberian Student",6898560]
[null,null,"TU-00682","Klon",null,"Quire","Male","College of Education","Maryland","2011/2012","First Semester","Liberian Student",6858256]
[null,43,"TU-00216","Kollie","B.","Momo","Male","College of Agriculture and Food Sciences","Lofa","2010/2011","Second Semester","Liberian Student",6667437]
[null,210,"TU-00216","Kollie","B.","Momo","Male","College of Agriculture and Food Sciences","Lofa","2009/2010","First Semester","Liberian Student",6667437]
[null,433,"TU-00216","Kollie","B.","Momo","Male","College of Agriculture and Food Sciences","Lofa","2010/2011","First Semester","Liberian Student",667437]
[null,1191,"TU-00216","Kollie","B.","Momo","Male","College of Agriculture and Food Sciences","Maryland","2011/2012","First Semester","Liberian Student",6667437]
[null,12,"TU-00012","Korbee","J.","Goffah","Male","College of Education","Maryland","2009/2010","First Semester","Liberian Student",6273307]
[null,57,"TU-00012","Korbee",null,"Goffah","Male","College of Education","Maryland","2009/2010","Second Semester","Liberian Student",6273007]
[null,143,"TU-00012","Korbee",null,"Goffah","Male","College of Education","Maryland","2010/2011","First Semester","Liberian Student",6273307]
[null,106,"TU-00012","Korbee",null,"Goffah","Male","College of Education","Maryland","2010/2011","Second Semester","Liberian Student",6273307]
[null,null,"TU-00012","Korbee","J.","Goffah","Male","College of Education","Maryland","2011/2012","First Semester","Liberian Student",6273307]
[null,64,"TU-00066","Kumeh",null,"Morris","Male","College of Agriculture and Food Sciences","Lofa","2009/2010","First Semester","Liberian Student",678945]
[null,194,"TU-00066","Kumeh ",null,"Morris","Male","College of Agriculture and Food Sciences","Lofa","2009/2010","Second Semester","Liberian Student"]
[null,126,"TU-00130","Kwazaye","T.","Wameker","Male","College of Technology","Nimba","2009/2010","First Semester","Liberian Student",6283514]
[null,218,"TU-00130","Kwazaye","T.","Wameker","Male","College of Technology","Nimba","2010/2011","First Semester","Liberian Student",6283514]
[null,206,"TU-00130","Kwazaye","T.","Wameker","Male","College of Technology","Nimba","2010/2011","Second Semester","Liberian Student",6283514]
[null,null,"TU-00130","Kwazaye","T.","Wameker","Male","College of Technology","Nimba","2011/2012","First Semester","Liberian Student",6283514]
[null,null,"TU-00860","Kwende","Y.","Howe","Female","College of Technology","Maryland","2011/2012","First Semester","Liberian Student",6340976]
[null,72,"TU-00139","Kwiamle","S.","Elliott","Male","College of Management","Maryland","2010/2011","First Semester","Liberian Student",6666938]
[null,11,"TU-00011","Lancelot","H.","Clark","Male","College of Education","Maryland","2009/2010","First Semester","Liberian Student",627207]
[null,32,"TU-00011","Lancelot","H.","Clark","Male","College of Education","Maryland","2009/2010","Second Semester","Liberian Student",6767766]
[null,186,"TU-00191","Lawrence","B.","Howe","Male","College of Technology","Maryland","2009/2010","First Semester","Liberian Student",6603274]
[null,6,"TU-00232","Lawrence","P.","Wilson","Male","College of Agriculture and Food Sciences","Maryland","2010/2011","Second Semester","Liberian Student",6404662]
[null,40,"TU-00213","Lawrence","B.","Kyne","Male","College of Agriculture and Food Sciences","Maryland","2010/2011","Second Semester","Liberian Student",6928564]
[null,219,"TU-00499","Lawrence","G.","Collins","Male","College of Technology","Maryland","2010/2011","First Semester","Liberian Student",6767480]
[null,220,"TU-00191","Lawrence","B.","Howe","Male","College of Technology","Maryland","2010/2011","First Semester","Liberian Student"]
[null,102,"TU-00213","Lawrence","B.","Kyne","Male","College of Agriculture and Food Sciences","Maryland","2009/2010","Second Semester","Liberian Student",6928564]
[null,207,"TU-00213","Lawrence","B.","Kyne","Male","College of Agriculture and Food Sciences","Maryland","2009/2010","First Semester","Liberian Student",6928564]
[null,434,"TU-00213","Lawrence","B.","Kyne","Male","College of Agriculture and Food Sciences","Maryland","2010/2011","First Semester","Liberian Student",6928564]
[null,435,"TU-00232","Lawrence","P.","Wilson","Male","College of Agriculture and Food Sciences","Maryland","2010/2011","First Semester","Liberian Student",6404662]
[null,152,"TU-00499","Lawrence","G.","Collins","Male","College of Technology","Maryland","2010/2011","Second Semester","Liberian Student",6764780]
[null,207,"TU-00191","Lawrence","B.","Howe","Male","College of Technology","Maryland","2010/2011","Second Semester","Liberian Student",6406906]
[null,1200,"TU-00232","Lawrence","P.","Wilson","Male","College of Agriculture and Food Sciences","Maryland","2011/2012","First Semester","Liberian Student",6404662]
[null,1248,"TU-00647","Lawrence",null,"Bannie","Male","College of Agriculture and Food Sciences","Maryland","2011/2012","First Semester","Liberian Student",6831684]
[null,null,"TU-00191","Lawrence","B.","Howe","Male","College of Technology","Maryland","2011/2012","First Semester","Liberian Student",6603274]
[null,null,"TU-00499","Lawrence","G.","Collins","Male","College of Technology","Maryland","2011/2012","First Semester","Liberian Student",6767480]
[null,73,"TU-00436","Leah","W.","Karmbor","Female","College of Management","Maryland","2010/2011","First Semester","Liberian Student",6747292]
[null,420,"TU-00436","Leah","W.","Karmbor","Female","College of Management","Grand Kru","2010/2011","Second Semester","Liberian Student",6747292]
[null,null,"TU-00436","Leah","W.","Karmbor","Female","College of Management","Grand Kru","2011/2012","First Semester","Li berain Student",6747292]
[null,151,"TU-00156","Lerog","G.","Tealeh","Male","College of Technology","River Gee","2009/2010","First Semester","Liberian Student",62742114]
[null,34,"TU-00156","Leroy","G.","Tealeh","Male","College of Agriculture and Food Sciences","Maryland","2010/2011","Second Semester","Liberian Student",66122934]
[null,66,"TU-00156","Leroy","G.","Tealeh","Male","College of Agriculture and Food Sciences","River Gee","2009/2010","Second Semester","Liberian Student",6122934]
[null,436,"TU-00156","Leroy","G.","Tealeh","Male","College of Agriculture and Food Sciences","Maryland","2010/2011","First Semester","Liberian Student",6122934]
[null,1131,"TU-00150","Leroy","G.","Tealeh","Male","College of Agriculture and Food Sciences",null,"2011/2012","First Semester","Liberian Student",880633050]
[null,1185,"TU-00156","Leroy","G.","Tealeh","Male","College of Agriculture and Food Sciences",null,"2011/2012","First Semester","Liberian Student",880633050]
[null,1276,"TU-00711","Leroy","T.","Krah","Male","College of Agriculture and Food Sciences","Grand Kru","2011/2012","First Semester","Liberian Student",76355868]
[null,104,"TU-00107","Lesole","M.","Dowah","Female","College of Management","Margibi","2009/2010","First Semester","Liberian Student",6601954]
[null,129,"TU-00107","Lesole","M.","Dowah","Female","College of Management","Nimba","2009/2010","Second Semester","Liberian Student",6601954]
[null,74,"TU-00107","Lesole","M.","Dowah","Female","College of Management","Nimba","2010/2011","First Semester","Liberian Student",6601954]
[null,421,"TU-00107","Lesole",null,"Dowah","Female","College of Management","Margibi","2010/2011","Second Semester","Liberian Student"]
[null,null,"TU-00107","Lesole",null,"Dowah","Male","College of Management","Margibi","2011/2012","First Semester","Liberian Student",6601954]
[null,454,"TU-00622","Leticia","P.","Grasco","Female","College of Health Sciences","Grand Bassa","2011/2012","First Semester","Liberian Student",880994649]
[null,69,"TU-00071","Levi","S.","Gbofuiah","Male","College of Technology","River Gee","2009/2010","First Semester","Liberian Student",6419591]
[null,18,"TU-00071","Levi","S.","Gbofuiah","Male","College of Health Sciences","Maryland","2009/2010","Second Semester","Liberian Student",6419591]
[null,339,"TU-00071","Levi","S.","Gbofuiah","Male","College of Health Sciences","Maryland","2010/2011","First Semester","Liberian Student",6419591]
[null,319,"TU-00071","Levi","S.","Gbofuiah","Male","College of Health Sciences","Maryland","2010/2011","Second Semester","Liberian Student",6419591]
[null,1014,"TU-00071","Levi","S.","Gbafuiah","Male","College of Health Sciences","Maryland","2011/2012","First Semester","Liberian Student",6419591]
[null,340,"TU-00572","Levit","T.","Tanwine","Male","College of Health Sciences","Maryland","2010/2011","First Semester","Liberian Student",6618785]
[null,300,"TU-00580","Levit",null,"Tanwine","Male","College of Health Sciences","Maryland","2010/2011","Second Semester","Liberian Student",6835903]
[null,1022,"TU-00580","Levit","T.","Tanwine","Male","College of Health Sciences","Maryland","2011/2012","First Semester","Liberian Student",880606896]
[null,null,"TU-00829","Lloyd","C.","Thomson","Male","College of Management","Maryland","2011/2012","First Semester","Liberian Student",6208368]
[null,144,"TU-00259","Louise","M.","Weah","Female","College of Education","Maryland","2010/2011","First Semester","Liberian Student"]
[null,104,"TU-00259","Louise","M.","Weah","Female","College of Education","Maryland","2010/2011","Second Semester","Liberian Student"]
[null,null,"TU-00259","Louise","M.","Weah","Female","College of Education","Maryland","2011/2012","First Semester","Liberian Students",6798343]
[null,239,"TU-00063","Lovetta","G.","Paye","Female","College of Health Sciences","Lofa","2010/2011","Second Semester","Liberian Student",6611320]
[null,61,"TU-00063","Lovette","M.","Paye","Female","College of Health Sciences","Bong","2009/2010","First Semester","Liberian Student",6611320]
[null,49,"TU-00063","Lovette","G.","Paye","Female","College of Health Sciences","Bong","2009/2010","Second Semester","Liberian Student",6611320]
[null,341,"TU-00063","Lovette","G.","Paye","Female","College of Health Sciences","Bong","2010/2011","First Semester","Liberian Student",5511320]
[null,1015,"TU-00063","Lovette","G.","Paye","Female","College of Health Sciences","Bong","2011/2012","First Semester","Liberian Student",6611320]
[null,1093,"TU-00700","Lucinda","P.","Brewer","Female","College of Health Sciences","Maryland","2011/2012","First Semester","Liberian Student",6759537]
[null,null,"TU-00587","Lugi","","Gray","Male","College of Education","Grand Kru","2011/2012","First Semester","Liberian Student"]
[null,137,"TU-00587","Luigi","M.","Gray","Male","College of Education","Grand Kru","2010/2011","Second Semester","Liberian Student",77145351]
[null,null,"TU-00834","Luther","T.","Gbeasee","Male","College of Education","River Gee","2011/2012","First Semester","Liberian Student",6318863]
[null,1227,"TU-00689","M D Cholee","G.","Brown Sr","Male","College of Agriculture and Food Sciences","Maryland","2011/2012","First Semester","Liberian Student",6958360]
[null,342,"TU-00064","M.Hnede","A.","Kondy","Female","College of Health Sciences","Maryland","2010/2011","First Semester","Liberian Student",880607621]
[null,57,"TU-00059","Malcolm","P.","Smith","Male","College of Health Sciences","Maryland","2009/2010","First Semester","Liberian Student",6418531]
[null,33,"TU-00059","Malcolm","P.","Smith","Male","College of Health Sciences","Maryland","2009/2010","Second Semester","Liberian Student",6418531]
[null,221,"TU-00456","Malcolm","B.","Kolako","Male","College of Technology","Margibi","2010/2011","First Semester","Liberian Student",6498229]
[null,343,"TU-00059","Malcolm","P.","Smith","Male","College of Health Sciences","Maryland","2010/2011","First Semester","Liberian Student",6418531]
[null,171,"TU-00456","Malcolm","B.","Kolako","Male","College of Technology","Margibi","2010/2011","Second Semester","Liberian Student",6498229]
[null,298,"TU-00059","Malcolm","P.","Smith","Male","College of Health Sciences","Maryland","2010/2011","Second Semester","Liberian Student",6418531]
[null,null,"TU-00456","Malcolm","B.","Kolako","Male","College of Technology","Margibi","2011/2012","First Semester","Liberian Student",6498229]
[null,806,"TU-00059","Malcom","P.","Smith","Male","College of Health Sciences","Maryland","2011/2012","First Semester","Liberian Student",6418531]
[null,280,"TU-00386","Mamuna",null,"Meyga","Female","College of Technology","Maryland","2009/2010","First Semester","Liberian Student",6654470]
[null,127,"TU-00386","Mamuna",null,"Meyga","Female","College of Technology","Maryland","2009/2010","Second Semester","Liberian Student",6654470]
[null,222,"TU-00386","Mamuna",null,"Meyga","Female","College of Technology","Maryland","2010/2011","First Semester","Liberian Student",6654470]
[null,169,"TU-00386","Mamuna",null,"Meyga","Female","College of Technology","Maryland","2010/2011","Second Semester","Liberian Student",6654470]
[null,null,"TU-00386","Mamuna","","Meyga","Female","College of Technology","Maryland","2011/2012","First Semester","Liberian Student",6654470]
[null,437,"TU-00288","Mandalla","B.","Geply","Male","College of Agriculture and Food Sciences","River Gee","2010/2011","First Semester","Liberian Student",6292461]
[null,67,"TU-00288","Mandella","B.","Geply","Male","College of Agriculture and Food Sciences","River Gee","2010/2011","Second Semester","Liberian Student",6292461]
[null,1179,"TU-00288","Mandella","B.","Geply","Male","College of Agriculture and Food Sciences","River Gee","2011/2012","First Semester","Liberian Student",6292461]
[null,null,"TU-00799","Marcus","Q.","Polley","Male","College of Education","Grand Kru","2011/2012","First Semester","Liberian Student",77871183]
[null,344,"TU-00443","Mardea","J.","Weefur","Female","College of Health Sciences","Maryland","2010/2011","First Semester","Liberian Student",6767682]
[null,247,"TU-00443","Mardea","J.","Weefur","Female","College of Health Sciences","Grand Kru","2010/2011","Second Semester","Liberian Student",6739679]
[null,904,"TU-00443","Mardea","J.","Weefur","Female","College of Health Sciences","Grand Kru","2011/2012","First Semester","Liberian Student",880632956]
[null,223,"TU-00249","Margret","W.","Konneh","Female","College of Technology","Maryland","2010/2011","First Semester","Liberian Student",6603083]
[null,184,"TU-00249","Margret","W.","Konneh","Female","College of Technology","Maryland","2010/2011","Second Semester","Liberian Student",6603083]
[null,null,"TU-00249","Margret","W.","Konneh","Female","College of Technology","Maryland","2011/2012","First Semester","Liberian Student",6603083]
[null,132,"TU-00136","Marie","G.","Freeman","Female","College of Management","Maryland","2009/2010","First Semester","Liberian Student",6980843]
[null,225,"TU-00136","Marie","G.","Freeman","Female","College of Management","Maryland","2009/2010","Second Semester","Liberian Student"]
[null,75,"TU-00136","Marie","G.","Freeman","Female","College of Management","Maryland","2010/2011","First Semester","Liberian Student",66980843]
[null,417,"TU-00136","Marie","G.","Freeman","Female","College of Management","Maryland","2010/2011","Second Semester","Liberian Student",6980843]
[null,null,"TU-00136","Marie","G.","Freeman","Male","College of Management","Maryland","2011/2012","First Semester","Liberian Student",6980843]
[null,null,"TU-00688","Marie",null,"Walker","Male","College of Education","River Gee","2011/2012","First Semester","Liberian Student",6715255]
[null,54,"TU-00056","Mark","N.","Quitee","Male","College of Health Sciences","River Gee","2009/2010","First Semester","Liberian Student",6755825]
[null,116,"TU-00120","Mark","K.","Satia","Male","College of Technology","Grand Kru","2009/2010","First Semester","Liberian Student",6882547]
[null,28,"TU-00056","Mark","C.","Quitee","Male","College of Health Sciences","River Gee","2009/2010","Second Semester","Liberian Student",6755825]
[null,84,"TU-00325","Mark","C.","Kossigbo","Male","College of Agriculture and Food Sciences","River Gee","2010/2011","Second Semester","Liberian Student",699782]
[null,248,"TU-00120","Mark","T.","Satia","Male","College of Technology","Grand Kru","2009/2010","Second Semester","Liberian Student",6691274]
[null,224,"TU-00120","Mark","K.","Satia","Male","College of Technology","Maryland","2010/2011","First Semester","Liberian Student"]
[null,345,"TU-00056","Mark","N.","Quitee","Male","College of Health Sciences","Maryland","2010/2011","First Semester","Liberian Student",6755825]
[null,438,"TU-00325","Mark","C.","Kossigba","Male","College of Agriculture and Food Sciences","River Gee","2010/2011","First Semester","Liberian Student",6491736]
[null,180,"TU-00120","Mark","K.","Satia","Male","College of Technology","Grand Kru","2010/2011","Second Semester","Liberian Student",6691274]
[null,296,"TU-00056","Mark","N.","Quitee","Male","College of Health Sciences","River Gee","2010/2011","Second Semester","Liberian Student",6755825]
[null,1044,"TU-00056","Mark","N.","Quitee","Male","College of Health Sciences","River Gee","2011/2012","First Semester","Liberian Student",6755825]
[null,1135,"TU-00325","MarK","C.","Kossigbo","Male","College of Agriculture and Food Sciences","River Gee","2011/2012","First Semester","Liberian Student",6993782]
[null,1253,"TU-00671","Mark","H.","Wah","Male","College of Agriculture and Food Sciences","Maryland","2011/2012","First Semester","Liberian Student",6824659]
[null,null,"TU-00120","Mark","K.","Satia","Male","College of Technology","Grand Kru","2011/2012","First Semester","Liberian Student",6882547]
[null,null,"TU-00837","Mark","K.","Toe","Male","College of Technology","Maryland","2011/2012","First Semester","Liberian Student",6768595]
[null,94,"TU-00096","Martha","B.","Toe","Female","College of Health Sciences","Maryland","2009/2010","First Semester","Liberian Student",6294371]
[null,346,"TU-00096","Martha","B.","Toe","Male","College of Health Sciences","Maryland","2010/2011","First Semester","Liberian Student",6294311]
[null,465,"TU-00096","Martha","B.","Toe","Female","College of Health Sciences","Maryland","2010/2011","Second Semester","Liberian Student"]
[null,456,"TU-00096","Martha","B.","Toe","Female","College of Health Sciences","Maryland","2011/2012","First Semester","Liberian Student",6294371]
[null,4,"TU-00004","Martin","G.","Blanyon","Male","College of Health Sciences","Maryland","2009/2010","First Semester","Liberian Student",779239081]
[null,139,"TU-00143","Martin","S.","Nyeka","Male","College of Management","Maryland","2009/2010","First Semester","Liberian Student",6497771]
[null,169,"TU-00143","Martin","S.","Nyeka","Male","College of Management","Maryland","2009/2010","Second Semester","Liberian Student",6602188]
[null,76,"TU-00143","Martin","S.","Nyeka","Male","College of Management","Maryland","2010/2011","First Semester","Liberian Student",6497771]
[null,347,"TU-00004","Martin","G.","Blanyon","Male","College of Health Sciences","Maryland","2010/2011","First Semester","Liberian Student",6780851]
[null,311,"TU-00004","Martin","G.","Blanyon","Male","College of Health Sciences","Maryland","2010/2011","Second Semester","Liberian Student",6780851]
[null,390,"TU-00143","Martin","S.","Nyeka","Male","College of Management","Maryland","2010/2011","Second Semester","Liberian Student",6497771]
[null,1050,"TU-00004","Martin","G.","Blayon","Male","College of Health Sciences","Maryland","2011/2012","First Semester","Liberian Student",6780851]
[null,77,"TU-00412","Martina","M.","Dalieh","Female","College of Management","Maryland","2010/2011","First Semester","Liberian Student"]
[null,434,"TU-00412","Martina","M.","Dalieh","Female","College of Management","Maryland","2010/2011","Second Semester","Liberian Student"]
[null,null,"TU-00412","Martina","M.","Dalieh","Male","College of Management","Maryland","2011/2012","First Semester","Liberian Student",6219815]
[null,null,"TU-00412","Martina","M.","Dalieh","Female","College of Management","Maryland","2011/2012","First Semester","Liberian Student"]
[null,1119,"TU-00697","Marwarline","S.","Wernah","Female","College of Health Sciences","Lofa","2011/2012","First Semester","Liberian Student",6520362]
[null,281,"TU-00387","Maryann","M.","Brewer","Female","College of Technology","Maryland","2009/2010","First Semester","Liberian Student",6910142]
[null,104,"TU-00387","Maryann","M.","Brewer","Female","College of Technology","Maryland","2009/2010","Second Semester","Liberian Student",6910142]
[null,225,"TU-00587","Maryann","M.","Brewer","Female","College of Technology","Maryland","2010/2011","First Semester","Liberian Student",762835459]
[null,167,"TU-00387","Maryann","M.","Brewer","Female","College of Technology","Maryland","2010/2011","Second Semester","Liberian Student",880631060]
[null,null,"TU-00387","Maryann","M.","Brewer","Female","College of Technology","Maryland","2011/2012","First Semester","Liberian Student",6910142]
[null,103,"TU-00106","Masunnoh","T.","Karweaye","Female","College of Management","River Gee","2009/2010","First Semester","Liberian Student",6919488]
[null,85,"TU-00106","Masunnoh","T.","Karweaye","Male","College of Management","Grand Kru","2009/2010","Second Semester","Liberian Student",6919488]
[null,78,"TU-00106","Masunnoh","T.","Karweaye","Male","College of Management","Maryland","2010/2011","First Semester","Liberian Student",6919488]
[null,79,"TU-00440","Mathew","S.","Tweh,Jr.","Male","College of Management","Maryland","2010/2011","First Semester","Liberian Student",6457367]
[null,376,"TU-00440","Mathew","S.","Tweh, Jr.","Male","College of Management","Maryland","2010/2011","Second Semester","Liberian Student",6457367]
[null,null,"TU-00","Mathew","K.","Kesseh","Male","College of Education","Maryland","2011/2012","First Semester","Liberian Student",880632718]
[null,null,"TU-00440","Matthew","S.","Tweh Jr","Male","College of Management",null,"2011/2012","First Semester","Liberian Student",6457367]
[null,80,"TU-00428","Maya","M.","Kaikai","Male","College of Management","Margibi","2010/2011","First Semester","Liberian Student",6837068]
[null,null,"TU-00428","Maya","M.","Kaikai","Male","College of Management","Margibi","2011/2012","First Semester","Liberian Student",6837068]
[null,226,"TU-00305","Meshach","Y.","Carpenter","Male","College of Technology","Grand Kru","2010/2011","First Semester","Liberian Student",76285116]
[null,172,"TU-00305","Meshach","Y.","Capenter","Male","College of Technology","Maryland","2010/2011","Second Semester","Liberian Student",6686446]
[null,null,"TU-00305","Meshach","Y.","Carpenter","Male","College of Technology","Maryland","2011/2012","First Semester","Liberian Student",76285116]
[null,1089,"TU-00780","Mewasieh","D.","Keagon","Male","College of Health Sciences",null,"2011/2012","First Semester","Liberian Student"]
[null,15,"TU-00017","Michael","B.","Stemn","Male","College of Agriculture and Food Sciences","Maryland","2009/2010","First Semester","Liberian Student",667790]
[null,143,"TU-00147","Michael","T.","Nimely","Male","College of Technology","Grand Kru","2009/2010","First Semester","Liberian Student",6733006]
[null,54,"TU-00017","Michael","B.","Stemn","Male","College of Agriculture and Food Sciences","Maryland","2009/2010","Second Semester","Liberian Student",6327576]
[null,145,"TU-00147","Michael","T.","Nimeley","Male","College of Technology","Grand Kru","2009/2010","Second Semester","Liberian Student",6733006]
[null,461,"TU-00017","Michael","B.","Stemn","Male","College of Agriculture and Food Sciences","Maryland","2010/2011","Second Semester","Liberian Student",6444773]
[null,228,"TU-00147","Michael",null,"Nimely,Jr.","Male","College of Technology","Maryland","2010/2011","First Semester","Liberian Student"]
[null,439,"TU-00017","Michael","B.","Stemn","Male","College of Agriculture and Food Sciences","Maryland","2010/2011","First Semester","Liberian Student",6444773]
[null,440,"TU-00147","Michael",null,"Nimely,Jr.","Male","College of Technology","Grand Kru","2010/2011","Second Semester","Liberian Student"]
[null,null,"TU-00147","Michael","T.","Nimely","Male","College of Technology","Grand Kru","2011/2012","First Semester","Liberian Student",6733006]
[null,229,"TU-00258","Mike","J.","Koti","Male","College of Technology","Maryland","2010/2011","First Semester","Liberian Student",6654980]
[null,173,"TU-00258","Mikel","J.","Koti","Male","College of Technology","Maryland","2010/2011","Second Semester","Liberian Student",6654980]
[null,125,"TU-00167","Milacent","G.","Scere","Female","College of Education","Maryland","2010/2011","Second Semester","Liberian Student",880634545]
[null,162,"TU-00167","Milalcent","G.","Screce","Female","College of Education","Maryland","2009/2010","First Semester","Liberian Student",6188222]
[null,148,"TU-00167","Milalcent","G.","Scere","Female","College of Education","Maryland","2009/2010","Second Semester","Liberian Student",6188555]
[null,145,"TU-00167","Milalcent","G.","Scere","Female","College of Education","Maryland","2010/2011","First Semester","Liberian Student",880634545]
[null,null,"TU-00167","Milalcent","G.","Screce","Female","College of Education","Maryland","2011/2012","First Semester","Liberian Student",6188222]
[null,null,"TU-00704","Milton","G.","Wesseh","Male","College of Education","River Gee","2011/2012","First Semester","Liberian Student",6326158]
[null,230,"TU-00506","Mohammed","J.","Sidibay","Male","College of Technology","Lofa","2010/2011","First Semester","Liberian Student",880061604]
[null,439,"TU-00506","Mohammed","J.","Sidibay","Male","College of Technology","Montserrado","2010/2011","Second Semester","Liberian Student",77321937]
[null,1018,"TU-00638","Mohammed","O.","Toury","Male","College of Health Sciences","Maryland","2011/2012","First Semester","Liberian Student",6922424]
[null,146,"TU-00301","Mohanmed","B.","Kamara","Male","College of Education","Lofa","2010/2011","First Semester","Liberian Student",6684870]
[null,95,"Tu-00216","Momo","B.","Kollie","Male","College of Agriculture and Food Sciences","Lofa","2009/2010","Second Semester","Liberian Student",6667437]
[null,274,"TU-00380","Momoh","D.","Kollie","Male","College of Technology","Lofa","2009/2010","First Semester","Liberian Student",6757696]
[null,94,"TU-00380","Momoh","D.","Kollie","Male","College of Technology","Lofa","2009/2010","Second Semester","Liberian Student",6757696]
[null,231,"TU-00380","Momoh","D.","Kollie","Male","College of Technology","Lofa","2010/2011","First Semester","Liberian Student",6319364]
[null,198,"TU-00380","Momoh","D.","Kollie","Male","College of Technology","Lofa","2010/2011","Second Semester","Liberian Student",6757696]
[null,null,"TU-00380","Momoh","D.","Kollie","Male","College of Technology","Lofa","2011/2012","First Semester","Liberian Student",6757696]
[null,19,"TU-00420","Morris",null,"Jabateh, Jr.","Male","College of Agriculture and Food Sciences","Nimba","2010/2011","Second Semester","Liberian Student",6798674]
[null,29,"TU-00066","Morris",null,"Kumeh","Male","College of Agriculture and Food Sciences","Maryland","2010/2011","Second Semester","Liberian Student",6651292]
[null,87,"TU-00449","Morris","D.","Wreh","Male","College of Agriculture and Food Sciences","Grand Bassa","2010/2011","Second Semester","Liberian Student",6641802]
[null,440,"TU-00066","Morris",null,"Kumah","Male","College of Agriculture and Food Sciences","Maryland","2010/2011","First Semester","Liberian Student",6651292]
[null,441,"TU-00420","Morris","J.","Jabateh","Male","College of Agriculture and Food Sciences","Nimba","2010/2011","First Semester","Liberian Student",6798674]
[null,442,"TU-00449","Morris","D.","Wreh","Male","College of Agriculture and Food Sciences","Maryland","2010/2011","First Semester","Liberian Student",6641802]
[null,292,"TU-00351","Morris","M.","Jarka","Male","College of Health Sciences","Maryland","2010/2011","Second Semester","Liberian Student",6140054]
[null,1009,"TU-00351","Morris","M.","Jarka","Male","College of Health Sciences",null,"2011/2012","First Semester","Liberian Student",880631885]
[null,1144,"TU-00420","Morris",null,"Jabateh","Male","College of Agriculture and Food Sciences",null,"2011/2012","First Semester","Liberian Student",6798674]
[null,1175,"TU-00066","Morris",null,"Kumeh","Male","College of Agriculture and Food Sciences",null,"2011/2012","First Semester","Liberian Student",6651292]
[null,1274,"TU-00657","Morris","M.","Neufville","Male","College of Agriculture and Food Sciences",null,"2011/2012","First Semester","Liberian Student",6162827]
[null,58,"TU-00060","Moses","N.","Natt","Male","College of Health Sciences","Maryland","2009/2010","First Semester","Liberian Student",6577198]
[null,96,"TU-00098","Moses","S.","Landford","Male","College of Management","Maryland","2009/2010","First Semester","Liberian Student",6566027]
[null,152,"TU-00157","Moses","M.","Moore","Male","College of Management","Maryland","2009/2010","First Semester","Liberian Student",6941485]
[null,235,"TU-00340","Moses","J.","Sherrill","Male","College of Technology","Maryland","2009/2010","First Semester","Liberian Student",6870029]
[null,19,98,"Moses","S.","Landford","Male","College of Management","Maryland","2009/2010","Second Semester","Liberian Student",6666194]
[null,171,"TU-00340","Moses","J.","Sherrill","Male","College of Technology","Maryland","2009/2010","Second Semester","Liberian Student",6653345]
[null,216,"TU-00060","Moses","N.","Natt","Male","College of Health Sciences","Maryland","2009/2010","Second Semester","Liberian Student",6577198]
[null,236,"TU-00157","Moses","M.","Moore","Male","College of Management","Maryland","2009/2010","Second Semester","Liberian Student",6941485]
[null,81,"TU-00098","Moses","P.","Landfore","Male","College of Management","Maryland","2010/2011","First Semester","Liberian Student",6140038]
[null,82,"TU-00157","Moses","M.","Moore","Male","College of Management","Maryland","2010/2011","First Semester","Liberian Student",6946485]
[null,83,"TU-00286","Moses","T.","The","Male","College of Management","Grand Kru","2010/2011","First Semester","Liberian Student",6776269]
[null,232,"TU-00340","Moses","J.","Sherrill","Male","College of Technology","Maryland","2010/2011","First Semester","Liberian Student"]
[null,348,"TU-00496","Moses","N.","Chea","Male","College of Health Sciences","Maryland","2010/2011","First Semester","Liberian Student",6491307]
[null,486,"TU-00060","Moses","N.","Natt","Male","College of Health Sciences","Grand Kru","2010/2011","First Semester","Liberian Student",6577198]
[null,459,"TU-00340","Moses",null,"Sherriff","Male","College of Technology","Maryland","2010/2011","Second Semester","Liberian Student"]
[null,290,"TU-00496","Moses","N.","Chea","Male","College of Health Sciences","Maryland","2010/2011","Second Semester","Liberian Student"]
[null,306,"TU-00060","Moses","N.","Natt","Male","College of Health Sciences","Grand Kru","2010/2011","Second Semester","Liberian Student",657198]
[null,363,"TU-00157","Moses","M.","Moore","Male","College of Management","Maryland","2010/2011","Second Semester","Liberian Student",96320062]
[null,383,"TU-00098","Moses","S.","Landfore","Male","College of Management","Maryland","2010/2011","Second Semester","Liberian Student",6140038]
[null,389,"TU-00286","Moses","T.","The","Male","College of Management","Sinoe","2010/2011","Second Semester","Liberian Student",6776269]
[null,609,"TU-00496","Moses","N.","Chea","Male","College of Health Sciences",null,"2011/2012","First Semester","Liberian Student",6491301]
[null,1069,"TU-00060","Moses","N.","Natt","Male","College of Health Sciences",null,"2011/2012","First Semester","Liberian Student",6577198]
[null,null,"TU-00098","Moses","S.","Landford","Male","College of Management",null,"2011/2012","First Semester","Liberian Student",6140038]
[null,null,"TU-00157","Moses","M.","Moore","Male","College of Management",null,"2011/2012","First Semester","Liberian Student"]
[null,null,"TU-00286","Moses","T.","The","Male","College of Management",null,"2011/2012","First Semester","Liberian Student",6776269]
[null,null,"TU-00684","Moses","J.","Dennis","Male","College of Education","Maryland","2011/2012","First Semester","Liberian Student"]
[null,null,"TU-00750","Moses","A.","Geayon","Male","College of Education","Grand Gedeh","2011/2012","First Semester","Liberian Student",6490201]
[null,null,"TU-00340","Moses","J.","Sherrill","Male","College of Technology","Maryland","2011/2012","First Semester","Liberian Student",6870029]
[null,null,"TU-00644","Moses","L.","Karbia","Male","College of Technology",null,"2011/2012","First Semester","Liberian Student",6467253]
[null,217,"TU-00223","Mozetta","S.","Greenfield","Female","College of Management","Maryland","2009/2010","First Semester","Liberian Student",6561901]
[null,99,"TU-00223","Mozetta","S.","Greenfield","Male","College of Management","Maryland","2009/2010","Second Semester","Liberian Student",6561901]
[null,84,"TU-00223","Mozetta","S.","Greenfield","Female","College of Management","Maryland","2010/2011","First Semester","Liberian Student",880632603]
[null,387,"TU-00223","Mozetta","S.","Greenfiled","Female","College of Management","Maryland","2010/2011","Second Semester","Liberian Student",880632603]
[null,null,"TU-00223","Mozetta","S.","Greenfield","Female","College of Management","Maryland","2011/2012","First Semester","Liberian Student",6561901]
[null,108,"TU-00212","Mustafa","G.","Jallah","Male","College of Technology","Lofa","2009/2010","Second Semester","Liberian Student",6987956]
[null,206,"TU-00212","Mustapha","C.","Jallah","Male","College of Technology","Lofa","2009/2010","First Semester","Liberian Student",6914134]
[null,85,"TU-00212","Mustapha","C.","Jallah","Male","College of Management","Lofa","2010/2011","First Semester","Liberian Student",6914134]
[null,406,"TU-00154","Mustapha",null,"Jallah","Male","College of Management","Lofa","2010/2011","Second Semester","Liberian Student"]
[null,null,"TU-00212","Mustapha","C.","Jallah","Male","College of Management",null,"2011/2012","First Semester","Liberian Student",6914134]
[null,189,"TU-00194","Myers","B.","Toe","Male","College of Health Sciences","River Gee","2009/2010","First Semester","Liberian Student",6920571]
[null,172,"TU-00194","Myers","B.","Toe","Male","College of Health Sciences","River Gee","2009/2010","Second Semester","Liberian Student",6377872]
[null,86,"TU-00194","Myers","B.","Toe","Male","College of Management","Maryland","2010/2011","First Semester","Liberian Student",6920571]
[null,347,"TU-00194","Myers","B.","Toe","Male","College of Management","Maryland","2010/2011","Second Semester","Liberian Student",6920571]
[null,1186,"TU-00513","N","D.","Dweh Jr","Male","College of Agriculture and Food Sciences",null,"2011/2012","First Semester","Liberian Student",6972211]
[null,108,"TU-00112","Naankon","W.","Weah","Male","College of Technology","Grand Kru","2009/2010","First Semester","Liberian Student",6819971]
[null,233,"TU-00112","Naankpan","W.","Weah","Male","College of Technology","Grand Kru","2010/2011","First Semester","Liberian Student"]
[null,443,"TU-00112","Naankpan","W.","Weah","Male","College of Technology","Grand Kru","2010/2011","Second Semester","Liberian Student"]
[null,null,"TU-00112","Naankpan","W.","Weah","Male","College of Technology","Grand Kru","2011/2012","First Semester","Liberian Student",6819971]
[null,88,"TU-00419","Nancy","H.","Johnny","Female","College of Management","Maryland","2010/2011","First Semester","Liberian Student",6686366]
[null,349,"TU-00461","Nancy","W.","Mombo","Female","College of Health Sciences","Maryland","2010/2011","First Semester","Liberian Student",6668719]
[null,275,"TU-00461","Nancy","W.","Monbo","Female","College of Health Sciences","Grand Kru","2010/2011","Second Semester","Liberian Student",6668719]
[null,386,"TU-00419","Nancy","H.","Johnny","Female","College of Management","Maryland","2010/2011","Second Semester","Liberian Student",6686366]
[null,503,"TU-00461","Nancy","W.","Monbo","Female","College of Health Sciences",null,"2011/2012","First Semester","Liberian Student",6668719]
[null,null,"TU-00419","Nancy","H.","Johnny",null,"College of Management",null,"2011/2012","First Semester","Liberian Student",6686366]
[null,318,"TU-00446","Nathaline","T.","Wilson","Male","College of Health Sciences","Maryland","2010/2011","Second Semester","Liberian Student",6941427]
[null,149,"Tu-00153","Nathaniel","N.","Brown","Male","College of Management","Grand Kru","2009/2010","First Semester","Liberian Student",6291131]
[null,234,"TU-00455","Nathaniel","D.","Wilson","Male","College of Technology","Maryland","2010/2011","First Semester","Liberian Student",61233139]
[null,487,"TU-00454","Nathaniel",null,"Freeman","Male","College of Health Sciences","Maryland","2010/2011","First Semester","Liberian Student",6935434]
[null,464,"TU-00455","Nathaniel",null,"Wilson","Male","College of Technology","Maryland","2010/2011","Second Semester","Liberian Student",6740099]
[null,303,"TU-00454","Nathaniel","T.","Freeman","Male","College of Health Sciences","Maryland","2010/2011","Second Semester","Liberian Student",6935434]
[null,901,"TU-00454","Nathaniel","T.","Freeman","Male","College of Health Sciences",null,"2011/2012","First Semester","Liberian Student",6935434]
[null,1094,"TU-00717","Nathaniel","G.","Bedell","Male","College of Health Sciences","Maryland","2011/2012","First Semester","Liberian Student",6485219]
[null,null,"TU-00455","Nathaniel","D.","Wilson","Male","College of Technology","Maryland","2011/2012","First Semester","Liberian Student",6123139]
[null,350,"TU-00446","Nathanline","T.","Wilson","Female","College of Health Sciences","Maryland","2010/2011","First Semester","Liberian Student",6941427]
[null,136,"TU-00140","Nat-Kollie",null,"Freeman","Male","College of Management","Maryland","2009/2010","First Semester","Liberian Student",6418322]
[null,120,"TU-00140","Nat-kollie",null,"Freeman","Male","College of Management","Maryland","2009/2010","Second Semester","Liberian Student",6418322]
[null,89,"TU-00140","Nat-kollie",null,"Freeman","Male","College of Management","Maryland","2010/2011","First Semester","Liberian Student",6418322]
[null,350,"TU-00140","Nat-Kollie",null,"Freeman","Male","College of Management","Maryland","2010/2011","Second Semester","Liberian Student",6418322]
[null,31,"TU-00487","Natrick","G.","Worlo","Male","College of Agriculture and Food Sciences","Grand Kru","2010/2011","Second Semester","Liberian Student",6477783]
[null,443,"TU-00487","Natrick","G.","Worlo","Male","College of Agriculture and Food Sciences","Maryland","2010/2011","First Semester","Liberian Student",6557921]
[null,1078,"TU-00761","Nelson","M.","Zomonway","Male","College of Health Sciences","Grand Bassa","2011/2012","First Semester","Liberian Student",294848]
[null,null,"TU-00672","Nunah","V.","Wilson","Female","College of Management",null,"2011/2012","First Semester","Liberian Student",6920721]
[null,70,"TU-00287","Nyamah","W.","Folee","Female","College of Agriculture and Food Sciences","Maryland","2010/2011","Second Semester","Liberian Student",6668677]
[null,444,"TU-00287","Nyamah","W.","Folee","Male","College of Agriculture and Food Sciences","Maryland","2010/2011","First Semester","Liberian Student"]
[null,1165,"TU-00287","Nyamah","W.","Folee","Male","College of Agriculture and Food Sciences",null,"2011/2012","First Semester","Liberian Student",6668677]
[null,807,"TU-00621","Nyanfore",null,"Bedell","Male","College of Health Sciences",null,"2011/2012","First Semester","Liberian Student",6566016]
[null,1091,"TU-00788","Nyemade","H.","Forkpah","Male","College of Health Sciences","Maryland","2011/2012","First Semester","Liberian Student",6444331]
[null,16,"TU-00018","Nyemah","Z.","Walloh","Male","College of Agriculture and Food Sciences","Grand Kru","2009/2010","First Semester","Liberian Student",4910315]
[null,39,"TU-00018","Nyemah","Z.","Walloh","Male","College of Agriculture and Food Sciences","Grand Kru","2010/2011","Second Semester","Liberian Student",6291523]
[null,147,"TU-00018","Nyemah","Z.","Walloh","Male","College of Agriculture and Food Sciences","Maryland","2009/2010","Second Semester","Liberian Student",6291523]
[null,201,"TU-00018","Nyemah","Z.","Walloh","Male","College of Agriculture and Food Sciences","Grand Kru","2009/2010","Second Semester","Liberian Student"]
[null,445,"TU-00018","Nyemah","Z.","Walloh","Male","College of Agriculture and Food Sciences","Grand Kru","2010/2011","First Semester","Liberian Student",6201523]
[null,119,"TU-00123","O'ernest","F.","Blaloh, Sr.","Male","College of Technology","Sinoe","2009/2010","First Semester","Liberian Student",6273507]
[null,39,"TU-00123","O'ernest","F.","Blaloh, Sr.","Male","College of Technology","Sinoe","2009/2010","Second Semester","Liberian Student",6273507]
[null,60,"TU-00289","Oharo","S.","Donnie","Male","College of Agriculture and Food Sciences","Bong","2010/2011","Second Semester","Liberian Student",6740217]
[null,446,"TU-00289","Oharo","S.","Donnie","Male","College of Agriculture and Food Sciences","Maryland","2010/2011","First Semester","Liberian Student",880634558]
[null,17,"TU-00228","Okasablee","W.","Kwarbo","Male","College of Agriculture and Food Sciences","Maryland","2009/2010","Second Semester","Liberian Student",6291865]
[null,62,"TU-00228","Okasablee","W.","Kwarbo","Male","College of Agriculture and Food Sciences","Maryland","2010/2011","Second Semester","Liberian Student",6291865]
[null,222,"TU-00228","Okasablee","W.","Kwarbo","Male","College of Agriculture and Food Sciences","Maryland","2009/2010","First Semester","Liberian Student",6291865]
[null,447,"TU-00228","Okasablee","W.","Kwarbo","Male","College of Agriculture and Food Sciences","Maryland","2010/2011","First Semester","Liberian Student",6291865]
[null,1152,"TU-00228","Okasablee","W.","Kwarbo","Male","College of Agriculture and Food Sciences",null,"2011/2012","First Semester","Liberian Student",6291865]
[null,null,"TU-00813","Olive","H.","Wilson","Female","College of Education","Maryland","2011/2012","First Semester","Liberian Student"]
[null,147,"TU-00492","Oliver","D.","Allison","Male","College of Education","Maryland","2010/2011","First Semester","Liberian Student",6973659]
[null,103,"TU-00492","Oliver","D.","Allison","Male","College of Education","Maryland","2010/2011","Second Semester","Liberian Student",6973659]
[null,null,"TU-00492","Oliver","D.","Allison","Male","College of Education","Maryland","2011/2012","First Semester","Liberian Student",6973659]
[null,1090,"TU-00","Olivia","S.","Blanyon","Female","College of Health Sciences","Maryland","2011/2012","First Semester","Liberian Student"]
[null,90,"TU-00269","Omega",null,"Griffiths","Female","College of Management","Maryland","2010/2011","First Semester","Liberian Student",6206768]
[null,91,"TU-00430","Omega","T.","Allison","Male","College of Management","Maryland","2010/2011","First Semester","Liberian Student",6928818]
[null,351,"TU-00290","Omega","K.","Martin","Male","College of Health Sciences","Maryland","2010/2011","First Semester","Liberian Student"]
[null,334,"TU-00290","Omega","K.","Martin","Male","College of Health Sciences","Maryland","2010/2011","Second Semester","Liberian Student",663381]
[null,402,"TU-00430","Omega","T.","Allison","Male","College of Management","Maryland","2010/2011","Second Semester","Liberian Student"]
[null,457,"TU-00269","Omega",null,"Griffiths","Female","College of Management","Maryland","2010/2011","Second Semester","Liberian Student"]
[null,1056,"TU-00290","Omega","K.","Martin","Male","College of Health Sciences",null,"2011/2012","First Semester","Liberian Student"]
[null,null,"TU-00269","Omega","","Griffiths","Female","College of Management","Maryland","2011/2012","First Semester","Liberian Student",6206768]
[null,null,"TU-00430","Omega","T.","Allison","Male","College of Management","Maryland","2011/2012","First Semester","Liberian Student",6928818]
[null,null,null,"Oratus","S.","Doweh","Male","College of Management","Maryland","2011/2012","First Semester","Liberian Student",6672367]
[null,235,"TU-00264","Oretha","K.","Fahnbulleh","Male","College of Technology","Grand Cape Mount","2010/2011","First Semester","Liberian Student",6577428]
[null,168,"TU-00264","Oretha","K.","Fahnbulleh","Female","College of Technology","Grand Cape Mount","2010/2011","Second Semester","Liberian Student",6577423]
[null,1117,"TU-00719","Oretha","N.","Wilson","Female","College of Health Sciences",null,"2011/2012","First Semester","Liberian Student",6603117]
[null,null,"TU-00264","Oretha","K.","Fahnbulleh","Male","College of Technology","Maryland","2011/2012","First Semester","Liberian Student",6577423]
[null,92,"TU-00474","Oscar","D.","Wreh","Male","College of Management","Maryland","2010/2011","First Semester","Liberian Student",6997363]
[null,1239,"TU-00770","Othellia","D.","Onyekwere","Female","College of Agriculture and Food Sciences","Maryland","2011/2012","First Semester","Liberian Student",77398989]
[null,3,"TU-00003","Othello","W.","Weah","Male","College of Agriculture and Food Sciences","Sinoe","2009/2010","First Semester","Liberian Student",6473173]
[null,3,"TU-00003","Othello","W.","Wleh","Male","College of Agriculture and Food Sciences","Sinoe","2009/2010","Second Semester","Liberian Student",6743173]
[null,148,"TU-00545","Othello","J.","Hinneh","Male","College of Education","Maryland","2010/2011","First Semester","Liberian Student",6696643]
[null,17,"TU-00361","Othello","P.","Dennis","Male","College of Agriculture and Food Sciences","Maryland","2010/2011","Second Semester","Liberian Student",880632694]
[null,81,"TU-00003","Othello","W.","Wleh","Male","College of Agriculture and Food Sciences","Maryland","2010/2011","Second Semester","Liberian Student",6473173]
[null,182,"TU-00361","Othello","P.","Dennis","Male","College of Agriculture and Food Sciences","Maryland","2009/2010","Second Semester","Liberian Student",6782215]
[null,255,"TU-00361","Othello","P.","Dennie","Male","College of Agriculture and Food Sciences","Maryland","2009/2010","First Semester","Liberian Student",6782215]
[null,448,"TU-00361","Othello","P.","Dennis","Male","College of Agriculture and Food Sciences","Maryland","2010/2011","First Semester","Liberian Student",6137703]
[null,449,"TU-00003","Othello","W.","Wleh","Male","College of Agriculture and Food Sciences","Maryland","2010/2011","First Semester","Liberian Student",6473173]
[null,1130,"TU-00361","Othello","P.","Dennis","Male","College of Agriculture and Food Sciences",null,"2011/2012","First Semester","Liberian Student",6177703]
[null,236,"TU-00341","Otis","c.","Blay","Male","College of Management","Grand Gedeh","2009/2010","First Semester","Liberian Student",6295732]
[null,352,"TU-00253","Otis","B.","Kangar.Jr.","Male","College of Health Sciences","Maryland","2010/2011","First Semester","Liberian Student",6996333]
[null,302,"TU-00253","Otis","B.","Kangar","Male","College of Health Sciences","Maryland","2010/2011","Second Semester","Liberian Student",6996333]
[null,374,"TU-00341","Otis","C.","Blay","Male","College of Management","Sinoe","2010/2011","Second Semester","Liberian Student",6601883]
[null,601,"TU-00253","Otis","B.","Kangar Jr.","Male","College of Health Sciences",null,"2010/2011","First Semester","Liberian Student",6996333]
[null,{"$f":"B1642+1","v":303},"TU-00253","Otis","B.","Kangar,Jr.","M","College of Health Sciences","Margibi","2010/2011","First Semester","Liberian Student",6996333]
[null,null,"TU-00341","Otis","C.","Blay","Male","College of Management",null,"2011/2012","First Semester","Liberian Student",6601883]
[null,214,"TU-00341","Otis ","C.","Blay","Male","College of Management","Grand Gedeh","2009/2010","Second Semester","Liberian Student",6582620]
[null,93,"TU-00341","Otis ","C.","Blay","Male","College of Management","Sinoe","2010/2011","First Semester","Liberian Student",6601883]
[null,149,"TU-00555","Overster","Q.","Quayee","Male","College of Education","Maryland","2010/2011","First Semester","Liberian Student",6601905]
[null,null,"TU-00555","Overster","Q.","Quayee","Male","College of Education","Maryland","2011/2012","First Semester","Liberian Student",6601905]
[null,109,"TU-00555","Ovester","Q.","Quayee","Male","College of Education","Maryland","2010/2011","Second Semester","Liberian Student",6601905]
[null,1099,"TU-00826","P.","V.","Wiah","Male","College of Health Sciences",null,"2011/2012","First Semester","Liberian Student",6676184]
[null,368,"TU-00230","P. Mike",null,"Jurry","Male","College of Management","Maryland","2010/2011","Second Semester","Liberian Student",6566959]
[null,null,"TU-00230","P. Mike","","Jurry","Male","College of Management","Grand Kru","2011/2012","First Semester","Liberian Student",6566959]
[null,94,"TU-00230","P.Mike",null,"Jurry","Male","College of Management","Grand Kru","2010/2011","First Semester","Liberian Student",6566959]
[null,234,"TU-00339","Pagar","S.","Williams","Male","College of Technology","Grand Bassa","2009/2010","First Semester","Liberian Student",6739672]
[null,null,"TU-00339","Pagar","S.","Williams","Male","College of Technology","Grand Bassa","2011/2012","First Semester","Liberian Student",6739672]
[null,450,"TU-00529","Partick","K.","Dalieh","Male","College of Agriculture and Food Sciences","Maryland","2010/2011","First Semester","Liberian Student",6202235]
[null,72,"TU-00580","Pascal",null,"Wesseh","Male","College of Agriculture and Food Sciences","Maryland","2010/2011","Second Semester","Liberian Student",6601862]
[null,1147,"TU-00633","Pascal","T.","Wesseh","Male","College of Agriculture and Food Sciences",null,"2011/2012","First Semester","Liberian Student",6601682]
[null,14,"TU-00087","Patienc","F.","Slekey","Female","College of Health Sciences","Nimba","2009/2010","Second Semester","Liberian Student",6549749]
[null,85,"TU-00087","Patience","F.","Slekey","Female","College of Health Sciences","Nimba","2009/2010","First Semester","Liberian Student",65497491]
[null,353,"TU-00087","Patience","F.","Slekey","Female","College of Health Sciences","Lofa","2010/2011","First Semester","Liberian Student",6549749]
[null,225,"TU-00087","Patience","F.","Slekey","Female","College of Health Sciences","Nimba","2010/2011","Second Semester","Liberian Student"]
[null,145,"TU-00149","Patricia","G.","Satia","Female","College of Technology","Grand Kru","2009/2010","First Semester","Liberian Student",6941686]
[null,126,"TU-00149","Patricia","G.","Satia","Female","College of Technology","Grand Kru","2009/2010","Second Semester","Liberian Student",6941686]
[null,236,"TU-00149","Patricia","G.","Satia","Female","College of Technology","Maryland","2010/2011","First Semester","Liberian Student",6941686]
[null,144,"TU-00149","Patricia","G.","Satia","Female","College of Technology","Maryland","2010/2011","Second Semester","Liberian Student",6941686]
[null,null,"TU-00149","Patricia","G.","Satia","Female","College of Technology","Grand Kru","2011/2012","First Semester","Liberian Student",6941686]
[null,11,"TU-00032","Patrick","F.","Toe","Male","College of Agriculture and Food Sciences","Maryland","2009/2010","Second Semester","Liberian Student",6649544]
[null,30,"TU-00032","Patrick","F.","Toe","Male","College of Agriculture and Food Sciences","River Gee","2009/2010","First Semester","Liberian Student",6649544]
[null,150,"TU-00398","Patrick","N.","Blamoh","Male","College of Education","Maryland","2010/2011","First Semester","Liberian Student",6970009]
[null,11,"TU-00579","Patrick","T.","Howe","Male","College of Agriculture and Food Sciences","Maryland","2010/2011","Second Semester","Liberian Student",6407518]
[null,22,"TU-00032","Patrick","F.","Toe","Male","College of Agriculture and Food Sciences","Maryland","2010/2011","Second Semester","Liberian Student",6649544]
[null,32,"TU-00529","Patrick","K.","Dalieh","Male","College of Agriculture and Food Sciences","Maryland","2010/2011","Second Semester","Liberian Student",6499962]
[null,496,"TU-00559","Patrick",null,"Tye","Male","College of Technology","Maryland","2010/2011","First Semester","Liberian Student"]
[null,451,"TU-00032","Patrick","F.","Toe","Male","College of Agriculture and Food Sciences","Maryland","2010/2011","First Semester","Liberian Student",6649544]
[null,452,"TU-00502","Patrick","T.","Howe","Male","College of Agriculture and Food Sciences","Maryland","2010/2011","First Semester","Liberian Student",6407518]
[null,90,"TU-00398","Patrick","N.","Blamoh","Male","College of Education","Grand Kru","2010/2011","Second Semester","Liberian Student",6970009]
[null,222,"TU-00559","Patrick",null,"Tye","Male","College of Technology","Maryland","2010/2011","Second Semester","Liberian Student"]
[null,1137,"TU-00529","Patrick","K.","Dalieh","Male","College of Agriculture and Food Sciences",null,"2011/2012","First Semester","Liberian Student",6499962]
[null,1157,"TU-00579","Patrick","T.","Howe","Male","College of Agriculture and Food Sciences",null,"2011/2012","First Semester","Liberian Student",6407518]
[null,1164,"TU-00032","Patrick","F.","Toe","Male","College of Agriculture and Food Sciences",null,"2011/2012","First Semester","Liberian Student",6649545]
[null,null,"TU-00398","Patrick","N","Blamoh","Male","College of Education","Grand Kru","2011/2012","First Semester","Liberian Student",6970009]
[null,null,"TU-00777","Patrick","T.","Nugba","Male","College of Education","Maryland","2011/2012","First Semester","Liberian Student",6465346]
[null,null,"TU-00559","Patrick","T.","Tye","Male","College of Technology","Maryland","2011/2012","First Semester","Liberian Student",6649228]
[null,95,"TU-0480","Paul","W.","Dweh","Male","College of Management","River Gee","2010/2011","First Semester","Liberian Student",6870287]
[null,null,"TU-00480","Paul","W.","Dweh","Male","College of Management","River Gee","2011/2012","First Semester","Liberian Student",6870287]
[null,238,"TU-00115","Paulinus","S.","Dixion,Jr.","Male","College of Technology","Maryland","2010/2011","First Semester","Liberian Student"]
[null,196,"TU-00115","Paulinus","S.","Dixon","Male","College of Technology","Grand Kru","2010/2011","Second Semester","Liberian Student",6290567]
[null,151,"TU-00339","Paygar","S.","Williams","Male","College of Technology","Grand Bassa","2009/2010","Second Semester","Liberian Student",6739672]
[null,239,"TU-00339","Paygar","S.","Williams","Male","College of Technology","Grand Bassa","2010/2011","First Semester","Liberian Student",6739672]
[null,211,"TU-00339","Paygar","S.","Williams","Male","College of Technology","Grand Bassa","2010/2011","Second Semester","Liberian Student",6739672]
[null,151,"TU-00423","Paynyonoh","M.","Jarjugwiah","Male","College of Education","Maryland","2010/2011","First Semester","Liberian Student",6464775]
[null,124,"TU-00423","Paynyonoh","M.","Jarjugwiah","Female","College of Education","Maryland","2010/2011","Second Semester","Liberian Student",6464775]
[null,null,"TU-00423","Paynyonoh","M.","Jarjugwiah","Female","College of Education","Maryland","2011/2012","First Semester","Liberian Student",6464775]
[null,1271,"TU-00749","Perry","D.","Wilson","Male","College of Agriculture and Food Sciences",null,"2011/2012","First Semester","Liberian Student",76108299]
[null,172,"TU-00177","Peter","N.","Williams,jr.","Male","College of Technology","Maryland","2009/2010","First Semester","Liberian Student",6839789]
[null,203,"TU-00177","Peter","N.","Williams,Jr.","Male","College of Technology","Maryland","2009/2010","Second Semester","Liberian Student",6839789]
[null,152,"TU-00311","Peter","M.","Griffiths","Male","College of Education","Maryland","2010/2011","First Semester","Liberian Student"]
[null,153,"TU-00317","Peter","G.","Herbert","Male","College of Education","Maryland","2010/2011","First Semester","Liberian Student",6526254]
[null,340,"TU-00177","Peter","N.","Williams","Male","College of Technology","Maryland","2010/2011","First Semester","Liberian Student",6839789]
[null,354,"TU-00441","Peter","S.","Koffa","Male","College of Health Sciences","Grand Kru","2010/2011","First Semester","Liberian Student",6499286]
[null,93,"TU-00317","Peter","G.","Herbert","Male","College of Education","Maryland","2010/2011","Second Semester","Liberian Student",6937365]
[null,116,"TU-00311","Peter","M.","Griffiths","Male","College of Education","Maryland","2010/2011","Second Semester","Liberian Student",6688237]
[null,154,"TU-00177","Peter","N.","Williams","Male","College of Technology","Maryland","2010/2011","Second Semester","Liberian Student",6839789]
[null,288,"TU-00394","Peter","C.","Dossen","Male","College of Health Sciences","Maryland","2010/2011","Second Semester","Liberian Student"]
[null,800,"TU-00441","Peter","S.","Koffa","Male","College of Health Sciences",null,"2011/2012","First Semester","Liberian Student"]
[null,1039,"TU-00394","Peter","C.","Dossen","Male","College of Health Sciences",null,"2011/2012","First Semester","Liberian Student",6941382]
[null,1214,"TU-00858","Peter","N.","Koffa","Male","College of Agriculture and Food Sciences",null,"2011/2012","First Semester","Liberian Student",6923732]
[null,null,null,"Peter","M.","Quire","Male","College of Management","Maryland","2011/2012","First Semester","Liberian Student",6732615]
[null,null,638,"Peter","N.","Tye","Male","College of Management","Maryland","2011/2012","First Semester","Liberian Student",880422738]
[null,null,"TU-00311","Peter","M.","Griffiths","Male","College of Education","Maryland","2011/2012","First Semester","Liberian Student"]
[null,null,"TU-00317","Peter","G.","Herbert","Male","College of Education","Maryland","2011/2012","First Semester","Liberian Student",6526754]
[null,null,"TU-00715","Peter","S.","Dandy II","Male","College of Education",null,"2011/2012","First Semester","Liberian Student",6920224]
[null,null,"TU-00805","Peter","M.","Walker","Male","College of Education",null,"2011/2012","First Semester","Liberian Student",76699675]
[null,null,"TU-00177","Peter","N.","Williams,jr.","Male","College of Technology","Maryland","2011/2012","First Semester","Liberian Student",6839789]
[null,78,"TU-00080","Phebe","D.","Kyne","Female","College of Health Sciences","Maryland","2009/2010","First Semester","Liberian Student",6928924]
[null,50,"TU-00080","Phebe","D.","Kyne","Female","College of Health Sciences","Maryland","2009/2010","Second Semester","Liberian Student",6928924]
[null,355,"TU-00080","Phebe","D.","Kyne","Female","College of Health Sciences","Maryland","2010/2011","First Semester","Liberian Student",6928924]
[null,249,"TU-00080","Phebe","D.","Kyne","Female","College of Health Sciences","Maryland","2010/2011","Second Semester","Liberian Student",6928927]
[null,803,"TU-00080","Phebe","D.","Kyne","Female","College of Health Sciences",null,"2011/2012","First Semester","Liberian Student"]
[null,154,"TU-00268","Philomena","B.","Pabo","Female","College of Education","Grand Kru","2010/2011","First Semester","Liberian Student",6478281]
[null,117,"TU-00268","Philomena","B.","Pabo","Female","College of Education","Grand Kru","2010/2011","Second Semester","Liberian Student",6478281]
[null,null,"TU-00268","Philomena","B.","Pabo","Female","College of Education","Grand Kru","2011/2012","First Semester","Liberian Student",6478281]
[null,null,"TU-00819","Pindarous","T.","Wutue","Male","College of Technology",null,"2011/2012","First Semester","Liberian Student",6402454]
[null,107,"TU-00110","Polosco","H.","Clark","Male","College of Technology","Maryland","2009/2010","First Semester","Liberian Student",6740300]
[null,25,"TU-00110","Polosco","H.","Clark","Male","College of Technology","Maryland","2009/2010","Second Semester","Liberian Student",6740300]
[null,343,"TU-00110","Polosco","H.","Clark","Male","College of Health Sciences","Maryland","2010/2011","Second Semester","Liberian Student"]
[null,1059,"TU-00110","Polosco","H.","Clark","Male","College of Health Sciences",null,"2011/2012","First Semester","Liberian Student",6740300]
[null,284,"TU-00517","Preston","D.","Geah","Male","College of Health Sciences","Maryland","2010/2011","Second Semester","Liberian Student",6204259]
[null,805,"TU-00217","Preston","B.","Geah","Male","College of Health Sciences",null,"2011/2012","First Semester","Liberian Student",6294359]
[null,89,"TU-00091","Prince","J.","Morris","Male","College of Education","Grand Bassa","2009/2010","First Semester","Liberian Student",6836763]
[null,13,"TU-00091","Prince","J.","Morris","Male","College of Education","Grand Bassa","2009/2010","Second Semester","Liberian Student",6262901]
[null,155,"TU-00091","Prince","C.","Morris","Male","College of Education","Grand Bassa","2010/2011","First Semester","Liberian Student",6836703]
[null,241,"TU-00304","Prince","K.","Clark","Male","College of Technology","Maryland","2010/2011","First Semester","Liberian Student",880634984]
[null,13,"TU-00358","Prince","K.","Quayee","Male","College of Agriculture and Food Sciences","River Gee","2010/2011","Second Semester","Liberian Student",6139155]
[null,177,"TU-00358","Prince","K.","Quayee","Male","College of Agriculture and Food Sciences","Maryland","2009/2010","Second Semester","Liberian Student",6870029]
[null,253,"TU-00358","Prince","K.","Quayee","Male","College of Agriculture and Food Sciences","Grand Kru","2009/2010","First Semester","Liberian Student",653345]
[null,453,"TU-00358","Prince","K.","Quayee","Male","College of Agriculture and Food Sciences","Maryland","2010/2011","First Semester","Liberian Student",6139155]
[null,110,"TU-00091","Prince","J.","Morris","Male","College of Education","Grand Bassa","2010/2011","Second Semester","Liberian Student",6836703]
[null,197,"TU-00304","Prince","K.","Clark","Male","College of Technology","Maryland","2010/2011","Second Semester","Liberian Student",880634984]
[null,1151,"TU-00358","Prince","K.","Queyee","Male","College of Agriculture and Food Sciences",null,"2011/2012","First Semester","Liberian Student",6139155]
[null,null,"TU-00091","Prince","J.","Morris","Male","College of Education","Grand Bassa","2011/2012","First Semester","Liberian Student",6836763]
[null,null,"TU-00304","Prince","K.","Clark","Male","College of Technology","Maryland","2011/2012","First Semester","Liberian Student",880634984]
[null,356,"TU-00481","Princess","Y.","Dennis","Female","College of Health Sciences","Maryland","2010/2011","First Semester","Liberian Student",6246548]
[null,261,"TU-00481","Princess","T.","Dennis","Female","College of Health Sciences","Maryland","2010/2011","Second Semester","Liberian Student",880423729]
[null,908,"TU-00481","Princess","Y.","Dennis","Female","College of Health Sciences",null,"2010/2011","First Semester","Liberian Student",880423729]
[null,1075,"TU-00481","Princess","Y.","Dennis","Female","College of Health Sciences",null,"2011/2012","First Semester","Liberian Student"]
[null,275,"TU-00381","Priscilia",null,"Shems","Female","College of Health Sciences","Maryland","2009/2010","First Semester","Liberian Student",6543300]
[null,357,"TU-00381","Priscilla","H.","Shems","Female","College of Health Sciences","Maryland","2010/2011","First Semester","Liberian Student",7629519]
[null,259,"TU-00381","Priscilla","H.","Shem","Female","College of Health Sciences","Maryland","2010/2011","Second Semester","Liberian Student",6543300]
[null,1067,"TU-00381","Priscilla","H.","Shems","Female","College of Health Sciences",null,"2011/2012","First Semester","Liberian Student",6543300]
[null,220,"TU-00381","Priscillia",null,"Shems","Female","College of Health Sciences","Maryland","2009/2010","Second Semester","Liberian Student",6543300]
[null,111,"TU-00115","Pualinus","S.","Dixion","Male","College of Technology","Grand Kru","2009/2010","First Semester","Liberian Student",6290725]
[null,198,"TU-00115","Pualinus","S.","Dixion","Male","College of Technology","Grand Kru","2009/2010","Second Semester","Liberian Student"]
[null,null,"TU-00115","Pualinus","S.","Dixion","Male","College of Technology","Grand Kru","2011/2012","First Semester","Liberian Student",6290725]
[null,225,"TU-00330","Quayee","M.","Toe","Male","College of Health Sciences","River Gee","2009/2010","First Semester","Liberian Student",664206]
[null,111,"TU-00330","Quayee","M.","Toe","Male","College of Health Sciences","River Gee","2009/2010","Second Semester","Liberian Student",6179357]
[null,358,"TU-00330","Quayee","M.","Toe,Jr.","Male","College of Health Sciences","Maryland","2010/2011","First Semester","Liberian Student",6122538]
[null,337,"TU-00330","Quayee","M.","Toe","Male","College of Health Sciences","Maryland","2010/2011","Second Semester","Liberian Student",6122538]
[null,1068,"TU-00330","Quayee","M.","Toe Jr","Male","College of Health Sciences",null,"2011/2012","First Semester","Liberian Student",880938305]
[null,null,"TU-00693","Quayee",null,"Donnie","Male","College of Education",null,"2011/2012","First Semester","Liberian Student",6601352]
[null,1102,"TU-00804","Rachel","K.","Cooper","Female","College of Health Sciences",null,"2011/2012","First Semester","Liberian Student",6871445]
[null,null,"TU-","Rachel","M.","Wallie","Female","College of Education",null,"2011/2012","First Semester","Liberian Student",6601507]
[null,1128,"TU-00847","Rahine","G.","Dennis","Male","College of Health Sciences",null,"2011/2012","First Semester","Liberian Student",6207260]
[null,null,663,"Rainsford",null,"Toe","Male","College of Management","Maryland","2011/2012","First Semester","Liberian Student",6402296]
[null,96,"TU-00306","Raymond","P.","Wallace","Male","College of Management","Maryland","2010/2011","First Semester","Liberian Student",6208364]
[null,null,"TU-00306","Raymond","P.","Wallace","Male","College of Management","Maryland","2011/2012","First Semester","Liberian Student",6208364]
[null,255,"TU-00553","Rebacca","W.","Wilson","Female","College of Health Sciences","Maryland","2010/2011","Second Semester","Liberian Student",6291707]
[null,359,"TU-00553","Rebecca","W.","Wilson","Female","College of Health Sciences","Maryland","2010/2011","First Semester","Liberian Student",880631231]
[null,1028,"TU-00553","Rebecca","W.","Wilson","Female","College of Health Sciences",null,"2011/2012","First Semester","Liberian Student",6923429]
[null,42,"TU-00044","Regina","W.","Wiefue","Female","College of Health Sciences","Grand Kru","2009/2010","First Semester","Liberian Student",6679567]
[null,48,"TU-00044","Regina","W.","Wiefue","Female","College of Health Sciences","Grand Kru","2009/2010","Second Semester","Liberian Student",6679567]
[null,360,"TU-00044","Regina","W.","Wiefue","Female","College of Health Sciences","Grand Kru","2010/2011","First Semester","Liberian Student",6679567]
[null,226,"TU-00044","Regina","W.","Wiefue","Female","College of Health Sciences","Grand Kru","2010/2011","Second Semester","Liberian Student",6679567]
[null,502,"TU-00044","Regina","W.","Wiefue","Female","College of Health Sciences",null,"2011/2012","First Semester","Liberian Student",6679567]
[null,159,"TU-00164","Reuben","G.","Togba","Male","College of Management","Sinoe","2009/2010","First Semester","Liberian Student",6488904]
[null,192,"TU-00164","Reuben","G.","Togba","Male","College of Management","Sinoe","2009/2010","Second Semester","Liberian Student",6488904]
[null,97,"TU-00164","Reuben","G.","Togba","Male","College of Management","Sinoe","2010/2011","First Semester","Liberian Student",880003119]
[null,359,"TU-00164","Reuben","G.","Togba","Male","College of Management","Sinoe","2010/2011","Second Semester","Liberian Student",880003119]
[null,null,"TU-00164","Reuben","G.","Togba","Male","College of Management","Sinoe","2011/2012","First Semester","Liberian Student",6488904]
[null,null,"TU-00815","Rex","C.","Harris","Male","College of Management",null,"2011/2012","First Semester","Liberian Student",776255043]
[null,221,"TU-00227","Richard","C.","Mydeh","Male","College of Technology","Grand Bassa","2009/2010","First Semester","Liberian Student",6871048]
[null,260,"TU-00366","Richard","D.","Allison","Male","College of Education","Maryland","2009/2010","First Semester","Liberian Student",6230058]
[null,113,"TU-00366","Richard","D.","Allison","Male","College of Education","Maryland","2009/2010","Second Semester","Liberian Student",6320058]
[null,146,"TU-00227","Richard","C.","Mydeh","Male","College of Technology","Grand Bassa","2009/2010","Second Semester","Liberian Student",6861048]
[null,361,"TU-00366","Richard","D.","Allison","Male","College of Health Sciences","Maryland","2010/2011","First Semester","Liberian Student",6320058]
[null,188,"TU-00227","Richard","C.","Mydeh","Male","College of Technology","Grand Bassa","2010/2011","Second Semester","Liberian Student",76216838]
[null,286,"TU-00366","Richard","D.","Allison","Male","College of Health Sciences","Maryland","2010/2011","Second Semester","Liberian Student",6320058]
[null,1023,"TU-00366","Richard","D.","Allison","Male","College of Health Sciences",null,"2011/2012","First Semester","Liberian Student",6320058]
[null,1034,"TU-00604","Richard","B.","Nimely","Male","College of Health Sciences",null,"2011/2012","First Semester","Liberian Student",6761304]
[null,null,"TU-00604","Richard","B.","Nimley","M","College of Arts & Sciences","Grand Kru","2010/2011","First Semester","Liberian Student"]
[null,1086,"TU-00843","Richard","S.","Tugbeh","Male","College of Health Sciences",null,"2011/2012","First Semester","Liberian Student",776043487]
[null,1106,"TU-00678","Richard","M.","Worjloh","Male","College of Health Sciences",null,"2011/2012","First Semester","Liberian Student",880606701]
[null,null,"TU-00227","Richard","C.","Mydeh","Male","College of Technology","Grand Bassa","2011/2012","First Semester","Liberian Student",6871048]
[null,1108,"TU-00690","Rita","B.","Baker","Female","College of Health Sciences",null,"2011/2012","First Semester","Liberian Student",6958322]
[null,216,"TU-00222","Robert","B.","Menson","Male","College of Technology","Grand Kru","2009/2010","First Semester","Liberian Student",6927325]
[null,28,"TU-00030","Robert","H.","Elliot","Male","College of Agriculture and Food Sciences","Maryland","2009/2010","First Semester","Liberian Student",6224755]
[null,122,"TU-00168","Robert","H.","Clark,Jr.","Male","College of Education","Nimba","2009/2010","Second Semester","Liberian Student",6066597]
[null,152,"TU-00222","Robert","B.","Menson","Male","College of Technology","Nimba","2009/2010","Second Semester","Liberian Student",6927325]
[null,156,"TU-00168","Robert","H.","Clark,Jr.","Male","College of Education","Nimba","2010/2011","First Semester","Liberian Student",6066597]
[null,242,"TU-00222","Robert","B.","Menson","Male","College of Technology","Nimba","2010/2011","First Semester","Liberian Student",69739225]
[null,69,"TU-00030","Robert","H.","Elliott","Male","College of Agriculture and Food Sciences","Maryland","2009/2010","Second Semester","Liberian Student",6224755]
[null,21,"TU-00030","Robert","H.","Elliott","Male","College of Agriculture and Food Sciences","Maryland","2010/2011","Second Semester","Liberian Student",6121512]
[null,163,"TU-00168","Robert","H.","Clark,jr.","Male","College of Agriculture and Food Sciences","Nimba","2009/2010","First Semester","Liberian Student",77392445]
[null,491,"TU-00509","Robert",null,"Toe","Male","College of Education","Grand Kru","2010/2011","First Semester","Liberian Student",6739815]
[null,454,"TU-00030","Robert","H.","Elliott","Male","College of Agriculture and Food Sciences","Maryland","2010/2011","First Semester","Liberian Student"]
[null,122,"TU-00509","Robert",null,"Toe","Male","College of Education","Maryland","2010/2011","Second Semester","Liberian Student",880002529]
[null,131,"TU-00168","Robert","H.","Clark, Jr.","Male","College of Education","Nimba","2010/2011","Second Semester","Liberian Student",6665972]
[null,186,"TU-00222","Robert",null,"Menson","Male","College of Technology","Nimba","2010/2011","Second Semester","Liberian Student",6927325]
[null,1198,"TU-00030","Robert","H.","Elliott","Male","College of Agriculture and Food Sciences",null,"2011/2012","First Semester","Liberian Student",6121512]
[null,null,"TU-00168","Robert","H.","Clarke,Jr.","Male","College of Education","Nimba","2011/2012","First Semester","Liberian Student",77392445]
[null,null,"TU-00509","Robert","","Toe","Male","College of Education","Grand Kru","2011/2012","First Semester","Liberian Student",71857634]
[null,null,"TU-00222","Robert","B.","Menson","Male","College of Technology","Grand Kru","2011/2012","First Semester","Liberian Student",6927325]
[null,131,"TU-00135","Robin","J.","Scott","Male","College of Technology","Maryland","2009/2010","First Semester","Liberian Student",6670438]
[null,187,"TU-00135","Robin","S.","Scott","Male","College of Management","Maryland","2009/2010","Second Semester","Liberian Student",6980843]
[null,98,"TU-00135","Robin","J.","Scott","Male","College of Management","Maryland","2010/2011","First Semester","Liberian Student",66704338]
[null,375,"TU-00135","Robin","J.","Scott","Male","College of Management","Maryland","2010/2011","Second Semester","Liberian Student",6670438]
[null,null,"TU-00135","Robin","J.","Scott","Male","College of Management",null,"2011/2012","First Semester","Liberian Student",6670438]
[null,173,"TU-00144","Rolan","D.","Flomo","Male","College of Agriculture and Food Sciences","Bong","2009/2010","Second Semester","Liberian Student",6192835]
[null,140,"TU-00144","Roland","D.","Flomo","Male","College of Agriculture and Food Sciences","Bong","2009/2010","First Semester","Liberian Student",6460659]
[null,314,"TU-00535","Roland","T.","She","Male","College of Health Sciences","Gbarpolu","2010/2011","Second Semester","Liberian Student",6512834]
[null,411,"TU-00399","Roland","D.","Collins","Male","College of Management","River Gee","2010/2011","Second Semester","Liberian Student",6973568]
[null,1077,"TU-00535","Roland","T.","She","Male","College of Health Sciences",null,"2011/2012","First Semester","Liberian Student",880579127]
[null,null,"TU-00","Roland","T.","Washington","Male","College of Technology",null,"2011/2012","First Semester","Liberian Student",880619259]
[null,99,"TU-00399","Roland ","D.","Collins","Male","College of Management","River Gee","2010/2011","First Semester","Liberian Student",6973568]
[null,243,"TU-00486","Roland ","D.","Bedell","Male","College of Technology","Maryland","2010/2011","First Semester","Liberian Student",6472821]
[null,362,"TU-00535","Roland ","T.","She","Male","College of Health Sciences","Gbarpolu","2010/2011","First Semester","Liberian Student",880633549]
[null,37,"TU-00144","Roland ","D.","Flomo","Male","College of Agriculture and Food Sciences","Nimba","2010/2011","Second Semester","Liberian Student",6460659]
[null,455,"TU-00144","Roland ","D.","Flomo","Male","College of Agriculture and Food Sciences","Maryland","2010/2011","First Semester","Liberian Student",6460659]
[null,1216,"TU-00782","Romeo","W.","Allison","Male","College of Agriculture and Food Sciences",null,"2011/2012","First Semester","Liberian Student",76392962]
[null,100,"TU-00102","Romero","O.","Howe","Male","College of Management","Maryland","2009/2010","First Semester","Liberian Student",6162974]
[null,23,"TU-00102","Romero","O.","Howe","Male","College of Management","Maryland","2009/2010","Second Semester","Liberian Student",6162974]
[null,100,"TU-00102","Romero","O.","Howe","Male","College of Management","Maryland","2010/2011","First Semester","Liberian Student",880686802]
[null,372,"TU-00102","Romero","O.","Howe","Male","College of Management","Maryland","2010/2011","Second Semester","Liberian Student",88060802]
[null,null,"TU-00102","Romero","O.","Howe","Male","College of Management","Maryland","2011/2012","First Semester","Liberian Student",6162974]
[null,363,"TU-00514","Roosetta","K.","Joe","Female","College of Health Sciences","Maryland","2010/2011","First Semester","Liberian Student",6491227]
[null,193,"TU-00198","Roosevelt",null,"Nyanfore","Male","College of Management","Maryland","2009/2010","First Semester","Liberian Student",6943117]
[null,247,"TU-00198","Roosevelt",null,"Nyanfore","Male","College of Management","Maryland","2009/2010","Second Semester","Liberian Student",6609211]
[null,101,"TU-00198","Roosevelt",null,"Nyanfore","Male","College of Management","Maryland","2010/2011","First Semester","Liberian Student",6943117]
[null,null,"TU-00850","Roosevelt","T.","Shannon","Male","College of Technology",null,"2011/2012","First Semester","Liberian Student",6946719]
[null,364,"TU-00247","Rose","B.","larmie","Female","College of Health Sciences","Bomi","2010/2011","First Semester","Liberian Student",6512364]
[null,704,"TU-00247","Rose","B.","Larmie","Female","College of Health Sciences",null,"2011/2012","First Semester","Liberian Student",6512364]
[null,462,"TU-00247","Rose ",null,"Lamie","Female","College of Health Sciences","Bomi","2010/2011","Second Semester","Liberian Student"]
[null,102,"TU-00251","Roseline","W.","Wlalee","Female","College of Management","Maryland","2010/2011","First Semester","Liberian Student",6602962]
[null,365,"TU-00466","Roseline","L.","Klah","Female","College of Health Sciences","Maryland","2010/2011","First Semester","Liberian Student",6497124]
[null,423,"TU-00251","Roseline","W.","Wlalee","Female","College of Management","Maryland","2010/2011","Second Semester","Liberian Student",6602962]
[null,1219,"TU-00753","Roseline",null,"Hinneh","Female","College of Agriculture and Food Sciences",null,"2011/2012","First Semester","Liberian Student",880740117]
[null,null,"TU-00251","Roseline","W.","Wlalee","Female","College of Management",null,"2011/2012","First Semester","Liberian Student",6602962]
[null,272,"TU-00514","Rosetta","K.","Joe","Female","College of Health Sciences","Maryland","2010/2011","Second Semester","Liberian Student",63198011]
[null,274,"TU-00247","Rosetta","B.","Lamie","Female","College of Health Sciences","Bomi","2010/2011","Second Semester","Liberian Student",6512364]
[null,1053,"TU-00514","Rosetta","K.","Joe","Female","College of Health Sciences",null,"2011/2012","First Semester","Liberian Student",6519804]
[null,null,"TU-00650","Rosetta","B.","Blanyon","Female","College of Technology",null,"2011/2012","First Semester","Liberian Student",880614995]
[null,241,"TU-00346","Rudolph",null,"Melvin","Male","College of Technology","Nimba","2009/2010","First Semester","Liberian Student"]
[null,250,"TU-00364","Rudolph",null,"Melvin","Male","College of Technology","Nimba","2009/2010","Second Semester","Liberian Student"]
[null,244,"TU-00346","Rudolph",null,"Melvin","Male","College of Technology","Nimba","2010/2011","First Semester","Liberian Student",6340937]
[null,442,"TU-00346","Rudolph",null,"Melvin","Male","College of Technology","Nimba","2010/2011","Second Semester","Liberian Student",6340937]
[null,null,"TU-00346","Rudolph","","Melvin","Male","College of Technology","Nimba","2011/2012","First Semester","Liberian Student"]
[null,287,"TU-00393","Rufus","W.","Wilson","Male","College of Technology","River Gee","2009/2010","First Semester","Liberian Student",6780240]
[null,35,"TU-00393","Rufus","W.","Wilson","Male","College of Technology","River Gee","2009/2010","Second Semester","Liberian Student",6780240]
[null,366,"TU-00393","Rufus","W.","Wilson","Male","College of Health Sciences","River Gee","2010/2011","First Semester","Liberian Student",6780240]
[null,332,"TU-00393","Rufus","W.","Wilson","Male","College of Health Sciences","River Gee","2010/2011","Second Semester","Liberian Student",6780240]
[null,1040,"TU-00393","Rufus","W.","Wilson","Male","College of Health Sciences",null,"2011/2012","First Semester","Liberian Student",6780240]
[null,1244,"TU-00655","Ruth","F.","Morrison","Female","College of Agriculture and Food Sciences",null,"2011/2012","First Semester","Liberian Student",6627210]
[null,388,"TU-00139","S. Kwiamle",null,"Elliott","Male","College of Management","Maryland","2010/2011","Second Semester","Liberian Student",6666933]
[null,null,"TU-00458","S.Silkerjea","","Nugba","Male","College of Technology","Grand Kru","2011/2012","First Semester","Liberian Student",6747306]
[null,null,714,"Sackor","A.","Konneh","Male","College of Management","Maryland","2011/2012","First Semester","Liberian Student",6830460]
[null,103,"TU-00200","Salome","N.","Nimely","Female","College of Management","Grand Kru","2010/2011","First Semester","Liberian Student",6452364]
[null,null,"TU-00200","Salome","N.","Nimely","Female","College of Management","Grand Kru","2011/2012","First Semester","Liberian Student",6452384]
[null,37,"TU-00039","Sam","T.","Bioh","Male","College of Health Sciences","Grand Kru","2009/2010","First Semester","Liberian Student",77940703]
[null,68,"TU-00070","Sam","T.","Nah","Female","College of Health Sciences","Maryland","2009/2010","First Semester","Liberian Student",6696623]
[null,173,"TU-00178","Sam","D.","Nyemah","Male","College of Health Sciences","Maryland","2009/2010","First Semester","Liberian Student",6893986]
[null,52,"TU-00070","Sam","T.","Nah","Male","College of Health Sciences","Maryland","2009/2010","Second Semester","Liberian Student",6493950]
[null,77,"TU-00178","Sam","N.","Doco","Male","College of Health Sciences","Maryland","2009/2010","Second Semester","Liberian Student",6893986]
[null,367,"TU-00070","Sam","T.","Nah","Male","College of Health Sciences","Maryland","2010/2011","First Semester","Liberian Student",6493950]
[null,368,"TU-00178","Sam","N.","Doco","Male","College of Health Sciences","Maryland","2010/2011","First Semester","Liberian Student",6893986]
[null,294,"TU-00178","Sam","N.","Doco","Male","College of Health Sciences","Maryland","2010/2011","Second Semester","Liberian Student",6893986]
[null,299,"TU-00070","Sam","T.","Nah","Male","College of Health Sciences","Maryland","2010/2011","Second Semester","Liberian Student",6493950]
[null,808,"TU-00178.","Sam","N.","Doco","Male","College of Health Sciences",null,"2011/2012","First Semester","Liberian Student",6893986]
[null,1029,"TU-00070","Sam","T.","Nah","Male","College of Health Sciences",null,"2011/2012","First Semester","Liberian Student",6493950]
[null,105,"TU-00237","Sametta","T.","Appleton","Female","College of Management","Maryland","2010/2011","First Semester","Liberian Student",6879436]
[null,416,"TU-00237","Sametta","T.","Appleton","Female","College of Management","Maryland","2010/2011","Second Semester","Liberian Student",6879436]
[null,null,"TU-00237","Sametta","T.","Appleton","Female","College of Management","Maryland","2011/2012","First Semester","Liberian Student",6879436]
[null,29,"TU-00031","Samuel","T.","Doune","Male","College of Agriculture and Food Sciences","River Cess","2009/2010","First Semester","Liberian Student",681544]
[null,41,"TU-00334","Samuel","T.","Wallace","Male","College of Agriculture and Food Sciences","Maryland","2010/2011","Second Semester","Liberian Student",6568497]
[null,229,"TU-00334","Samuel","T.","Wallace","Male","College of Agriculture and Food Sciences","Maryland","2009/2010","First Semester","Liberian Student",6568497]
[null,234,"TU-00334","Samuel",null,"Wallace","Male","College of Agriculture and Food Sciences","Maryland","2009/2010","Second Semester","Liberian Student",65686497]
[null,472,"TU-00534","Samuel","W.","Howe","Male","College of Technology","Maryland","2010/2011","First Semester","Liberian Student",6649315]
[null,492,"TU-00408","Samuel","T.","Brown,Sr.","Male","College of Education","Grand Kru","2010/2011","First Semester","Liberian Student",77857334]
[null,456,"TU-00334","Samuel","T.","Wilson","Male","College of Agriculture and Food Sciences","Maryland","2010/2011","First Semester","Liberian Student",6568497]
[null,119,"TU-00408","Samuel","T.","Brown, Sr.","Male","College of Education","Grand Kru","2010/2011","Second Semester","Liberian Student",77213886]
[null,166,"TU-00534","Samuel","W.","Howe","Male","College of Technology","Maryland","2010/2011","Second Semester","Liberian Student",6649315]
[null,1104,"TU-00723","Samuel","S.","Marks","Male","College of Health Sciences",null,"2011/2012","First Semester","Liberian Student",6587892]
[null,1143,"TU-00031","Samuel","T.","Doune","Male","College of Agriculture and Food Sciences",null,"2011/2012","First Semester","Liberian Student",880744805]
[null,1213,"TU-00822","Samuel","K.","Bannie","Male","College of Agriculture and Food Sciences",null,"2011/2012","First Semester","Liberian Student"]
[null,1225,"TU-00863","Samuel","T.","Brown Jr","Male","College of Agriculture and Food Sciences",null,"2011/2012","First Semester","Liberian Student",6941162]
[null,1232,"TU-00656","Samuel","O.","Kyne","Male","College of Agriculture and Food Sciences",null,"2011/2012","First Semester","Liberian Student",6792411]
[null,1247,"Tu-00662","Samuel","S.","Taylor","Male","College of Agriculture and Food Sciences",null,"2011/2012","First Semester","Liberian Student",6140036]
[null,null,"TU-00408","Samuel","T.","Brown,Sr.","Male","College of Education","Grand Kru","2011/2012","First Semester","Liberian Student",77213886]
[null,null,"TU-00534","Samuel","W.","Howe","Male","College of Technology","Maryland","2011/2012","First Semester","Liberian Student",6649315]
[null,63,"TU-00065","Sarah","N.","Toe","Female","College of Agriculture and Food Sciences","River Gee","2009/2010","First Semester","Liberian Student",6487828]
[null,157,"TU-00505","Sarah","D.","Toe","Female","College of Education","Maryland","2010/2011","First Semester","Liberian Student",6794506]
[null,369,"TU-00495","Sarah",null,"Poe","Female","College of Health Sciences","Maryland","2010/2011","First Semester","Liberian Student"]
[null,78,"TU-00065","Sarah","N.","Toe","Female","College of Agriculture and Food Sciences","Maryland","2010/2011","Second Semester","Liberian Student",6487828]
[null,457,"TU-00065","Sarah","N.","Toe","Female","College of Agriculture and Food Sciences","Maryland","2010/2011","First Semester","Liberian Student",652620]
[null,96,"TU-00505","Sarah","D.","Toe","Female","College of Education","Maryland","2010/2011","Second Semester","Liberian Student",6794506]
[null,454,"TU-00495","Sarah","K.","Poe","Female","College of Health Sciences","Grand Kru","2010/2011","Second Semester","Liberian Student"]
[null,1063,"TU-00495","Sarah","K.","Poe","Female","College of Health Sciences",null,"2011/2012","First Semester","Liberian Student",6615962]
[null,1160,"TU-00065","Sarah","N.","Toe","Female","College of Agriculture and Food Sciences",null,"2011/2012","First Semester","Liberian Student",6487828]
[null,null,"TU-00505","Sarah","D.","Toe","Female","College of Education","Grand Kru","2011/2012","First Semester","Liberian Student"]
[null,null,"TU-00505","Sarah","D.","Toe","Female","College of Education","Grand Kru","2011/2012","First Semester","Liberian Student"]
[null,1127,"TU-00857","Saralyn","H.","Jen","Female","College of Health Sciences",null,"2011/2012","First Semester","Liberian Student",6458405]
[null,null,"TU-00852","Satta","V.","Gankpala","Female","College of Management",null,"2011/2012","First Semester","Liberian Student",6611541]
[null,82,"TU-00084","Saye",null,"Daleh","Male","College of Management","Nimba","2009/2010","First Semester","Liberian Student",77266876]
[null,134,"TU-00084","Saye","B.","Daleh","Male","College of Management","Nimba","2009/2010","Second Semester","Liberian Student",6472387]
[null,107,"TU-00084","Saye","B.","Daleh","Male","College of Management","Nimba","2010/2011","First Semester","Liberian Student",6472387]
[null,null,"TU-00084","Saye","B.","Daleh","Male","College of Management",null,"2011/2012","First Semester","Liberian Student",6472387]
[null,261,"TU-00367","Saylee","A.","Choloply","Male","College of Agriculture and Food Sciences","River Gee","2009/2010","First Semester","Liberian Student",6230058]
[null,null,"TU-00665","Scearis",null,"Doe",null,"College of Education",null,"2011/2012","First Semester","Liberian Student",6272002]
[null,null,"TU-00670","Seorweh","D.","Jaycheneh",null,"College of Education",null,"2011/2012","First Semester","Liberian Student",6775460]
[null,158,"TU-00448","Sieh",null,"Muhlenburg,II","Male","College of Education","Maryland","2010/2011","First Semester","Liberian Student",6922156]
[null,370,"TU-00414","Sieh","K.","Smith","Male","College of Health Sciences","Maryland","2010/2011","First Semester","Liberian Student",77481096]
[null,135,"TU-00448","Sieh",null,"Muhlenburg, II","Male","College of Education","Maryland","2010/2011","Second Semester","Liberian Student",6922156]
[null,null,"TU-00448","Sieh","","Muhlenburg","Male","College of Education","Maryland","2011/2012","First Semester","Liberian Students",6922156]
[null,185,"TU-00458","Silkerjea","A.","Nugba","Male","College of Technology","Maryland","2010/2011","Second Semester","Liberian Student",67473306]
[null,371,"TU-00484","Simeon","S.","Borbo,Jr.","Male","College of Health Sciences","Lofa","2010/2011","First Semester","Liberian Student",6899771]
[null,372,"TU-00324","Simeon","G.","Goe","Male","College of Health Sciences","Maryland","2010/2011","First Semester","Liberian Student",6491307]
[null,322,"TU-00484","Simeon","S.","Goe","Male","College of Health Sciences","Maryland","2010/2011","Second Semester","Liberian Student",6899771]
[null,1013,"TU-00577","Simeon","G.","Goe","Male","College of Health Sciences",null,"2011/2012","First Semester","Liberian Student",880633549]
[null,108,"TU-00573","Simon","A.","Jeddi","Male","College of Management","Montserrado","2010/2011","First Semester","Liberian Student",6291194]
[null,405,"TU-00573","Simon","A.","Jeddi","Male","College of Management","Montserrado","2010/2011","Second Semester","Liberian Student",6291194]
[null,1060,"TU-00616","Snamie",null,"Tarkor","Female","College of Health Sciences","Maryland","2010/2011","First Semester","Liberian Student",6410162]
[null,169,"TU-00174","Solomon","W.","Nelson","Male","College of Management",null,"2009/2010","First Semester","Liberian Student",6285323]
[null,84,"TU-00174","Solomon","W.","Nelson","Male","College of Management","Montserrado","2009/2010","Second Semester","Liberian Student",6285323]
[null,109,"TU-00174","Solomon","W.","Nelson","Male","College of Management","Grand Kru","2010/2011","First Semester","Liberian Student",6285323]
[null,393,"TU-00174","Solomon","W.","Nelson","Male","College of Management","Grand Kru","2010/2011","Second Semester","Liberian Student",880748305]
[null,null,"TU-00174","Solomon","W.","Nelson","Male","College of Management",null,"2011/2012","First Semester","Liberian Student",880478305]
[null,null,841,"Solomon","C.","Jasper","Male","College of Management","Maryland","2011/2012","First Semester","Liberian Student",6122259]
[null,1121,"TU-00795","Sonnie","M.","Kollie","Female","College of Health Sciences",null,"2011/2012","First Semester","Liberian Student",6609380]
[null,135,"TU-00139","Standfore","K.","Elliot","Male","College of Agriculture and Food Sciences","Maryland","2009/2010","First Semester","Liberian Student",666693]
[null,174,"TU-00139","Standfore","S.","Elliott","Male","College of Agriculture and Food Sciences","Maryland","2009/2010","Second Semester","Liberian Student",666693]
[null,110,"TU-00553","Stanley","D.","Cooper","Male","College of Management","Maryland","2010/2011","First Semester","Liberian Student",6944381]
[null,391,"TU-00574","Stanley","D.","Cooer","Male","College of Management","Maryland","2010/2011","Second Semester","Liberian Student",6944381]
[null,13,"TU-00013","Stephen","S.","Blamo","Male","College of Education","Grand Kru","2009/2010","First Semester","Liberian Student",649615]
[null,127,"TU-00131","Stephen","W.","Leame","Male","College of Technology","Bong","2009/2010","First Semester","Liberian Student",6719070]
[null,167,"TU-00172","Stephen","N.","Cooper,I","Male","College of Management","Maryland","2009/2010","First Semester","Liberian Student",6677667]
[null,249,"TU-00354","Stephen","G.","Jaffah","Male","College of Management","Maryland","2009/2010","First Semester","Liberian Student"]
[null,80,"TU-00172","Stephen","N.","Cooper,I","Male","College of Management","Maryland","2009/2010","Second Semester","Liberian Student",667767]
[null,207,"TU-00013","Stephen","S.","Blamo","Male","College of Education","Grand Kru","2009/2010","Second Semester","Liberian Student",6649615]
[null,230,"TU-00354","Stephen",null,"Jaffa","Male","College of Management","Maryland","2009/2010","Second Semester","Liberian Student"]
[null,159,"TU-00013","Stephen","S.","Blamo","Male","College of Education","Grand Kru","2010/2011","First Semester","Liberian Student",6493615]
[null,165,"TU-00172","Stephen","N.","Cooper","Male","College of Management","Maryland","2010/2011","First Semester","Liberian Student",6677667]
[null,170,"TU-00354","Stephen","G.","Jaffa","Male","College of Management","Maryland","2010/2011","First Semester","Liberian Student",6190615]
[null,373,"TU-00254","Stephen","W.","Picka","Male","College of Health Sciences","Grand Kru","2010/2011","First Semester","Liberian Student",6949801]
[null,128,"TU-00013","Stephen","S.","Blamo","Male","College of Education","Grand Kru","2010/2011","Second Semester","Liberian Student",6493615]
[null,361,"TU-00172","Stephen","N.","Cooper","Male","College of Management","Maryland","2010/2011","Second Semester","Liberian Student",6677667]
[null,438,"TU-00354","Stephen","G.","Jaffa","Male","College of Management","Maryland","2010/2011","Second Semester","Liberian Student",880632954]
[null,308,"TU-00254","Stephen","W.","Picka","Male","College of Health Sciences","Grand Kru","2010/2011","Second Semester","Liberian Student",6949801]
[null,1051,"TU-00254","Stephen","W.","Picka","Male","College of Health Sciences",null,"2011/2012","First Semester","Liberian Student",6949807]
[null,1217,"TU-00775","Stephen","S.","Mieh","Male","College of Agriculture and Food Sciences",null,"2011/2012","First Semester","Liberian Student",6479627]
[null,null,"TU-00172","Stephen","N.","Cooper I","Male","College of Management",null,"2011/2012","First Semester","Liberian Student",6677667]
[null,null,"TU-00354","Stephen","G.","Jaffa","Male","College of Management",null,"2011/2012","First Semester","Liberian Student"]
[null,null,"TU-00172","Stephen","N.","Cooper,I","Male","College of Management","Maryland","2011/2012","First Semester","Liberian Student",6677667]
[null,null,"TU-00354","Stephen","G.","Jaffah","Male","College of Management","Maryland","2011/2012","First Semester","Liberian Student"]
[null,null,"TU-00013","Stephen","S.","Blamo","Male","College of Education","Grand Kru","2011/2012","First Semester","Liberian Student",649615]
[null,147,"TU-00151","Steve",null,"Baker","Male","College of Technology","River Gee","2009/2010","First Semester","Liberian Student",6601326]
[null,250,"TU-00355","Steve","B.","Doe","Male","College of Management","Grand Kru","2009/2010","First Semester","Liberian Student"]
[null,128,"TU-00151","Steve","K.","Baker","Male","College of Technology","River Gee","2009/2010","Second Semester","Liberian Student",6070222]
[null,374,"TU-00151","Steve","K.","Baker","Male","College of Health Sciences","Maryland","2010/2011","First Semester","Liberian Student"]
[null,447,"TU-00151","Steve","K.","Baker","Male","College of Health Sciences","River Gee","2010/2011","Second Semester","Liberian Student",77990463]
[null,1055,"TU-00151","Steve","K.","Baker","Male","College of Health Sciences",null,"2011/2012","First Semester","Liberian Student",880633571]
[null,null,"TU-00355","Steve","B.","Doe","Male","College of Management","Grand Kru","2011/2012","First Semester","Liberian Student"]
[null,160,"TU-00355","Steven","B.","Doe","Male","College of Management","Grand Kru","2009/2010","Second Semester","Liberian Student"]
[null,173,"TU-00355","Steven","B.","Doe","Male","College of Management","Maryland","2010/2011","First Semester","Liberian Student",6123230]
[null,15,"TU-00433","Steven","M.","Karly, Jr.","Male","College of Agriculture and Food Sciences","Maryland","2010/2011","Second Semester","Liberian Student"]
[null,458,"TU-00433","Steven",null,"Karly","Male","College of Agriculture and Food Sciences","Maryland","2010/2011","First Semester","Liberian Student"]
[null,365,"TU-00355","Steven","B.","Doe, II","Male","College of Management","Maryland","2010/2011","Second Semester","Liberian Student",6123230]
[null,1132,"TU-00433","Steven","M.","Karly","Male","College of Agriculture and Food Sciences",null,"2011/2012","First Semester","Liberian Student",6739866]
[null,1194,"TU-00433","Steven","M.","Karly","Male","College of Agriculture and Food Sciences",null,"2011/2012","First Semester","Liberian Student",6739866]
[null,473,"TU-00256","Stompee","O.","Willie","Male","College of Technology","Bong","2010/2011","First Semester","Liberian Student",6132434]
[null,189,"TU-00256","Stompee","O.","Willie","Male","College of Technology","Bong","2010/2011","Second Semester","Liberian Student",6132454]
[null,1256,"TU-00736","Susannah","P.","Jlakron","Female","College of Agriculture and Food Sciences",null,"2011/2012","First Semester","Liberian Student"]
[null,1282,null,"Susu","B.","Williams","Female","College of Health Sciences",null,"2011/2012","First Semester","Liberian Student"]
[null,160,"TU-00014","Swehn",null,"Nyengbie","Male","College of Education","Maryland","2010/2011","First Semester","Liberian Student",6750369]
[null,120,"TU-00014","Swehn",null,"Nyengbie","Male","College of Education","Maryland","2010/2011","Second Semester","Liberian Student",6750369]
[null,14,"TU-00014","Swen",null,"Nyengbie","Male","College of Education","Maryland","2009/2010","First Semester","Liberian Student",6206025]
[null,5,"TU-00014","Swen",null,"Nyengbie","Male","College of Education","Maryland","2009/2010","Second Semester","Liberian Student",6547115]
[null,375,"TU-00050","Swen",null,"Dargbeh","Male","College of Health Sciences","Maryland","2010/2011","First Semester","Liberian Student",6601696]
[null,10,"TU-00010","Sylvester","D.","Neufville","Male","College of Education","Maryland","2009/2010","First Semester","Liberian Student",660187]
[null,31,"TU-00010","Sylvester","D.","Nuefville","Male","College of Education","Maryland","2009/2010","Second Semester","Liberian Student",6601835]
[null,161,"TU-00010","Sylvester","D.","Neufville","Male","College of Education","Maryland","2010/2011","First Semester","Liberian Student",6601835]
[null,8,"TU-00242","Sylvester",null,"Tayee","Male","College of Agriculture and Food Sciences","River Gee","2010/2011","Second Semester","Liberian Student",6202235]
[null,459,"TU-00242","Sylvester",null,"Tayee","Male","College of Agriculture and Food Sciences","River Gee","2010/2011","First Semester","Liberian Student",6202235]
[null,127,"TU-00010","Sylvester","D.","Neufville","Male","College of Education","Maryland","2010/2011","Second Semester","Liberian Student",66018835]
[null,136,"TU-00313","Sylvester","T.","Scott","Male","College of Education","River Gee","2010/2011","Second Semester","Liberian Student",6601206]
[null,1156,"TU-00596","Sylvester","W.","Saletti","Male","College of Agriculture and Food Sciences",null,"2011/2012","First Semester","Liberian Student",76149022]
[null,1178,"TU-00242","Sylvester",null,"Tayee","Male","College of Agriculture and Food Sciences",null,"2011/2012","First Semester","Liberian Student",6202235]
[null,null,"TU-00010","Sylvester","D.","Neufville","Male","College of Education","Maryland","2011/2012","First Semester","Liberian Student",660187]
[null,474,"TU-00377","Tablayson",null,"Wion,Jr.","Male","College of Technology","Grand Gedeh","2010/2011","First Semester","Liberian Student"]
[null,1275,"TU-00","Tablic","Q.","Collins","Male","College of Agriculture and Food Sciences",null,"2011/2012","First Semester","Liberian Student"]
[null,1154,"TU-00614","Tarlah","W.","Frank","Male","College of Agriculture and Food Sciences",null,"2011/2012","First Semester","Liberian Student",6647792]
[null,214,"TU-00220","Teba-kome","A.","Williams","Male","College of Education","Maryland","2009/2010","First Semester","Liberian Student",694047]
[null,271,"TU-00377","Teblayson",null,"Wion,jr","Male","College of Technology","Grand Gedeh","2009/2010","First Semester","Liberian Student",6864340]
[null,1,"TU-00377","Teblayson",null,"Wion,Jr.","Male","College of Technology","Grand Gedeh","2009/2010","Second Semester","Liberian Student",6722191]
[null,193,"TU-00377","Teblayson",null,"Wion. Jr.","Male","College of Technology","Grand Gedeh","2010/2011","Second Semester","Liberian Student",880714549]
[null,null,"TU-00377","Teblayson","","Wion,jr","Male","College of Technology","Grand Gedeh","2011/2012","First Semester","Liberian Student",6864340]
[null,369,"TU-00300","Thaddeaus",null,"Kumar","Male","College of Management","Maryland","2010/2011","Second Semester","Liberian Student",6140082]
[null,227,"TU-00300","Thaddeus",null,"Kumar","Male","College of Management","Maryland","2010/2011","First Semester","Liberian Student",6140082]
[null,1084,"TU-00817","Theo","C.","Kwarbo","Male","College of Health Sciences",null,"2011/2012","First Semester","Liberian Student"]
[null,134,"TU-00138","Theodore","K.","Fahnbullah","Male","College of Technology","Grand Cape Mount","2009/2010","First Semester","Liberian Student",5983445]
[null,144,"TU-00138","Theodore","K.","Fahnbulleh","Male","College of Technology","Grand Cape Mount","2009/2010","Second Semester","Liberian Student",5983445]
[null,475,"TU-00138","Theodore","K.","Fahnbulleh","Female","College of Technology","Maryland","2010/2011","First Semester","Liberian Student",5983445]
[null,159,"TU-00138","Theodore","K.","Fahnbulleh","Male","College of Technology","Maryland","2010/2011","Second Semester","Liberian Student",5983445]
[null,null,"TU-00828","Theodore","T.","Harmon","Male","College of Education",null,"2011/2012","First Semester","Liberian Student",6562093]
[null,null,"TU-00138","Theodore","K.","Fahnbullah","Male","College of Technology","Grand Cape Mount","2011/2012","First Semester","Liberian Student",5983445]
[null,null,"TU-00762","Theophilus","M.","Doe","Male","College of Management",null,"2011/2012","First Semester","Liberian Student",880530369]
[null,69,"TU-00362","Theresa","T.","Doe","Female","College of Agriculture and Food Sciences","Maryland","2010/2011","Second Semester","Liberian Student",6566119]
[null,123,"TU-00362","Theresa","T.","Doe","Female","College of Agriculture and Food Sciences","Maryland","2009/2010","Second Semester","Liberian Student",66198201]
[null,256,"TU-00362","Theresa","B.","Doe","Female","College of Agriculture and Food Sciences","Maryland","2009/2010","First Semester","Liberian Student",692313]
[null,460,"TU-00362","Theresa","T.","Doe","Female","College of Agriculture and Food Sciences","Maryland","2010/2011","First Semester","Liberian Student",6801351]
[null,1183,"TU-00362","Theresa","T.","Doe","Female","College of Agriculture and Food Sciences",null,"2011/2012","First Semester","Liberian Student",6801351]
[null,null,"TU-00767","Theresa","T.","Howe","Female","College of Technology",null,"2011/2012","First Semester","Liberian Student",6686368]
[null,237,"TU-00524","Thierno","M.","Diallo","Male","College of Management","Non-Liberian","2010/2011","First Semester","Liberian Student",6927249]
[null,399,"TU-00524","Thierno","M.","Diallo","Male","College of Management","Non-Liberian","2010/2011","Second Semester","Foreign Student",6927249]
[null,null,"TU-00526","Thierno","M.","Diallo","Male","College of Management",null,"2011/2012","First Semester","Liberian Student",6927249]
[null,null,"TU-00300","Thoddeaus",null,"Kumar","Male","College of Management",null,"2011/2012","First Semester","Liberian Student",6140082]
[null,202,"TU-00208","Thomas","N.","Griffiths","Male","College of Management","Maryland","2009/2010","First Semester","Liberian Student",6418899]
[null,162,"TU-00243","Thomas",null,"Jokan","Male","College of Education","Grand Kru","2010/2011","First Semester","Liberian Student",6662012]
[null,254,"TU-00427","Thomas","N.","Swen","Male","College of Management","Grand Kru","2010/2011","First Semester","Liberian Student",6829668]
[null,26,"TU-00158","Thomas","W.","Skinner","Male","College of Agriculture and Food Sciences","Nimba","2010/2011","Second Semester","Liberian Student",880709222]
[null,28,"TU-00333","Thomas","T.","Baker","Male","College of Agriculture and Food Sciences","Maryland","2010/2011","Second Semester","Liberian Student",6686371]
[null,109,"TU-00333","Thomas","T.","Baker","Male","College of Agriculture and Food Sciences","Maryland","2009/2010","Second Semester","Liberian Student",6648960]
[null,153,"TU-00158","Thomas","W.","Skinner","Male","College of Agriculture and Food Sciences","Grand Cape Mount","2009/2010","First Semester","Liberian Student",6314975]
[null,185,"TU-00158","Thomas","W.","Skinner","Male","College of Agriculture and Food Sciences","Grand Cape Mount","2009/2010","Second Semester","Liberian Student",6314975]
[null,228,"TU-00333","Thomas","T.","Baker","Male","College of Agriculture and Food Sciences","Maryland","2009/2010","First Semester","Liberian Student",6220132]
[null,476,"TU-00530","Thomas","T.","woart","Male","College of Technology","Maryland","2010/2011","First Semester","Liberian Student",6937581]
[null,477,"TU-00418","Thomas","K.","Koffa","Male","College of Technology","Maryland","2010/2011","First Semester","Liberian Student",6406968]
[null,490,"TU-00312","Thomas","K.","Toe","Male","College of Education","Grand Kru","2010/2011","First Semester","Liberian Student",6696643]
[null,461,"TU-00333","Thomas","T.","Baker","Male","College of Agriculture and Food Sciences","Maryland","2010/2011","First Semester","Liberian Student",6648960]
[null,462,"TU-00158","Thomas","W.","Skinner","Male","College of Agriculture and Food Sciences","Maryland","2010/2011","First Semester","Liberian Student",76760464]
[null,107,"TU-00243","Thomas",null,"Jokan","Male","College of Education","Maryland","2010/2011","Second Semester","Liberian Student",6662012]
[null,143,"TU-00312","Thomas","K.","Toe","Male","College of Education","Grand Kru","2010/2011","Second Semester","Liberian Student",6739815]
[null,377,"TU-00427","Thomas","N.","Swen","Male","College of Management","Maryland","2010/2011","Second Semester","Liberian Student",6829558]
[null,199,"TU-00418","Thomas","K.","Koffa","Male","College of Technology","Grand Kru","2010/2011","Second Semester","Liberian Student",6406968]
[null,1085,"TU-00833","Thomas","B.","Bropleh","Male","College of Health Sciences",null,"2011/2012","First Semester","Liberian Student",776795479]
[null,1120,"TU-00732","Thomas","K.","Batu","Male","College of Health Sciences",null,"2011/2012","First Semester","Liberian Student",6916228]
[null,1159,"TU-00332","Thomas","T.","Baker","Male","College of Agriculture and Food Sciences",null,"2011/2012","First Semester","Liberian Student",6686371]
[null,1242,"TU-00645","Thomas","G.","Mensah","Male","College of Agriculture and Food Sciences",null,"2011/2012","First Semester","Liberian Student",880630663]
[null,null,"TU-00427","Thomas","N.","Swen","Male","College of Management","Grand Kru","2011/2012","First Semester","Liberian Student",6829668]
[null,null,"TU-00243","Thomas","","Jokan","Male","College of Education","Grand Kru","2011/2012","First Semester","Liberian Student",6662012]
[null,null,"TU-00312","Thomas","K.","Toe","Male","College of Education","Grand Kru","2011/2012","First Semester","Liberian Student",6739815]
[null,null,"TU-00418","Thomas","K.","Koffa","Male","College of Technology","Grand Kru","2011/2012","First Semester","Liberian Student",6406968]
[null,null,"TU-00023","Thompson","J.","Wilmont","Male","College of Management",null,"2011/2012","First Semester","Liberian Student",6562807]
[null,1118,"TU-00734","Tilta",null,"Weah","Female","College of Health Sciences",null,"2011/2012","First Semester","Liberian Student",6642625]
[null,298,"TU-00285","Timothy","B.","Bartue,Sr.","Male","College of Management","Grand Kru","2010/2011","First Semester","Liberian Student"]
[null,403,"TU-00285","Timothy","B.","Bartue","Male","College of Management","Maryland","2010/2011","Second Semester","Liberian Student",6361763]
[null,1240,"TU-00676","Tokpah",null,"Mulbah","Male","College of Agriculture and Food Sciences",null,"2011/2012","First Semester","Liberian Student",6879433]
[null,705,"TU-00040","Tryhena","T.","Dowah","Female","College of Health Sciences",null,"2011/2012","First Semester","Liberian Student",6515054]
[null,38,"TU-00040","Tryphena","T.","Dowah","Female","College of Health Sciences","Bomi","2009/2010","First Semester","Liberian Student",6515054]
[null,55,"TU-00040","Tryphena","T.","Dowah","Female","College of Health Sciences","Bomi","2009/2010","Second Semester","Liberian Student",6515054]
[null,376,"TU-00040","Tryphena","T.","Dowah","Female","College of Health Sciences","Maryland","2010/2011","First Semester","Liberian Student",6515054]
[null,279,"TU-00040","Tryphena","T.","Dowah","Female","College of Health Sciences","Margibi","2010/2011","Second Semester","Liberian Student",6515059]
[null,146,"TU-00150","Varney",null,"Washington","Male","College of Management","Bomi","2009/2010","First Semester","Liberian Student",6920274]
[null,209,"TU-00215","Varney","P.","Dioh","Male","College of Management","Grand Kru","2009/2010","First Semester","Liberian Student",6762404]
[null,116,"TU-00150","Varney",null,"Washington","Male","College of Management","Bomi","2009/2010","Second Semester","Liberian Student",6920274]
[null,153,"TU-00150","Varney","P.","Dioh","Male","College of Management","Maryland","2009/2010","Second Semester","Liberian Student",6920274]
[null,335,"TU-00150","Varney",null,"Washington","Male","College of Management","Maryland","2010/2011","First Semester","Liberian Student",6929274]
[null,478,"TU-00438","Varney","L.","Kanneh","Male","College of Technology","Bomi","2010/2011","First Semester","Liberian Student",6405996]
[null,485,"TU-00215","Varney","P.","Dioh","Male","College of Management","Grand Kru","2010/2011","First Semester","Liberian Student",6762404]
[null,150,"TU-00438","Varney","L.","Kanneh","Male","College of Technology","Grand Cape Mount","2010/2011","Second Semester","Liberian Student",6405996]
[null,380,"TU-00150","Varney",null,"Washington","Male","College of Management","Maryland","2010/2011","Second Semester","Liberian Student",6920274]
[null,396,"TU-00522","Varney","D.","Karney","Male","College of Management","Maryland","2010/2011","Second Semester","Liberian Student",6901681]
[null,435,"TU-00215","Varney","P.","Dioh","Male","College of Management","Maryland","2010/2011","Second Semester","Liberian Student",66762404]
[null,null,"TU-00150","Varney","","Washington","Male","College of Management","Bomi","2011/2012","First Semester","Liberian Student",6920274]
[null,null,"TU-00215","Varney","P.","Dioh","Male","College of Management","Grand Kru","2011/2012","First Semester","Liberian Student",6762404]
[null,77,"TU-00079","Velma","W.","Dioh","Female","College of Health Sciences","Grand Kru","2009/2010","First Semester","Liberian Student",6568870]
[null,377,"TU-00079","Velma","W.","Dioh","Female","College of Health Sciences","Maryland","2010/2011","First Semester","Liberian Student",6568870]
[null,252,"TU-00079","Velma","W.","Dioh","Female","College of Health Sciences","Maryland","2010/2011","Second Semester","Liberian Student",6568870]
[null,1030,"TU-00079","Velma","W.","Dioh","Female","College of Health Sciences",null,"2011/2012","First Semester","Liberian Student",6568870]
[null,228,"TU-00079","Velma ","W.","Dioh","Female","College of Health Sciences","Maryland","2009/2010","Second Semester","Liberian Student",6568870]
[null,101,"TU-00103","Veronica","N.","Fannoh","Female","College of Management","Grand Kru","2009/2010","First Semester","Liberian Student",679242]
[null,34,"TU-00103","Veronica","N.","Fannoh","Female","College of Technology","Grand Kru","2009/2010","Second Semester","Liberian Student",6121536]
[null,378,"TU-00345","Veronica","K.","Botoe","Female","College of Health Sciences","Maryland","2010/2011","First Semester","Liberian Student",6456948]
[null,4,"TU-00370","Veronica","C.","Julue","Female","College of Agriculture and Food Sciences","River Gee","2010/2011","Second Semester","Liberian Student",6519975]
[null,164,"TU-00370","Veronica","C.","Julue","Female","College of Agriculture and Food Sciences","Maryland","2009/2010","Second Semester","Liberian Student",6519935]
[null,264,"TU-00370","Veronica","C.","Julue","Female","College of Agriculture and Food Sciences","Maryland","2009/2010","First Semester","Liberian Student",6519975]
[null,479,"TU-00103","Veronica","N.","Fannoh","Female","College of Technology","Maryland","2010/2011","First Semester","Liberian Student",6121536]
[null,463,"TU-00370","Veronica","C.","Julue","Female","College of Agriculture and Food Sciences","Maryland","2010/2011","First Semester","Liberian Student",6519975]
[null,270,"TU-00435","Veronica","K.","Botoe","Female","College of Health Sciences","Sinoe","2010/2011","Second Semester","Liberian Student",6456948]
[null,216,103,"Veronica","N.","Fannoh","Female","College of Technology","Grand Kru","2010/2011","Second Semester","Liberian Student",6121536]
[null,707,"TU-00435","Veronica","K.","Botoe","Female","College of Health Sciences",null,"2011/2012","First Semester","Liberian Student",6465948]
[null,1155,"TU-00370","Veronica","C.","Julue","Female","College of Agriculture and Food Sciences",null,"2011/2012","First Semester","Liberian Student",6519975]
[null,null,"TU-00103","Veronica","N.","Fannoh","Female","College of Technology","Grand Kru","2011/2012","First Semester","Liberian Student",679242]
[null,20,"TU-00022","Victor","W.","Wilson,jr.","Male","College of Education","Grand Kru","2009/2010","First Semester","Liberian Student",6602160]
[null,21,"TU-00022","Victor","W.","Wilson,Sr.","Male","College of Health Sciences","Maryland","2009/2010","Second Semester","Liberian Student",6602160]
[null,379,"TU-00231","Victor","S.","Mambu","Male","College of Health Sciences","Margibi","2010/2011","First Semester","Liberian Student",6122681]
[null,251,"TU-00376","Victor","N.","Nagbe","Male","College of Agriculture and Food Sciences","Maryland","2009/2010","Second Semester","Liberian Student",6134576]
[null,270,"TU-00376","Victor","N.","Nagbe","Male","College of Agriculture and Food Sciences","Maryland","2009/2010","First Semester","Liberian Student",6767550]
[null,464,"TU-00376","Victor","N.","Nagbe","Male","College of Agriculture and Food Sciences","Maryland","2010/2011","First Semester","Liberian Student"]
[null,326,"TU-00231","Victor","S.","Mambu","Male","College of Health Sciences","Margibi","2010/2011","Second Semester","Liberian Student",6635893]
[null,459,"TU-00231","Victor","S.","Mambu","Male","College of Health Sciences",null,"2011/2012","First Semester","Liberian Student",880474522]
[null,1109,"TU-00731","Victor","B.","Nah","Male","College of Health Sciences",null,"2011/2012","First Semester","Liberian Student",77884342]
[null,1149,"TU-00376","Victor","N.","Nagbe","Male","College of Agriculture and Food Sciences",null,"2011/2012","First Semester","Liberian Student",880633692]
[null,null,640,"Victor","T.","Mappy","Male","College of Management",null,"2011/2012","First Semester","Liberian Student",6652878]
[null,906,"TU-00022","Victor ","W.","Wilson","Male","College of Health Sciences",null,"2011/2012","First Semester","Liberian Student",602160]
[null,163,"TU-00240","Victoria","A.","Gebur","Female","College of Education","Maryland","2010/2011","First Semester","Liberian Student"]
[null,112,"TU-00240","Victoria","A.","Gebur","Female","College of Education","Maryland","2010/2011","Second Semester","Liberian Student",6941437]
[null,453,"TU-00618","Victoria","D.","Mieh","Female","College of Health Sciences","Grand Kru","2011/2012","First Semester","Liberian Student",6835290]
[null,480,"TU-00307","Vincent","D.","Klede","Male","College of Technology","Maryland","2010/2011","First Semester","Liberian Student",6878896]
[null,144,"TU-00148","Viola","D.","Jones","Female","College of Health Sciences","Maryland","2009/2010","First Semester","Liberian Student",6292573]
[null,242,"TU-00148","Viola","D.","Jones","Female","College of Health Sciences","Maryland","2009/2010","Second Semester","Liberian Student",6292573]
[null,380,"TU-00148","Viola","D.","Jones","Female","College of Health Sciences","Maryland","2010/2011","First Semester","Liberian Student",6739956]
[null,253,"TU-00148","Viola","D.","Jones","Female","College of Health Sciences","Nimba","2010/2011","Second Semester","Liberian Student",6739956]
[null,1027,"TU-00148","Viola","D.","Jones","Female","College of Health Sciences",null,"2011/2012","First Semester","Liberian Student",6739956]
[null,381,"TU-00303","Virginia","J.","Blyee","Female","College of Health Sciences","Grand Gedeh","2010/2011","First Semester","Liberian Student",6660726]
[null,266,"TU-00303","Virginia","J.","Blyee","Female","College of Health Sciences","Grand Gedeh","2010/2011","Second Semester","Liberian Student",6660726]
[null,1041,"TU-00303","Virginia","J.","Blyee","Male","College of Health Sciences",null,"2011/2012","First Semester","Liberian Student",6660726]
[null,null,"TU-00783","Virginia","H.","Davies","Female","College of Education",null,"2011/2012","First Semester","Liberian Student",6603077]
[null,223,"TU-00229","Vivian","S.","Sampson","Female","College of Technology","Maryland","2009/2010","First Semester","Liberian Student",6475961]
[null,244,"TU-00229","Vivian","S.","Sampson","Female","College of Technology","Maryland","2009/2010","Second Semester","Liberian Student",6475961]
[null,481,"TU-00229","Vivian","S.","Sampson","Female","College of Technology","Maryland","2010/2011","First Semester","Liberian Student",6473961]
[null,null,"TU-00229","Vivian","S.","Sampson","Female","College of Technology","Maryland","2011/2012","First Semester","Liberian Student",6475961]
[null,1215,"TU-00739","Vowee","T.","Yancy",null,"College of Agriculture and Food Sciences",null,"2011/2012","First Semester","Liberian Student",6669707]
[null,1272,"TU-00739","Vowee","T.","Yancy","Male","College of Agriculture and Food Sciences",null,"2011/2012","First Semester","Liberian Student",6669707]
[null,33,"TU-00035","Wallace","W.","Brooks","Male","College of Agriculture and Food Sciences","Maryland","2009/2010","First Semester","Liberian Student",6227989]
[null,218,"TU-00035","Wallace","W.","Brooks","Male","College of Agriculture and Food Sciences","Maryland","2009/2010","Second Semester","Liberian Student",6227989]
[null,1263,"TU-00696","Wallace","N.","Porka","Male","College of Agriculture and Food Sciences",null,"2011/2012","First Semester","Liberian Student",6938628]
[null,186,"TU-00112","Walter","N.","Weah","Male","College of Technology","Grand Kru","2009/2010","Second Semester","Liberian Student",6819971]
[null,20,"TU-00130","Wameker","T.","Kwazaye","Male","College of Technology","Nimba","2009/2010","Second Semester","Liberian Student",6283514]
[null,41,"TU-00043","Wannie","C.","Vinton","Female","College of Health Sciences","Maryland","2009/2010","First Semester","Liberian Student",6562133]
[null,51,"TU-00043","Wannie","C.","Vinton","Female","College of Health Sciences","Maryland","2009/2010","Second Semester","Liberian Student",6562133]
[null,240,"TU-00043","Wannie","C.","Vinton","Female","College of Health Sciences","Maryland","2010/2011","Second Semester","Liberian Student",6562133]
[null,1024,"TU-00043","Wannie","C.","Vinton","Female","College of Health Sciences",null,"2011/2012","First Semester","Liberian Student",6562133]
[null,1122,"TU-00728","Wannie",null,"Shannon","Female","College of Health Sciences",null,"2011/2012","First Semester","Liberian Student",6344956]
[null,1252,"TU-00771","Washington","N.","Gbedeh","Male","College of Agriculture and Food Sciences",null,"2011/2012","First Semester","Liberian Student",880897727]
[null,1061,"TU-00446","Wathaline","T.","Wilson","Female","College of Health Sciences",null,"2011/2012","First Semester","Liberian Student",6941427]
[null,1111,"TU-00694","Weah",null,"Chea","Male","College of Health Sciences",null,"2011/2012","First Semester","Liberian Student",77028079]
[null,86,"TU-00088","Webster",null,"Forkpah","Male","College of Health Sciences","Lofa","2009/2010","First Semester","Liberian Student",6482373]
[null,141,"TU-00088","Webster",null,"Forkpah","Male","College of Health Sciences","Lofa","2009/2010","Second Semester","Liberian Student",6482373]
[null,382,"TU-00088","Webster","G.","Forkpah","Male","College of Health Sciences","Lofa","2010/2011","First Semester","Liberian Student",6482373]
[null,287,"TU-00088","Webster","G.","Forkkpah","Male","College of Health Sciences","Lofa","2010/2011","Second Semester","Liberian Student",6482373]
[null,907,"TU-00088","Webster","G.","Forkpah","Male","College of Health Sciences",null,"2011/2012","First Semester","Liberian Student",6482373]
[null,1280,"TU-00","Welecom","W.","Quiah","Male","College of Agriculture and Food Sciences",null,"2011/2012","First Semester","Liberian Student",6369840]
[null,259,"TU-00365","Wellington","W.","Kyne","Male","College of Agriculture and Food Sciences","Maryland","2009/2010","First Semester","Liberian Student",6873098]
[null,1270,"TU-00796","Wellington","W.","Davies","Male","College of Agriculture and Food Sciences",null,"2011/2012","First Semester","Liberian Student",6113070]
[null,null,"TU-00840","Wiah",null,"Jarteh","Male","College of Education",null,"2011/2012","First Semester","Liberian Student",6292415]
[null,1230,"TU-00835","Wilfred","K.","Sawieh","Male","College of Agriculture and Food Sciences",null,"2011/2012","First Semester","Liberian Student",880993991]
[null,null,"TU-00673","Wilkins","N.","Hinneh","Male","College of Education",null,"2011/2012","First Semester","Liberian Student",880605590]
[null,501,"TU-00620","Willette","S.","Horace","Female","College of Health Sciences",null,"2011/2012","First Semester","Liberian Student",6294104]
[null,9,"TU-00009","William","S.","Stemn","Male","College of Health Sciences","Maryland","2009/2010","First Semester","Liberian Student",6811126]
[null,190,"TU-00195","William","W.","Wallace","Male","College of Management","Maryland","2009/2010","First Semester","Liberian Student",6602078]
[null,60,"TU-00009","William","S.","Stemn","Male","College of Agriculture and Food Sciences","Maryland","2009/2010","Second Semester","Liberian Student",6811126]
[null,246,"TU-00195","William","W.","Wallace","Male","College of Management","Maryland","2009/2010","Second Semester","Liberian Student",6602078]
[null,297,"TU-00302","William","N.","Boatue","Male","College of Education","Maryland","2010/2011","First Semester","Liberian Student"]
[null,383,"TU-00511","William","K.","Collins","Male","College of Health Sciences","Maryland","2010/2011","First Semester","Liberian Student",6661049]
[null,12,"TU-00009","William","S.","Stemn","Male","College of Agriculture and Food Sciences","Maryland","2010/2011","Second Semester","Liberian Student",6811126]
[null,465,"TU-00009","William","S.","Stemn","Male","College of Agriculture and Food Sciences","Maryland","2010/2011","First Semester","Liberian Student"]
[null,130,"TU-00302","William","N.","Boatue","Male","College of Education","Grand Kru","2010/2011","Second Semester","Liberian Student"]
[null,600,"TU-00511","William","K.","Collins","Male","College of Health Sciences",null,"2011/2012","First Semester","Liberian Student",6499286]
[null,1238,"TU-00755","William","T.","Bedell","Male","College of Agriculture and Food Sciences",null,"2011/2012","First Semester","Liberian Student",6686826]
[null,null,"TU-00302","William","N.","Boatue","Male","College of Education","Maryland","2011/2012","First Semester","Liberian Student"]
[null,null,"TU-00","William","K.","Tarnue","Male","College of Technology",null,"2011/2012","First Semester","Liberian Student",5736554]
[null,null,"TU-00729","William","S.","Baker","Male","College of Technology",null,"2011/2012","First Semester","Liberian Student",6112957]
[null,null,"TU-00856","Williams","D.","Appleton","Male","College of Management",null,"2011/2012","First Semester","Liberian Student",880607982]
[null,1,"TU-00001","Willie",null,"Torgbor","Male","College of Agriculture and Food Sciences","Grand Kru","2009/2010","First Semester","Liberian Student",6418683]
[null,1,"TU-00001","Willie",null,"Torgbor","Male","College of Agriculture and Food Sciences","Grand Kru","2009/2010","Second Semester","Liberian Student",6418683]
[null,57,"TU-00001","Willie","T.","Torgbor","Male","College of Agriculture and Food Sciences","Grand Kru","2010/2011","Second Semester","Liberian Student",6418683]
[null,466,"TU-00001","Willie","T.","Torgbor","Male","College of Agriculture and Food Sciences","Lofa","2010/2011","First Semester","Liberian Student",6418683]
[null,1264,"Tu-00798","Willie","T.","Sebo","Male","College of Agriculture and Food Sciences",null,"2011/2012","First Semester","Liberian Student",77871184]
[null,14,"TU-00365","Willington","W.","Kyne","Male","College of Agriculture and Food Sciences","Maryland","2010/2011","Second Semester","Liberian Student"]
[null,467,"TU-00365","Willington","W.","Kyne","Male","College of Agriculture and Food Sciences","Maryland","2010/2011","First Semester","Liberian Student",680994]
[null,382,"TU-00023","Wilmolt","J.","Thompson","Male","College of Management","Grand Kru","2010/2011","Second Semester","Liberian Student",6562890]
[null,21,"TU-00023","Wilmont","J.","Thompson","Male","College of Agriculture and Food Sciences","Grand Kru","2009/2010","First Semester","Liberian Student",6652807]
[null,231,"TU-00023","Wilmont",null,"Thompson","Male","College of Agriculture and Food Sciences","Grand Kru","2009/2010","Second Semester","Liberian Student",652807]
[null,469,"TU-00023","Wilmont","J.","Thompson","Male","College of Management","Grand Kru","2010/2011","First Semester","Liberian Student",6562807]
[null,471,"TU-00043","Winnie","C.","Vinton","Female","College of Health Sciences","Maryland","2010/2011","First Semester","Liberian Student",6562133]
[null,268,"TU-00374","Winston","F.","Dweh","Male","College of Technology","Maryland","2009/2010","First Semester","Liberian Student",640598]
[null,482,"TU-00414","Winston","N.","Dickson","Male","College of Technology","Maryland","2010/2011","First Semester","Liberian Student",6163162]
[null,466,"TU-00583","Winston",null,"Dickson","Male","College of Technology","Maryland","2010/2011","Second Semester","Liberian Student",6209010]
[null,null,"TU-00691","Wisseh","D.","Francis","Male","College of Education",null,"2011/2012","First Semester","Liberian Student",776949209]
[null,1139,"TU-00018","Z.","N.","Walloh","Male","College of Agriculture and Food Sciences",null,"2011/2012","First Semester","Liberian Student",6291523]
[null,197,"TU-00203","Zachreyao",null,"Jalloh","Male","College of Technology","Maryland","2009/2010","First Semester","Liberian Student",6291560]
[null,10,"TU-00203","Zachreyao",null,"Jalloh","Male","College of Technology","Maryland","2009/2010","Second Semester","Liberian Student",6291560]
[null,178,"TU-00203","Zachreyao",null,"Jallah","Male","College of Technology","Maryland","2010/2011","Second Semester","Liberian Student",6291560]
[null,null,"TU-00203","Zachreyao","","Jalloh","Male","College of Technology","Maryland","2011/2012","First Semester","Liberian Student",6291560]
[null,484,"TU-00203","Zachreyea",null,"Jallah","Male","College of Technology","Maryland","2010/2011","First Semester","Liberian Student",6741296]
[null,468,"TU-00295","Zapporah","K.","Wiah","Female","College of Agriculture and Food Sciences","Maryland","2010/2011","First Semester","Liberian Student",6993782]
[null,63,"TU-00067","Zeway",null,"Carr","Male","College of Agriculture and Food Sciences","Maryland","2009/2010","Second Semester","Liberian Student",69414910]
[null,65,"TU-00067","Zeway",null,"Carr","Male","College of Agriculture and Food Sciences","Grand Kru","2009/2010","First Semester","Liberian Student",6941410]
[null,25,"TU-00067","Zeway",null,"Carr","Male","College of Agriculture and Food Sciences","Maryland","2010/2011","Second Semester","Liberian Student",6941410]
[null,470,"TU-00067","Zeway",null,"Carr","Male","College of Agriculture and Food Sciences","Maryland","2010/2011","First Semester","Liberian Student",6741410]
[null,1172,"TU-00067","Zeway",null,"Carr","Male","College of Agriculture and Food Sciences",null,"2011/2012","First Semester","Liberian Student",6941410]
[null,265,"TU-00371","Zinnah","K.","Manobah","Female","College of Health Sciences","Lofa","2009/2010","First Semester","Liberian Student",6361021]
[null,1182,"TU-00295","Zipparah","K.","Wiah","Male","College of Agriculture and Food Sciences",null,"2011/2012","First Semester","Liberian Student",880814929]
[null,51,"TU-00295","Zipporah","K.","Wiah","Female","College of Agriculture and Food Sciences","River Gee","2010/2011","Second Semester","Liberian Student",880633772]
[null,506,"TU-00200","Salomie",null,"Nimely","Female","College of Management","Grand Kru","2010/2011","Second Semester","Liberian Student"]
[null,507,"TU-00075","Anthony",null,"Gedee","Male","College of Health Sciences","Grand Kru","2010/2011","Second Semester","Liberian Student"]
[null,508,"TU-00460","Jefferson",null,"Goul","Male","College of Management","Grand Bassa","2010/2011","Second Semester","Liberian Student"]
[null,509,"TU-00318","Augustine","T.","Torpor","Male","College of Health Sciences","Grand Kru","2010/2011","Second Semester","Liberian Student"]
[null,510,"TU-00480","Pual","W.","Dweh","Male","College of Agriculture and Food Sciences","River Gee","2010/2011","Second Semester","Liberian Student"]
[null,511,"TU-00306","Raymond","P.","Wallace","Male","College of Management","Maryland","2010/2011","Second Semester","Liberian Student"]
[null,512,"TU-00511","William","K.","Collins","Male","College of Management","Maryland","2010/2011","Second Semester","Liberian Student"]
[null,513,"TU-00626","Joseph","K.","Weah","Male","College of Management","Maryland","2010/2011","Second Semester","Liberian Student"]
[null,514,"TU-00594","Amos","T.","Harris","Male","College of Agriculture and Food Sciences","Maryland","2010/2011","Second Semester","Liberian Student"]
[null,515,"TU-00599","Moses","D.","Wisner","Male","College of Technology","Maryland","2010/2011","Second Semester","Liberian Student"]
[null,516,"TU-00604","Richard","B.","Nimley","Male","College of Education","Grand Kru","2010/2011","Second Semester","Liberian Student"]
[null,517,"TU-00621","Nyanfore",null,"Bedell","Male","College of Health Sciences","Maryland","2010/2011","Second Semester","Liberian Student"]
[null,518,"TU-00577","Mohammed",null,"Toury","Male","College of Health Sciences","Maryland","2010/2011","Second Semester","Liberian Student"]
[null,519,"TU-00614","Frank","W.","Tarlah","Male","College of Agriculture and Food Sciences","Maryland","2010/2011","Second Semester","Liberian Student"]
[null,520,"TU-00609","Archie",null,"Brooks","Male","College of Agriculture and Food Sciences","Maryland","2010/2011","Second Semester","Liberian Student"]
[null,521,"TU-00620","Wallette","S.","Horace","Female","College of Health Sciences","Maryland","2010/2011","Second Semester","Liberian Student"]
[null,522,"TU-00615","Fawaz",null,"Sherman","Male","College of Technology","Maryland","2010/2011","Second Semester","Liberian Student"]
[null,523,"TU-00594","Amos","T.","Harris","Male","College of Agriculture and Food Sciences","Maryland","2010/2011","Second Semester","Liberian Student"]
[null,524,"TU-00602","Markenzine","P.","Blackmon","Male","College of Education","Maryland","2010/2011","Second Semester","Liberian Student"]
[null,525,"TU-00598","Anicetus","N.","Broh","Male","College of Technology","Grand Kru","2010/2011","Second Semester","Liberian Student"]
[null,526,"TU-00600","Jerome","H.","Sherman","Male","College of Management","Maryland","2010/2011","Second Semester","Liberian Student"]
[null,527,"TU-00601","Angeline","W.","Topor","Female","College of Management","Grand Kru","2010/2011","Second Semester","Liberian Student"]
[null,528,"TU-00595","Nelson","D.","Coffey","Male","College of Agriculture and Food Sciences","Grand Kru","2010/2011","Second Semester","Liberian Student"]
[null,529,"TU-00597","Emmanuel","Y.","Dennis","Male","College of Health Sciences","Maryland","2010/2011","Second Semester","Liberian Student"]
[null,530,"TU-00627","Louise","K.","Sebo","Female","College of Management",null,"2010/2011","Second Semester","Liberian Student"]
[null,531,"TU-00619","Samuel",null,"Dahn","Male","College of Technology","Maryland","2010/2011","Second Semester","Liberian Student"]
[null,532,"TU-00618","Victoria","D.","Mieh","Female","College of Health Sciences","Maryland","2010/2011","Second Semester","Liberian Student"]
[]
[]
[]
[]
[]
[]
[]
[]
[]
[]
[]
[]
[]
[]
[]
[]
[]
[]
[]
[]
[]
[]
[]
[]
[]
[]
[]
[]
[]
[]
[]
[]
[]
[]
[]
[]
[]
[]
[]
[]
[]
[]
[]
[]
[]
[]
[]
[]
[]
[]
[]
[]
[]
[]
[]
[]
[]
[]
[]
[]
[]
[]
[]
[]
[]
[]
[]
[]
[]
[]
[]
[]
[]
[]
[]
[]
[]
[]
[]
[]
[]
[]
[]
[]
[]
[]
[]
[]
[]
[]
[]
[]
[]
[]
[]
[]
[]
[]
[]
[]
[]
[]
[]
[]
[]
[]
[]
[]
[]
[]
[]
[]
[]
[]
[]
[]
[]
[]
[]
[]
[]
[]
[]
[]
[]
[]
[]
[]
[]
[]
[]
[]
[]
[]
[]
[]
[]
[]
[]
[]
[]
[]
[]
[]
[]
[]
[]
[]
[]
[]
[]
[]
[]
[]
[]
[]
[]
[]
[]
[]
[]
[]
[]
[]
[]
[]
[]
[]
[]
[]
[]
[]
[]
[]
[]
[]
[]
[]
[]
[]
[]
[]
[]
[]
[]
[]
[]
[]
[]
[]
[]
[]
[]
[]
[]
[]
[]
[]
[]
[]
[]
[]
[]
[]
[]
[]
[]
[]
[]
[]
[]
[]
[]
[]
[]
[]
[]
[]
[]
[]
[]
[]
[]
[]
[]
[]
[]
[]
[]
[]
[]
[]
[]
[]
[]
[]
[]
[]
[]
[]
[]
[]
[]
[]
[]
[]
[]
[]
[]
[]
[]
[]
[]
[]
[]
[]
[]
[]
[]
[]
[]
[]
[]
[]
[]
[]
[]
[]
[]
[]
[]
[]
[]
[]
[]
[]
[]
[]
[]
[]
[]
[]
[]
[]
[]
[]
[]
[]
[]
[]
[]
[]
[]
[]
[]
[]
[]
[]
[]
[]
[]
[]
[]
[]
[]
[]
[]
[]
[]
[]
[]
[]
[]
[]
[]
[]
[]
[]
[]
[]
[]
[]
[]
[]
[]
[]
[]
[]
[]
[]
[]
[]
[]
[]
[]
[]
[]
[]
[]
[]
[]
[]
[]
[]
[]
[]
[]
[]
[]
[]
[]
[]
[]
[]
[]
[]
[]
[]
[]
[]
[]
[]
[]
[]
[]
[]
[]
[]
[]
[]
[]
[]
[]
[]
[]
[]
[]
[]
[]
[]
[]
[]
[]
[]
[]
[]
[]
[]
[]
[]
[]
[]
[]
[]
[]
[]
[]
[]
[]
[]
[]
[]
[]
[]
[]
[]
[]
[]
[]
[]
[]
[]
[]
[]
[]
[]
[]
[]
[]
[]
[]
[]
[]
[]
[]
[]
[]
[]
[]
[]
[]
[]
[]
[]
[]
[]
[]
[]
[]
[]
[]
[]
[]
[]
[]
[]
[]
[]
[]
[]
[]
[]
[]
[]
[]
[]
[]
[]
[]
[]
[]
[]
[]
[]
[]
[]
[]
[]
[]
[]
[]
[]
[]
[]
[]
[]
[]
[]
[]
[]
[]
[]
[]
[]
[]
[]
[]
[]
[]
[]
[]
[]
[]
[]
[]
[]
[]
[]
[]
[]
[]
[]
[]
[]
[]
[]
[]
[]
[]
[]
[]
[]
[]
[]
[]
[]
[]
[]
[]
[]
[]
[]
[]
[]
[]
[]
[]
[]
[]
[]
[]
[]
[]
[]
[]
[]
[]
[]
[]
[]
[]
[]
[]
[]
[]
[]
[]
[]
[]
[]
[]
[]
[]
[]
[]
[]
[]
[]
[]
[]
[]
[]
[]
[]
[]
[]
[]
[]
[]
[]
[]
[]
[]
[]
[]
[]
[]
[]
[]
[]
[]
[]
[]
[]
[]
[]
[]
[]
[]
[]
[]
[]
[]
[]
[]
[]
[]
[]
[]
[]
[]
[]
[]
[]
[]
[]
[]
[]
[]
[]
[]
[]
[]
[]
[]
[]
[]
[]
[]
[]
[]
[]
[]
[]
[]
[]
[]
[]
[]
[]
[]
[]
[]
[]
[]
[]
[]
[]
[]
[]
[]
[]
[]
[]
[]
[]
[]
[]
[]
[]
[]
[]
[]
[]
[]
[]
[]
[]
[]
[]
[]
[]
[]
[]
[]
[]
[]
[]
[]
[]
[]
[]
[]
[]
[]
[]
[]
[]
[]
[]
[]
[]
[]
[]
[]
[]
[]
[]
[]
[]
[]
[]
[]
[]
[]
[]
[]
[]
[]
[]
[]
[]
[]
[]
[]
[]
[]
[]
[]
[]
[]
[]
[]
[]
[]
[]
[]
[]
[]
[]
[]
[]
[]
[]
[]
[]
[]
[]
[]
[]
[]
[]
[]
[]
[]
[]
[]
[]
[]
[]
[]
[]
[]
[]
[]
[]
[]
[]
[]
[]
[]
[]
[]
[]
[]
[]
[]
[]
[]
[]
[]
[]
[]
[]
[]
[]
[]
[]
[]
[]
[]
[]
[]
[]
[]
[]
[]
[]
[]
[]
[]
[]
[]
[]
[]
[]
[]
[]
[]
[]
[]
[]
[]
[]
[]
[]
[]
[]
[]
[]
[]
[]
[]
[]
[]
[]
[]
[]
[]
[]
[]
[]
[]
[]
[]
[]
[]
[]
[]
[]
[]
[]
[]
[]
[]
[]
[]
[]
[]
[]
[]
[]
[]
[]
[]
[]
[]
[]
[]
[]
[]
[]
[]
[]
[]
[]
[]
[]
[]
[]
[]
[]
[]
[]
[]
[]
[]
[]
[]
[]
[]
[]
[]
[]
[]
[]
[]
[]
[]
[]
[]
[]
[]
[]
[]
[]
[]
[]
[]
[]
[]
[]
[]
[]
[]
[]
[]
[]
[]
[]
[]
[]
[]
[]
[]
[]
[]
[]
[]
[]
[]
[]
[]
[]
[]
[]
[]
[]
[]
[]
[]
[]
[]
[]
[]
[]
[]
[]
[]
[]
[]
[]
[]
[]
[]
[]
[]
[]
[]
[]
[]
[]
[]
[]
[]
[]
[]
[]
[]
[]
[]
[]
[]
[]
[]
[]
[]
[]
[]
[]
[]
[]
[]
[]
[]
[]
[]
[]
[]
[]
[]
[]
[]
[]
[]
[]
[]
[]
[]
[]
[]
[]
[]
[]
[]
[]
[]
[]
[]
[]
[]
[]
[]
[]
[]
[]
[]
[]
[]
[]
[]
[]
[]
[]
[]
[]
[]
[]
[]
[]
[]
[]
[]
[]
[]
[]
[]
[]
[]
[]
[]
[]
[]
[]
[]
[]
[]
[]
[]
[]
[]
[]
[]
[]
[]
[]
[]
[]
[]
[]
[]
[]
[]
[]
[]
[]
[]
[]
[]
[]
[]
[]
[]
[]
[]
[]
[]
[]
[]
[]
[]
[]
[]
[]
[]
[]
[]
[]
[]
[]
[]
[]
[]
[]
[]
[]
[]
[]
[]
[]
[]
[]
[]
[]
[]
[]
[]
[]
[]
[]
[]
[]
[]
[]
[]
[]
[]
[]
[]
[]
[]
[]
[]
[]
[]
[]
[]
[]
[]
[]
[]
[]
[]
[]
[]
[]
[]
[]
[]
[]
[]
[]
[]
[]
[]
[]
[]
[]
[]
[]
[]
[]
[]
[]
[]
[]
[]
[]
[]
[]
[]
[]
[]
[]
[]
[]
[]
[]
[]
[]
[]
[]
[]
[]
[]
[]
[]
[]
[]
[]
[]
[]
[]
[]
[]
[]
[]
[]
[]
[]
[]
[]
[]
[]
[]
[]
[]
[]
[]
[]
[]
[]
[]
[]
[]
[]
[]
[]
[]
[]
[]
[]
[]
[]
[]
[]
[]
[]
[]
[]
[]
[]
[]
[]
[]
[]
[]
[]
[]
[]
[]
[]
[]
[]
[]
[]
[]
[]
[]
[]
[]
[]
[]
[]
[]
[]
[]
[]
[]
[]
[]
[]
[]
[]
[]
[]
[]
[]
[]
[]
[]
[]
[]
[]
[]
[]
[]
[]
[]
[]
[]
[]
[]
[]
[]
[]
[]
[]
[]
[]
[]
[]
[]
[]
[]
[]
[]
[]
[]
[]
[]
[]
[]
[]
[]
[]
[]
[]
[]
[]
[]
[]
[]
[]
[]
[]
[]
[]
[]
[]
[]
[]
[]
[]
[]
[]
[]
[]
[]
[]
[]
[]
[]
[]
[]
[]
[]
[]
[]
[]
[]
[]
[]
[]
[]
[]
[]
[]
[]
[]
[]
[]
[]
[]
[]
[]
[]
[]
[]
[]
[]
[]
[]
[]
[]
[]
[]
[]
[]
[]
[]
[]
[]
[]
[]
[]
[]
[]
[]
[]
[]
[]
[]
[]
[]
[]
[]
[]
[]
[]
[]
[]
[]
[]
[]
[]
[]
[]
[]
[]
[]
[]
[]
[]
[]
[]
[]
[]
[]
[]
[]
[]
[]
[]
[]
[]
[]
[]
[]
[]
[]
[]
[]
[]
[]
[]
[]
[]
[]
[]
[]
[]
[]
[]
[]
[]
[]
[]
[]
[]
[]
[]
[]
[]
[]
[]
[]
[]
[]
[]
[]
[]
[]
[]
[]
[]
[]
[]
[]
[]
[]
[]
[]
[]
[]
[]
[]
[]
[]
[]
[]
[]
[]
[]
[]
[]
[]
[]
[]
[]
[]
[]
[]
[]
[]
[]
[]
[]
[]
[]
[]
[]
[]
[]
[]
[]
[]
[]
[]
[]
[]
[]
[]
[]
[]
[]
[]
[]
[]
[]
[]
[]
[]
[]
[]
[]
[]
[]
[]
[]
[]
[]
[]
[]
[]
[]
[]
[]
[]
[]
[]
[]
[]
[]
[]
[]
[]
[]
[]
[]
[]
[]
[]
[]
[]
[]
[]
[]
[]
[]
[]
[]
[]
[]
[]
[]
[]
[]
[]
[]
[]
[]
[]
[]
[]
[]
[]
[]
[]
[]
[]
[]
[]
[]
[]
[]
[]
[]
[]
[]
[]
[]
[]
[]
[]
[]
[]
[]
[]
[]
[]
[]
[]
[]
[]
[]
[]
[]
[]
[]
[]
[]
[]
[]
[]
[]
[]
[]
[]
[]
[]
[]
[]
[]
[]
[]
[]
[]
[]
[]
[]
[]
[]
[]
[]
[]
[]
[]
[]
[]
[]
[]
[]
[]
[]
[]
[]
[]
[]
[]
[]
[]
[]
[]
[]
[]
[]
[]
[]
[]
[]
[]
[]
[]
[]
[]
[]
[]
[]
[]
[]
[]
[]
[]
[]
[]
[]
[]
[]
[]
[]
[]
[]
[]
[]
[]
[]
[]
[]
[]
[]
[]
[]
[]
[]
[]
[]
[]
[]
[]
[]
[]
[]
[]
[]
[]
[]
[]
[]
[]
[]
[]
[]
[]
[]
[]
[]
[]
[]
[]
[]
[]
[]
[]
[]
[]
[]
[]
[]
[]
[]
[]
[]
[]
[]
[]
[]
[]
[]
[]
[]
[]
[]
[]
[]
[]
[]
[]
[]
[]
[]
[]
[]
[]
[]
[]
[]
[]
[]
[]
[]
[]
[]
[]
[]
[]
[]
[]
[]
[]
[]
[]
[]
[]
[]
[]
[]
[]
[]
[]
[]
[]
[]
[]
[]
[]
[]
[]
[]
[]
[]
[]
[]
[]
[]
[]
[]
[]
[]
[]
[]
[]
[]
[]
[]
[]
[]
[]
[]
[]
[]
[]
[]
[]
[]
[]
[]
[]
[]
[]
[]
[]
[]
[]
[]
[]
[]
[]
[]
[]
[]
[]
[]
[]
[]
[]
[]
[]
[]
[]
[]
[]
[]
[]
[]
[]
[]
[]
[]
[]
[]
[]
[]
[]
[]
[]
[]
[]
[]
[]
[]
[]
[]
[]
[]
[]
[]
[]
[]
[]
[]
[]
[]
[]
[]
[]
[]
[]
[]
[]
[]
[]
[]
[]
[]
[]
[]
[]
[]
[]
[]
[]
[]
[]
[]
[]
[]
[]
[]
[]
[]
[]
[]
[]
[]
[]
[]
[]
[]
[]
[]
[]
[]
[]
[]
[]
[]
[]
[]
[]
[]
[]
[]
[]
[]
[]
[]
[]
[]
[]
[]
[]
[]
[]
[]
[]
[]
[]
[]
[]
[]
[]
[]
[]
[]
[]
[]
[]
[]
[]
[]
[]
[]
[]
[]
[]
[]
[]
[]
[]
[]
[]
[]
[]
[]
[]
[]
[]
[]
[]
[]
[]
[]
[]
[]
[]
[]
[]
[]
[]
[]
[]
[]
[]
[]
[]
[]
[]
[]
[]
[]
[]
[]
[]
[]
[]
[]
[]
[]
[]
[]
[]
[]
[]
[]
[]
[]
[]
[]
[]
[]
[]
[]
[]
[]
[]
[]
[]
[]
[]
[]
[]
[]
[]
[]
[]
[]
[]
[]
[]
[]
[]
[]
[]
[]
[]
[]
[]
[]
[]
[]
[]
[]
[]
[]
[]
[]
[]
[]
[]
[]
[]
[]
[]
[]
[]
[]
[]
[]
[]
[]
[]
[]
[]
[]
[]
[]
[]
[]
[]
[]
[]
[]
[]
[]
[]
[]
[]
[]
[]
[]
[]
[]
[]
[]
[]
[]
[]
[]
[]
[]
[]
[]
[]
[]
[]
[]
[]
[]
[]
[]
[]
[]
[]
[]
[]
[]
[]
[]
[]
[]
[]
[]
[]
[]
[]
[]
[]
[]
[]
[]
[]
[]
[]
[]
[]
[]
[]
[]
[]
[]
[]
[]
[]
[]
[]
[]
[]
[]
[]
[]
[]
[]
[]
[]
[]
[]
[]
[]
[]
[]
[]
[]
[]
[]
[]
[]
[]
[]
[]
[]
[]
[]
[]
[]
[]
[]
[]
[]
[]
[]
[]
[]
[]
[]
[]
[]
[]
[]
[]
[]
[]
[]
[]
[]
[]
[]
[]
[]
[]
[]
[]
[]
[]
[]
[]
[]
[]
[]
[]
[]
[]
[]
[]
[]
[]
[]
[]
[]
[]
[]
[]
[]
[]
[]
[]
[]
[]
[]
[]
[]
[]
[]
[]
[]
[]
[]
[]
[]
[]
[]
[]
[]
[]
[]
[]
[]
[]
[]
[]
[]
[]
[]
[]
[]
[]
[]
[]
[]
[]
[]
[]
[]
[]
[]
[]
[]
[]
[]
[]
[]
[]
[]
[]
[]
[]
[]
[]
[]
[]
[]
[]
[]
[]
[]
[]
[]
[]
[]
[]
[]
[]
[]
[]
[]
[]
[]
[]
[]
[]
[]
[]
[]
[]
[]
[]
[]
[]
[]
[]
[]
[]
[]
[]
[]
[]
[]
[]
[]
[]
[]
[]
[]
[]
[]
[]
[]
[]
[]
[]
[]
[]
[]
[]
[]
[]
[]
[]
[]
[]
[]
[]
[]
[]
[]
[]
[]
[]
[]
[]
[]
[]
[]
[]
[]
[]
[]
[]
[]
[]
[]
[]
[]
[]
[]
[]
[]
[]
[]
[]
[]
[]
[]
[]
[]
[]
[]
[]
[]
[]
[]
[]
[]
[]
[]
[]
[]
[]
[]
[]
[]
[]
[]
[]
[]
[]
[]
[]
[]
[]
[]
[]
[]
[]
[]
[]
[]
[]
[]
[]
[]
[]
[]
[]
[]
[]
[]
[]
[]
[]
[]
[]
[]
[]
[]
[]
[]
[]
[]
[]
[]
[]
[]
[]
[]
[]
[]
[]
[]
[]
[]
[]
[]
[]
[]
[]
[]
[]
[]
[]
[]
[]
[]
[]
[]
[]
[]
[]
[]
[]
[]
[]
[]
[]
[]
[]
[]
[]
[]
[]
[]
[]
[]
[]
[]
[]
[]
[]
[]
[]
[]
[]
[]
[]
[]
[]
[]
[]
[]
[]
[]
[]
[]
[]
[]
[]
[]
[]
[]
[]
[]
[]
[]
[]
[]
[]
[]
[]
[]
[]
[]
[]
[]
[]
[]
[]
[]
[]
[]
[]
[]
[]
[]
[]
[]
[]
[]
[]
[]
[]
[]
[]
[]
[]
[]
[]
[]
[]
[]
[]
[]
[]
[]
[]
[]
[]
[]
[]
[]
[]
[]
[]
[]
[]
[]
[]
[]
[]
[]
[]
[]
[]
[]
[]
[]
[]
[]
[]
[]
[]
[]
[]
[]
[]
[]
[]
[]
[]
[]
[]
[]
[]
[]
[]
[]
[]
[]
[]
[]
[]
[]
[]
[]
[]
[]
[]
[]
[]
[]
[]
[]
[]
[]
[]
[]
[]
[]
[]
[]
[]
[]
[]
[]
[]
[]
[]
[]
[]
[]
[]
[]
[]
[]
[]
[]
[]
[]
[]
[]
[]
[]
[]
[]
[]
[]
[]
[]
[]
[]
[]
[]
[]
[]
[]
[]
[]
[]
[]
[]
[]
[]
[]
[]
[]
[]
[]
[]
[]
[]
[]
[]
[]
[]
[]
[]
[]
[]
[]
[]
[]
[]
[]
[]
[]
[]
[]
[]
[]
[]
[]
[]
[]
[]
[]
[]
[]
[]
[]
[]
[]
[]
[]
[]
[]
[]
[]
[]
[]
[]
[]
[]
[]
[]
[]
[]
[]
[]
[]
[]
[]
[]
[]
[]
[]
[]
[]
[]
[]
[]
[]
[]
[]
[]
[]
[]
[]
[]
[]
[]
[]
[]
[]
[]
[]
[]
[]
[]
[]
[]
[]
[]
[]
[]
[]
[]
[]
[]
[]
[]
[]
[]
[]
[]
[]
[]
[]
[]
[]
[]
[]
[]
[]
[]
[]
[]
[]
[]
[]
[]
[]
[]
[]
[]
[]
[]
[]
[]
[]
[]
[]
[]
[]
[]
[]
[]
[]
[]
[]
[]
[]
[]
[]
[]
[]
[]
[]
[]
[]
[]
[]
[]
[]
[]
[]
[]
[]
[]
[]
[]
[]
[]
[]
[]
[]
[]
[]
[]
[]
[]
[]
[]
[]
[]
[]
[]
[]
[]
[]
[]
[]
[]
[]
[]
[]
[]
[]
[]
[]
[]
[]
[]
[]
[]
[]
[]
[]
[]
[]
[]
[]
[]
[]
[]
[]
[]
[]
[]
[]
[]
[]
[]
[]
[]
[]
[]
[]
[]
[]
[]
[]
[]
[]
[]
[]
[]
[]
[]
[]
[]
[]
[]
[]
[]
[]
[]
[]
[]
[]
[]
[]
[]
[]
[]
[]
[]
[]
[]
[]
[]
[]
[]
[]
[]
[]
[]
[]
[]
[]
[]
[]
[]
[]
[]
[]
[]
[]
[]
[]
[]
[]
[]
[]
[]
[]
[]
[]
[]
[]
[]
[]
[]
[]
[]
[]
[]
[]
[]
[]
[]
[]
[]
[]
[]
[]
[]
[]
[]
[]
[]
[]
[]
[]
[]
[]
[]
[]
[]
[]
[]
[]
[]
[]
[]
[]
[]
[]
[]
[]
[]
[]
[]
[]
[]
[]
[]
[]
[]
[]
[]
[]
[]
[]
[]
[]
[]
[]
[]
[]
[]
[]
[]
[]
[]
[]
[]
[]
[]
[]
[]
[]
[]
[]
[]
[]
[]
[]
[]
[]
[]
[]
[]
[]
[]
[]
[]
[]
[]
[]
[]
[]
[]
[]
[]
[]
[]
[]
[]
[]
[]
[]
[]
[]
[]
[]
[]
[]
[]
[]
[]
[]
[]
[]
[]
[]
[]
[]
[]
[]
[]
[]
[]
[]
[]
[]
[]
[]
[]
[]
[]
[]
[]
[]
[]
[]
[]
[]
[]
[]
[]
[]
[]
[]
[]
[]
[]
[]
[]
[]
[]
[]
[]
[]
[]
[]
[]
[]
[]
[]
[]
[]
[]
[]
[]
[]
[]
[]
[]
[]
[]
[]
[]
[]
[]
[]
[]
[]
[]
[]
[]
[]
[]
[]
[]
[]
[]
[]
[]
[]
[]
[]
[]
[]
[]
[]
[]
[]
[]
[]
[]
[]
[]
[]
[]
[]
[]
[]
[]
[]
[]
[]
[]
[]
[]
[]
[]
[]
[]
[]
[]
[]
[]
[]
[]
[]
[]
[]
[]
[]
[]
[]
[]
[]
[]
[]
[]
[]
[]
[]
[]
[]
[]
[]
[]
[]
[]
[]
[]
[]
[]
[]
[]
[]
[]
[]
[]
[]
[]
[]
[]
[]
[]
[]
[]
[]
[]
[]
[]
[]
[]
[]
[]
[]
[]
[]
[]
[]
[]
[]
[]
[]
[]
[]
[]
[]
[]
[]
[]
[]
[]
[]
[]
[]
[]
[]
[]
[]
[]
[]
[]
[]
[]
[]
[]
[]
[]
[]
[]
[]
[]
[]
[]
[]
[]
[]
[]
[]
[]
[]
[]
[]
[]
[]
[]
[]
[]
[]
[]
[]
[]
[]
[]
[]
[]
[]
[]
[]
[]
[]
[]
[]
[]
[]
[]
[]
[]
[]
[]
[]
[]
[]
[]
[]
[]
[]
[]
[]
[]
[]
[]
[]
[]
[]
[]
[]
[]
[]
[]
[]
[]
[]
[]
[]
[]
[]
[]
[]
[]
[]
[]
[]
[]
[]
[]
[]
[]
[]
[]
[]
[]
[]
[]
[]
[]
[]
[]
[]
[]
[]
[]
[]
[]
[]
[]
[]
[]
[]
[]
[]
[]
[]
[]
[]
[]
[]
[]
[]
[]
[]
[]
[]
[]
[]
[]
[]
[]
[]
[]
[]
[]
[]
[]
[]
[]
[]
[]
[]
[]
[]
[]
[]
[]
[]
[]
[]
[]
[]
[]
[]
[]
[]
[]
[]
[]
[]
[]
[]
[]
[]
[]
[]
[]
[]
[]
[]
[]
[]
[]
[]
[]
[]
[]
[]
[]
[]
[]
[]
[]
[]
[]
[]
[]
[]
[]
[]
[]
[]
[]
[]
[]
[]
[]
[]
[]
[]
[]
[]
[]
[]
[]
[]
[]
[]
[]
[]
[]
[]
[]
[]
[]
[]
[]
[]
[]
[]
[]
[]
[]
[]
[]
[]
[]
[]
[]
[]
[]
[]
[]
[]
[]
[]
[]
[]
[]
[]
[]
[]
[]
[]
[]
[]
[]
[]
[]
[]
[]
[]
[]
[]
[]
[]
[]
[]
[]
[]
[]
[]
[]
[]
[]
[]
[]
[]
[]
[]
[]
[]
[]
[]
[]
[]
[]
[]
[]
[]
[]
[]
[]
[]
[]
[]
[]
[]
[]
[]
[]
[]
[]
[]
[]
[]
[]
[]
[]
[]
[]
[]
[]
[]
[]
[]
[]
[]
[]
[]
[]
[]
[]
[]
[]
[]
[]
[]
[]
[]
[]
[]
[]
[]
[]
[]
[]
[]
[]
[]
[]
[]
[]
[]
[]
[]
[]
[]
[]
[]
[]
[]
[]
[]
[]
[]
[]
[]
[]
[]
[]
[]
[]
[]
[]
[]
[]
[]
[]
[]
[]
[]
[]
[]
[]
[]
[]
[]
[]
[]
[]
[]
[]
[]
[]
[]
[]
[]
[]
[]
[]
[]
[]
[]
[]
[]
[]
[]
[]
[]
[]
[]
[]
[]
[]
[]
[]
[]
[]
[]
[]
[]
[]
[]
[]
[]
[]
[]
[]
[]
[]
[]
[]
[]
[]
[]
[]
[]
[]
[]
[]
[]
[]
[]
[]
[]
[]
[]
[]
[]
[]
[]
[]
[]
[]
[]
[]
[]
[]
[]
[]
[]
[]
[]
[]
[]
[]
[]
[]
[]
[]
[]
[]
[]
[]
[]
[]
[]
[]
[]
[]
[]
[]
[]
[]
[]
[]
[]
[]
[]
[]
[]
[]
[]
[]
[]
[]
[]
[]
[]
[]
[]
[]
[]
[]
[]
[]
[]
[]
[]
[]
[]
[]
[]
[]
[]
[]
[]
[]
[]
[]
[]
[]
[]
[]
[]
[]
[]
[]
[]
[]
[]
[]
[]
[]
[]
[]
[]
[]
[]
[]
[]
[]
[]
[]
[]
[]
[]
[]
[]
[]
[]
[]
[]
[]
[]
[]
[]
[]
[]
[]
[]
[]
[]
[]
[]
[]
[]
[]
[]
[]
[]
[]
[]
[]
[]
[]
[]
[]
[]
[]
[]
[]
[]
[]
[]
[]
[]
[]
[]
[]
[]
[]
[]
[]
[]
[]
[]
[]
[]
[]
[]
[]
[]
[]
[]
[]
[]
[]
[]
[]
[]
[]
[]
[]
[]
[]
[]
[]
[]
[]
[]
[]
[]
[]
[]
[]
[]
[]
[]
[]
[]
[]
[]
[]
[]
[]
[]
[]
[]
[]
[]
[]
[]
[]
[]
[]
[]
[]
[]
[]
[]
[]
[]
[]
[]
[]
[]
[]
[]
[]
[]
[]
[]
[]
[]
[]
[]
[]
[]
[]
[]
[]
[]
[]
[]
[]
[]
[]
[]
[]
[]
[]
[]
[]
[]
[]
[]
[]
[]
[]
[]
[]
[]
[]
[]
[]
[]
[]
[]
[]
[]
[]
[]
[]
[]
[]
[]
[]
[]
[]
[]
[]
[]
[]
[]
[]
[]
[]
[]
[]
[]
[]
[]
[]
[]
[]
[]
[]
[]
[]
[]
[]
[]
[]
[]
[]
[]
[]
[]
[]
[]
[]
[]
[]
[]
[]
[]
[]
[]
[]
[]
[]
[]
[]
[]
[]
[]
[]
[]
[]
[]
[]
[]
[]
[]
[]
[]
[]
[]
[]
[]
[]
[]
[]
[]
[]
[]
[]
[]
[]
[]
[]
[]
[]
[]
[]
[]
[]
[]
[]
[]
[]
[]
[]
[]
[]
[]
[]
[]
[]
[]
[]
[]
[]
[]
[]
[]
[]
[]
[]
[]
[]
[]
[]
[]
[]
[]
[]
[]
[]
[]
[]
[]
[]
[]
[]
[]
[]
[]
[]
[]
[]
[]
[]
[]
[]
[]
[]
[]
[]
[]
[]
[]
[]
[]
[]
[]
[]
[]
[]
[]
[]
[]
[]
[]
[]
[]
[]
[]
[]
[]
[]
[]
[]
[]
[]
[]
[]
[]
[]
[]
[]
[]
[]
[]
[]
[]
[]
[]
[]
[]
[]
[]
[]
[]
[]
[]
[]
[]
[]
[]
[]
[]
[]
[]
[]
[]
[]
[]
[]
[]
[]
[]
[]
[]
[]
[]
[]
[]
[]
[]
[]
[]
[]
[]
[]
[]
[]
[]
[]
[]
[]
[]
[]
[]
[]
[]
[]
[]
[]
[]
[]
[]
[]
[]
[]
[]
[]
[]
[]
[]
[]
[]
[]
[]
[]
[]
[]
[]
[]
[]
[]
[]
[]
[]
[]
[]
[]
[]
[]
[]
[]
[]
[]
[]
[]
[]
[]
[]
[]
[]
[]
[]
[]
[]
[]
[]
[]
[]
[]
[]
[]
[]
[]
[]
[]
[]
[]
[]
[]
[]
[]
[]
[]
[]
[]
[]
[]
[]
[]
[]
[]
[]
[]
[]
[]
[]
[]
[]
[]
[]
[]
[]
[]
[]
[]
[]
[]
[]
[]
[]
[]
[]
[]
[]
[]
[]
[]
[]
[]
[]
[]
[]
[]
[]
[]
[]
[]
[]
[]
[]
[]
[]
[]
[]
[]
[]
[]
[]
[]
[]
[]
[]
[]
[]
[]
[]
[]
[]
[]
[]
[]
[]
[]
[]
[]
[]
[]
[]
[]
[]
[]
[]
[]
[]
[]
[]
[]
[]
[]
[]
[]
[]
[]
[]
[]
[]
[]
[]
[]
[]
[]
[]
[]
[]
[]
[]
[]
[]
[]
[]
[]
[]
[]
[]
[]
[]
[]
[]
[]
[]
[]
[]
[]
[]
[]
[]
[]
[]
[]
[]
[]
[]
[]
[]
[]
[]
[]
[]
[]
[]
[]
[]
[]
[]
[]
[]
[]
[]
[]
[]
[]
[]
[]
[]
[]
[]
[]
[]
[]
[]
[]
[]
[]
[]
[]
[]
[]
[]
[]
[]
[]
[]
[]
[]
[]
[]
[]
[]
[]
[]
[]
[]
[]
[]
[]
[]
[]
[]
[]
[]
[]
[]
[]
[]
[]
[]
[]
[]
[]
[]
[]
[]
[]
[]
[]
[]
[]
[]
[]
[]
[]
[]
[]
[]
[]
[]
[]
[]
[]
[]
[]
[]
[]
[]
[]
[]
[]
[]
[]
[]
[]
[]
[]
[]
[]
[]
[]
[]
[]
[]
[]
[]
[]
[]
[]
[]
[]
[]
[]
[]
[]
[]
[]
[]
[]
[]
[]
[]
[]
[]
[]
[]
[]
[]
[]
[]
[]
[]
[]
[]
[]
[]
[]
[]
[]
[]
[]
[]
[]
[]
[]
[]
[]
[]
[]
[]
[]
[]
[]
[]
[]
[]
[]
[]
[]
[]
[]
[]
[]
[]
[]
[]
[]
[]
[]
[]
[]
[]
[]
[]
[]
[]
[]
[]
[]
[]
[]
[]
[]
[]
[]
[]
[]
[]
[]
[]
[]
[]
[]
[]
[]
[]
[]
[]
[]
[]
[]
[]
[]
[]
[]
[]
[]
[]
[]
[]
[]
[]
[]
[]
[]
[]
[]
[]
[]
[]
[]
[]
[]
[]
[]
[]
[]
[]
[]
[]
[]
[]
[]
[]
[]
[]
[]
[]
[]
[]
[]
[]
[]
[]
[]
[]
[]
[]
[]
[]
[]
[]
[]
[]
[]
[]
[]
[]
[]
[]
[]
[]
[]
[]
[]
[]
[]
[]
[]
[]
[]
[]
[]
[]
[]
[]
[]
[]
[]
[]
[]
[]
[]
[]
[]
[]
[]
[]
[]
[]
[]
[]
[]
[]
[]
[]
[]
[]
[]
[]
[]
[]
[]
[]
[]
[]
[]
[]
[]
[]
[]
[]
[]
[]
[]
[]
[]
[]
[]
[]
[]
[]
[]
[]
[]
[]
[]
[]
[]
[]
[]
[]
[]
[]
[]
[]
[]
[]
[]
[]
[]
[]
[]
[]
[]
[]
[]
[]
[]
[]
[]
[]
[]
[]
[]
[]
[]
[]
[]
[]
[]
[]
[]
[]
[]
[]
[]
[]
[]
[]
[]
[]
[]
[]
[]
[]
[]
[]
[]
[]
[]
[]
[]
[]
[]
[]
[]
[]
[]
[]
[]
[]
[]
[]
[]
[]
[]
[]
[]
[]
[]
[]
[]
[]
[]
[]
[]
[]
[]
[]
[]
[]
[]
[]
[]
[]
[]
[]
[]
[]
[]
[]
[]
[]
[]
[]
[]
[]
[]
[]
[]
[]
[]
[]
[]
[]
[]
[]
[]
[]
[]
[]
[]
[]
[]
[]
[]
[]
[]
[]
[]
[]
[]
[]
[]
[]
[]
[]
[]
[]
[]
[]
[]
[]
[]
[]
[]
[]
[]
[]
[]
[]
[]
[]
[]
[]
[]
[]
[]
[]
[]
[]
[]
[]
[]
[]
[]
[]
[]
[]
[]
[]
[]
[]
[]
[]
[]
[]
[]
[]
[]
[]
[]
[]
[]
[]
[]
[]
[]
[]
[]
[]
[]
[]
[]
[]
[]
[]
[]
[]
[]
[]
[]
[]
[]
[]
[]
[]
[]
[]
[]
[]
[]
[]
[]
[]
[]
[]
[]
[]
[]
[]
[]
[]
[]
[]
[]
[]
[]
[]
[]
[]
[]
[]
[]
[]
[]
[]
[]
[]
[]
[]
[]
[]
[]
[]
[]
[]
[]
[]
[]
[]
[]
[]
[]
[]
[]
[]
[]
[]
[]
[]
[]
[]
[]
[]
[]
[]
[]
[]
[]
[]
[]
[]
[]
[]
[]
[]
[]
[]
[]
[]
[]
[]
[]
[]
[]
[]
[]
[]
[]
[]
[]
[]
[]
[]
[]
[]
[]
[]
[]
[]
[]
[]
[]
[]
[]
[]
[]
[]
[]
[]
[]
[]
[]
[]
[]
[]
[]
[]
[]
[]
[]
[]
[]
[]
[]
[]
[]
[]
[]
[]
[]
[]
[]
[]
[]
[]
[]
[]
[]
[]
[]
[]
[]
[]
[]
[]
[]
[]
[]
[]
[]
[]
[]
[]
[]
[]
[]
[]
[]
[]
[]
[]
[]
[]
[]
[]
[]
[]
[]
[]
[]
[]
[]
[]
[]
[]
[]
[]
[]
[]
[]
[]
[]
[]
[]
[]
[]
[]
[]
[]
[]
[]
[]
[]
[]
[]
[]
[]
[]
[]
[]
[]
[]
[]
[]
[]
[]
[]
[]
[]
[]
[]
[]
[]
[]
[]
[]
[]
[]
[]
[]
[]
[]
[]
[]
[]
[]
[]
[]
[]
[]
[]
[]
[]
[]
[]
[]
[]
[]
[]
[]
[]
[]
[]
[]
[]
[]
[]
[]
[]
[]
[]
[]
[]
[]
[]
[]
[]
[]
[]
[]
[]
[]
[]
[]
[]
[]
[]
[]
[]
[]
[]
[]
[]
[]
[]
[]
[]
[]
[]
[]
[]
[]
[]
[]
[]
[]
[]
[]
[]
[]
[]
[]
[]
[]
[]
[]
[]
[]
[]
[]
[]
[]
[]
[]
[]
[]
[]
[]
[]
[]
[]
[]
[]
[]
[]
[]
[]
[]
[]
[]
[]
[]
[]
[]
[]
[]
[]
[]
[]
[]
[]
[]
[]
[]
[]
[]
[]
[]
[]
[]
[]
[]
[]
[]
[]
[]
[]
[]
[]
[]
[]
[]
[]
[]
[]
[]
[]
[]
[]
[]
[]
[]
[]
[]
[]
[]
[]
[]
[]
[]
[]
[]
[]
[]
[]
[]
[]
[]
[]
[]
[]
[]
[]
[]
[]
[]
[]
[]
[]
[]
[]
[]
[]
[]
[]
[]
[]
[]
[]
[]
[]
[]
[]
[]
[]
[]
[]
[]
[]
[]
[]
[]
[]
[]
[]
[]
[]
[]
[]
[]
[]
[]
[]
[]
[]
[]
[]
[]
[]
[]
[]
[]
[]
[]
[]
[]
[]
[]
[]
[]
[]
[]
[]
[]
[]
[]
[]
[]
[]
[]
[]
[]
[]
[]
[]
[]
[]
[]
[]
[]
[]
[]
[]
[]
[]
[]
[]
[]
[]
[]
[]
[]
[]
[]
[]
[]
[]
[]
[]
[]
[]
[]
[]
[]
[]
[]
[]
[]
[]
[]
[]
[]
[]
[]
[]
[]
[]
[]
[]
[]
[]
[]
[]
[]
[]
[]
[]
[]
[]
[]
[]
[]
[]
[]
[]
[]
[]
[]
[]
[]
[]
[]
[]
[]
[]
[]
[]
[]
[]
[]
[]
[]
[]
[]
[]
[]
[]
[]
[]
[]
[]
[]
[]
[]
[]
[]
[]
[]
[]
[]
[]
[]
[]
[]
[]
[]
[]
[]
[]
[]
[]
[]
[]
[]
[]
[]
[]
[]
[]
[]
[]
[]
[]
[]
[]
[]
[]
[]
[]
[]
[]
[]
[]
[]
[]
[]
[]
[]
[]
[]
[]
[]
[]
[]
[]
[]
[]
[]
[]
[]
[]
[]
[]
[]
[]
[]
[]
[]
[]
[]
[]
[]
[]
[]
[]
[]
[]
[]
[]
[]
[]
[]
[]
[]
[]
[]
[]
[]
[]
[]
[]
[]
[]
[]
[]
[]
[]
[]
[]
[]
[]
[]
[]
[]
[]
[]
[]
[]
[]
[]
[]
[]
[]
[]
[]
[]
[]
[]
[]
[]
[]
[]
[]
[]
[]
[]
[]
[]
[]
[]
[]
[]
[]
[]
[]
[]
[]
[]
[]
[]
[]
[]
[]
[]
[]
[]
[]
[]
[]
[]
[]
[]
[]
[]
[]
[]
[]
[]
[]
[]
[]
[]
[]
[]
[]
[]
[]
[]
[]
[]
[]
[]
[]
[]
[]
[]
[]
[]
[]
[]
[]
[]
[]
[]
[]
[]
[]
[]
[]
[]
[]
[]
[]
[]
[]
[]
[]
[]
[]
[]
[]
[]
[]
[]
[]
[]
[]
[]
[]
[]
[]
[]
[]
[]
[]
[]
[]
[]
[]
[]
[]
[]
[]
[]
[]
[]
[]
[]
[]
[]
[]
[]
[]
[]
[]
[]
[]
[]
[]
[]
[]
[]
[]
[]
[]
[]
[]
[]
[]
[]
[]
[]
[]
[]
[]
[]
[]
[]
[]
[]
[]
[]
[]
[]
[]
[]
[]
[]
[]
[]
[]
[]
[]
[]
[]
[]
[]
[]
[]
[]
[]
[]
[]
[]
[]
[]
[]
[]
[]
[]
[]
[]
[]
[]
[]
[]
[]
[]
[]
[]
[]
[]
[]
[]
[]
[]
[]
[]
[]
[]
[]
[]
[]
[]
[]
[]
[]
[]
[]
[]
[]
[]
[]
[]
[]
[]
[]
[]
[]
[]
[]
[]
[]
[]
[]
[]
[]
[]
[]
[]
[]
[]
[]
[]
[]
[]
[]
[]
[]
[]
[]
[]
[]
[]
[]
[]
[]
[]
[]
[]
[]
[]
[]
[]
[]
[]
[]
[]
[]
[]
[]
[]
[]
[]
[]
[]
[]
[]
[]
[]
[]
[]
[]
[]
[]
[]
[]
[]
[]
[]
[]
[]
[]
[]
[]
[]
[]
[]
[]
[]
[]
[]
[]
[]
[]
[]
[]
[]
[]
[]
[]
[]
[]
[]
[]
[]
[]
[]
[]
[]
[]
[]
[]
[]
[]
[]
[]
[]
[]
[]
[]
[]
[]
[]
[]
[]
[]
[]
[]
[]
[]
[]
[]
[]
[]
[]
[]
[]
[]
[]
[]
[]
[]
[]
[]
[]
[]
[]
[]
[]
[]
[]
[]
[]
[]
[]
[]
[]
[]
[]
[]
[]
[]
[]
[]
[]
[]
[]
[]
[]
[]
[]
[]
[]
[]
[]
[]
[]
[]
[]
[]
[]
[]
[]
[]
[]
[]
[]
[]
[]
[]
[]
[]
[]
[]
[]
[]
[]
[]
[]
[]
[]
[]
[]
[]
[]
[]
[]
[]
[]
[]
[]
[]
[]
[]
[]
[]
[]
[]
[]
[]
[]
[]
[]
[]
[]
[]
[]
[]
[]
[]
[]
[]
[]
[]
[]
[]
[]
[]
[]
[]
[]
[]
[]
[]
[]
[]
[]
[]
[]
[]
[]
[]
[]
[]
[]
[]
[]
[]
[]
[]
[]
[]
[]
[]
[]
[]
[]
[]
[]
[]
[]
[]
[]
[]
[]
[]
[]
[]
[]
[]
[]
[]
[]
[]
[]
[]
[]
[]
[]
[]
[]
[]
[]
[]
[]
[]
[]
[]
[]
[]
[]
[]
[]
[]
[]
[]
[]
[]
[]
[]
[]
[]
[]
[]
[]
[]
[]
[]
[]
[]
[]
[]
[]
[]
[]
[]
[]
[]
[]
[]
[]
[]
[]
[]
[]
[]
[]
[]
[]
[]
[]
[]
[]
[]
[]
[]
[]
[]
[]
[]
[]
[]
[]
[]
[]
[]
[]
[]
[]
[]
[]
[]
[]
[]
[]
[]
[]
[]
[]
[]
[]
[]
[]
[]
[]
[]
[]
[]
[]
[]
[]
[]
[]
[]
[]
[]
[]
[]
[]
[]
[]
[]
[]
[]
[]
[]
[]
[]
[]
[]
[]
[]
[]
[]
[]
[]
[]
[]
[]
[]
[]
[]
[]
[]
[]
[]
[]
[]
[]
[]
[]
[]
[]
[]
[]
[]
[]
[]
[]
[]
[]
[]
[]
[]
[]
[]
[]
[]
[]
[]
[]
[]
[]
[]
[]
[]
[]
[]
[]
[]
[]
[]
[]
[]
[]
[]
[]
[]
[]
[]
[]
[]
[]
[]
[]
[]
[]
[]
[]
[]
[]
[]
[]
[]
[]
[]
[]
[]
[]
[]
[]
[]
[]
[]
[]
[]
[]
[]
[]
[]
[]
[]
[]
[]
[]
[]
[]
[]
[]
[]
[]
[]
[]
[]
[]
[]
[]
[]
[]
[]
[]
[]
[]
[]
[]
[]
[]
[]
[]
[]
[]
[]
[]
[]
[]
[]
[]
[]
[]
[]
[]
[]
[]
[]
[]
[]
[]
[]
[]
[]
[]
[]
[]
[]
[]
[]
[]
[]
[]
[]
[]
[]
[]
[]
[]
[]
[]
[]
[]
[]
[]
[]
[]
[]
[]
[]
[]
[]
[]
[]
[]
[]
[]
[]
[]
[]
[]
[]
[]
[]
[]
[]
[]
[]
[]
[]
[]
[]
[]
[]
[]
[]
[]
[]
[]
[]
[]
[]
[]
[]
[]
[]
[]
[]
[]
[]
[]
[]
[]
[]
[]
[]
[]
[]
[]
[]
[]
[]
[]
[]
[]
[]
[]
[]
[]
[]
[]
[]
[]
[]
[]
[]
[]
[]
[]
[]
[]
[]
[]
[]
[]
[]
[]
[]
[]
[]
[]
[]
[]
[]
[]
[]
[]
[]
[]
[]
[]
[]
[]
[]
[]
[]
[]
[]
[]
[]
[]
[]
[]
[]
[]
[]
[]
[]
[]
[]
[]
[]
[]
[]
[]
[]
[]
[]
[]
[]
[]
[]
[]
[]
[]
[]
[]
[]
[]
[]
[]
[]
[]
[]
[]
[]
[]
[]
[]
[]
[]
[]
[]
[]
[]
[]
[]
[]
[]
[]
[]
[]
[]
[]
[]
[]
[]
[]
[]
[]
[]
[]
[]
[]
[]
[]
[]
[]
[]
[]
[]
[]
[]
[]
[]
[]
[]
[]
[]
[]
[]
[]
[]
[]
[]
[]
[]
[]
[]
[]
[]
[]
[]
[]
[]
[]
[]
[]
[]
[]
[]
[]
[]
[]
[]
[]
[]
[]
[]
[]
[]
[]
[]
[]
[]
[]
[]
[]
[]
[]
[]
[]
[]
[]
[]
[]
[]
[]
[]
[]
[]
[]
[]
[]
[]
[]
[]
[]
[]
[]
[]
[]
[]
[]
[]
[]
[]
[]
[]
[]
[]
[]
[]
[]
[]
[]
[]
[]
[]
[]
[]
[]
[]
[]
[]
[]
[]
[]
[]
[]
[]
[]
[]
[]
[]
[]
[]
[]
[]
[]
[]
[]
[]
[]
[]
[]
[]
[]
[]
[]
[]
[]
[]
[]
[]
[]
[]
[]
[]
[]
[]
[]
[]
[]
[]
[]
[]
[]
[]
[]
[]
[]
[]
[]
[]
[]
[]
[]
[]
[]
[]
[]
[]
[]
[]
[]
[]
[]
[]
[]
[]
[]
[]
[]
[]
[]
[]
[]
[]
[]
[]
[]
[]
[]
[]
[]
[]
[]
[]
[]
[]
[]
[]
[]
[]
[]
[]
[]
[]
[]
[]
[]
[]
[]
[]
[]
[]
[]
[]
[]
[]
[]
[]
[]
[]
[]
[]
[]
[]
[]
[]
[]
[]
[]
[]
[]
[]
[]
[]
[]
[]
[]
[]
[]
[]
[]
[]
[]
[]
[]
[]
[]
[]
[]
[]
[]
[]
[]
[]
[]
[]
[]
[]
[]
[]
[]
[]
[]
[]
[]
[]
[]
[]
[]
[]
[]
[]
[]
[]
[]
[]
[]
[]
[]
[]
[]
[]
[]
[]
[]
[]
[]
[]
[]
[]
[]
[]
[]
[]
[]
[]
[]
[]
[]
[]
[]
[]
[]
[]
[]
[]
[]
[]
[]
[]
[]
[]
[]
[]
[]
[]
[]
[]
[]
[]
[]
[]
[]
[]
[]
[]
[]
[]
[]
[]
[]
[]
[]
[]
[]
[]
[]
[]
[]
[]
[]
[]
[]
[]
[]
[]
[]
[]
[]
[]
[]
[]
[]
[]
[]
[]
[]
[]
[]
[]
[]
[]
[]
[]
[]
[]
[]
[]
[]
[]
[]
[]
[]
[]
[]
[]
[]
[]
[]
[]
[]
[]
[]
[]
[]
[]
[]
[]
[]
[]
[]
[]
[]
[]
[]
[]
[]
[]
[]
[]
[]
[]
[]
[]
[]
[]
[]
[]
[]
[]
[]
[]
[]
[]
[]
[]
[]
[]
[]
[]
[]
[]
[]
[]
[]
[]
[]
[]
[]
[]
[]
[]
[]
[]
[]
[]
[]
[]
[]
[]
[]
[]
[]
[]
[]
[]
[]
[]
[]
[]
[]
[]
[]
[]
[]
[]
[]
[]
[]
[]
[]
[]
[]
[]
[]
[]
[]
[]
[]
[]
[]
[]
[]
[]
[]
[]
[]
[]
[]
[]
[]
[]
[]
[]
[]
[]
[]
[]
[]
[]
[]
[]
[]
[]
[]
[]
[]
[]
[]
[]
[]
[]
[]
[]
[]
[]
[]
[]
[]
[]
[]
[]
[]
[]
[]
[]
[]
[]
[]
[]
[]
[]
[]
[]
[]
[]
[]
[]
[]
[]
[]
[]
[]
[]
[]
[]
[]
[]
[]
[]
[]
[]
[]
[]
[]
[]
[]
[]
[]
[]
[]
[]
[]
[]
[]
[]
[]
[]
[]
[]
[]
[]
[]
[]
[]
[]
[]
[]
[]
[]
[]
[]
[]
[]
[]
[]
[]
[]
[]
[]
[]
[]
[]
[]
[]
[]
[]
[]
[]
[]
[]
[]
[]
[]
[]
[]
[]
[]
[]
[]
[]
[]
[]
[]
[]
[]
[]
[]
[]
[]
[]
[]
[]
[]
[]
[]
[]
[]
[]
[]
[]
[]
[]
[]
[]
[]
[]
[]
[]
[]
[]
[]
[]
[]
[]
[]
[]
[]
[]
[]
[]
[]
[]
[]
[]
[]
[]
[]
[]
[]
[]
[]
[]
[]
[]
[]
[]
[]
[]
[]
[]
[]
[]
[]
[]
[]
[]
[]
[]
[]
[]
[]
[]
[]
[]
[]
[]
[]
[]
[]
[]
[]
[]
[]
[]
[]
[]
[]
[]
[]
[]
[]
[]
[]
[]
[]
[]
[]
[]
[]
[]
[]
[]
[]
[]
[]
[]
[]
[]
[]
[]
[]
[]
[]
[]
[]
[]
[]
[]
[]
[]
[]
[]
[]
[]
[]
[]
[]
[]
[]
[]
[]
[]
[]
[]
[]
[]
[]
[]
[]
[]
[]
[]
[]
[]
[]
[]
[]
[]
[]
[]
[]
[]
[]
[]
[]
[]
[]
[]
[]
[]
[]
[]
[]
[]
[]
[]
[]
[]
[]
[]
[]
[]
[]
[]
[]
[]
[]
[]
[]
[]
[]
[]
[]
[]
[]
[]
[]
[]
[]
[]
[]
[]
[]
[]
[]
[]
[]
[]
[]
[]
[]
[]
[]
[]
[]
[]
[]
[]
[]
[]
[]
[]
[]
[]
[]
[]
[]
[]
[]
[]
[]
[]
[]
[]
[]
[]
[]
[]
[]
[]
[]
[]
[]
[]
[]
[]
[]
[]
[]
[]
[]
[]
[]
[]
[]
[]
[]
[]
[]
[]
[]
[]
[]
[]
[]
[]
[]
[]
[]
[]
[]
[]
[]
[]
[]
[]
[]
[]
[]
[]
[]
[]
[]
[]
[]
[]
[]
[]
[]
[]
[]
[]
[]
[]
[]
[]
[]
[]
[]
[]
[]
[]
[]
[]
[]
[]
[]
[]
[]
[]
[]
[]
[]
[]
[]
[]
[]
[]
[]
[]
[]
[]
[]
[]
[]
[]
[]
[]
[]
[]
[]
[]
[]
[]
[]
[]
[]
[]
[]
[]
[]
[]
[]
[]
[]
[]
[]
[]
[]
[]
[]
[]
[]
[]
[]
[]
[]
[]
[]
[]
[]
[]
[]
[]
[]
[]
[]
[]
[]
[]
[]
[]
[]
[]
[]
[]
[]
[]
[]
[]
[]
[]
[]
[]
[]
[]
[]
[]
[]
[]
[]
[]
[]
[]
[]
[]
[]
[]
[]
[]
[]
[]
[]
[]
[]
[]
[]
[]
[]
[]
[]
[]
[]
[]
[]
[]
[]
[]
[]
[]
[]
[]
[]
[]
[]
[]
[]
[]
[]
[]
[]
[]
[]
[]
[]
[]
[]
[]
[]
[]
[]
[]
[]
[]
[]
[]
[]
[]
[]
[]
[]
[]
[]
[]
[]
[]
[]
[]
[]
[]
[]
[]
[]
[]
[]
[]
[]
[]
[]
[]
[]
[]
[]
[]
[]
[]
[]
[]
[]
[]
[]
[]
[]
[]
[]
[]
[]
[]
[]
[]
[]
[]
[]
[]
[]
[]
[]
[]
[]
[]
[]
[]
[]
[]
[]
[]
[]
[]
[]
[]
[]
[]
[]
[]
[]
[]
[]
[]
[]
[]
[]
[]
[]
[]
[]
[]
[]
[]
[]
[]
[]
[]
[]
[]
[]
[]
[]
[]
[]
[]
[]
[]
[]
[]
[]
[]
[]
[]
[]
[]
[]
[]
[]
[]
[]
[]
[]
[]
[]
[]
[]
[]
[]
[]
[]
[]
[]
[]
[]
[]
[]
[]
[]
[]
[]
[]
[]
[]
[]
[]
[]
[]
[]
[]
[]
[]
[]
[]
[]
[]
[]
[]
[]
[]
[]
[]
[]
[]
[]
[]
[]
[]
[]
[]
[]
[]
[]
[]
[]
[]
[]
[]
[]
[]
[]
[]
[]
[]
[]
[]
[]
[]
[]
[]
[]
[]
[]
[]
[]
[]
[]
[]
[]
[]
[]
[]
[]
[]
[]
[]
[]
[]
[]
[]
[]
[]
[]
[]
[]
[]
[]
[]
[]
[]
[]
[]
[]
[]
[]
[]
[]
[]
[]
[]
[]
[]
[]
[]
[]
[]
[]
[]
[]
[]
[]
[]
[]
[]
[]
[]
[]
[]
[]
[]
[]
[]
[]
[]
[]
[]
[]
[]
[]
[]
[]
[]
[]
[]
[]
[]
[]
[]
[]
[]
[]
[]
[]
[]
[]
[]
[]
[]
[]
[]
[]
[]
[]
[]
[]
[]
[]
[]
[]
[]
[]
[]
[]
[]
[]
[]
[]
[]
[]
[]
[]
[]
[]
[]
[]
[]
[]
[]
[]
[]
[]
[]
[]
[]
[]
[]
[]
[]
[]
[]
[]
[]
[]
[]
[]
[]
[]
[]
[]
[]
[]
[]
[]
[]
[]
[]
[]
[]
[]
[]
[]
[]
[]
[]
[]
[]
[]
[]
[]
[]
[]
[]
[]
[]
[]
[]
[]
[]
[]
[]
[]
[]
[]
[]
[]
[]
[]
[]
[]
[]
[]
[]
[]
[]
[]
[]
[]
[]
[]
[]
[]
[]
[]
[]
[]
[]
[]
[]
[]
[]
[]
[]
[]
[]
[]
[]
[]
[]
[]
[]
[]
[]
[]
[]
[]
[]
[]
[]
[]
[]
[]
[]
[]
[]
[]
[]
[]
[]
[]
[]
[]
[]
[]
[]
[]
[]
[]
[]
[]
[]
[]
[]
[]
[]
[]
[]
[]
[]
[]
[]
[]
[]
[]
[]
[]
[]
[]
[]
[]
[]
[]
[]
[]
[]
[]
[]
[]
[]
[]
[]
[]
[]
[]
[]
[]
[]
[]
[]
[]
[]
[]
[]
[]
[]
[]
[]
[]
[]
[]
[]
[]
[]
[]
[]
[]
[]
[]
[]
[]
[]
[]
[]
[]
[]
[]
[]
[]
[]
[]
[]
[]
[]
[]
[]
[]
[]
[]
[]
[]
[]
[]
[]
[]
[]
[]
[]
[]
[]
[]
[]
[]
[]
[]
[]
[]
[]
[]
[]
[]
[]
[]
[]
[]
[]
[]
[]
[]
[]
[]
[]
[]
[]
[]
[]
[]
[]
[]
[]
[]
[]
[]
[]
[]
[]
[]
[]
[]
[]
[]
[]
[]
[]
[]
[]
[]
[]
[]
[]
[]
[]
[]
[]
[]
[]
[]
[]
[]
[]
[]
[]
[]
[]
[]
[]
[]
[]
[]
[]
[]
[]
[]
[]
[]
[]
[]
[]
[]
[]
[]
[]
[]
[]
[]
[]
[]
[]
[]
[]
[]
[]
[]
[]
[]
[]
[]
[]
[]
[]
[]
[]
[]
[]
[]
[]
[]
[]
[]
[]
[]
[]
[]
[]
[]
[]
[]
[]
[]
[]
[]
[]
[]
[]
[]
[]
[]
[]
[]
[]
[]
[]
[]
[]
[]
[]
[]
[]
[]
[]
[]
[]
[]
[]
[]
[]
[]
[]
[]
[]
[]
[]
[]
[]
[]
[]
[]
[]
[]
[]
[]
[]
[]
[]
[]
[]
[]
[]
[]
[]
[]
[]
[]
[]
[]
[]
[]
[]
[]
[]
[]
[]
[]
[]
[]
[]
[]
[]
[]
[]
[]
[]
[]
[]
[]
[]
[]
[]
[]
[]
[]
[]
[]
[]
[]
[]
[]
[]
[]
[]
[]
[]
[]
[]
[]
[]
[]
[]
[]
[]
[]
[]
[]
[]
[]
[]
[]
[]
[]
[]
[]
[]
[]
[]
[]
[]
[]
[]
[]
[]
[]
[]
[]
[]
[]
[]
[]
[]
[]
[]
[]
[]
[]
[]
[]
[]
[]
[]
[]
[]
[]
[]
[]
[]
[]
[]
[]
[]
[]
[]
[]
[]
[]
[]
[]
[]
[]
[]
[]
[]
[]
[]
[]
[]
[]
[]
[]
[]
[]
[]
[]
[]
[]
[]
[]
[]
[]
[]
[]
[]
[]
[]
[]
[]
[]
[]
[]
[]
[]
[]
[]
[]
[]
[]
[]
[]
[]
[]
[]
[]
[]
[]
[]
[]
[]
[]
[]
[]
[]
[]
[]
[]
[]
[]
[]
[]
[]
[]
[]
[]
[]
[]
[]
[]
[]
[]
[]
[]
[]
[]
[]
[]
[]
[]
[]
[]
[]
[]
[]
[]
[]
[]
[]
[]
[]
[]
[]
[]
[]
[]
[]
[]
[]
[]
[]
[]
[]
[]
[]
[]
[]
[]
[]
[]
[]
[]
[]
[]
[]
[]
[]
[]
[]
[]
[]
[]
[]
[]
[]
[]
[]
[]
[]
[]
[]
[]
[]
[]
[]
[]
[]
[]
[]
[]
[]
[]
[]
[]
[]
[]
[]
[]
[]
[]
[]
[]
[]
[]
[]
[]
[]
[]
[]
[]
[]
[]
[]
[]
[]
[]
[]
[]
[]
[]
[]
[]
[]
[]
[]
[]
[]
[]
[]
[]
[]
[]
[]
[]
[]
[]
[]
[]
[]
[]
[]
[]
[]
[]
[]
[]
[]
[]
[]
[]
[]
[]
[]
[]
[]
[]
[]
[]
[]
[]
[]
[]
[]
[]
[]
[]
[]
[]
[]
[]
[]
[]
[]
[]
[]
[]
[]
[]
[]
[]
[]
[]
[]
[]
[]
[]
[]
[]
[]
[]
[]
[]
[]
[]
[]
[]
[]
[]
[]
[]
[]
[]
[]
[]
[]
[]
[]
[]
[]
[]
[]
[]
[]
[]
[]
[]
[]
[]
[]
[]
[]
[]
[]
[]
[]
[]
[]
[]
[]
[]
[]
[]
[]
[]
[]
[]
[]
[]
[]
[]
[]
[]
[]
[]
[]
[]
[]
[]
[]
[]
[]
[]
[]
[]
[]
[]
[]
[]
[]
[]
[]
[]
[]
[]
[]
[]
[]
[]
[]
[]
[]
[]
[]
[]
[]
[]
[]
[]
[]
[]
[]
[]
[]
[]
[]
[]
[]
[]
[]
[]
[]
[]
[]
[]
[]
[]
[]
[]
[]
[]
[]
[]
[]
[]
[]
[]
[]
[]
[]
[]
[]
[]
[]
[]
[]
[]
[]
[]
[]
[]
[]
[]
[]
[]
[]
[]
[]
[]
[]
[]
[]
[]
[]
[]
[]
[]
[]
[]
[]
[]
[]
[]
[]
[]
[]
[]
[]
[]
[]
[]
[]
[]
[]
[]
[]
[]
[]
[]
[]
[]
[]
[]
[]
[]
[]
[]
[]
[]
[]
[]
[]
[]
[]
[]
[]
[]
[]
[]
[]
[]
[]
[]
[]
[]
[]
[]
[]
[]
[]
[]
[]
[]
[]
[]
[]
[]
[]
[]
[]
[]
[]
[]
[]
[]
[]
[]
[]
[]
[]
[]
[]
[]
[]
[]
[]
[]
[]
[]
[]
[]
[]
[]
[]
[]
[]
[]
[]
[]
[]
[]
[]
[]
[]
[]
[]
[]
[]
[]
[]
[]
[]
[]
[]
[]
[]
[]
[]
[]
[]
[]
[]
[]
[]
[]
[]
[]
[]
[]
[]
[]
[]
[]
[]
[]
[]
[]
[]
[]
[]
[]
[]
[]
[]
[]
[]
[]
[]
[]
[]
[]
[]
[]
[]
[]
[]
[]
[]
[]
[]
[]
[]
[]
[]
[]
[]
[]
[]
[]
[]
[]
[]
[]
[]
[]
[]
[]
[]
[]
[]
[]
[]
[]
[]
[]
[]
[]
[]
[]
[]
[]
[]
[]
[]
[]
[]
[]
[]
[]
[]
[]
[]
[]
[]
[]
[]
[]
[]
[]
[]
[]
[]
[]
[]
[]
[]
[]
[]
[]
[]
[]
[]
[]
[]
[]
[]
[]
[]
[]
[]
[]
[]
[]
[]
[]
[]
[]
[]
[]
[]
[]
[]
[]
[]
[]
[]
[]
[]
[]
[]
[]
[]
[]
[]
[]
[]
[]
[]
[]
[]
[]
[]
[]
[]
[]
[]
[]
[]
[]
[]
[]
[]
[]
[]
[]
[]
[]
[]
[]
[]
[]
[]
[]
[]
[]
[]
[]
[]
[]
[]
[]
[]
[]
[]
[]
[]
[]
[]
[]
[]
[]
[]
[]
[]
[]
[]
[]
[]
[]
[]
[]
[]
[]
[]
[]
[]
[]
[]
[]
[]
[]
[]
[]
[]
[]
[]
[]
[]
[]
[]
[]
[]
[]
[]
[]
[]
[]
[]
[]
[]
[]
[]
[]
[]
[]
[]
[]
[]
[]
[]
[]
[]
[]
[]
[]
[]
[]
[]
[]
[]
[]
[]
[]
[]
[]
[]
[]
[]
[]
[]
[]
[]
[]
[]
[]
[]
[]
[]
[]
[]
[]
[]
[]
[]
[]
[]
[]
[]
[]
[]
[]
[]
[]
[]
[]
[]
[]
[]
[]
[]
[]
[]
[]
[]
[]
[]
[]
[]
[]
[]
[]
[]
[]
[]
[]
[]
[]
[]
[]
[]
[]
[]
[]
[]
[]
[]
[]
[]
[]
[]
[]
[]
[]
[]
[]
[]
[]
[]
[]
[]
[]
[]
[]
[]
[]
[]
[]
[]
[]
[]
[]
[]
[]
[]
[]
[]
[]
[]
[]
[]
[]
[]
[]
[]
[]
[]
[]
[]
[]
[]
[]
[]
[]
[]
[]
[]
[]
[]
[]
[]
[]
[]
[]
[]
[]
[]
[]
[]
[]
[]
[]
[]
[]
[]
[]
[]
[]
[]
[]
[]
[]
[]
[]
[]
[]
[]
[]
[]
[]
[]
[]
[]
[]
[]
[]
[]
[]
[]
[]
[]
[]
[]
[]
[]
[]
[]
[]
[]
[]
[]
[]
[]
[]
[]
[]
[]
[]
[]
[]
[]
[]
[]
[]
[]
[]
[]
[]
[]
[]
[]
[]
[]
[]
[]
[]
[]
[]
[]
[]
[]
[]
[]
[]
[]
[]
[]
[]
[]
[]
[]
[]
[]
[]
[]
[]
[]
[]
[]
[]
[]
[]
[]
[]
[]
[]
[]
[]
[]
[]
[]
[]
[]
[]
[]
[]
[]
[]
[]
[]
[]
[]
[]
[]
[]
[]
[]
[]
[]
[]
[]
[]
[]
[]
[]
[]
[]
[]
[]
[]
[]
[]
[]
[]
[]
[]
[]
[]
[]
[]
[]
[]
[]
[]
[]
[]
[]
[]
[]
[]
[]
[]
[]
[]
[]
[]
[]
[]
[]
[]
[]
[]
[]
[]
[]
[]
[]
[]
[]
[]
[]
[]
[]
[]
[]
[]
[]
[]
[]
[]
[]
[]
[]
[]
[]
[]
[]
[]
[]
[]
[]
[]
[]
[]
[]
[]
[]
[]
[]
[]
[]
[]
[]
[]
[]
[]
[]
[]
[]
[]
[]
[]
[]
[]
[]
[]
[]
[]
[]
[]
[]
[]
[]
[]
[]
[]
[]
[]
[]
[]
[]
[]
[]
[]
[]
[]
[]
[]
[]
[]
[]
[]
[]
[]
[]
[]
[]
[]
[]
[]
[]
[]
[]
[]
[]
[]
[]
[]
[]
[]
[]
[]
[]
[]
[]
[]
[]
[]
[]
[]
[]
[]
[]
[]
[]
[]
[]
[]
[]
[]
[]
[]
[]
[]
[]
[]
[]
[]
[]
[]
[]
[]
[]
[]
[]
[]
[]
[]
[]
[]
[]
[]
[]
[]
[]
[]
[]
[]
[]
[]
[]
[]
[]
[]
[]
[]
[]
[]
[]
[]
[]
[]
[]
[]
[]
[]
[]
[]
[]
[]
[]
[]
[]
[]
[]
[]
[]
[]
[]
[]
[]
[]
[]
[]
[]
[]
[]
[]
[]
[]
[]
[]
[]
[]
[]
[]
[]
[]
[]
[]
[]
[]
[]
[]
[]
[]
[]
[]
[]
[]
[]
[]
[]
[]
[]
[]
[]
[]
[]
[]
[]
[]
[]
[]
[]
[]
[]
[]
[]
[]
[]
[]
[]
[]
[]
[]
[]
[]
[]
[]
[]
[]
[]
[]
[]
[]
[]
[]
[]
[]
[]
[]
[]
[]
[]
[]
[]
[]
[]
[]
[]
[]
[]
[]
[]
[]
[]
[]
[]
[]
[]
[]
[]
[]
[]
[]
[]
[]
[]
[]
[]
[]
[]
[]
[]
[]
[]
[]
[]
[]
[]
[]
[]
[]
[]
[]
[]
[]
[]
[]
[]
[]
[]
[]
[]
[]
[]
[]
[]
[]
[]
[]
[]
[]
[]
[]
[]
[]
[]
[]
[]
[]
[]
[]
[]
[]
[]
[]
[]
[]
[]
[]
[]
[]
[]
[]
[]
[]
[]
[]
[]
[]
[]
[]
[]
[]
[]
[]
[]
[]
[]
[]
[]
[]
[]
[]
[]
[]
[]
[]
[]
[]
[]
[]
[]
[]
[]
[]
[]
[]
[]
[]
[]
[]
[]
[]
[]
[]
[]
[]
[]
[]
[]
[]
[]
[]
[]
[]
[]
[]
[]
[]
[]
[]
[]
[]
[]
[]
[]
[]
[]
[]
[]
[]
[]
[]
[]
[]
[]
[]
[]
[]
[]
[]
[]
[]
[]
[]
[]
[]
[]
[]
[]
[]
[]
[]
[]
[]
[]
[]
[]
[]
[]
[]
[]
[]
[]
[]
[]
[]
[]
[]
[]
[]
[]
[]
[]
[]
[]
[]
[]
[]
[]
[]
[]
[]
[]
[]
[]
[]
[]
[]
[]
[]
[]
[]
[]
[]
[]
[]
[]
[]
[]
[]
[]
[]
[]
[]
[]
[]
[]
[]
[]
[]
[]
[]
[]
[]
[]
[]
[]
[]
[]
[]
[]
[]
[]
[]
[]
[]
[]
[]
[]
[]
[]
[]
[]
[]
[]
[]
[]
[]
[]
[]
[]
[]
[]
[]
[]
[]
[]
[]
[]
[]
[]
[]
[]
[]
[]
[]
[]
[]
[]
[]
[]
[]
[]
[]
[]
[]
[]
[]
[]
[]
[]
[]
[]
[]
[]
[]
[]
[]
[]
[]
[]
[]
[]
[]
[]
[]
[]
[]
[]
[]
[]
[]
[]
[]
[]
[]
[]
[]
[]
[]
[]
[]
[]
[]
[]
[]
[]
[]
[]
[]
[]
[]
[]
[]
[]
[]
[]
[]
[]
[]
[]
[]
[]
[]
[]
[]
[]
[]
[]
[]
[]
[]
[]
[]
[]
[]
[]
[]
[]
[]
[]
[]
[]
[]
[]
[]
[]
[]
[]
[]
[]
[]
[]
[]
[]
[]
[]
[]
[]
[]
[]
[]
[]
[]
[]
[]
[]
[]
[]
[]
[]
[]
[]
[]
[]
[]
[]
[]
[]
[]
[]
[]
[]
[]
[]
[]
[]
[]
[]
[]
[]
[]
[]
[]
[]
[]
[]
[]
[]
[]
[]
[]
[]
[]
[]
[]
[]
[]
[]
[]
[]
[]
[]
[]
[]
[]
[]
[]
[]
[]
[]
[]
[]
[]
[]
[]
[]
[]
[]
[]
[]
[]
[]
[]
[]
[]
[]
[]
[]
[]
[]
[]
[]
[]
[]
[]
[]
[]
[]
[]
[]
[]
[]
[]
[]
[]
[]
[]
[]
[]
[]
[]
[]
[]
[]
[]
[]
[]
[]
[]
[]
[]
[]
[]
[]
[]
[]
[]
[]
[]
[]
[]
[]
[]
[]
[]
[]
[]
[]
[]
[]
[]
[]
[]
[]
[]
[]
[]
[]
[]
[]
[]
[]
[]
[]
[]
[]
[]
[]
[]
[]
[]
[]
[]
[]
[]
[]
[]
[]
[]
[]
[]
[]
[]
[]
[]
[]
[]
[]
[]
[]
[]
[]
[]
[]
[]
[]
[]
[]
[]
[]
[]
[]
[]
[]
[]
[]
[]
[]
[]
[]
[]
[]
[]
[]
[]
[]
[]
[]
[]
[]
[]
[]
[]
[]
[]
[]
[]
[]
[]
[]
[]
[]
[]
[]
[]
[]
[]
[]
[]
[]
[]
[]
[]
[]
[]
[]
[]
[]
[]
[]
[]
[]
[]
[]
[]
[]
[]
[]
[]
[]
[]
[]
[]
[]
[]
[]
[]
[]
[]
[]
[]
[]
[]
[]
[]
[]
[]
[]
[]
[]
[]
[]
[]
[]
[]
[]
[]
[]
[]
[]
[]
[]
[]
[]
[]
[]
[]
[]
[]
[]
[]
[]
[]
[]
[]
[]
[]
[]
[]
[]
[]
[]
[]
[]
[]
[]
[]
[]
[]
[]
[]
[]
[]
[]
[]
[]
[]
[]
[]
[]
[]
[]
[]
[]
[]
[]
[]
[]
[]
[]
[]
[]
[]
[]
[]
[]
[]
[]
[]
[]
[]
[]
[]
[]
[]
[]
[]
[]
[]
[]
[]
[]
[]
[]
[]
[]
[]
[]
[]
[]
[]
[]
[]
[]
[]
[]
[]
[]
[]
[]
[]
[]
[]
[]
[]
[]
[]
[]
[]
[]
[]
[]
[]
[]
[]
[]
[]
[]
[]
[]
[]
[]
[]
[]
[]
[]
[]
[]
[]
[]
[]
[]
[]
[]
[]
[]
[]
[]
[]
[]
[]
[]
[]
[]
[]
[]
[]
[]
[]
[]
[]
[]
[]
[]
[]
[]
[]
[]
[]
[]
[]
[]
[]
[]
[]
[]
[]
[]
[]
[]
[]
[]
[]
[]
[]
[]
[]
[]
[]
[]
[]
[]
[]
[]
[]
[]
[]
[]
[]
[]
[]
[]
[]
[]
[]
[]
[]
[]
[]
[]
[]
[]
[]
[]
[]
[]
[]
[]
[]
[]
[]
[]
[]
[]
[]
[]
[]
[]
[]
[]
[]
[]
[]
[]
[]
[]
[]
[]
[]
[]
[]
[]
[]
[]
[]
[]
[]
[]
[]
[]
[]
[]
[]
[]
[]
[]
[]
[]
[]
[]
[]
[]
[]
[]
[]
[]
[]
[]
[]
[]
[]
[]
[]
[]
[]
[]
[]
[]
[]
[]
[]
[]
[]
[]
[]
[]
[]
[]
[]
[]
[]
[]
[]
[]
[]
[]
[]
[]
[]
[]
[]
[]
[]
[]
[]
[]
[]
[]
[]
[]
[]
[]
[]
[]
[]
[]
[]
[]
[]
[]
[]
[]
[]
[]
[]
[]
[]
[]
[]
[]
[]
[]
[]
[]
[]
[]
[]
[]
[]
[]
[]
[]
[]
[]
[]
[]
[]
[]
[]
[]
[]
[]
[]
[]
[]
[]
[]
[]
[]
[]
[]
[]
[]
[]
[]
[]
[]
[]
[]
[]
[]
[]
[]
[]
[]
[]
[]
[]
[]
[]
[]
[]
[]
[]
[]
[]
[]
[]
[]
[]
[]
[]
[]
[]
[]
[]
[]
[]
[]
[]
[]
[]
[]
[]
[]
[]
[]
[]
[]
[]
[]
[]
[]
[]
[]
[]
[]
[]
[]
[]
[]
[]
[]
[]
[]
[]
[]
[]
[]
[]
[]
[]
[]
[]
[]
[]
[]
[]
[]
[]
[]
[]
[]
[]
[]
[]
[]
[]
[]
[]
[]
[]
[]
[]
[]
[]
[]
[]
[]
[]
[]
[]
[]
[]
[]
[]
[]
[]
[]
[]
[]
[]
[]
[]
[]
[]
[]
[]
[]
[]
[]
[]
[]
[]
[]
[]
[]
[]
[]
[]
[]
[]
[]
[]
[]
[]
[]
[]
[]
[]
[]
[]
[]
[]
[]
[]
[]
[]
[]
[]
[]
[]
[]
[]
[]
[]
[]
[]
[]
[]
[]
[]
[]
[]
[]
[]
[]
[]
[]
[]
[]
[]
[]
[]
[]
[]
[]
[]
[]
[]
[]
[]
[]
[]
[]
[]
[]
[]
[]
[]
[]
[]
[]
[]
[]
[]
[]
[]
[]
[]
[]
[]
[]
[]
[]
[]
[]
[]
[]
[]
[]
[]
[]
[]
[]
[]
[]
[]
[]
[]
[]
[]
[]
[]
[]
[]
[]
[]
[]
[]
[]
[]
[]
[]
[]
[]
[]
[]
[]
[]
[]
[]
[]
[]
[]
[]
[]
[]
[]
[]
[]
[]
[]
[]
[]
[]
[]
[]
[]
[]
[]
[]
[]
[]
[]
[]
[]
[]
[]
[]
[]
[]
[]
[]
[]
[]
[]
[]
[]
[]
[]
[]
[]
[]
[]
[]
[]
[]
[]
[]
[]
[]
[]
[]
[]
[]
[]
[]
[]
[]
[]
[]
[]
[]
[]
[]
[]
[]
[]
[]
[]
[]
[]
[]
[]
[]
[]
[]
[]
[]
[]
[]
[]
[]
[]
[]
[]
[]
[]
[]
[]
[]
[]
[]
[]
[]
[]
[]
[]
[]
[]
[]
[]
[]
[]
[]
[]
[]
[]
[]
[]
[]
[]
[]
[]
[]
[]
[]
[]
[]
[]
[]
[]
[]
[]
[]
[]
[]
[]
[]
[]
[]
[]
[]
[]
[]
[]
[]
[]
[]
[]
[]
[]
[]
[]
[]
[]
[]
[]
[]
[]
[]
[]
[]
[]
[]
[]
[]
[]
[]
[]
[]
[]
[]
[]
[]
[]
[]
[]
[]
[]
[]
[]
[]
[]
[]
[]
[]
[]
[]
[]
[]
[]
[]
[]
[]
[]
[]
[]
[]
[]
[]
[]
[]
[]
[]
[]
[]
[]
[]
[]
[]
[]
[]
[]
[]
[]
[]
[]
[]
[]
[]
[]
[]
[]
[]
[]
[]
[]
[]
[]
[]
[]
[]
[]
[]
[]
[]
[]
[]
[]
[]
[]
[]
[]
[]
[]
[]
[]
[]
[]
[]
[]
[]
[]
[]
[]
[]
[]
[]
[]
[]
[]
[]
[]
[]
[]
[]
[]
[]
[]
[]
[]
[]
[]
[]
[]
[]
[]
[]
[]
[]
[]
[]
[]
[]
[]
[]
[]
[]
[]
[]
[]
[]
[]
[]
[]
[]
[]
[]
[]
[]
[]
[]
[]
[]
[]
[]
[]
[]
[]
[]
[]
[]
[]
[]
[]
[]
[]
[]
[]
[]
[]
[]
[]
[]
[]
[]
[]
[]
[]
[]
[]
[]
[]
[]
[]
[]
[]
[]
[]
[]
[]
[]
[]
[]
[]
[]
[]
[]
[]
[]
[]
[]
[]
[]
[]
[]
[]
[]
[]
[]
[]
[]
[]
[]
[]
[]
[]
[]
[]
[]
[]
[]
[]
[]
[]
[]
[]
[]
[]
[]
[]
[]
[]
[]
[]
[]
[]
[]
[]
[]
[]
[]
[]
[]
[]
[]
[]
[]
[]
[]
[]
[]
[]
[]
[]
[]
[]
[]
[]
[]
[]
[]
[]
[]
[]
[]
[]
[]
[]
[]
[]
[]
[]
[]
[]
[]
[]
[]
[]
[]
[]
[]
[]
[]
[]
[]
[]
[]
[]
[]
[]
[]
[]
[]
[]
[]
[]
[]
[]
[]
[]
[]
[]
[]
[]
[]
[]
[]
[]
[]
[]
[]
[]
[]
[]
[]
[]
[]
[]
[]
[]
[]
[]
[]
[]
[]
[]
[]
[]
[]
[]
[]
[]
[]
[]
[]
[]
[]
[]
[]
[]
[]
[]
[]
[]
[]
[]
[]
[]
[]
[]
[]
[]
[]
[]
[]
[]
[]
[]
[]
[]
[]
[]
[]
[]
[]
[]
[]
[]
[]
[]
[]
[]
[]
[]
[]
[]
[]
[]
[]
[]
[]
[]
[]
[]
[]
[]
[]
[]
[]
[]
[]
[]
[]
[]
[]
[]
[]
[]
[]
[]
[]
[]
[]
[]
[]
[]
[]
[]
[]
[]
[]
[]
[]
[]
[]
[]
[]
[]
[]
[]
[]
[]
[]
[]
[]
[]
[]
[]
[]
[]
[]
[]
[]
[]
[]
[]
[]
[]
[]
[]
[]
[]
[]
[]
[]
[]
[]
[]
[]
[]
[]
[]
[]
[]
[]
[]
[]
[]
[]
[]
[]
[]
[]
[]
[]
[]
[]
[]
[]
[]
[]
[]
[]
[]
[]
[]
[]
[]
[]
[]
[]
[]
[]
[]
[]
[]
[]
[]
[]
[]
[]
[]
[]
[]
[]
[]
[]
[]
[]
[]
[]
[]
[]
[]
[]
[]
[]
[]
[]
[]
[]
[]
[]
[]
[]
[]
[]
[]
[]
[]
[]
[]
[]
[]
[]
[]
[]
[]
[]
[]
[]
[]
[]
[]
[]
[]
[]
[]
[]
[]
[]
[]
[]
[]
[]
[]
[]
[]
[]
[]
[]
[]
[]
[]
[]
[]
[]
[]
[]
[]
[]
[]
[]
[]
[]
[]
[]
[]
[]
[]
[]
[]
[]
[]
[]
[]
[]
[]
[]
[]
[]
[]
[]
[]
[]
[]
[]
[]
[]
[]
[]
[]
[]
[]
[]
[]
[]
[]
[]
[]
[]
[]
[]
[]
[]
[]
[]
[]
[]
[]
[]
[]
[]
[]
[]
[]
[]
[]
[]
[]
[]
[]
[]
[]
[]
[]
[]
[]
[]
[]
[]
[]
[]
[]
[]
[]
[]
[]
[]
[]
[]
[]
[]
[]
[]
[]
[]
[]
[]
[]
[]
[]
[]
[]
[]
[]
[]
[]
[]
[]
[]
[]
[]
[]
[]
[]
[]
[]
[]
[]
[]
[]
[]
[]
[]
[]
[]
[]
[]
[]
[]
[]
[]
[]
[]
[]
[]
[]
[]
[]
[]
[]
[]
[]
[]
[]
[]
[]
[]
[]
[]
[]
[]
[]
[]
[]
[]
[]
[]
[]
[]
[]
[]
[]
[]
[]
[]
[]
[]
[]
[]
[]
[]
[]
[]
[]
[]
[]
[]
[]
[]
[]
[]
[]
[]
[]
[]
[]
[]
[]
[]
[]
[]
[]
[]
[]
[]
[]
[]
[]
[]
[]
[]
[]
[]
[]
[]
[]
[]
[]
[]
[]
[]
[]
[]
[]
[]
[]
[]
[]
[]
[]
[]
[]
[]
[]
[]
[]
[]
[]
[]
[]
[]
[]
[]
[]
[]
[]
[]
[]
[]
[]
[]
[]
[]
[]
[]
[]
[]
[]
[]
[]
[]
[]
[]
[]
[]
[]
[]
[]
[]
[]
[]
[]
[]
[]
[]
[]
[]
[]
[]
[]
[]
[]
[]
[]
[]
[]
[]
[]
[]
[]
[]
[]
[]
[]
[]
[]
[]
[]
[]
[]
[]
[]
[]
[]
[]
[]
[]
[]
[]
[]
[]
[]
[]
[]
[]
[]
[]
[]
[]
[]
[]
[]
[]
[]
[]
[]
[]
[]
[]
[]
[]
[]
[]
[]
[]
[]
[]
[]
[]
[]
[]
[]
[]
[]
[]
[]
[]
[]
[]
[]
[]
[]
[]
[]
[]
[]
[]
[]
[]
[]
[]
[]
[]
[]
[]
[]
[]
[]
[]
[]
[]
[]
[]
[]
[]
[]
[]
[]
[]
[]
[]
[]
[]
[]
[]
[]
[]
[]
[]
[]
[]
[]
[]
[]
[]
[]
[]
[]
[]
[]
[]
[]
[]
[]
[]
[]
[]
[]
[]
[]
[]
[]
[]
[]
[]
[]
[]
[]
[]
[]
[]
[]
[]
[]
[]
[]
[]
[]
[]
[]
[]
[]
[]
[]
[]
[]
[]
[]
[]
[]
[]
[]
[]
[]
[]
[]
[]
[]
[]
[]
[]
[]
[]
[]
[]
[]
[]
[]
[]
[]
[]
[]
[]
[]
[]
[]
[]
[]
[]
[]
[]
[]
[]
[]
[]
[]
[]
[]
[]
[]
[]
[]
[]
[]
[]
[]
[]
[]
[]
[]
[]
[]
[]
[]
[]
[]
[]
[]
[]
[]
[]
[]
[]
[]
[]
[]
[]
[]
[]
[]
[]
[]
[]
[]
[]
[]
[]
[]
[]
[]
[]
[]
[]
[]
[]
[]
[]
[]
[]
[]
[]
[]
[]
[]
[]
[]
[]
[]
[]
[]
[]
[]
[]
[]
[]
[]
[]
[]
[]
[]
[]
[]
[]
[]
[]
[]
[]
[]
[]
[]
[]
[]
[]
[]
[]
[]
[]
[]
[]
[]
[]
[]
[]
[]
[]
[]
[]
[]
[]
[]
[]
[]
[]
[]
[]
[]
[]
[]
[]
[]
[]
[]
[]
[]
[]
[]
[]
[]
[]
[]
[]
[]
[]
[]
[]
[]
[]
[]
[]
[]
[]
[]
[]
[]
[]
[]
[]
[]
[]
[]
[]
[]
[]
[]
[]
[]
[]
[]
[]
[]
[]
[]
[]
[]
[]
[]
[]
[]
[]
[]
[]
[]
[]
[]
[]
[]
[]
[]
[]
[]
[]
[]
[]
[]
[]
[]
[]
[]
[]
[]
[]
[]
[]
[]
[]
[]
[]
[]
[]
[]
[]
[]
[]
[]
[]
[]
[]
[]
[]
[]
[]
[]
[]
[]
[]
[]
[]
[]
[]
[]
[]
[]
[]
[]
[]
[]
[]
[]
[]
[]
[]
[]
[]
[]
[]
[]
[]
[]
[]
[]
[]
[]
[]
[]
[]
[]
[]
[]
[]
[]
[]
[]
[]
[]
[]
[]
[]
[]
[]
[]
[]
[]
[]
[]
[]
[]
[]
[]
[]
[]
[]
[]
[]
[]
[]
[]
[]
[]
[]
[]
[]
[]
[]
[]
[]
[]
[]
[]
[]
[]
[]
[]
[]
[]
[]
[]
[]
[]
[]
[]
[]
[]
[]
[]
[]
[]
[]
[]
[]
[]
[]
[]
[]
[]
[]
[]
[]
[]
[]
[]
[]
[]
[]
[]
[]
[]
[]
[]
[]
[]
[]
[]
[]
[]
[]
[]
[]
[]
[]
[]
[]
[]
[]
[]
[]
[]
[]
[]
[]
[]
[]
[]
[]
[]
[]
[]
[]
[]
[]
[]
[]
[]
[]
[]
[]
[]
[]
[]
[]
[]
[]
[]
[]
[]
[]
[]
[]
[]
[]
[]
[]
[]
[]
[]
[]
[]
[]
[]
[]
[]
[]
[]
[]
[]
[]
[]
[]
[]
[]
[]
[]
[]
[]
[]
[]
[]
[]
[]
[]
[]
[]
[]
[]
[]
[]
[]
[]
[]
[]
[]
[]
[]
[]
[]
[]
[]
[]
[]
[]
[]
[]
[]
[]
[]
[]
[]
[]
[]
[]
[]
[]
[]
[]
[]
[]
[]
[]
[]
[]
[]
[]
[]
[]
[]
[]
[]
[]
[]
[]
[]
[]
[]
[]
[]
[]
[]
[]
[]
[]
[]
[]
[]
[]
[]
[]
[]
[]
[]
[]
[]
[]
[]
[]
[]
[]
[]
[]
[]
[]
[]
[]
[]
[]
[]
[]
[]
[]
[]
[]
[]
[]
[]
[]
[]
[]
[]
[]
[]
[]
[]
[]
[]
[]
[]
[]
[]
[]
[]
[]
[]
[]
[]
[]
[]
[]
[]
[]
[]
[]
[]
[]
[]
[]
[]
[]
[]
[]
[]
[]
[]
[]
[]
[]
[]
[]
[]
[]
[]
[]
[]
[]
[]
[]
[]
[]
[]
[]
[]
[]
[]
[]
[]
[]
[]
[]
[]
[]
[]
[]
[]
[]
[]
[]
[]
[]
[]
[]
[]
[]
[]
[]
[]
[]
[]
[]
[]
[]
[]
[]
[]
[]
[]
[]
[]
[]
[]
[]
[]
[]
[]
[]
[]
[]
[]
[]
[]
[]
[]
[]
[]
[]
[]
[]
[]
[]
[]
[]
[]
[]
[]
[]
[]
[]
[]
[]
[]
[]
[]
[]
[]
[]
[]
[]
[]
[]
[]
[]
[]
[]
[]
[]
[]
[]
[]
[]
[]
[]
[]
[]
[]
[]
[]
[]
[]
[]
[]
[]
[]
[]
[]
[]
[]
[]
[]
[]
[]
[]
[]
[]
[]
[]
[]
[]
[]
[]
[]
[]
[]
[]
[]
[]
[]
[]
[]
[]
[]
[]
[]
[]
[]
[]
[]
[]
[]
[]
[]
[]
[]
[]
[]
[]
[]
[]
[]
[]
[]
[]
[]
[]
[]
[]
[]
[]
[]
[]
[]
[]
[]
[]
[]
[]
[]
[]
[]
[]
[]
[]
[]
[]
[]
[]
[]
[]
[]
[]
[]
[]
[]
[]
[]
[]
[]
[]
[]
[]
[]
[]
[]
[]
[]
[]
[]
[]
[]
[]
[]
[]
[]
[]
[]
[]
[]
[]
[]
[]
[]
[]
[]
[]
[]
[]
[]
[]
[]
[]
[]
[]
[]
[]
[]
[]
[]
[]
[]
[]
[]
[]
[]
[]
[]
[]
[]
[]
[]
[]
[]
[]
[]
[]
[]
[]
[]
[]
[]
[]
[]
[]
[]
[]
[]
[]
[]
[]
[]
[]
[]
[]
[]
[]
[]
[]
[]
[]
[]
[]
[]
[]
[]
[]
[]
[]
[]
[]
[]
[]
[]
[]
[]
[]
[]
[]
[]
[]
[]
[]
[]
[]
[]
[]
[]
[]
[]
[]
[]
[]
[]
[]
[]
[]
[]
[]
[]
[]
[]
[]
[]
[]
[]
[]
[]
[]
[]
[]
[]
[]
[]
[]
[]
[]
[]
[]
[]
[]
[]
[]
[]
[]
[]
[]
[]
[]
[]
[]
[]
[]
[]
[]
[]
[]
[]
[]
[]
[]
[]
[]
[]
[]
[]
[]
[]
[]
[]
[]
[]
[]
[]
[]
[]
[]
[]
[]
[]
[]
[]
[]
[]
[]
[]
[]
[]
[]
[]
[]
[]
[]
[]
[]
[]
[]
[]
[]
[]
[]
[]
[]
[]
[]
[]
[]
[]
[]
[]
[]
[]
[]
[]
[]
[]
[]
[]
[]
[]
[]
[]
[]
[]
[]
[]
[]
[]
[]
[]
[]
[]
[]
[]
[]
[]
[]
[]
[]
[]
[]
[]
[]
[]
[]
[]
[]
[]
[]
[]
[]
[]
[]
[]
[]
[]
[]
[]
[]
[]
[]
[]
[]
[]
[]
[]
[]
[]
[]
[]
[]
[]
[]
[]
[]
[]
[]
[]
[]
[]
[]
[]
[]
[]
[]
[]
[]
[]
[]
[]
[]
[]
[]
[]
[]
[]
[]
[]
[]
[]
[]
[]
[]
[]
[]
[]
[]
[]
[]
[]
[]
[]
[]
[]
[]
[]
[]
[]
[]
[]
[]
[]
[]
[]
[]
[]
[]
[]
[]
[]
[]
[]
[]
[]
[]
[]
[]
[]
[]
[]
[]
[]
[]
[]
[]
[]
[]
[]
[]
[]
[]
[]
[]
[]
[]
[]
[]
[]
[]
[]
[]
[]
[]
[]
[]
[]
[]
[]
[]
[]
[]
[]
[]
[]
[]
[]
[]
[]
[]
[]
[]
[]
[]
[]
[]
[]
[]
[]
[]
[]
[]
[]
[]
[]
[]
[]
[]
[]
[]
[]
[]
[]
[]
[]
[]
[]
[]
[]
[]
[]
[]
[]
[]
[]
[]
[]
[]
[]
[]
[]
[]
[]
[]
[]
[]
[]
[]
[]
[]
[]
[]
[]
[]
[]
[]
[]
[]
[]
[]
[]
[]
[]
[]
[]
[]
[]
[]
[]
[]
[]
[]
[]
[]
[]
[]
[]
[]
[]
[]
[]
[]
[]
[]
[]
[]
[]
[]
[]
[]
[]
[]
[]
[]
[]
[]
[]
[]
[]
[]
[]
[]
[]
[]
[]
[]
[]
[]
[]
[]
[]
[]
[]
[]
[]
[]
[]
[]
[]
[]
[]
[]
[]
[]
[]
[]
[]
[]
[]
[]
[]
[]
[]
[]
[]
[]
[]
[]
[]
[]
[]
[]
[]
[]
[]
[]
[]
[]
[]
[]
[]
[]
[]
[]
[]
[]
[]
[]
[]
[]
[]
[]
[]
[]
[]
[]
[]
[]
[]
[]
[]
[]
[]
[]
[]
[]
[]
[]
[]
[]
[]
[]
[]
[]
[]
[]
[]
[]
[]
[]
[]
[]
[]
[]
[]
[]
[]
[]
[]
[]
[]
[]
[]
[]
[]
[]
[]
[]
[]
[]
[]
[]
[]
[]
[]
[]
[]
[]
[]
[]
[]
[]
[]
[]
[]
[]
[]
[]
[]
[]
[]
[]
[]
[]
[]
[]
[]
[]
[]
[]
[]
[]
[]
[]
[]
[]
[]
[]
[]
[]
[]
[]
[]
[]
[]
[]
[]
[]
[]
[]
[]
[]
[]
[]
[]
[]
[]
[]
[]
[]
[]
[]
[]
[]
[]
[]
[]
[]
[]
[]
[]
[]
[]
[]
[]
[]
[]
[]
[]
[]
[]
[]
[]
[]
[]
[]
[]
[]
[]
[]
[]
[]
[]
[]
[]
[]
[]
[]
[]
[]
[]
[]
[]
[]
[]
[]
[]
[]
[]
[]
[]
[]
[]
[]
[]
[]
[]
[]
[]
[]
[]
[]
[]
[]
[]
[]
[]
[]
[]
[]
[]
[]
[]
[]
[]
[]
[]
[]
[]
[]
[]
[]
[]
[]
[]
[]
[]
[]
[]
[]
[]
[]
[]
[]
[]
[]
[]
[]
[]
[]
[]
[]
[]
[]
[]
[]
[]
[]
[]
[]
[]
[]
[]
[]
[]
[]
[]
[]
[]
[]
[]
[]
[]
[]
[]
[]
[]
[]
[]
[]
[]
[]
[]
[]
[]
[]
[]
[]
[]
[]
[]
[]
[]
[]
[]
[]
[]
[]
[]
[]
[]
[]
[]
[]
[]
[]
[]
[]
[]
[]
[]
[]
[]
[]
[]
[]
[]
[]
[]
[]
[]
[]
[]
[]
[]
[]
[]
[]
[]
[]
[]
[]
[]
[]
[]
[]
[]
[]
[]
[]
[]
[]
[]
[]
[]
[]
[]
[]
[]
[]
[]
[]
[]
[]
[]
[]
[]
[]
[]
[]
[]
[]
[]
[]
[]
[]
[]
[]
[]
[]
[]
[]
[]
[]
[]
[]
[]
[]
[]
[]
[]
[]
[]
[]
[]
[]
[]
[]
[]
[]
[]
[]
[]
[]
[]
[]
[]
[]
[]
[]
[]
[]
[]
[]
[]
[]
[]
[]
[]
[]
[]
[]
[]
[]
[]
[]
[]
[]
[]
[]
[]
[]
[]
[]
[]
[]
[]
[]
[]
[]
[]
[]
[]
[]
[]
[]
[]
[]
[]
[]
[]
[]
[]
[]
[]
[]
[]
[]
[]
[]
[]
[]
[]
[]
[]
[]
[]
[]
[]
[]
[]
[]
[]
[]
[]
[]
[]
[]
[]
[]
[]
[]
[]
[]
[]
[]
[]
[]
[]
[]
[]
[]
[]
[]
[]
[]
[]
[]
[]
[]
[]
[]
[]
[]
[]
[]
[]
[]
[]
[]
[]
[]
[]
[]
[]
[]
[]
[]
[]
[]
[]
[]
[]
[]
[]
[]
[]
[]
[]
[]
[]
[]
[]
[]
[]
[]
[]
[]
[]
[]
[]
[]
[]
[]
[]
[]
[]
[]
[]
[]
[]
[]
[]
[]
[]
[]
[]
[]
[]
[]
[]
[]
[]
[]
[]
[]
[]
[]
[]
[]
[]
[]
[]
[]
[]
[]
[]
[]
[]
[]
[]
[]
[]
[]
[]
[]
[]
[]
[]
[]
[]
[]
[]
[]
[]
[]
[]
[]
[]
[]
[]
[]
[]
[]
[]
[]
[]
[]
[]
[]
[]
[]
[]
[]
[]
[]
[]
[]
[]
[]
[]
[]
[]
[]
[]
[]
[]
[]
[]
[]
[]
[]
[]
[]
[]
[]
[]
[]
[]
[]
[]
[]
[]
[]
[]
[]
[]
[]
[]
[]
[]
[]
[]
[]
[]
[]
[]
[]
[]
[]
[]
[]
[]
[]
[]
[]
[]
[]
[]
[]
[]
[]
[]
[]
[]
[]
[]
[]
[]
[]
[]
[]
[]
[]
[]
[]
[]
[]
[]
[]
[]
[]
[]
[]
[]
[]
[]
[]
[]
[]
[]
[]
[]
[]
[]
[]
[]
[]
[]
[]
[]
[]
[]
[]
[]
[]
[]
[]
[]
[]
[]
[]
[]
[]
[]
[]
[]
[]
[]
[]
[]
[]
[]
[]
[]
[]
[]
[]
[]
[]
[]
[]
[]
[]
[]
[]
[]
[]
[]
[]
[]
[]
[]
[]
[]
[]
[]
[]
[]
[]
[]
[]
[]
[]
[]
[]
[]
[]
[]
[]
[]
[]
[]
[]
[]
[]
[]
[]
[]
[]
[]
[]
[]
[]
[]
[]
[]
[]
[]
[]
[]
[]
[]
[]
[]
[]
[]
[]
[]
[]
[]
[]
[]
[]
[]
[]
[]
[]
[]
[]
[]
[]
[]
[]
[]
[]
[]
[]
[]
[]
[]
[]
[]
[]
[]
[]
[]
[]
[]
[]
[]
[]
[]
[]
[]
[]
[]
[]
[]
[]
[]
[]
[]
[]
[]
[]
[]
[]
[]
[]
[]
[]
[]
[]
[]
[]
[]
[]
[]
[]
[]
[]
[]
[]
[]
[]
[]
[]
[]
[]
[]
[]
[]
[]
[]
[]
[]
[]
[]
[]
[]
[]
[]
[]
[]
[]
[]
[]
[]
[]
[]
[]
[]
[]
[]
[]
[]
[]
[]
[]
[]
[]
[]
[]
[]
[]
[]
[]
[]
[]
[]
[]
[]
[]
[]
[]
[]
[]
[]
[]
[]
[]
[]
[]
[]
[]
[]
[]
[]
[]
[]
[]
[]
[]
[]
[]
[]
[]
[]
[]
[]
[]
[]
[]
[]
[]
[]
[]
[]
[]
[]
[]
[]
[]
[]
[]
[]
[]
[]
[]
[]
[]
[]
[]
[]
[]
[]
[]
[]
[]
[]
[]
[]
[]
[]
[]
[]
[]
[]
[]
[]
[]
[]
[]
[]
[]
[]
[]
[]
[]
[]
[]
[]
[]
[]
[]
[]
[]
[]
[]
[]
[]
[]
[]
[]
[]
[]
[]
[]
[]
[]
[]
[]
[]
[]
[]
[]
[]
[]
[]
[]
[]
[]
[]
[]
[]
[]
[]
[]
[]
[]
[]
[]
[]
[]
[]
[]
[]
[]
[]
[]
[]
[]
[]
[]
[]
[]
[]
[]
[]
[]
[]
[]
[]
[]
[]
[]
[]
[]
[]
[]
[]
[]
[]
[]
[]
[]
[]
[]
[]
[]
[]
[]
[]
[]
[]
[]
[]
[]
[]
[]
[]
[]
[]
[]
[]
[]
[]
[]
[]
[]
[]
[]
[]
[]
[]
[]
[]
[]
[]
[]
[]
[]
[]
[]
[]
[]
[]
[]
[]
[]
[]
[]
[]
[]
[]
[]
[]
[]
[]
[]
[]
[]
[]
[]
[]
[]
[]
[]
[]
[]
[]
[]
[]
[]
[]
[]
[]
[]
[]
[]
[]
[]
[]
[]
[]
[]
[]
[]
[]
[]
[]
[]
[]
[]
[]
[]
[]
[]
[]
[]
[]
[]
[]
[]
[]
[]
[]
[]
[]
[]
[]
[]
[]
[]
[]
[]
[]
[]
[]
[]
[]
[]
[]
[]
[]
[]
[]
[]
[]
[]
[]
[]
[]
[]
[]
[]
[]
[]
[]
[]
[]
[]
[]
[]
[]
[]
[]
[]
[]
[]
[]
[]
[]
[]
[]
[]
[]
[]
[]
[]
[]
[]
[]
[]
[]
[]
[]
[]
[]
[]
[]
[]
[]
[]
[]
[]
[]
[]
[]
[]
[]
[]
[]
[]
[]
[]
[]
[]
[]
[]
[]
[]
[]
[]
[]
[]
[]
[]
[]
[]
[]
[]
[]
[]
[]
[]
[]
[]
[]
[]
[]
[]
[]
[]
[]
[]
[]
[]
[]
[]
[]
[]
[]
[]
[]
[]
[]
[]
[]
[]
[]
[]
[]
[]
[]
[]
[]
[]
[]
[]
[]
[]
[]
[]
[]
[]
[]
[]
[]
[]
[]
[]
[]
[]
[]
[]
[]
[]
[]
[]
[]
[]
[]
[]
[]
[]
[]
[]
[]
[]
[]
[]
[]
[]
[]
[]
[]
[]
[]
[]
[]
[]
[]
[]
[]
[]
[]
[]
[]
[]
[]
[]
[]
[]
[]
[]
[]
[]
[]
[]
[]
[]
[]
[]
[]
[]
[]
[]
[]
[]
[]
[]
[]
[]
[]
[]
[]
[]
[]
[]
[]
[]
[]
[]
[]
[]
[]
[]
[]
[]
[]
[]
[]
[]
[]
[]
[]
[]
[]
[]
[]
[]
[]
[]
[]
[]
[]
[]
[]
[]
[]
[]
[]
[]
[]
[]
[]
[]
[]
[]
[]
[]
[]
[]
[]
[]
[]
[]
[]
[]
[]
[]
[]
[]
[]
[]
[]
[]
[]
[]
[]
[]
[]
[]
[]
[]
[]
[]
[]
[]
[]
[]
[]
[]
[]
[]
[]
[]
[]
[]
[]
[]
[]
[]
[]
[]
[]
[]
[]
[]
[]
[]
[]
[]
[]
[]
[]
[]
[]
[]
[]
[]
[]
[]
[]
[]
[]
[]
[]
[]
[]
[]
[]
[]
[]
[]
[]
[]
[]
[]
[]
[]
[]
[]
[]
[]
[]
[]
[]
[]
[]
[]
[]
[]
[]
[]
[]
[]
[]
[]
[]
[]
[]
[]
[]
[]
[]
[]
[]
[]
[]
[]
[]
[]
[]
[]
[]
[]
[]
[]
[]
[]
[]
[]
[]
[]
[]
[]
[]
[]
[]
[]
[]
[]
[]
[]
[]
[]
[]
[]
[]
[]
[]
[]
[]
[]
[]
[]
[]
[]
[]
[]
[]
[]
[]
[]
[]
[]
[]
[]
[]
[]
[]
[]
[]
[]
[]
[]
[]
[]
[]
[]
[]
[]
[]
[]
[]
[]
[]
[]
[]
[]
[]
[]
[]
[]
[]
[]
[]
[]
[]
[]
[]
[]
[]
[]
[]
[]
[]
[]
[]
[]
[]
[]
[]
[]
[]
[]
[]
[]
[]
[]
[]
[]
[]
[]
[]
[]
[]
[]
[]
[]
[]
[]
[]
[]
[]
[]
[]
[]
[]
[]
[]
[]
[]
[]
[]
[]
[]
[]
[]
[]
[]
[]
[]
[]
[]
[]
[]
[]
[]
[]
[]
[]
[]
[]
[]
[]
[]
[]
[]
[]
[]
[]
[]
[]
[]
[]
[]
[]
[]
[]
[]
[]
[]
[]
[]
[]
[]
[]
[]
[]
[]
[]
[]
[]
[]
[]
[]
[]
[]
[]
[]
[]
[]
[]
[]
[]
[]
[]
[]
[]
[]
[]
[]
[]
[]
[]
[]
[]
[]
[]
[]
[]
[]
[]
[]
[]
[]
[]
[]
[]
[]
[]
[]
[]
[]
[]
[]
[]
[]
[]
[]
[]
[]
[]
[]
[]
[]
[]
[]
[]
[]
[]
[]
[]
[]
[]
[]
[]
[]
[]
[]
[]
[]
[]
[]
[]
[]
[]
[]
[]
[]
[]
[]
[]
[]
[]
[]
[]
[]
[]
[]
[]
[]
[]
[]
[]
[]
[]
[]
[]
[]
[]
[]
[]
[]
[]
[]
[]
[]
[]
[]
[]
[]
[]
[]
[]
[]
[]
[]
[]
[]
[]
[]
[]
[]
[]
[]
[]
[]
[]
[]
[]
[]
[]
[]
[]
[]
[]
[]
[]
[]
[]
[]
[]
[]
[]
[]
[]
[]
[]
[]
[]
[]
[]
[]
[]
[]
[]
[]
[]
[]
[]
[]
[]
[]
[]
[]
[]
[]
[]
[]
[]
[]
[]
[]
[]
[]
[]
[]
[]
[]
[]
[]
[]
[]
[]
[]
[]
[]
[]
[]
[]
[]
[]
[]
[]
[]
[]
[]
[]
[]
[]
[]
[]
[]
[]
[]
[]
[]
[]
[]
[]
[]
[]
[]
[]
[]
[]
[]
[]
[]
[]
[]
[]
[]
[]
[]
[]
[]
[]
[]
[]
[]
[]
[]
[]
[]
[]
[]
[]
[]
[]
[]
[]
[]
[]
[]
[]
[]
[]
[]
[]
[]
[]
[]
[]
[]
[]
[]
[]
[]
[]
[]
[]
[]
[]
[]
[]
[]
[]
[]
[]
[]
[]
[]
[]
[]
[]
[]
[]
[]
[]
[]
[]
[]
[]
[]
[]
[]
[]
[]
[]
[]
[]
[]
[]
[]
[]
[]
[]
[]
[]
[]
[]
[]
[]
[]
[]
[]
[]
[]
[]
[]
[]
[]
[]
[]
[]
[]
[]
[]
[]
[]
[]
[]
[]
[]
[]
[]
[]
[]
[]
[]
[]
[]
[]
[]
[]
[]
[]
[]
[]
[]
[]
[]
[]
[]
[]
[]
[]
[]
[]
[]
[]
[]
[]
[]
[]
[]
[]
[]
[]
[]
[]
[]
[]
[]
[]
[]
[]
[]
[]
[]
[]
[]
[]
[]
[]
[]
[]
[]
[]
[]
[]
[]
[]
[]
[]
[]
[]
[]
[]
[]
[]
[]
[]
[]
[]
[]
[]
[]
[]
[]
[]
[]
[]
[]
[]
[]
[]
[]
[]
[]
[]
[]
[]
[]
[]
[]
[]
[]
[]
[]
[]
[]
[]
[]
[]
[]
[]
[]
[]
[]
[]
[]
[]
[]
[]
[]
[]
[]
[]
[]
[]
[]
[]
[]
[]
[]
[]
[]
[]
[]
[]
[]
[]
[]
[]
[]
[]
[]
[]
[]
[]
[]
[]
[]
[]
[]
[]
[]
[]
[]
[]
[]
[]
[]
[]
[]
[]
[]
[]
[]
[]
[]
[]
[]
[]
[]
[]
[]
[]
[]
[]
[]
[]
[]
[]
[]
[]
[]
[]
[]
[]
[]
[]
[]
[]
[]
[]
[]
[]
[]
[]
[]
[]
[]
[]
[]
[]
[]
[]
[]
[]
[]
[]
[]
[]
[]
[]
[]
[]
[]
[]
[]
[]
[]
[]
[]
[]
[]
[]
[]
[]
[]
[]
[]
[]
[]
[]
[]
[]
[]
[]
[]
[]
[]
[]
[]
[]
[]
[]
[]
[]
[]
[]
[]
[]
[]
[]
[]
[]
[]
[]
[]
[]
[]
[]
[]
[]
[]
[]
[]
[]
[]
[]
[]
[]
[]
[]
[]
[]
[]
[]
[]
[]
[]
[]
[]
[]
[]
[]
[]
[]
[]
[]
[]
[]
[]
[]
[]
[]
[]
[]
[]
[]
[]
[]
[]
[]
[]
[]
[]
[]
[]
[]
[]
[]
[]
[]
[]
[]
[]
[]
[]
[]
[]
[]
[]
[]
[]
[]
[]
[]
[]
[]
[]
[]
[]
[]
[]
[]
[]
[]
[]
[]
[]
[]
[]
[]
[]
[]
[]
[]
[]
[]
[]
[]
[]
[]
[]
[]
[]
[]
[]
[]
[]
[]
[]
[]
[]
[]
[]
[]
[]
[]
[]
[]
[]
[]
[]
[]
[]
[]
[]
[]
[]
[]
[]
[]
[]
[]
[]
[]
[]
[]
[]
[]
[]
[]
[]
[]
[]
[]
[]
[]
[]
[]
[]
[]
[]
[]
[]
[]
[]
[]
[]
[]
[]
[]
[]
[]
[]
[]
[]
[]
[]
[]
[]
[]
[]
[]
[]
[]
[]
[]
[]
[]
[]
[]
[]
[]
[]
[]
[]
[]
[]
[]
[]
[]
[]
[]
[]
[]
[]
[]
[]
[]
[]
[]
[]
[]
[]
[]
[]
[]
[]
[]
[]
[]
[]
[]
[]
[]
[]
[]
[]
[]
[]
[]
[]
[]
[]
[]
[]
[]
[]
[]
[]
[]
[]
[]
[]
[]
[]
[]
[]
[]
[]
[]
[]
[]
[]
[]
[]
[]
[]
[]
[]
[]
[]
[]
[]
[]
[]
[]
[]
[]
[]
[]
[]
[]
[]
[]
[]
[]
[]
[]
[]
[]
[]
[]
[]
[]
[]
[]
[]
[]
[]
[]
[]
[]
[]
[]
[]
[]
[]
[]
[]
[]
[]
[]
[]
[]
[]
[]
[]
[]
[]
[]
[]
[]
[]
[]
[]
[]
[]
[]
[]
[]
[]
[]
[]
[]
[]
[]
[]
[]
[]
[]
[]
[]
[]
[]
[]
[]
[]
[]
[]
[]
[]
[]
[]
[]
[]
[]
[]
[]
[]
[]
[]
[]
[]
[]
[]
[]
[]
[]
[]
[]
[]
[]
[]
[]
[]
[]
[]
[]
[]
[]
[]
[]
[]
[]
[]
[]
[]
[]
[]
[]
[]
[]
[]
[]
[]
[]
[]
[]
[]
[]
[]
[]
[]
[]
[]
[]
[]
[]
[]
[]
[]
[]
[]
[]
[]
[]
[]
[]
[]
[]
[]
[]
[]
[]
[]
[]
[]
[]
[]
[]
[]
[]
[]
[]
[]
[]
[]
[]
[]
[]
[]
[]
[]
[]
[]
[]
[]
[]
[]
[]
[]
[]
[]
[]
[]
[]
[]
[]
[]
[]
[]
[]
[]
[]
[]
[]
[]
[]
[]
[]
[]
[]
[]
[]
[]
[]
[]
[]
[]
[]
[]
[]
[]
[]
[]
[]
[]
[]
[]
[]
[]
[]
[]
[]
[]
[]
[]
[]
[]
[]
[]
[]
[]
[]
[]
[]
[]
[]
[]
[]
[]
[]
[]
[]
[]
[]
[]
[]
[]
[]
[]
[]
[]
[]
[]
[]
[]
[]
[]
[]
[]
[]
[]
[]
[]
[]
[]
[]
[]
[]
[]
[]
[]
[]
[]
[]
[]
[]
[]
[]
[]
[]
[]
[]
[]
[]
[]
[]
[]
[]
[]
[]
[]
[]
[]
[]
[]
[]
[]
[]
[]
[]
[]
[]
[]
[]
[]
[]
[]
[]
[]
[]
[]
[]
[]
[]
[]
[]
[]
[]
[]
[]
[]
[]
[]
[]
[]
[]
[]
[]
[]
[]
[]
[]
[]
[]
[]
[]
[]
[]
[]
[]
[]
[]
[]
[]
[]
[]
[]
[]
[]
[]
[]
[]
[]
[]
[]
[]
[]
[]
[]
[]
[]
[]
[]
[]
[]
[]
[]
[]
[]
[]
[]
[]
[]
[]
[]
[]
[]
[]
[]
[]
[]
[]
[]
[]
[]
[]
[]
[]
[]
[]
[]
[]
[]
[]
[]
[]
[]
[]
[]
[]
[]
[]
[]
[]
[]
[]
[]
[]
[]
[]
[]
[]
[]
[]
[]
[]
[]
[]
[]
[]
[]
[]
[]
[]
[]
[]
[]
[]
[]
[]
[]
[]
[]
[]
[]
[]
[]
[]
[]
[]
[]
[]
[]
[]
[]
[]
[]
[]
[]
[]
[]
[]
[]
[]
[]
[]
[]
[]
[]
[]
[]
[]
[]
[]
[]
[]
[]
[]
[]
[]
[]
[]
[]
[]
[]
[]
[]
[]
[]
[]
[]
[]
[]
[]
[]
[]
[]
[]
[]
[]
[]
[]
[]
[]
[]
[]
[]
[]
[]
[]
[]
[]
[]
[]
[]
[]
[]
[]
[]
[]
[]
[]
[]
[]
[]
[]
[]
[]
[]
[]
[]
[]
[]
[]
[]
[]
[]
[]
[]
[]
[]
[]
[]
[]
[]
[]
[]
[]
[]
[]
[]
[]
[]
[]
[]
[]
[]
[]
[]
[]
[]
[]
[]
[]
[]
[]
[]
[]
[]
[]
[]
[]
[]
[]
[]
[]
[]
[]
[]
[]
[]
[]
[]
[]
[]
[]
[]
[]
[]
[]
[]
[]
[]
[]
[]
[]
[]
[]
[]
[]
[]
[]
[]
[]
[]
[]
[]
[]
[]
[]
[]
[]
[]
[]
[]
[]
[]
[]
[]
[]
[]
[]
[]
[]
[]
[]
[]
[]
[]
[]
[]
[]
[]
[]
[]
[]
[]
[]
[]
[]
[]
[]
[]
[]
[]
[]
[]
[]
[]
[]
[]
[]
[]
[]
[]
[]
[]
[]
[]
[]
[]
[]
[]
[]
[]
[]
[]
[]
[]
[]
[]
[]
[]
[]
[]
[]
[]
[]
[]
[]
[]
[]
[]
[]
[]
[]
[]
[]
[]
[]
[]
[]
[]
[]
[]
[]
[]
[]
[]
[]
[]
[]
[]
[]
[]
[]
[]
[]
[]
[]
[]
[]
[]
[]
[]
[]
[]
[]
[]
[]
[]
[]
[]
[]
[]
[]
[]
[]
[]
[]
[]
[]
[]
[]
[]
[]
[]
[]
[]
[]
[]
[]
[]
[]
[]
[]
[]
[]
[]
[]
[]
[]
[]
[]
[]
[]
[]
[]
[]
[]
[]
[]
[]
[]
[]
[]
[]
[]
[]
[]
[]
[]
[]
[]
[]
[]
[]
[]
[]
[]
[]
[]
[]
[]
[]
[]
[]
[]
[]
[]
[]
[]
[]
[]
[]
[]
[]
[]
[]
[]
[]
[]
[]
[]
[]
[]
[]
[]
[]
[]
[]
[]
[]
[]
[]
[]
[]
[]
[]
[]
[]
[]
[]
[]
[]
[]
[]
[]
[]
[]
[]
[]
[]
[]
[]
[]
[]
[]
[]
[]
[]
[]
[]
[]
[]
[]
[]
[]
[]
[]
[]
[]
[]
[]
[]
[]
[]
[]
[]
[]
[]
[]
[]
[]
[]
[]
[]
[]
[]
[]
[]
[]
[]
[]
[]
[]
[]
[]
[]
[]
[]
[]
[]
[]
[]
[]
[]
[]
[]
[]
[]
[]
[]
[]
[]
[]
[]
[]
[]
[]
[]
[]
[]
[]
[]
[]
[]
[]
[]
[]
[]
[]
[]
[]
[]
[]
[]
[]
[]
[]
[]
[]
[]
[]
[]
[]
[]
[]
[]
[]
[]
[]
[]
[]
[]
[]
[]
[]
[]
[]
[]
[]
[]
[]
[]
[]
[]
[]
[]
[]
[]
[]
[]
[]
[]
[]
[]
[]
[]
[]
[]
[]
[]
[]
[]
[]
[]
[]
[]
[]
[]
[]
[]
[]
[]
[]
[]
[]
[]
[]
[]
[]
[]
[]
[]
[]
[]
[]
[]
[]
[]
[]
[]
[]
[]
[]
[]
[]
[]
[]
[]
[]
[]
[]
[]
[]
[]
[]
[]
[]
[]
[]
[]
[]
[]
[]
[]
[]
[]
[]
[]
[]
[]
[]
[]
[]
[]
[]
[]
[]
[]
[]
[]
[]
[]
[]
[]
[]
[]
[]
[]
[]
[]
[]
[]
[]
[]
[]
[]
[]
[]
[]
[]
[]
[]
[]
[]
[]
[]
[]
[]
[]
[]
[]
[]
[]
[]
[]
[]
[]
[]
[]
[]
[]
[]
[]
[]
[]
[]
[]
[]
[]
[]
[]
[]
[]
[]
[]
[]
[]
[]
[]
[]
[]
[]
[]
[]
[]
[]
[]
[]
[]
[]
[]
[]
[]
[]
[]
[]
[]
[]
[]
[]
[]
[]
[]
[]
[]
[]
[]
[]
[]
[]
[]
[]
[]
[]
[]
[]
[]
[]
[]
[]
[]
[]
[]
[]
[]
[]
[]
[]
[]
[]
[]
[]
[]
[]
[]
[]
[]
[]
[]
[]
[]
[]
[]
[]
[]
[]
[]
[]
[]
[]
[]
[]
[]
[]
[]
[]
[]
[]
[]
[]
[]
[]
[]
[]
[]
[]
[]
[]
[]
[]
[]
[]
[]
[]
[]
[]
[]
[]
[]
[]
[]
[]
[]
[]
[]
[]
[]
[]
[]
[]
[]
[]
[]
[]
[]
[]
[]
[]
[]
[]
[]
[]
[]
[]
[]
[]
[]
[]
[]
[]
[]
[]
[]
[]
[]
[]
[]
[]
[]
[]
[]
[]
[]
[]
[]
[]
[]
[]
[]
[]
[]
[]
[]
[]
[]
[]
[]
[]
[]
[]
[]
[]
[]
[]
[]
[]
[]
[]
[]
[]
[]
[]
[]
[]
[]
[]
[]
[]
[]
[]
[]
[]
[]
[]
[]
[]
[]
[]
[]
[]
[]
[]
[]
[]
[]
[]
[]
[]
[]
[]
[]
[]
[]
[]
[]
[]
[]
[]
[]
[]
[]
[]
[]
[]
[]
[]
[]
[]
[]
[]
[]
[]
[]
[]
[]
[]
[]
[]
[]
[]
[]
[]
[]
[]
[]
[]
[]
[]
[]
[]
[]
[]
[]
[]
[]
[]
[]
[]
[]
[]
[]
[]
[]
[]
[]
[]
[]
[]
[]
[]
[]
[]
[]
[]
[]
[]
[]
[]
[]
[]
[]
[]
[]
[]
[]
[]
[]
[]
[]
[]
[]
[]
[]
[]
[]
[]
[]
[]
[]
[]
[]
[]
[]
[]
[]
[]
[]
[]
[]
[]
[]
[]
[]
[]
[]
[]
[]
[]
[]
[]
[]
[]
[]
[]
[]
[]
[]
[]
[]
[]
[]
[]
[]
[]
[]
[]
[]
[]
[]
[]
[]
[]
[]
[]
[]
[]
[]
[]
[]
[]
[]
[]
[]
[]
[]
[]
[]
[]
[]
[]
[]
[]
[]
[]
[]
[]
[]
[]
[]
[]
[]
[]
[]
[]
[]
[]
[]
[]
[]
[]
[]
[]
[]
[]
[]
[]
[]
[]
[]
[]
[]
[]
[]
[]
[]
[]
[]
[]
[]
[]
[]
[]
[]
[]
[]
[]
[]
[]
[]
[]
[]
[]
[]
[]
[]
[]
[]
[]
[]
[]
[]
[]
[]
[]
[]
[]
[]
[]
[]
[]
[]
[]
[]
[]
[]
[]
[]
[]
[]
[]
[]
[]
[]
[]
[]
[]
[]
[]
[]
[]
[]
[]
[]
[]
[]
[]
[]
[]
[]
[]
[]
[]
[]
[]
[]
[]
[]
[]
[]
[]
[]
[]
[]
[]
[]
[]
[]
[]
[]
[]
[]
[]
[]
[]
[]
[]
[]
[]
[]
[]
[]
[]
[]
[]
[]
[]
[]
[]
[]
[]
[]
[]
[]
[]
[]
[]
[]
[]
[]
[]
[]
[]
[]
[]
[]
[]
[]
[]
[]
[]
[]
[]
[]
[]
[]
[]
[]
[]
[]
[]
[]
[]
[]
[]
[]
[]
[]
[]
[]
[]
[]
[]
[]
[]
[]
[]
[]
[]
[]
[]
[]
[]
[]
[]
[]
[]
[]
[]
[]
[]
[]
[]
[]
[]
[]
[]
[]
[]
[]
[]
[]
[]
[]
[]
[]
[]
[]
[]
[]
[]
[]
[]
[]
[]
[]
[]
[]
[]
[]
[]
[]
[]
[]
[]
[]
[]
[]
[]
[]
[]
[]
[]
[]
[]
[]
[]
[]
[]
[]
[]
[]
[]
[]
[]
[]
[]
[]
[]
[]
[]
[]
[]
[]
[]
[]
[]
[]
[]
[]
[]
[]
[]
[]
[]
[]
[]
[]
[]
[]
[]
[]
[]
[]
[]
[]
[]
[]
[]
[]
[]
[]
[]
[]
[]
[]
[]
[]
[]
[]
[]
[]
[]
[]
[]
[]
[]
[]
[]
[]
[]
[]
[]
[]
[]
[]
[]
[]
[]
[]
[]
[]
[]
[]
[]
[]
[]
[]
[]
[]
[]
[]
[]
[]
[]
[]
[]
[]
[]
[]
[]
[]
[]
[]
[]
[]
[]
[]
[]
[]
[]
[]
[]
[]
[]
[]
[]
[]
[]
[]
[]
[]
[]
[]
[]
[]
[]
[]
[]
[]
[]
[]
[]
[]
[]
[]
[]
[]
[]
[]
[]
[]
[]
[]
[]
[]
[]
[]
[]
[]
[]
[]
[]
[]
[]
[]
[]
[]
[]
[]
[]
[]
[]
[]
[]
[]
[]
[]
[]
[]
[]
[]
[]
[]
[]
[]
[]
[]
[]
[]
[]
[]
[]
[]
[]
[]
[]
[]
[]
[]
[]
[]
[]
[]
[]
[]
[]
[]
[]
[]
[]
[]
[]
[]
[]
[]
[]
[]
[]
[]
[]
[]
[]
[]
[]
[]
[]
[]
[]
[]
[]
[]
[]
[]
[]
[]
[]
[]
[]
[]
[]
[]
[]
[]
[]
[]
[]
[]
[]
[]
[]
[]
[]
[]
[]
[]
[]
[]
[]
[]
[]
[]
[]
[]
[]
[]
[]
[]
[]
[]
[]
[]
[]
[]
[]
[]
[]
[]
[]
[]
[]
[]
[]
[]
[]
[]
[]
[]
[]
[]
[]
[]
[]
[]
[]
[]
[]
[]
[]
[]
[]
[]
[]
[]
[]
[]
[]
[]
[]
[]
[]
[]
[]
[]
[]
[]
[]
[]
[]
[]
[]
[]
[]
[]
[]
[]
[]
[]
[]
[]
[]
[]
[]
[]
[]
[]
[]
[]
[]
[]
[]
[]
[]
[]
[]
[]
[]
[]
[]
[]
[]
[]
[]
[]
[]
[]
[]
[]
[]
[]
[]
[]
[]
[]
[]
[]
[]
[]
[]
[]
[]
[]
[]
[]
[]
[]
[]
[]
[]
[]
[]
[]
[]
[]
[]
[]
[]
[]
[]
[]
[]
[]
[]
[]
[]
[]
[]
[]
[]
[]
[]
[]
[]
[]
[]
[]
[]
[]
[]
[]
[]
[]
[]
[]
[]
[]
[]
[]
[]
[]
[]
[]
[]
[]
[]
[]
[]
[]
[]
[]
[]
[]
[]
[]
[]
[]
[]
[]
[]
[]
[]
[]
[]
[]
[]
[]
[]
[]
[]
[]
[]
[]
[]
[]
[]
[]
[]
[]
[]
[]
[]
[]
[]
[]
[]
[]
[]
[]
[]
[]
[]
[]
[]
[]
[]
[]
[]
[]
[]
[]
[]
[]
[]
[]
[]
[]
[]
[]
[]
[]
[]
[]
[]
[]
[]
[]
[]
[]
[]
[]
[]
[]
[]
[]
[]
[]
[]
[]
[]
[]
[]
[]
[]
[]
[]
[]
[]
[]
[]
[]
[]
[]
[]
[]
[]
[]
[]
[]
[]
[]
[]
[]
[]
[]
[]
[]
[]
[]
[]
[]
[]
[]
[]
[]
[]
[]
[]
[]
[]
[]
[]
[]
[]
[]
[]
[]
[]
[]
[]
[]
[]
[]
[]
[]
[]
[]
[]
[]
[]
[]
[]
[]
[]
[]
[]
[]
[]
[]
[]
[]
[]
[]
[]
[]
[]
[]
[]
[]
[]
[]
[]
[]
[]
[]
[]
[]
[]
[]
[]
[]
[]
[]
[]
[]
[]
[]
[]
[]
[]
[]
[]
[]
[]
[]
[]
[]
[]
[]
[]
[]
[]
[]
[]
[]
[]
[]
[]
[]
[]
[]
[]
[]
[]
[]
[]
[]
[]
[]
[]
[]
[]
[]
[]
[]
[]
[]
[]
[]
[]
[]
[]
[]
[]
[]
[]
[]
[]
[]
[]
[]
[]
[]
[]
[]
[]
[]
[]
[]
[]
[]
[]
[]
[]
[]
[]
[]
[]
[]
[]
[]
[]
[]
[]
[]
[]
[]
[]
[]
[]
[]
[]
[]
[]
[]
[]
[]
[]
[]
[]
[]
[]
[]
[]
[]
[]
[]
[]
[]
[]
[]
[]
[]
[]
[]
[]
[]
[]
[]
[]
[]
[]
[]
[]
[]
[]
[]
[]
[]
[]
[]
[]
[]
[]
[]
[]
[]
[]
[]
[]
[]
[]
[]
[]
[]
[]
[]
[]
[]
[]
[]
[]
[]
[]
[]
[]
[]
[]
[]
[]
[]
[]
[]
[]
[]
[]
[]
[]
[]
[]
[]
[]
[]
[]
[]
[]
[]
[]
[]
[]
[]
[]
[]
[]
[]
[]
[]
[]
[]
[]
[]
[]
[]
[]
[]
[]
[]
[]
[]
[]
[]
[]
[]
[]
[]
[]
[]
[]
[]
[]
[]
[]
[]
[]
[]
[]
[]
[]
[]
[]
[]
[]
[]
[]
[]
[]
[]
[]
[]
[]
[]
[]
[]
[]
[]
[]
[]
[]
[]
[]
[]
[]
[]
[]
[]
[]
[]
[]
[]
[]
[]
[]
[]
[]
[]
[]
[]
[]
[]
[]
[]
[]
[]
[]
[]
[]
[]
[]
[]
[]
[]
[]
[]
[]
[]
[]
[]
[]
[]
[]
[]
[]
[]
[]
[]
[]
[]
[]
[]
[]
[]
[]
[]
[]
[]
[]
[]
[]
[]
[]
[]
[]
[]
[]
[]
[]
[]
[]
[]
[]
[]
[]
[]
[]
[]
[]
[]
[]
[]
[]
[]
[]
[]
[]
[]
[]
[]
[]
[]
[]
[]
[]
[]
[]
[]
[]
[]
[]
[]
[]
[]
[]
[]
[]
[]
[]
[]
[]
[]
[]
[]
[]
[]
[]
[]
[]
[]
[]
[]
[]
[]
[]
[]
[]
[]
[]
[]
[]
[]
[]
[]
[]
[]
[]
[]
[]
[]
[]
[]
[]
[]
[]
[]
[]
[]
[]
[]
[]
[]
[]
[]
[]
[]
[]
[]
[]
[]
[]
[]
[]
[]
[]
[]
[]
[]
[]
[]
[]
[]
[]
[]
[]
[]
[]
[]
[]
[]
[]
[]
[]
[]
[]
[]
[]
[]
[]
[]
[]
[]
[]
[]
[]
[]
[]
[]
[]
[]
[]
[]
[]
[]
[]
[]
[]
[]
[]
[]
[]
[]
[]
[]
[]
[]
[]
[]
[]
[]
[]
[]
[]
[]
[]
[]
[]
[]
[]
[]
[]
[]
[]
[]
[]
[]
[]
[]
[]
[]
[]
[]
[]
[]
[]
[]
[]
[]
[]
[]
[]
[]
[]
[]
[]
[]
[]
[]
[]
[]
[]
[]
[]
[]
[]
[]
[]
[]
[]
[]
[]
[]
[]
[]
[]
[]
[]
[]
[]
[]
[]
[]
[]
[]
[]
[]
[]
[]
[]
[]
[]
[]
[]
[]
[]
[]
[]
[]
[]
[]
[]
[]
[]
[]
[]
[]
[]
[]
[]
[]
[]
[]
[]
[]
[]
[]
[]
[]
[]
[]
[]
[]
[]
[]
[]
[]
[]
[]
[]
[]
[]
[]
[]
[]
[]
[]
[]
[]
[]
[]
[]
[]
[]
[]
[]
[]
[]
[]
[]
[]
[]
[]
[]
[]
[]
[]
[]
[]
[]
[]
[]
[]
[]
[]
[]
[]
[]
[]
[]
[]
[]
[]
[]
[]
[]
[]
[]
[]
[]
[]
[]
[]
[]
[]
[]
[]
[]
[]
[]
[]
[]
[]
[]
[]
[]
[]
[]
[]
[]
[]
[]
[]
[]
[]
[]
[]
[]
[]
[]
[]
[]
[]
[]
[]
[]
[]
[]
[]
[]
[]
[]
[]
[]
[]
[]
[]
[]
[]
[]
[]
[]
[]
[]
[]
[]
[]
[]
[]
[]
[]
[]
[]
[]
[]
[]
[]
[]
[]
[]
[]
[]
[]
[]
[]
[]
[]
[]
[]
[]
[]
[]
[]
[]
[]
[]
[]
[]
[]
[]
[]
[]
[]
[]
[]
[]
[]
[]
[]
[]
[]
[]
[]
[]
[]
[]
[]
[]
[]
[]
[]
[]
[]
[]
[]
[]
[]
[]
[]
[]
[]
[]
[]
[]
[]
[]
[]
[]
[]
[]
[]
[]
[]
[]
[]
[]
[]
[]
[]
[]
[]
[]
[]
[]
[]
[]
[]
[]
[]
[]
[]
[]
[]
[]
[]
[]
[]
[]
[]
[]
[]
[]
[]
[]
[]
[]
[]
[]
[]
[]
[]
[]
[]
[]
[]
[]
[]
[]
[]
[]
[]
[]
[]
[]
[]
[]
[]
[]
[]
[]
[]
[]
[]
[]
[]
[]
[]
[]
[]
[]
[]
[]
[]
[]
[]
[]
[]
[]
[]
[]
[]
[]
[]
[]
[]
[]
[]
[]
[]
[]
[]
[]
[]
[]
[]
[]
[]
[]
[]
[]
[]
[]
[]
[]
[]
[]
[]
[]
[]
[]
[]
[]
[]
[]
[]
[]
[]
[]
[]
[]
[]
[]
[]
[]
[]
[]
[]
[]
[]
[]
[]
[]
[]
[]
[]
[]
[]
[]
[]
[]
[]
[]
[]
[]
[]
[]
[]
[]
[]
[]
[]
[]
[]
[]
[]
[]
[]
[]
[]
[]
[]
[]
[]
[]
[]
[]
[]
[]
[]
[]
[]
[]
[]
[]
[]
[]
[]
[]
[]
[]
[]
[]
[]
[]
[]
[]
[]
[]
[]
[]
[]
[]
[]
[]
[]
[]
[]
[]
[]
[]
[]
[]
[]
[]
[]
[]
[]
[]
[]
[]
[]
[]
[]
[]
[]
[]
[]
[]
[]
[]
[]
[]
[]
[]
[]
[]
[]
[]
[]
[]
[]
[]
[]
[]
[]
[]
[]
[]
[]
[]
[]
[]
[]
[]
[]
[]
[]
[]
[]
[]
[]
[]
[]
[]
[]
[]
[]
[]
[]
[]
[]
[]
[]
[]
[]
[]
[]
[]
[]
[]
[]
[]
[]
[]
[]
[]
[]
[]
[]
[]
[]
[]
[]
[]
[]
[]
[]
[]
[]
[]
[]
[]
[]
[]
[]
[]
[]
[]
[]
[]
[]
[]
[]
[]
[]
[]
[]
[]
[]
[]
[]
[]
[]
[]
[]
[]
[]
[]
[]
[]
[]
[]
[]
[]
[]
[]
[]
[]
[]
[]
[]
[]
[]
[]
[]
[]
[]
[]
[]
[]
[]
[]
[]
[]
[]
[]
[]
[]
[]
[]
[]
[]
[]
[]
[]
[]
[]
[]
[]
[]
[]
[]
[]
[]
[]
[]
[]
[]
[]
[]
[]
[]
[]
[]
[]
[]
[]
[]
[]
[]
[]
[]
[]
[]
[]
[]
[]
[]
[]
[]
[]
[]
[]
[]
[]
[]
[]
[]
[]
[]
[]
[]
[]
[]
[]
[]
[]
[]
[]
[]
[]
[]
[]
[]
[]
[]
[]
[]
[]
[]
[]
[]
[]
[]
[]
[]
[]
[]
[]
[]
[]
[]
[]
[]
[]
[]
[]
[]
[]
[]
[]
[]
[]
[]
[]
[]
[]
[]
[]
[]
[]
[]
[]
[]
[]
[]
[]
[]
[]
[]
[]
[]
[]
[]
[]
[]
[]
[]
[]
[]
[]
[]
[]
[]
[]
[]
[]
[]
[]
[]
[]
[]
[]
[]
[]
[]
[]
[]
[]
[]
[]
[]
[]
[]
[]
[]
[]
[]
[]
[]
[]
[]
[]
[]
[]
[]
[]
[]
[]
[]
[]
[]
[]
[]
[]
[]
[]
[]
[]
[]
[]
[]
[]
[]
[]
[]
[]
[]
[]
[]
[]
[]
[]
[]
[]
[]
[]
[]
[]
[]
[]
[]
[]
[]
[]
[]
[]
[]
[]
[]
[]
[]
[]
[]
[]
[]
[]
[]
[]
[]
[]
[]
[]
[]
[]
[]
[]
[]
[]
[]
[]
[]
[]
[]
[]
[]
[]
[]
[]
[]
[]
[]
[]
[]
[]
[]
[]
[]
[]
[]
[]
[]
[]
[]
[]
[]
[]
[]
[]
[]
[]
[]
[]
[]
[]
[]
[]
[]
[]
[]
[]
[]
[]
[]
[]
[]
[]
[]
[]
[]
[]
[]
[]
[]
[]
[]
[]
[]
[]
[]
[]
[]
[]
[]
[]
[]
[]
[]
[]
[]
[]
[]
[]
[]
[]
[]
[]
[]
[]
[]
[]
[]
[]
[null,null,null,null,null,null,null,null,null,null,null,null,"."]
[]
[]
[]
[]
[]
[]
[]
[]
[]
[]
[]
[]
[]
[]
[]
[]
[]
[]
[]
[]
[]
[]
[]
[]
[]
[]
[]
[]
[]
[]
[]
[]
[]
[]
[]
[]
[]
[]
[]
[]
[]
[]
[]
[]
[]
[]
[]
[]
[]
[]
[]
[]
[]
[]
[]
[]
[]
[]
[]
[]
[]
[]
[]
[]
[]
[]
[]
[]
[]
[]
[]
[]
[]
[]
[]
[]
[]
[]
[]
[]
[]
[]
[]
[]
[]
[]
[]
[]
[]
[]
[]
[]
[null,229]

{"sheet":"Statistics","index":1,"n_rows":36,"n_cols":6,"rows_kept":36,"cut":false,"hidden":false,"merged":[[2,3,2,5],[20,3,20,5],[4,4,4,5],[22,4,22,5],[24,4,24,5],[23,4,23,5],[5,4,5,5],[6,4,6,5]]}
[]
[]
[null,null,null,"Statistics per County"]
[]
[null,null,null,"Name of County","Maryland"]
[null,null,null,"Year","2011/2012"]
[null,null,null,"Semester","First Semester"]
[]
[null,null,null,"College","Male","Female"]
[null,null,null,"College of Health Sciences",{"$f":"COUNTIFS('General Information'!I10:I21492,E5,'General Information'!J10:J21492,E6,'General Information'!K10:K21492,E7,'General Information'!H10:H21492,D10,'General Information'!G10:G21492,E9)","v":19},{"$f":"COUNTIFS('General Information'!I10:I21492,E5,'General Information'!J10:J21492,E6,'General Information'!K10:K21492,E7,'General Information'!H10:H21492,D10,'General Information'!G10:G21492,F9)","v":20}]
[null,null,null,"College of Agriculture and Food Sciences",{"$f":"COUNTIFS('General Information'!I10:I21492,E5,'General Information'!J10:J21492,E6,'General Information'!K10:K21492,E7,'General Information'!H10:H21492,D11,'General Information'!G10:G21492,E9)","v":39},{"$f":"COUNTIFS('General Information'!I10:I21492,E5,'General Information'!J10:J21492,E6,'General Information'!K10:K21492,E7,'General Information'!H10:H21492,D11,'General Information'!G10:G21492,F9)","v":2}]
[null,null,null,"College of Management",{"$f":"COUNTIFS('General Information'!I10:I21492,E5,'General Information'!J10:J21492,E6,'General Information'!K10:K21492,E7,'General Information'!H10:H21492,D12,'General Information'!G10:G21492,E9)","v":36},{"$f":"COUNTIFS('General Information'!I10:I21492,E5,'General Information'!J10:J21492,E6,'General Information'!K10:K21492,E7,'General Information'!H10:H21492,D12,'General Information'!G10:G21492,F9)","v":20}]
[null,null,null,"College of Technology",{"$f":"COUNTIFS('General Information'!I10:I21492,E5,'General Information'!J10:J21492,E6,'General Information'!K10:K21492,E7,'General Information'!H10:H21492,D13,'General Information'!G10:G21492,E9)","v":44},{"$f":"COUNTIFS('General Information'!I10:I21492,E5,'General Information'!J10:J21492,E6,'General Information'!K10:K21492,E7,'General Information'!H10:H21492,D13,'General Information'!G10:G21492,F9)","v":7}]
[null,null,null,"College of Education",{"$f":"COUNTIFS('General Information'!I10:I21492,E5,'General Information'!J10:J21492,E6,'General Information'!K10:K21492,E7,'General Information'!H10:H21492,D14,'General Information'!G10:G21492,E9)","v":45},{"$f":"COUNTIFS('General Information'!I10:I21492,E5,'General Information'!J10:J21492,E6,'General Information'!K10:K21492,E7,'General Information'!H10:H21492,D14,'General Information'!G10:G21492,F9)","v":7}]
[]
[null,null,null,"Total",{"$f":"SUM(E10:E14)","v":183},{"$f":"SUM(F10:F14)","v":56}]
[]
[null,null,null,"Percentage",{"$f":"E16/SUM(E16:F16)","v":0.76569037656903771},{"$f":"F16/SUM(E16:F16)","v":0.23430962343096234}]
[]
[]
[null,null,null,"General Statistics"]
[]
[null,null,null,"All Counties","All Counties"]
[null,null,null,"Year",{"$f":"E6","v":"2011/2012"}]
[null,null,null,"Semester",{"$f":"E7","v":"First Semester"}]
["s"]
[null,null,null,"College","Male","Female"]
[null,null,null,"College of Health Sciences",{"$f":"COUNTIFS('General Information'!J9:J1000000,E24,'General Information'!K9:K1000000,E25,'General Information'!G9:G1000000,E27,'General Information'!H9:H1000000,D28)","v":102},{"$f":"COUNTIFS('General Information'!J9:J1000000,E24,'General Information'!K9:K1000000,E25,'General Information'!G9:G1000000,F27,'General Information'!H9:H1000000,D28)","v":79}]
[null,null,null,"College of Agriculture and Food Sciences",{"$f":"COUNTIFS('General Information'!J9:J1000000,E24,'General Information'!K9:K1000000,E25,'General Information'!G9:G1000000,E27,'General Information'!H9:H1000000,D29)","v":135},{"$f":"COUNTIFS('General Information'!J9:J1000000,E24,'General Information'!K9:K1000000,E25,'General Information'!G9:G1000000,F27,'General Information'!H9:H1000000,D29)","v":13}]
[null,null,null,"College of Management",{"$f":"COUNTIFS('General Information'!J9:J1000000,E24,'General Information'!K9:K1000000,E25,'General Information'!G9:G1000000,E27,'General Information'!H9:H1000000,D30)","v":89},{"$f":"COUNTIFS('General Information'!J9:J1000000,E24,'General Information'!K9:K1000000,E25,'General Information'!G9:G1000000,F27,'General Information'!H9:H1000000,D30)","v":35}]
[null,null,null,"College of Technology",{"$f":"COUNTIFS('General Information'!J9:J1000000,E24,'General Information'!K9:K1000000,E25,'General Information'!G9:G1000000,E27,'General Information'!H9:H1000000,D31)","v":94},{"$f":"COUNTIFS('General Information'!J9:J1000000,E24,'General Information'!K9:K1000000,E25,'General Information'!G9:G1000000,F27,'General Information'!H9:H1000000,D31)","v":12}]
[null,null,null,"College of Education",{"$f":"COUNTIFS('General Information'!J9:J1000000,E24,'General Information'!K9:K1000000,E25,'General Information'!G9:G1000000,E27,'General Information'!H9:H1000000,D32)","v":91},{"$f":"COUNTIFS('General Information'!J9:J1000000,E24,'General Information'!K9:K1000000,E25,'General Information'!G9:G1000000,F27,'General Information'!H9:H1000000,D32)","v":16}]
[]
[null,null,null,"Total",{"$f":"SUM(E28:E32)","v":511},{"$f":"SUM(F28:F32)","v":155}]
[]
[null,null,null,"Percentage",{"$f":"E34/SUM(E34:F34)","v":0.76726726726726724},{"$f":"F34/SUM(E34:F34)","v":0.23273273273273273}]

{"sheet":"Code","index":2,"n_rows":20,"n_cols":10,"rows_kept":20,"cut":false,"hidden":true,"merged":[]}
[]
[]
[]
[null,null,"Bomi"]
[null,12,"Bong",null,"Foreign Student",null,null,"Year",null,"Semester"]
[null,7,"Gbarpolu",null,"Liberian Student",null,null,"2009/2010",null,"First Semester"]
[null,11,"Grand Bassa",null,null,null,null,"2010/2011",null,"Second Semester"]
[null,8,"Grand Cape Mount",null,null,null,null,"2011/2012"]
[null,14,"Grand Gedeh",null,null,null,null,"2012/2013"]
[null,5,"Grand Kru",null,null,null,null,"2013/2014"]
[null,4,"Lofa"]
[null,13,"Margibi"]
[null,9,"Maryland"]
[null,1,"Montserrado"]
[null,15,"Nimba"]
[null,6,"Non-Liberian"]
[null,15,"River Cess"]
[null,10,"River Gee"]
[null,3,"Sinoe"]
[null,2,"All Counties"]

{"sheet":"General Statistics","index":3,"n_rows":45,"n_cols":18,"rows_kept":45,"cut":false,"hidden":false,"merged":[[34,12,34,13],[34,14,34,15],[34,16,34,17],[22,16,22,17],[20,2,20,3],[22,8,22,9],[36,2,36,3],[8,2,8,3],[8,4,8,5],[8,6,8,7],[22,10,22,11],[36,7,36,8],[36,4,37,4],[36,9,37,9],[36,5,37,5],[8,10,8,11],[34,2,34,3],[34,4,34,5],[34,6,34,7],[34,8,34,9],[34,10,34,11],[8,16,8,17],[22,2,22,3],[20,12,20,13],[8,14,8,15],[8,8,8,9],[22,6,22,7],[22,4,22,5],[22,12,22,13],[20,4,20,5],[20,6,20,7],[20,8,20,9],[20,10,20,11],[22,14,22,15],[8,12,8,13],[20,14,20,15],[20,16,20,17],[5,4,5,5],[6,4,6,5],[6,2,6,3],[5,2,5,3],[2,1,2,17],[3,1,3,17],[4,1,4,17]]}
[]
[]
[null,"William V. S. Tubman University"]
[null,"Registration Statistics"]
[]
[null,null,"Year",null,{"$f":"Statistics!E6","v":"2011/2012"}]
[null,null,"Semester",null,{"$f":"Statistics!E7","v":"First Semester"},null,null," "]
[]
[null,null,"Bomi",null,"Bong",null,"Gbarpolu",null,"Grand Bassa",null,"Grand Cape Mount",null,"Grand Gedeh",null,"Grand Kru",null,"Lofa"]
[null,"College","Male","Female","Male","Female","Male","Female","Male","Female","Male","Female","Male","Female","Male","Female","Male","Female"]
[null,"College of Health Sciences",{"$f":"COUNTIFS(Table2[Year],E6,Table2[Semester],E7,Table2[County of Origin],C9,Table2[College],B11,Table2[Sex],C10)","v":0},{"$f":"COUNTIFS(Table2[Year],E6,Table2[Semester],E7,Table2[County of Origin],C9,Table2[College],B11,Table2[Sex],D10)","v":0},{"$f":"COUNTIFS(Table2[Year],E6,Table2[Semester],E7,Table2[County of Origin],E9,Table2[College],B11,Table2[Sex],E10)","v":0},{"$f":"COUNTIFS(Table2[Year],E6,Table2[Semester],E7,Table2[County of Origin],E9,Table2[College],B11,Table2[Sex],F10)","v":1},{"$f":"COUNTIFS(Table2[Year],E6,Table2[Semester],E7,Table2[County of Origin],G9,Table2[College],B11,Table2[Sex],G10)","v":0},{"$f":"COUNTIFS(Table2[Year],E6,Table2[Semester],E7,Table2[County of Origin],G9,Table2[College],B11,Table2[Sex],H10)","v":0},{"$f":"COUNTIFS(Table2[Year],E6,Table2[Semester],E7,Table2[County of Origin],I9,Table2[College],B11,Table2[Sex],I10)","v":3},{"$f":"COUNTIFS(Table2[Year],E6,Table2[Semester],E7,Table2[County of Origin],I9,Table2[College],B11,Table2[Sex],J10)","v":2},{"$f":"COUNTIFS(Table2[Year],E6,Table2[Semester],E7,Table2[County of Origin],K9,Table2[College],B11,Table2[Sex],K10)","v":0},{"$f":"COUNTIFS(Table2[Year],E6,Table2[Semester],E7,Table2[County of Origin],K9,Table2[College],B11,Table2[Sex],L10)","v":1},{"$f":"COUNTIFS(Table2[Year],E6,Table2[Semester],E7,Table2[County of Origin],M9,Table2[College],B11,Table2[Sex],M10)","v":1},{"$f":"COUNTIFS(Table2[Year],E6,Table2[Semester],E7,Table2[County of Origin],M9,Table2[College],B11,Table2[Sex],N10)","v":0},{"$f":"COUNTIFS(Table2[Year],E6,Table2[Semester],E7,Table2[County of Origin],O9,Table2[College],B11,Table2[Sex],O10)","v":4},{"$f":"COUNTIFS(Table2[Year],E6,Table2[Semester],E7,Table2[County of Origin],O9,Table2[College],B11,Table2[Sex],P10)","v":3},{"$f":"COUNTIFS(Table2[Year],E6,Table2[Semester],E7,Table2[County of Origin],Q9,Table2[College],B11,Table2[Sex],Q10)","v":2},{"$f":"COUNTIFS(Table2[Year],E6,Table2[Semester],E7,Table2[County of Origin],Q9,Table2[College],B11,Table2[Sex],R10)","v":2}]
[null,"College of Agriculture and Food Sciences",{"$f":"COUNTIFS(Table2[Year],E6,Table2[Semester],E7,Table2[County of Origin],C9,Table2[College],B12,Table2[Sex],C10)","v":0},{"$f":"COUNTIFS(Table2[Year],E6,Table2[Semester],E7,Table2[County of Origin],C9,Table2[College],B12,Table2[Sex],D10)","v":0},{"$f":"COUNTIFS(Table2[Year],E6,Table2[Semester],E7,Table2[County of Origin],E9,Table2[College],B12,Table2[Sex],E10)","v":0},{"$f":"COUNTIFS(Table2[Year],E6,Table2[Semester],E7,Table2[County of Origin],E9,Table2[College],B12,Table2[Sex],F10)","v":0},{"$f":"COUNTIFS(Table2[Year],E6,Table2[Semester],E7,Table2[County of Origin],G9,Table2[College],B12,Table2[Sex],G10)","v":1},{"$f":"COUNTIFS(Table2[Year],E6,Table2[Semester],E7,Table2[County of Origin],G9,Table2[College],B12,Table2[Sex],H10)","v":0},{"$f":"COUNTIFS(Table2[Year],E6,Table2[Semester],E7,Table2[County of Origin],I9,Table2[College],B12,Table2[Sex],I10)","v":0},{"$f":"COUNTIFS(Table2[Year],E6,Table2[Semester],E7,Table2[County of Origin],I9,Table2[College],B12,Table2[Sex],J10)","v":0},{"$f":"COUNTIFS(Table2[Year],E6,Table2[Semester],E7,Table2[County of Origin],K9,Table2[College],B12,Table2[Sex],K10)","v":0},{"$f":"COUNTIFS(Table2[Year],E6,Table2[Semester],E7,Table2[County of Origin],K9,Table2[College],B12,Table2[Sex],L10)","v":0},{"$f":"COUNTIFS(Table2[Year],E6,Table2[Semester],E7,Table2[County of Origin],M9,Table2[College],B12,Table2[Sex],M10)","v":3},{"$f":"COUNTIFS(Table2[Year],E6,Table2[Semester],E7,Table2[County of Origin],M9,Table2[College],B12,Table2[Sex],N10)","v":0},{"$f":"COUNTIFS(Table2[Year],E6,Table2[Semester],E7,Table2[County of Origin],O9,Table2[College],B12,Table2[Sex],O10)","v":8},{"$f":"COUNTIFS(Table2[Year],E6,Table2[Semester],E7,Table2[County of Origin],O9,Table2[College],B12,Table2[Sex],P10)","v":0},{"$f":"COUNTIFS(Table2[Year],E6,Table2[Semester],E7,Table2[County of Origin],Q9,Table2[College],B12,Table2[Sex],Q10)","v":2},{"$f":"COUNTIFS(Table2[Year],E6,Table2[Semester],E7,Table2[County of Origin],Q9,Table2[College],B12,Table2[Sex],R10)","v":0}]
[null,"College of Management",{"$f":"COUNTIFS(Table2[Year],E6,Table2[Semester],E7,Table2[County of Origin],C9,Table2[College],B13,Table2[Sex],C10)","v":2},{"$f":"COUNTIFS(Table2[Year],E6,Table2[Semester],E7,Table2[County of Origin],C9,Table2[College],B13,Table2[Sex],D10)","v":0},{"$f":"COUNTIFS(Table2[Year],E6,Table2[Semester],E7,Table2[County of Origin],E9,Table2[College],B13,Table2[Sex],E10)","v":0},{"$f":"COUNTIFS(Table2[Year],E6,Table2[Semester],E7,Table2[County of Origin],E9,Table2[College],B13,Table2[Sex],F10)","v":0},{"$f":"COUNTIFS(Table2[Year],E6,Table2[Semester],E7,Table2[County of Origin],G9,Table2[College],B13,Table2[Sex],G10)","v":0},{"$f":"COUNTIFS(Table2[Year],E6,Table2[Semester],E7,Table2[County of Origin],G9,Table2[College],B13,Table2[Sex],H10)","v":0},{"$f":"COUNTIFS(Table2[Year],E6,Table2[Semester],E7,Table2[County of Origin],I9,Table2[College],B13,Table2[Sex],I10)","v":0},{"$f":"COUNTIFS(Table2[Year],E6,Table2[Semester],E7,Table2[County of Origin],I9,Table2[College],B13,Table2[Sex],J10)","v":0},{"$f":"COUNTIFS(Table2[Year],E6,Table2[Semester],E7,Table2[County of Origin],K9,Table2[College],B13,Table2[Sex],K10)","v":0},{"$f":"COUNTIFS(Table2[Year],E6,Table2[Semester],E7,Table2[County of Origin],K9,Table2[College],B13,Table2[Sex],L10)","v":0},{"$f":"COUNTIFS(Table2[Year],E6,Table2[Semester],E7,Table2[County of Origin],M9,Table2[College],B13,Table2[Sex],M10)","v":1},{"$f":"COUNTIFS(Table2[Year],E6,Table2[Semester],E7,Table2[County of Origin],M9,Table2[College],B13,Table2[Sex],N10)","v":0},{"$f":"COUNTIFS(Table2[Year],E6,Table2[Semester],E7,Table2[County of Origin],O9,Table2[College],B13,Table2[Sex],O10)","v":7},{"$f":"COUNTIFS(Table2[Year],E6,Table2[Semester],E7,Table2[County of Origin],O9,Table2[College],B13,Table2[Sex],P10)","v":4},{"$f":"COUNTIFS(Table2[Year],E6,Table2[Semester],E7,Table2[County of Origin],Q9,Table2[College],B13,Table2[Sex],Q10)","v":0},{"$f":"COUNTIFS(Table2[Year],E6,Table2[Semester],E7,Table2[County of Origin],Q9,Table2[College],B13,Table2[Sex],R10)","v":1}]
[null,"College of Technology",{"$f":"COUNTIFS(Table2[Year],E6,Table2[Semester],E7,Table2[County of Origin],C9,Table2[College],B14,Table2[Sex],C10)","v":1},{"$f":"COUNTIFS(Table2[Year],E6,Table2[Semester],E7,Table2[County of Origin],C9,Table2[College],B14,Table2[Sex],D10)","v":0},{"$f":"COUNTIFS(Table2[Year],E6,Table2[Semester],E7,Table2[County of Origin],E9,Table2[College],B14,Table2[Sex],E10)","v":4},{"$f":"COUNTIFS(Table2[Year],E6,Table2[Semester],E7,Table2[County of Origin],E9,Table2[College],B14,Table2[Sex],F10)","v":0},{"$f":"COUNTIFS(Table2[Year],E6,Table2[Semester],E7,Table2[County of Origin],G9,Table2[College],B14,Table2[Sex],G10)","v":0},{"$f":"COUNTIFS(Table2[Year],E6,Table2[Semester],E7,Table2[County of Origin],G9,Table2[College],B14,Table2[Sex],H10)","v":0},{"$f":"COUNTIFS(Table2[Year],E6,Table2[Semester],E7,Table2[County of Origin],I9,Table2[College],B14,Table2[Sex],I10)","v":3},{"$f":"COUNTIFS(Table2[Year],E6,Table2[Semester],E7,Table2[County of Origin],I9,Table2[College],B14,Table2[Sex],J10)","v":0},{"$f":"COUNTIFS(Table2[Year],E6,Table2[Semester],E7,Table2[County of Origin],K9,Table2[College],B14,Table2[Sex],K10)","v":3},{"$f":"COUNTIFS(Table2[Year],E6,Table2[Semester],E7,Table2[County of Origin],K9,Table2[College],B14,Table2[Sex],L10)","v":0},{"$f":"COUNTIFS(Table2[Year],E6,Table2[Semester],E7,Table2[County of Origin],M9,Table2[College],B14,Table2[Sex],M10)","v":2},{"$f":"COUNTIFS(Table2[Year],E6,Table2[Semester],E7,Table2[County of Origin],M9,Table2[College],B14,Table2[Sex],N10)","v":0},{"$f":"COUNTIFS(Table2[Year],E6,Table2[Semester],E7,Table2[County of Origin],O9,Table2[College],B14,Table2[Sex],O10)","v":14},{"$f":"COUNTIFS(Table2[Year],E6,Table2[Semester],E7,Table2[County of Origin],O9,Table2[College],B14,Table2[Sex],P10)","v":3},{"$f":"COUNTIFS(Table2[Year],E6,Table2[Semester],E7,Table2[County of Origin],Q9,Table2[College],B14,Table2[Sex],Q10)","v":6},{"$f":"COUNTIFS(Table2[Year],E6,Table2[Semester],E7,Table2[County of Origin],Q9,Table2[College],B14,Table2[Sex],R10)","v":0}]
[null,"College of Education",{"$f":"COUNTIFS(Table2[Year],E6,Table2[Semester],E7,Table2[County of Origin],C9,Table2[College],B15,Table2[Sex],C10)","v":0},{"$f":"COUNTIFS(Table2[Year],E6,Table2[Semester],E7,Table2[County of Origin],C9,Table2[College],B15,Table2[Sex],D10)","v":0},{"$f":"COUNTIFS(Table2[Year],E6,Table2[Semester],E7,Table2[County of Origin],E9,Table2[College],B15,Table2[Sex],E10)","v":0},{"$f":"COUNTIFS(Table2[Year],E6,Table2[Semester],E7,Table2[County of Origin],E9,Table2[College],B15,Table2[Sex],F10)","v":0},{"$f":"COUNTIFS(Table2[Year],E6,Table2[Semester],E7,Table2[County of Origin],G9,Table2[College],B15,Table2[Sex],G10)","v":0},{"$f":"COUNTIFS(Table2[Year],E6,Table2[Semester],E7,Table2[County of Origin],G9,Table2[College],B15,Table2[Sex],H10)","v":0},{"$f":"COUNTIFS(Table2[Year],E6,Table2[Semester],E7,Table2[County of Origin],I9,Table2[College],B15,Table2[Sex],I10)","v":1},{"$f":"COUNTIFS(Table2[Year],E6,Table2[Semester],E7,Table2[County of Origin],I9,Table2[College],B15,Table2[Sex],J10)","v":0},{"$f":"COUNTIFS(Table2[Year],E6,Table2[Semester],E7,Table2[County of Origin],K9,Table2[College],B15,Table2[Sex],K10)","v":1},{"$f":"COUNTIFS(Table2[Year],E6,Table2[Semester],E7,Table2[County of Origin],K9,Table2[College],B15,Table2[Sex],L10)","v":0},{"$f":"COUNTIFS(Table2[Year],E6,Table2[Semester],E7,Table2[County of Origin],M9,Table2[College],B15,Table2[Sex],M10)","v":1},{"$f":"COUNTIFS(Table2[Year],E6,Table2[Semester],E7,Table2[County of Origin],M9,Table2[College],B15,Table2[Sex],N10)","v":0},{"$f":"COUNTIFS(Table2[Year],E6,Table2[Semester],E7,Table2[County of Origin],O9,Table2[College],B15,Table2[Sex],O10)","v":21},{"$f":"COUNTIFS(Table2[Year],E6,Table2[Semester],E7,Table2[County of Origin],O9,Table2[College],B15,Table2[Sex],P10)","v":3},{"$f":"COUNTIFS(Table2[Year],E6,Table2[Semester],E7,Table2[County of Origin],Q9,Table2[College],B15,Table2[Sex],Q10)","v":1},{"$f":"COUNTIFS(Table2[Year],E6,Table2[Semester],E7,Table2[County of Origin],Q9,Table2[College],B15,Table2[Sex],R10)","v":0}]
[]
[null,"Total",{"$f":"SUM(C11:C15)","v":3},0,4,1,1,0,7,2,4,1,8,0,54,13,11,3]
[]
[null,"Percentage",{"$f":"C17/SUM(C17:D17)","v":1},{"$f":"D17/SUM(C17:D17)","v":0},{"$f":"E17/SUM(E17:F17)","v":0.8},{"$f":"F17/SUM(E17:F17)","v":0.2},{"$f":"G17/SUM(G17:H17)","v":1},{"$f":"H17/SUM(G17:H17)","v":0},{"$f":"I17/SUM(I17:J17)","v":0.77777777777777779},{"$f":"J17/SUM(I17:J17)","v":0.22222222222222221},{"$f":"K17/SUM(K17:L17)","v":0.8},{"$f":"L17/SUM(K17:L17)","v":0.2},{"$f":"M17/SUM(M17:N17)","v":1},{"$f":"N17/SUM(M17:N17)","v":0},{"$f":"O17/SUM(O17:P17)","v":0.80597014925373134},{"$f":"P17/SUM(O17:P17)","v":0.19402985074626866},{"$f":"Q17/SUM(Q17:R17)","v":0.7857142857142857},{"$f":"R17/SUM(Q17:R17)","v":0.21428571428571427}]
[]
[null,null,{"$f":"SUM(C17:D17)/$E$45","v":4.5045045045045045E-3},null,{"$f":"SUM(E17:F17)/$E$45","v":7.5075075075075074E-3},null,{"$f":"SUM(G17:H17)/$E$45","v":1.5015015015015015E-3},null,{"$f":"SUM(I17:J17)/$E$45","v":1.3513513513513514E-2},null,{"$f":"SUM(K17:L17)/$E$45","v":7.5075075075075074E-3},null,{"$f":"SUM(M17:N17)/$E$45","v":1.2012012012012012E-2},null,{"$f":"SUM(O17:P17)/$E$45","v":0.1006006006006006},null,{"$f":"SUM(Q17:R17)/$E$45","v":2.1021021021021023E-2}]
[]
[null,null,"Margibi",null,"Montserrado",null,"Nimba",null,"River Cess",null,"River Gee",null,"Sinoe",null,"Maryland",null,"Non-Liberian"]
[null,"College","Male","Female","Male","Female","Male","Female","Male","Female","Male","Female","Male","Female","Male","Female","Male","Female"]
[null,"College of Health Sciences",{"$f":"COUNTIFS(Table2[Year],E6,Table2[Semester],E7,Table2[County of Origin],C23,Table2[College],B25,Table2[Sex],C24)","v":3},{"$f":"COUNTIFS(Table2[Year],E6,Table2[Semester],E7,Table2[County of Origin],C23,Table2[College],B25,Table2[Sex],D24)","v":0},{"$f":"COUNTIFS(Table2[Year],E6,Table2[Semester],E7,Table2[County of Origin],E23,Table2[College],B25,Table2[Sex],E24)","v":0},{"$f":"COUNTIFS(Table2[Year],E6,Table2[Semester],E7,Table2[County of Origin],E23,Table2[College],B25,Table2[Sex],F24)","v":0},{"$f":"COUNTIFS(Table2[Year],E6,Table2[Semester],E7,Table2[County of Origin],G23,Table2[College],B25,Table2[Sex],G24)","v":0},{"$f":"COUNTIFS(Table2[Year],E6,Table2[Semester],E7,Table2[County of Origin],G23,Table2[College],B25,Table2[Sex],H24)","v":1},{"$f":"COUNTIFS(Table2[Year],E6,Table2[Semester],E7,Table2[County of Origin],I23,Table2[College],B25,Table2[Sex],I24)","v":0},{"$f":"COUNTIFS(Table2[Year],E6,Table2[Semester],E7,Table2[County of Origin],I23,Table2[College],B25,Table2[Sex],J24)","v":0},{"$f":"COUNTIFS(Table2[Year],E6,Table2[Semester],E7,Table2[County of Origin],K23,Table2[College],B25,Table2[Sex],K24)","v":7},{"$f":"COUNTIFS(Table2[Year],E6,Table2[Semester],E7,Table2[County of Origin],K23,Table2[College],B25,Table2[Sex],L24)","v":2},{"$f":"COUNTIFS(Table2[Year],E6,Table2[Semester],E7,Table2[County of Origin],M23,Table2[College],B25,Table2[Sex],M24)","v":0},{"$f":"COUNTIFS(Table2[Year],E6,Table2[Semester],E7,Table2[County of Origin],M23,Table2[College],B25,Table2[Sex],N24)","v":0},{"$f":"COUNTIFS(Table2[Year],E6,Table2[Semester],E7,Table2[County of Origin],O23,Table2[College],B25,Table2[Sex],O24)","v":19},{"$f":"COUNTIFS(Table2[Year],E6,Table2[Semester],E7,Table2[County of Origin],O23,Table2[College],B25,Table2[Sex],P24)","v":20},{"$f":"COUNTIFS(Table2[Year],E6,Table2[Semester],E7,Table2[County of Origin],Q23,Table2[College],B25,Table2[Sex],Q24)","v":0},{"$f":"COUNTIFS(Table2[Year],E6,Table2[Semester],E7,Table2[County of Origin],Q23,Table2[College],B25,Table2[Sex],R24)","v":0}]
[null,"College of Agriculture and Food Sciences",{"$f":"COUNTIFS(Table2[Year],E6,Table2[Semester],E7,Table2[County of Origin],C23,Table2[College],B26,Table2[Sex],C24)","v":0},{"$f":"COUNTIFS(Table2[Year],E6,Table2[Semester],E7,Table2[County of Origin],C23,Table2[College],B26,Table2[Sex],D24)","v":0},{"$f":"COUNTIFS(Table2[Year],E6,Table2[Semester],E7,Table2[County of Origin],E23,Table2[College],B26,Table2[Sex],E24)","v":0},{"$f":"COUNTIFS(Table2[Year],E6,Table2[Semester],E7,Table2[County of Origin],E23,Table2[College],B26,Table2[Sex],F24)","v":0},{"$f":"COUNTIFS(Table2[Year],E6,Table2[Semester],E7,Table2[County of Origin],G23,Table2[College],B26,Table2[Sex],G24)","v":1},{"$f":"COUNTIFS(Table2[Year],E6,Table2[Semester],E7,Table2[County of Origin],G23,Table2[College],B26,Table2[Sex],H24)","v":0},{"$f":"COUNTIFS(Table2[Year],E6,Table2[Semester],E7,Table2[County of Origin],I23,Table2[College],B26,Table2[Sex],I24)","v":0},{"$f":"COUNTIFS(Table2[Year],E6,Table2[Semester],E7,Table2[County of Origin],I23,Table2[College],B26,Table2[Sex],J24)","v":0},{"$f":"COUNTIFS(Table2[Year],E6,Table2[Semester],E7,Table2[County of Origin],K23,Table2[College],B26,Table2[Sex],K24)","v":8},{"$f":"COUNTIFS(Table2[Year],E6,Table2[Semester],E7,Table2[County of Origin],K23,Table2[College],B26,Table2[Sex],L24)","v":1},{"$f":"COUNTIFS(Table2[Year],E6,Table2[Semester],E7,Table2[County of Origin],M23,Table2[College],B26,Table2[Sex],M24)","v":1},{"$f":"COUNTIFS(Table2[Year],E6,Table2[Semester],E7,Table2[County of Origin],M23,Table2[College],B26,Table2[Sex],N24)","v":0},{"$f":"COUNTIFS(Table2[Year],E6,Table2[Semester],E7,Table2[County of Origin],O23,Table2[College],B26,Table2[Sex],O24)","v":39},{"$f":"COUNTIFS(Table2[Year],E6,Table2[Semester],E7,Table2[County of Origin],O23,Table2[College],B26,Table2[Sex],P24)","v":2},{"$f":"COUNTIFS(Table2[Year],E6,Table2[Semester],E7,Table2[County of Origin],Q23,Table2[College],B26,Table2[Sex],Q24)","v":0},{"$f":"COUNTIFS(Table2[Year],E6,Table2[Semester],E7,Table2[County of Origin],Q23,Table2[College],B26,Table2[Sex],R24)","v":0}]
[null,"College of Management",{"$f":"COUNTIFS(Table2[Year],E6,Table2[Semester],E7,Table2[County of Origin],C23,Table2[College],B27,Table2[Sex],C24)","v":3},{"$f":"COUNTIFS(Table2[Year],E6,Table2[Semester],E7,Table2[County of Origin],C23,Table2[College],B27,Table2[Sex],D24)","v":1},{"$f":"COUNTIFS(Table2[Year],E6,Table2[Semester],E7,Table2[County of Origin],E23,Table2[College],B27,Table2[Sex],E24)","v":2},{"$f":"COUNTIFS(Table2[Year],E6,Table2[Semester],E7,Table2[County of Origin],E23,Table2[College],B27,Table2[Sex],F24)","v":1},{"$f":"COUNTIFS(Table2[Year],E6,Table2[Semester],E7,Table2[County of Origin],G23,Table2[College],B27,Table2[Sex],G24)","v":0},{"$f":"COUNTIFS(Table2[Year],E6,Table2[Semester],E7,Table2[County of Origin],G23,Table2[College],B27,Table2[Sex],H24)","v":0},{"$f":"COUNTIFS(Table2[Year],E6,Table2[Semester],E7,Table2[County of Origin],I23,Table2[College],B27,Table2[Sex],I24)","v":0},{"$f":"COUNTIFS(Table2[Year],E6,Table2[Semester],E7,Table2[County of Origin],I23,Table2[College],B27,Table2[Sex],J24)","v":0},{"$f":"COUNTIFS(Table2[Year],E6,Table2[Semester],E7,Table2[County of Origin],K23,Table2[College],B27,Table2[Sex],K24)","v":2},{"$f":"COUNTIFS(Table2[Year],E6,Table2[Semester],E7,Table2[County of Origin],K23,Table2[College],B27,Table2[Sex],L24)","v":2},{"$f":"COUNTIFS(Table2[Year],E6,Table2[Semester],E7,Table2[County of Origin],M23,Table2[College],B27,Table2[Sex],M24)","v":5},{"$f":"COUNTIFS(Table2[Year],E6,Table2[Semester],E7,Table2[County of Origin],M23,Table2[College],B27,Table2[Sex],N24)","v":1},{"$f":"COUNTIFS(Table2[Year],E6,Table2[Semester],E7,Table2[County of Origin],O23,Table2[College],B27,Table2[Sex],O24)","v":36},{"$f":"COUNTIFS(Table2[Year],E6,Table2[Semester],E7,Table2[County of Origin],O23,Table2[College],B27,Table2[Sex],P24)","v":20},{"$f":"COUNTIFS(Table2[Year],E6,Table2[Semester],E7,Table2[County of Origin],Q23,Table2[College],B27,Table2[Sex],Q24)","v":0},{"$f":"COUNTIFS(Table2[Year],E6,Table2[Semester],E7,Table2[County of Origin],Q23,Table2[College],B27,Table2[Sex],R24)","v":0}]
[null,"College of Technology",{"$f":"COUNTIFS(Table2[Year],E6,Table2[Semester],E7,Table2[County of Origin],C23,Table2[College],B28,Table2[Sex],C24)","v":1},{"$f":"COUNTIFS(Table2[Year],E6,Table2[Semester],E7,Table2[County of Origin],C23,Table2[College],B28,Table2[Sex],D24)","v":0},{"$f":"COUNTIFS(Table2[Year],E6,Table2[Semester],E7,Table2[County of Origin],E23,Table2[College],B28,Table2[Sex],E24)","v":1},{"$f":"COUNTIFS(Table2[Year],E6,Table2[Semester],E7,Table2[County of Origin],E23,Table2[College],B28,Table2[Sex],F24)","v":0},{"$f":"COUNTIFS(Table2[Year],E6,Table2[Semester],E7,Table2[County of Origin],G23,Table2[College],B28,Table2[Sex],G24)","v":3},{"$f":"COUNTIFS(Table2[Year],E6,Table2[Semester],E7,Table2[County of Origin],G23,Table2[College],B28,Table2[Sex],H24)","v":0},{"$f":"COUNTIFS(Table2[Year],E6,Table2[Semester],E7,Table2[County of Origin],I23,Table2[College],B28,Table2[Sex],I24)","v":0},{"$f":"COUNTIFS(Table2[Year],E6,Table2[Semester],E7,Table2[County of Origin],I23,Table2[College],B28,Table2[Sex],J24)","v":0},{"$f":"COUNTIFS(Table2[Year],E6,Table2[Semester],E7,Table2[County of Origin],K23,Table2[College],B28,Table2[Sex],K24)","v":3},{"$f":"COUNTIFS(Table2[Year],E6,Table2[Semester],E7,Table2[County of Origin],K23,Table2[College],B28,Table2[Sex],L24)","v":0},{"$f":"COUNTIFS(Table2[Year],E6,Table2[Semester],E7,Table2[County of Origin],M23,Table2[College],B28,Table2[Sex],M24)","v":0},{"$f":"COUNTIFS(Table2[Year],E6,Table2[Semester],E7,Table2[County of Origin],M23,Table2[College],B28,Table2[Sex],N24)","v":0},{"$f":"COUNTIFS(Table2[Year],E6,Table2[Semester],E7,Table2[County of Origin],O23,Table2[College],B28,Table2[Sex],O24)","v":44},{"$f":"COUNTIFS(Table2[Year],E6,Table2[Semester],E7,Table2[County of Origin],O23,Table2[College],B28,Table2[Sex],P24)","v":7},{"$f":"COUNTIFS(Table2[Year],E6,Table2[Semester],E7,Table2[County of Origin],Q23,Table2[College],B28,Table2[Sex],Q24)","v":1},{"$f":"COUNTIFS(Table2[Year],E6,Table2[Semester],E7,Table2[County of Origin],Q23,Table2[College],B28,Table2[Sex],R24)","v":0}]
[null,"College of Education",{"$f":"COUNTIFS(Table2[Year],E6,Table2[Semester],E7,Table2[County of Origin],C23,Table2[College],B29,Table2[Sex],C24)","v":0},{"$f":"COUNTIFS(Table2[Year],E6,Table2[Semester],E7,Table2[County of Origin],C23,Table2[College],B29,Table2[Sex],D24)","v":0},{"$f":"COUNTIFS(Table2[Year],E6,Table2[Semester],E7,Table2[County of Origin],E23,Table2[College],B29,Table2[Sex],E24)","v":0},{"$f":"COUNTIFS(Table2[Year],E6,Table2[Semester],E7,Table2[County of Origin],E23,Table2[College],B29,Table2[Sex],F24)","v":0},{"$f":"COUNTIFS(Table2[Year],E6,Table2[Semester],E7,Table2[County of Origin],G23,Table2[College],B29,Table2[Sex],G24)","v":1},{"$f":"COUNTIFS(Table2[Year],E6,Table2[Semester],E7,Table2[County of Origin],G23,Table2[College],B29,Table2[Sex],H24)","v":0},{"$f":"COUNTIFS(Table2[Year],E6,Table2[Semester],E7,Table2[County of Origin],I23,Table2[College],B29,Table2[Sex],I24)","v":1},{"$f":"COUNTIFS(Table2[Year],E6,Table2[Semester],E7,Table2[County of Origin],I23,Table2[College],B29,Table2[Sex],J24)","v":0},{"$f":"COUNTIFS(Table2[Year],E6,Table2[Semester],E7,Table2[County of Origin],K23,Table2[College],B29,Table2[Sex],K24)","v":6},{"$f":"COUNTIFS(Table2[Year],E6,Table2[Semester],E7,Table2[County of Origin],K23,Table2[College],B29,Table2[Sex],L24)","v":1},{"$f":"COUNTIFS(Table2[Year],E6,Table2[Semester],E7,Table2[County of Origin],M23,Table2[College],B29,Table2[Sex],M24)","v":1},{"$f":"COUNTIFS(Table2[Year],E6,Table2[Semester],E7,Table2[County of Origin],M23,Table2[College],B29,Table2[Sex],N24)","v":2},{"$f":"COUNTIFS(Table2[Year],E6,Table2[Semester],E7,Table2[County of Origin],O23,Table2[College],B29,Table2[Sex],O24)","v":45},{"$f":"COUNTIFS(Table2[Year],E6,Table2[Semester],E7,Table2[County of Origin],O23,Table2[College],B29,Table2[Sex],P24)","v":7},{"$f":"COUNTIFS(Table2[Year],E6,Table2[Semester],E7,Table2[County of Origin],Q23,Table2[College],B29,Table2[Sex],Q24)","v":0},{"$f":"COUNTIFS(Table2[Year],E6,Table2[Semester],E7,Table2[County of Origin],Q23,Table2[College],B29,Table2[Sex],R24)","v":1}]
[]
[null,"Total",{"$f":"SUM(C25:C29)","v":7},1,3,1,5,1,1,0,26,6,7,3,183,56,1,1]
[]
[null,"Percentage",{"$f":"C31/SUM(C31:D31)","v":0.875},{"$f":"D31/SUM(C31:D31)","v":0.125},{"$f":"E31/SUM(E31:F31)","v":0.75},{"$f":"F31/SUM(E31:F31)","v":0.25},{"$f":"G31/SUM(G31:H31)","v":0.83333333333333337},{"$f":"H31/SUM(G31:H31)","v":0.16666666666666666},{"$f":"I31/SUM(I31:J31)","v":1},{"$f":"J31/SUM(I31:J31)","v":0},{"$f":"K31/SUM(K31:L31)","v":0.8125},{"$f":"L31/SUM(K31:L31)","v":0.1875},{"$f":"M31/SUM(M31:N31)","v":0.7},{"$f":"N31/SUM(M31:N31)","v":0.3},{"$f":"O31/SUM(O31:P31)","v":0.76569037656903771},{"$f":"P31/SUM(O31:P31)","v":0.23430962343096234},{"$f":"Q31/SUM(Q31:R31)","v":0.5},{"$f":"R31/SUM(Q31:R31)","v":0.5}]
[]
[null,null,{"$f":"SUM(C31:D31)/$E$45","v":1.2012012012012012E-2},null,{"$f":"SUM(E31:F31)/$E$45","v":6.006006006006006E-3},null,{"$f":"SUM(G31:H31)/$E$45","v":9.0090090090090089E-3},null,{"$f":"SUM(I31:J31)/$E$45","v":1.5015015015015015E-3},null,{"$f":"SUM(K31:L31)/$E$45","v":4.8048048048048048E-2},null,{"$f":"SUM(M31:N31)/$E$45","v":1.5015015015015015E-2},null,{"$f":"SUM(O31:P31)/$E$45","v":0.35885885885885888},null,{"$f":"SUM(Q31:R31)/$E$45","v":3.003003003003003E-3}]
[]
[null,null,"All Counties",null,"Total","%",null,"All Counties (%)",null,"Total (%)"]
[null,"College","Male","Female",null,null,null,"Male","Female"]
[null,"College of Health Sciences",{"$f":"Statistics!E28","v":102},{"$f":"Statistics!F28","v":79},{"$f":"SUM(C39:D39)","v":181},{"$f":"E39/E45","v":0.27177177177177175},null,{"$f":"C39/E39","v":0.56353591160220995},{"$f":"D39/E39","v":0.43646408839779005},{"$f":"SUM(H39:I39)","v":1}]
[null,"College of Agriculture and Food Sciences",{"$f":"Statistics!E29","v":135},{"$f":"Statistics!F29","v":13},{"$f":"SUM(C40:D40)","v":148},{"$f":"E40/$E$45","v":0.22222222222222221},null,{"$f":"C40/E40","v":0.91216216216216217},{"$f":"D40/E40","v":8.7837837837837843E-2},{"$f":"SUM(H40:I40)","v":1}]
[null,"College of Management",{"$f":"Statistics!E30","v":89},{"$f":"Statistics!F30","v":35},{"$f":"SUM(C41:D41)","v":124},{"$f":"E41/$E$45","v":0.18618618618618618},null,{"$f":"C41/E41","v":0.717741935483871},{"$f":"D41/E41","v":0.28225806451612906},{"$f":"SUM(H41:I41)","v":1}]
[null,"College of Technology",{"$f":"Statistics!E31","v":94},{"$f":"Statistics!F31","v":12},106,{"$f":"E42/$E$45","v":0.15915915915915915},null,{"$f":"C42/E42","v":0.8867924528301887},{"$f":"D42/E42","v":0.11320754716981132},{"$f":"SUM(H42:I42)","v":1}]
[null,"College of Education",{"$f":"Statistics!E32","v":91},{"$f":"Statistics!F32","v":16},{"$f":"SUM(C43:D43)","v":107},{"$f":"E43/$E$45","v":0.16066066066066065},null,{"$f":"C43/E43","v":0.85046728971962615},{"$f":"D43/E43","v":0.14953271028037382},{"$f":"SUM(H43:I43)","v":1}]
[]
[null,"Total",{"$f":"SUM(C39:C43)","v":511},{"$f":"SUM(D39:D43)","v":155},{"$f":"SUM(C45:D45)","v":666},{"$f":"SUM(F39:F43)","v":0.99999999999999989},null,{"$f":"(C45/E45)","v":0.76726726726726724},{"$f":"(D45/E45)","v":0.23273273273273273},{"$f":"SUM(H45:I45)","v":1}]

{"sheet":"Graph","index":4,"n_rows":19,"n_cols":4,"rows_kept":19,"cut":false,"hidden":false,"merged":[]}
[]
[]
[null,null,"Bomi",{"$f":"'General Statistics'!C21:D21","v":0}]
[null,null,"Bong",{"$f":"'General Statistics'!E21:E21","v":7.5075075075075074E-3}]
[null,null,"Gbarpolu",{"$f":"'General Statistics'!G21:G21","v":1.5015015015015015E-3}]
[null,null,"Grand Bassa",{"$f":"'General Statistics'!I21:I21","v":1.3513513513513514E-2}]
[null,null,"Grand Cape Mount",{"$f":"'General Statistics'!K21:K21","v":7.5075075075075074E-3}]
[null,null,"Grand Gedeh",{"$f":"'General Statistics'!M21:M21","v":1.2012012012012012E-2}]
[null,null,"Grand Kru",{"$f":"'General Statistics'!O21:O21","v":0.1006006006006006}]
[null,null,"Lofa",{"$f":"'General Statistics'!Q21:Q21","v":2.1021021021021023E-2}]
[null,null,"Margibi",{"$f":"'General Statistics'!C35:D35","v":0}]
[null,null,"Montserrado",{"$f":"'General Statistics'!E35:E35","v":6.006006006006006E-3}]
[null,null,"Nimba",{"$f":"'General Statistics'!G35:G35","v":9.0090090090090089E-3}]
[null,null,"River Cess",{"$f":"'General Statistics'!I35:I35","v":1.5015015015015015E-3}]
[null,null,"River Gee",{"$f":"'General Statistics'!K35:K35","v":4.8048048048048048E-2}]
[null,null,"Sinoe",{"$f":"'General Statistics'!M35:M35","v":1.5015015015015015E-2}]
[null,null,"Maryland",{"$f":"'General Statistics'!O35:O35","v":0.35885885885885888}]
[null,null,"Non-Liberian",{"$f":"'General Statistics'!Q35:Q35","v":3.003003003003003E-3}]
[null,null,null,{"$f":"SUM(D3:D18)","v":0.60510510510510518}]